Workbook

Sheet Intro
F19: Small Waste Facility
F20: Environmental Risk Assessment & Mitigation Package (E-RAMP)
F22: V4.0 (2023)

Sheet Start
A2: Small Waste Facility
A3: Environmental Risk Assessment and Mitigation Package
A4: (E-RAMP)

Sheet Type
A6: Waste Facility Type
B32: Note: Select the current use of the premises. For example, if the premises is currently a transfer station on the site of a closed landfill, select "transfer station"

Sheet Premises
A6: Facility Details
B8: Facility Operator:
B10: Facility Name:
B12: Address / Location:
B14: GPS Coordinates
E17: Amount of waste received (tonnes per year) | N17: Distance to Metropolitan Levy Area (km)
E21: Age of the facility (years) | N21: Distance to Regional Levy Area (km)
E25: Area of the facility (square metres) | N25: Levy areas information
N27: Distance to population centre > 5,000 people (km)
E29: What type of road is the facility accessed from?

Sheet Meteorology
A6: Local Meteorology
D8: Average annual rainfall (mm) | M8: Bushfire danger period prevailing winds
M10: October
D11: Bureau of Meterology data | M11: Direction | N11: Mean speed (km/h) | P11: % calm
D13: Prevailing wind direction (annual) - from 3pm
D15: Link to BOM information | M15: November
D16: Bureau of Meterology data | M16: Direction | N16: Mean speed (km/h) | P16: % calm
D18: % calm observations (annual) - from 3pm
D20: Link to BOM information | M20: December
D21: Bureau of Meterology data | M21: Direction | N21: Mean speed (km/h) | P21: % calm
D23: Mean wind speed -km/h (annual) - from 3pm
M25: January
D26: Bureau of Meterology data | M26: Direction | N26: Mean speed (km/h) | P26: % calm
D28: No. rain days > 10mm (per year)
M30: February
D31: Bureau of Meterology data | M31: Direction | N31: Mean speed (km/h) | P31: % calm
D33: Average annual evaporation (mm)
M35: March
D36: Bureau of Meterology data | M36: Direction | N36: Mean speed (km/h) | P36: % calm
M39: Bureau of Meterology data

Sheet Surrounding Landuse
A6: Surrounding Land Use & Vegetation
F9: Main land use | M9: Main land use
F12: Distance to nearest single residence (km) | M12: Distance to nearest single residence (km)
F15: Distance to nearest residential area (km) | M15: Distance to nearest residential area (km)
F18: Dominant vegetation type adjoining site | M18: Dominant vegetation type adjoining site
F25: Main land use | M25: Main land use
F28: Distance to nearest single residence (km) | M28: Distance to nearest single residence (km)
F31: Distance to nearest residential area (km) | M31: Distance to nearest residential area (km)
F34: Dominant vegetation type adjoining site | M34: Dominant vegetation type adjoining site
F39: Spatial Information Exchange
F40: SEED map of NSW vegetation types

Sheet Topography
A6: Topography of the site
E28: On what topographical unit is the facility located?
D33: Spatial Information Exchange

Sheet Environmental I & M
A6: Existing Environmental Information and Monitoring
D8: Was the site of the facility selected following a detailed | M8: Is any of the following environmental monitoring
D9: site selection process? | M9: undertaken at the facility?
D13: Was an Environmental Impact Statement (EIS) /
D14: Statement of Environmental Effects (SEE) / Review of
D15: Environmental Factors (REF) or planning requirements
D16: prepared for the facility?
D20: Has there ever been an environmental audit (or similar)
D21: of the facility?
D25: Has an environmental investigation (or similar) been
D26: undertaken at the facility?
D30: Has an Environmental Management Plan (EMP) been
D31: prepared and implemented for the facility?

Sheet Surrounding Environment 1
A6: Surrounding Environment
D8: Soils at the facility (USCS description) | M8: Distance to nearest watercourse (m)
D9: Surface (<0.1m BGL) | G9: Subsurface (>0.1m BGL)
D12: Soil classification methodology | M12: Slope of ground at the site (%)
D13: Assessing Texture of your Soil
D15: Modelled soil erosion, bare (t/ha/yr) | M15: Spatial Information Exchange
M17: Is the site within an identified drinking water catchment?
D18: eSPADE - online soil mapping
D20: Are any of the erosion types present at / near the site? | M20: SEED map of identified drinking water catchments
M22: Is the facility on bush fire prone land?
M25: SEED map of bushfire prone land
M27: Is the facility visible from any of the following?
D29: Types of erosion
D31: Modelled soil electrical conductivity 0-30cm (dS/m)
D34: eSPADE - online soil mapping
D36: Acid sulfate soil probability
D39: eSPADE - online soil mapping

Sheet Surrounding Environment 2
A6: Surrounding Environment
D8: Is the site in an identified area of groundwater vulnerability? | M8: Are there any items of Aboriginal Cultural Heritage
M9: within 1km of the facility?
D11: SEED map of groundwater vulnerability
M12: Aboriginal Heritage Information Management System
D13: Depth to bedrock at the facility (mBGL)
M14: What is the distance to the nearest location zoned
M15: for environment protection / conservation?
D17: Depth to groundwater at the facility (mBGL) | M17: SEED map of land zonings
M20: What is the distance to a park / reserve (km)?
D21: Use of registered bores within 1km of the facility
D22: (Tick all that apply) | M22: SEED map of NSW NPWS Estates
M25: Is there a record of any vulnerable or endangered
M26: species of flora or fauna withn 1km of the facility?
M29: SEED map of species sightings
D30: NSW Water Groundwater Information

Sheet Community I, E & A
A6: Existing Community Information, Education and Awareness
D8: Are there signs showing the direction to the facility? | M8: How are users of the facility communicated with, other
M9: than signage? (Tick all that apply)
D13: What do the signs at the facility communicate?
D14: (Tick all that apply)
M22: What educational themes are communicated?
M23: (Tick all that apply)

Sheet Training
A6: Existing Staff Training and Regulation
D8: What training have the on-site operators of the facility | M8: Are there any "Authorised Officers" under the
D9: received relevant to the facility's operation? | M9: Protection of the Environment Operations Act 1997 that…
D10: (Tick all that apply)
M11: Work at the facility?
M17: Are otherwise employed by the operator of the facility?
M23: What waste management regulatory enforcement
M24: activities have been undertaken in the past 12 months?
M25: (Tick all that apply)

Sheet Operational 1
A6: Existing Operations and Management
D8: What wastes are received at the facility? (Tick all that apply) | Z8: 1
D10: Solid Wastes | H10: For disposal | J10: For storage | M10: Max. quantity stored (t) | P10: Max. time stored
D11: Municipal waste
D12: Recyclables
D13: Commercial & industrial waste
D14: Construction & demolition waste
D15: Garden & vegetation waste
D16: Virgin excavated natural material
D17: Scrap metal
D18: Tyres
D19: Chemical containers with residue | H19: N/A
D20: Batteries | H20: N/A
D21: Hazardous waste | H21: N/A
D22: Others
D24: Liquid | H24: For disposal | J24: For storage | M24: Max. quantity stored (l) | P24: Max. time stored
D25: Waste mineral oil
D26: Waste cooking oil
D27: Paint
D28: Grease trap waste
D29: Oily water waste
D30: Septic waste
D31: Others

Sheet Operational 1 (TS)
A6: Existing Operations and Management
D8: What wastes are received at the facility? (Tick all that apply) | AH8: 1
D10: Solid Wastes | J10: For storage | M10: Max. quantity stored (t) | P10: Max. time stored
D11: Municipal waste
D12: Recyclables
D13: Commercial & industrial waste
D14: Construction & demolition waste
D15: Garden & vegetation waste
D16: Virgin excavated natural material
D17: Scrap metal
D18: Tyres
D19: Chemical containers with residue
D20: Batteries
D21: Hazardous waste
D22: Others
D24: Liquid | J24: For storage | M24: Max. quantity stored (l) | P24: Max. time stored
D25: Waste mineral oil
D26: Waste cooking oil
D27: Paint
D28: Grease trap waste
D29: Oily water waste
D30: Septic waste
D31: Others

Sheet Operational 2
A6: Existing Operations and Management
D8: When is the facility open to the public? | M8: When is the facility supervised?
D12: What type of perimeter fence does the facility have? | M12: Operators are at the facility ...
D16: How is public access to the facility secured? | M16: How often are complaints received about the facility?
D20: Are any of the following additional security | M20: How often do uncontrolled fires occur at the facility?
D21: arrangements in place?
M24: How often are wastes unlawfully disposed within the
M25: facility?
D29: How is public access to the facility controlled? | M29: How often are wastes unlawfully disposed on land
M30: surrounding the facility?

Sheet Operational 3
A6: Existing Operations and Management
D8: Is stormwater diverted around… | M8: How are liquid / hazardous wastes stored?
M10: No liquid or hazardous wastes stored
M12: Are all the liquid / hazardous waste areas covered?
M14: Not Applicable
M16: What dust control measures are in use at the facility?
D17: How is stormwater runoff managed from undisturbed areas?
D21: How is stormwater runoff managed from disturbed areas?
D25: How is stormwater runoff managed from waste storage /
D26: disposal areas?
M27: What litter controls are in place at the facility?
D30: How much of the trafficable area at the facility is
D31: sealed?

Sheet Operational 4
A6: Existing Operations and Management
D8: On what days are operational activities conducted at | M8: Are the following waste collection services available to
D9: the facility? | M9: residents in the vicinity of the facility?
M10: (Tick all that apply)
D13: During what hours on these days are operational
D14: activities conducted at the facility?
M17: Is a Community Recycling Centre (CRC) available
D18: What plant and equipment is used at the facility? | M18: to residents within 50km of the facility?
D19: (Tick all that apply)
M22: Find CRC locations
M24: What pest management programs are in place at the
M25: facility? (Tick all that apply)

Sheet Operational 5
A6: Existing Operations and Management
D8: What is the frequency of planned and controlled burning | M8: Have any of the following procedures been documented
D9: at the facility? | M9: and implemented?
D13: What best describes the fire fighting capacity available
D14: at the facility?
D18: What fire management controls are used at the facility?
D19: (Tick all that apply)
M28: Have emergency services been required to attend the
M29: facility in the last 12 months?

Sheet Landfill Specific
A6: Existing Operations and Management
D8: In addition to the previous, what wastes are disposed of at the facility? (Tick all that apply)
O10: Estimated quantity per annum (t)
D11: Asbestos
D12: Clinical / pharmaceutical waste
D13: Animal carcasses / parts
D14: Biosolids
D15: Contaminated soil
D17: How are wastes landfilled at the facility? | M17: Is there a landfilling plan for the facility?
D21: How many active landfill areas are at the facility?
M22: How are the bases of landfill areas prepared?
D25: What is the estimated size of the active landfill areas (m2)
M26: How are completed landfill areas closed?
D29: How is the waste compacted?
M30: Is landfill leachate captured for treatment / discharge
M31: at the facility?
D33: How often is waste covered?
M36: How is collected leachate managed?
D37: How is the waste covered? | M37: =IF(Data!AL59=2,"Not applicable",LOOKUP(Data!AL61,Data!AJ62:AJ66,Data!AK62:AK66)) -> Not applicable
M39: What best describes the method used to manage
M40: landfill gas?

Sheet Transfer Station Specific
A6: Existing Operations and Management
D8: Is the transfer station permanently established? | M8: Are wastes processed / sorted at the facility?
D13: What waste transfer station method is used? | M13: Where are wastes received at the transfer station taken
M14: for disposal?
D17: How is the transfer station constructed?
M18: Is the transfer station located on a closed landfill?
D21: Is the transfer station area under cover?
D26: Do the bins / bunkers used have lids?

Sheet Closed Landfill
A6: Existing Closed Landfill
D8: How many years was the landfill in operation? | M8: What is the post landfill landuse of the facility?
D12: How many years ago was the landfill closed? | M12: Have any structures been built over the landfilled areas?
D16: How much waste was received in the last year of
D17: operation (tonnes)? | M17: What best describes the method used to manage
M18: landfill gas?
D21: How were wastes disposed?
M22: Has an organic layer been placed over the final surface?
D25: How was the landfill capped?
M27: How has the final surface been revegetated?
D29: What is the slope of the final surface?
M31: Does any post closure monitoring of the integrity
M32: of the landfill cap / surface occur?
D33: How is runoff from the facility treated?
D37: How is leachate managed? | M37: What is the frequency of landfill cap monitoring?
M38: =IF(Data!AS65=2,"Not applicable",LOOKUP(Data!AU66,Data!AS67:AS71,Data!AT67:AT71)) -> Not applicable
M40: Are there procedures in place to repair any instability
D41: Has a Landfill Closure Management Plan been prepared and | M41: and/or failures identified in the landfill cap?
D42: implemented for the facility, relevant to its size and condition? | M42: =IF(Data!AS65=2,"Not applicable",IF(Data!AU72=1,"Yes","No")) -> Not applicable

Sheet Proceed
A3: Proceed to Potential Mitigation Options Section
A5: IMPORTANT:
B6: Information you have supplied regarding the existing facility will be locked and cannot be changed after "Proceed" is selected - even after the file is saved, closed and re-opened.
J9: Do you wish to proceed?
J18: Or review the information provided?

Sheet Previously used
B3: Previously Used File
B5: This file has been used previously to conduct an E-RAMP assessment.
B7: A new E-RAMP assessment should be undertaken after:
B9: - an incident occurs that can directly affect the level of environmental risk assessed as part of this assessment
B10: - new or updated information becomes available directly relevant to this risk assessment
B11: - risk mitigation measures are employed at the small waste facility or
B12: - a period of 12 months from the previous assessment.
B14: Re-assessment should start with the master copy of E-RAMP, as older assessment files (such as this one) will not re-assess information regarding the surrounding environment that may change over time (eg. residential encroachment, newly installed groundwater bores, complaints data, new national parks, etc).

Sheet Mitigation Options (Landfill)
A6: Active Landfill Mitigation Options

Sheet Environmental I & M (m)
A6: Proposed Environmental Information and Monitoring
D8: Do you plan to undertake an environmental audit (or | M8: Do you plan to implement / expand any of the following
D9: similar) of the facility? | M9: environmental monitoring at the facility?
D13: Do you plan to undertake an environmental investigation
D14: (or similar) at the facility?
D18: Do you plan to prepare & implement an Environmental
D19: Management Plan (EMP) for the facility?
D23: Do you plan to undertake an archaeological investigation
D24: for items of Aboriginal Cultural Heritage at / around the
D25: facility?
D29: Do you plan to undertake a flora / fauna investigation for
D30: Threatened Species of flora and fauna (including EECs)
D31: at / around the facility?
D35: Do you plan to undertake a Landfill Closure Management
D36: plan for the facility, relevant to the size and condition?

Sheet Monitoring 1
A2: Environmental Monitoring
C4: Groundwater
F5: Existing | J5: Proposed
C6: No. Locations | F6: =IF(Data!S12=2,"No monitoring undertaken",LOOKUP(Data!S13,Data!Q101:Q105,Data!R101:R105)) -> No monitoring undertaken | J6: =IF('Mitigation Data'!S12=2,"No change proposed",LOOKUP('Mitigation Data'!S13,'Mitigation Data'!Q14:Q18,'Mitigation Data'!R14:R18)) -> No change proposed
C7: Locations | F7: =IF(Data!S12=2,"",LOOKUP(Data!S14,Data!Q115:Q117,Data!R115:R117)) ->  | J7: =IF('Mitigation Data'!S12=2,"",LOOKUP('Mitigation Data'!S19,'Mitigation Data'!Q20:Q22,'Mitigation Data'!R20:R22)) -> 
C8: Frequency | F8: =IF(Data!S12=2,"",LOOKUP(Data!S15,Data!Q108:Q112,Data!R108:R112)) ->  | J8: =IF('Mitigation Data'!S12=2,"",LOOKUP('Mitigation Data'!S23,'Mitigation Data'!Q24:Q28,'Mitigation Data'!R24:R28)) -> 
C10: Parameters
C11: Level (mBGL) | F11: =IF(Data!S12=2,"",IF(Data!S17=TRUE,"Yes","No")) ->  | J11: =IF('Mitigation Data'!S12=2,"",IF('Mitigation Data'!S30=TRUE,"Yes","No")) -> 
C12: pH | F12: =IF(Data!S12=2,"",IF(Data!S18=TRUE,"Yes","No")) ->  | J12: =IF('Mitigation Data'!S12=2,"",IF('Mitigation Data'!S31=TRUE,"Yes","No")) -> 
C13: Electrical Conductivity | F13: =IF(Data!S12=2,"",IF(Data!S19=TRUE,"Yes","No")) ->  | J13: =IF('Mitigation Data'!S12=2,"",IF('Mitigation Data'!S32=TRUE,"Yes","No")) -> 
C14: Ammonia | F14: =IF(Data!S12=2,"",IF(Data!S20=TRUE,"Yes","No")) ->  | J14: =IF('Mitigation Data'!S12=2,"",IF('Mitigation Data'!S33=TRUE,"Yes","No")) -> 
C15: Nitrate | F15: =IF(Data!S12=2,"",IF(Data!S21=TRUE,"Yes","No")) ->  | J15: =IF('Mitigation Data'!S12=2,"",IF('Mitigation Data'!S34=TRUE,"Yes","No")) -> 
C16: Total Organic Carbon | F16: =IF(Data!S12=2,"",IF(Data!S22=TRUE,"Yes","No")) ->  | J16: =IF('Mitigation Data'!S12=2,"",IF('Mitigation Data'!S35=TRUE,"Yes","No")) -> 
C17: Alkalinity | F17: =IF(Data!S12=2,"",IF(Data!S23=TRUE,"Yes","No")) ->  | J17: =IF('Mitigation Data'!S12=2,"",IF('Mitigation Data'!S36=TRUE,"Yes","No")) -> 
C18: Iron | F18: =IF(Data!S12=2,"",IF(Data!S24=TRUE,"Yes","No")) ->  | J18: =IF('Mitigation Data'!S12=2,"",IF('Mitigation Data'!S37=TRUE,"Yes","No")) -> 
C19: Pesticides | F19: =IF(Data!S12=2,"",IF(Data!S25=TRUE,"Yes","No")) ->  | J19: =IF('Mitigation Data'!S12=2,"",IF('Mitigation Data'!S38=TRUE,"Yes","No")) -> 
C20: Others | F20: =IF(Data!S12=2,"",IF(Data!S26=TRUE,"Yes","No")) ->  | J20: =IF('Mitigation Data'!S12=2,"",IF('Mitigation Data'!S39=TRUE,"Yes","No")) -> 
C22: Elevation of results from | F22: =IF(Data!S12=2,"",LOOKUP(Data!S27,Data!Q125:Q127,Data!R125:R127)) -> 
C23: background levels
C25: Noise
F26: Existing | J26: Proposed
C27: No. Locations | F27: =IF(Data!S70=2,"No monitoring undertaken",LOOKUP(Data!S71,Data!Q101:Q105,'Mitigation Data'!R161:R165)) -> No monitoring undertaken | J27: =IF('Mitigation Data'!S114=2,"No change proposed",LOOKUP('Mitigation Data'!S115,'Mitigation Data'!Q116:Q120,'Mitigation Data'!R116:R120)) -> No change proposed
C28: Locations | F28: =IF(Data!S70=2,"",LOOKUP(Data!S72,Data!Q73:Q75,Data!R73:R75)) ->  | J28: =IF('Mitigation Data'!S114=2,"",LOOKUP('Mitigation Data'!S121,'Mitigation Data'!Q122:Q124,'Mitigation Data'!R122:R124)) -> 
C29: Frequency | F29: =IF(Data!S70=2,"",LOOKUP(Data!S76,Data!Q108:Q112,Data!R108:R112)) ->  | J29: =IF('Mitigation Data'!S114=2,"",LOOKUP('Mitigation Data'!S125,'Mitigation Data'!Q126:Q130,'Mitigation Data'!R126:R130)) -> 
C30: Method | F30: =IF(Data!S70=2,"",LOOKUP(Data!S77,Data!Q78:Q81,Data!R78:R81)) ->  | J30: =IF('Mitigation Data'!S114=2,"",LOOKUP('Mitigation Data'!S131,'Mitigation Data'!Q132:Q135,'Mitigation Data'!R132:R135)) -> 
C32: Results compared to | F32: =IF(Data!S70=2,"",LOOKUP(Data!S82,Data!Q83:Q87,Data!R83:R87)) -> 
C33: background

Sheet Monitoring 2
A2: Environmental Monitoring
C4: Leachate
F5: Existing | J5: Proposed
C6: Frequency | F6: =IF(Data!S45=2,"No monitoring undertaken",LOOKUP(Data!S46,Data!Q108:Q112,Data!R108:R112)) -> No monitoring undertaken | J6: =IF('Mitigation Data'!S71=2,"No change proposed",LOOKUP('Mitigation Data'!S72,'Mitigation Data'!Q73:Q77,'Mitigation Data'!R73:R77)) -> No change proposed
C8: Parameters
C9: pH | F9: =IF(Data!$S$45=2,"",IF(Data!S48=TRUE,"Yes","No")) ->  | J9: =IF('Mitigation Data'!$S$71=2,"",IF('Mitigation Data'!S79=TRUE,"Yes","No")) -> 
C10: Electrical Conductivity | F10: =IF(Data!$S$45=2,"",IF(Data!S49=TRUE,"Yes","No")) ->  | J10: =IF('Mitigation Data'!$S$71=2,"",IF('Mitigation Data'!S80=TRUE,"Yes","No")) -> 
C11: Ammonia | F11: =IF(Data!$S$45=2,"",IF(Data!S50=TRUE,"Yes","No")) ->  | J11: =IF('Mitigation Data'!$S$71=2,"",IF('Mitigation Data'!S81=TRUE,"Yes","No")) -> 
C12: Nitrate | F12: =IF(Data!$S$45=2,"",IF(Data!S51=TRUE,"Yes","No")) ->  | J12: =IF('Mitigation Data'!$S$71=2,"",IF('Mitigation Data'!S82=TRUE,"Yes","No")) -> 
C13: Total Organic Carbon | F13: =IF(Data!$S$45=2,"",IF(Data!S52=TRUE,"Yes","No")) ->  | J13: =IF('Mitigation Data'!$S$71=2,"",IF('Mitigation Data'!S83=TRUE,"Yes","No")) -> 
C14: Alkalinity | F14: =IF(Data!$S$45=2,"",IF(Data!S53=TRUE,"Yes","No")) ->  | J14: =IF('Mitigation Data'!$S$71=2,"",IF('Mitigation Data'!S84=TRUE,"Yes","No")) -> 
C15: Iron | F15: =IF(Data!$S$45=2,"",IF(Data!S54=TRUE,"Yes","No")) ->  | J15: =IF('Mitigation Data'!$S$71=2,"",IF('Mitigation Data'!S85=TRUE,"Yes","No")) -> 
C16: Pesticides | F16: =IF(Data!$S$45=2,"",IF(Data!S55=TRUE,"Yes","No")) ->  | J16: =IF('Mitigation Data'!$S$71=2,"",IF('Mitigation Data'!S86=TRUE,"Yes","No")) -> 
C17: Others | F17: =IF(Data!$S$45=2,"",IF(Data!S56=TRUE,"Yes","No")) ->  | J17: =IF('Mitigation Data'!$S$71=2,"",IF('Mitigation Data'!S87=TRUE,"Yes","No")) -> 
C19: Deviation of results from | F19: =IF(Data!S45=2,"",LOOKUP(Data!S57,Data!Q125:Q127,'Mitigation Data'!R185:R187)) -> 
C20: historic levels
C22: Dust
F23: Existing | J23: Proposed
C24: No. Locations | F24: =IF(Data!S59=2,"No monitoring undertaken",LOOKUP(Data!S60,Data!Q101:Q105,Data!R101:R105)) -> No monitoring undertaken | J24: =IF('Mitigation Data'!S90=2,"No change proposed",LOOKUP('Mitigation Data'!S91,'Mitigation Data'!Q92:Q96,'Mitigation Data'!R92:R96)) -> No change proposed
C25: Locations | F25: =IF(Data!S59=2,"",LOOKUP(Data!S61,Data!Q120:Q122,Data!R120:R122)) ->  | J25: =IF('Mitigation Data'!S90=2,"",LOOKUP('Mitigation Data'!S97,'Mitigation Data'!Q98:Q100,'Mitigation Data'!R98:R100)) -> 
C26: Frequency | F26: =IF(Data!S59=2,"",LOOKUP(Data!S62,Data!Q108:Q112,Data!R108:R112)) ->  | J26: =IF('Mitigation Data'!S90=2,"",LOOKUP('Mitigation Data'!S101,'Mitigation Data'!Q102:Q106,'Mitigation Data'!R102:R106)) -> 
C27: Method | F27: =IF(Data!S59=2,"",LOOKUP(Data!S63,Data!Q64:Q67,Data!R64:R67)) ->  | J27: =IF('Mitigation Data'!S90=2,"",LOOKUP('Mitigation Data'!S107,'Mitigation Data'!Q108:Q111,'Mitigation Data'!R108:R111)) -> 
C29: Results compared to | F29: =IF(Data!S59=2,"",LOOKUP(Data!S68,Data!Q125:Q127,Data!R125:R127)) -> 
C30: background

Sheet Monitoring 3
A2: Environmental Monitoring
C4: Surface water
F5: Existing | J5: Proposed
C6: No. Locations | F6: =IF(Data!S29=2,"No monitoring undertaken",LOOKUP(Data!S30,Data!Q101:Q105,Data!R101:R105)) -> No monitoring undertaken | J6: =IF('Mitigation Data'!S42=2,"No change proposed",LOOKUP('Mitigation Data'!S43,'Mitigation Data'!Q44:Q48,'Mitigation Data'!R44:R48)) -> No change proposed
C7: Locations | F7: =IF(Data!S29=2,"",LOOKUP(Data!S31,Data!Q115:Q117,Data!R115:R117)) ->  | J7: =IF('Mitigation Data'!S42=2,"",LOOKUP('Mitigation Data'!S49,'Mitigation Data'!Q50:Q52,'Mitigation Data'!R50:R52)) -> 
C8: Frequency | F8: =IF(Data!S29=2,"",LOOKUP(Data!S32,Data!Q108:Q112,Data!R108:R112)) ->  | J8: =IF('Mitigation Data'!S42=2,"",LOOKUP('Mitigation Data'!S53,'Mitigation Data'!Q54:Q58,'Mitigation Data'!R54:R58)) -> 
C10: Parameters
C11: pH | F11: =IF(Data!$S$29=2,"",IF(Data!S34=TRUE,"Yes","No")) ->  | J11: =IF('Mitigation Data'!$S$42=2,"",IF('Mitigation Data'!S60=TRUE,"Yes","No")) -> 
C12: Electrical Conductivity | F12: =IF(Data!$S$29=2,"",IF(Data!S35=TRUE,"Yes","No")) ->  | J12: =IF('Mitigation Data'!$S$42=2,"",IF('Mitigation Data'!S61=TRUE,"Yes","No")) -> 
C13: Ammonia | F13: =IF(Data!$S$29=2,"",IF(Data!S36=TRUE,"Yes","No")) ->  | J13: =IF('Mitigation Data'!$S$42=2,"",IF('Mitigation Data'!S62=TRUE,"Yes","No")) -> 
C14: Nitrate | F14: =IF(Data!$S$29=2,"",IF(Data!S37=TRUE,"Yes","No")) ->  | J14: =IF('Mitigation Data'!$S$42=2,"",IF('Mitigation Data'!S63=TRUE,"Yes","No")) -> 
C15: Total Organic Carbon | F15: =IF(Data!$S$29=2,"",IF(Data!S38=TRUE,"Yes","No")) ->  | J15: =IF('Mitigation Data'!$S$42=2,"",IF('Mitigation Data'!S64=TRUE,"Yes","No")) -> 
C16: Alkalinity | F16: =IF(Data!$S$29=2,"",IF(Data!S39=TRUE,"Yes","No")) ->  | J16: =IF('Mitigation Data'!$S$42=2,"",IF('Mitigation Data'!S65=TRUE,"Yes","No")) -> 
C17: Iron | F17: =IF(Data!$S$29=2,"",IF(Data!S40=TRUE,"Yes","No")) ->  | J17: =IF('Mitigation Data'!$S$42=2,"",IF('Mitigation Data'!S66=TRUE,"Yes","No")) -> 
C18: Pesticides | F18: =IF(Data!$S$29=2,"",IF(Data!S41=TRUE,"Yes","No")) ->  | J18: =IF('Mitigation Data'!$S$42=2,"",IF('Mitigation Data'!S67=TRUE,"Yes","No")) -> 
C19: Others | F19: =IF(Data!$S$29=2,"",IF(Data!S42=TRUE,"Yes","No")) ->  | J19: =IF('Mitigation Data'!$S$42=2,"",IF('Mitigation Data'!S68=TRUE,"Yes","No")) -> 
C21: Elevation of results from | F21: =IF(Data!S29=2,"",LOOKUP(Data!S43,Data!Q125:Q127,Data!R125:R127)) -> 
C22: background levels
D25: Landfill Gas
G26: Existing | J26: Proposed
D27: Monitoring Types | G27: Buildings | H27: Subsurface | I27: Surface | J27: Buildings | K27: Subsurface | L27: Surface
G28: =IF(Data!S89=2,"",IF(Data!S93=TRUE,"Yes","No")) ->  | H28: =IF(Data!S89=2,"",IF(Data!S92=TRUE,"Yes","No")) ->  | I28: =IF(Data!S89=2,"",IF(Data!S91=TRUE,"Yes","No")) ->  | J28: =IF('Mitigation Data'!S143=2,"",IF('Mitigation Data'!S147=TRUE,"Yes","No")) ->  | K28: =IF('Mitigation Data'!S143=2,"",IF('Mitigation Data'!S146=TRUE,"Yes","No")) ->  | L28: =IF('Mitigation Data'!S143=2,"",IF('Mitigation Data'!S145=TRUE,"Yes","No")) -> 
D29: Frequency | G29: =IF(Data!S89=2,"No monitoring undertaken",LOOKUP(Data!S94,Data!Q108:Q112,Data!R108:R112)) -> No monitoring undertaken | J29: =IF('Mitigation Data'!S143=2,"No change proposed",LOOKUP('Mitigation Data'!S148,'Mitigation Data'!Q149:Q153,'Mitigation Data'!R149:R153)) -> No change proposed
D31: Typical levels measured | G31: =IF(Data!S89=2,"",LOOKUP(Data!S95,Data!Q96:Q98,Data!R96:R98)) -> 

Sheet Community I, E & A (m)
A6: Proposed Community Information, Education and Awareness
D8: Do you plan to add any additional signage? | M8: Do you plan to use other forms of communication with
D9: (Tick all that apply) | M9: the users of the facility? (Tick all that apply)
M22: Do you plan to communicate any of the following
M23: educational themes? (Tick all that apply)

Sheet Training (m)
A6: Proposed Staff Training and Regulation
D8: What training will the on-site operators of the facility | M8: Will there be any "Authorised Officers" under the
D9: receive relevant to the facility's operation? | M9: Protection of the Environment Operations Act 1997 that…
D10: (Tick all that apply)
M11: Work at the facility?
M17: Are otherwise employed by the operator of the facility?
M23: What regulatory enforcement activities will be
M24: undertaken in relation to waste in the next 12 months?
M25: (Tick all that apply)

Sheet Operational 1 (m)
A6: Proposed Operations and Management
D8: Do you plan to change the types and/or quantities of wastes received at the facility? (Tick all that apply) | AI8: 1
D10: Solid Wastes | H10: For disposal | J10: For storage | M10: Max. quantity stored (t) | P10: Max. time stored
D11: Municipal waste
D12: Recyclables
D13: Commercial & industrial waste
D14: Construction & demolition waste
D15: Garden & vegetation waste
D16: Virgin excavated natural material
D17: Scrap metal
D18: Tyres
D19: Chemical containers with residue | H19: N/A
D20: Batteries | H20: N/A
D21: Hazardous waste | H21: N/A
D22: Others
D24: Liquid | H24: For disposal | J24: For storage | M24: Max. quantity stored (l) | P24: Max. time stored
D25: Waste mineral oil | H25: N/A
D26: Waste cooking oil | H26: N/A
D27: Paint | H27: N/A
D28: Grease trap waste
D29: Oily water waste | H29: N/A
D30: Septic waste | H30: N/A
D31: Others | H31: N/A
D33: NOTE: Waste that can not be lawfully received for disposal at at unlicensed landfill facilities is noted as "NA".

Sheet Operational 1 (m-TS)
A6: Proposed Operations and Management
D8: Do you plan to change the types and/or quantities of wastes received at the facility? (Tick all that apply) | AI8: 1
D10: Solid Wastes | J10: For storage | M10: Max. quantity stored (t) | P10: Max. time stored
D11: Municipal waste
D12: Recyclables
D13: Commercial & industrial waste
D14: Construction & demolition waste
D15: Garden & vegetation waste
D16: Virgin excavated natural material
D17: Scrap metal
D18: Tyres
D19: Chemical containers with residue
D20: Batteries
D21: Hazardous waste
D22: Others
D24: Liquid | J24: For storage | M24: Max. quantity stored (l) | P24: Max. time stored
D25: Waste mineral oil
D26: Waste cooking oil
D27: Paint
D28: Grease trap waste
D29: Oily water waste
D30: Septic waste
D31: Others

Sheet Operational 2 (m)
A6: Proposed Operations and Management
D8: When will the facility be open to the public? | M8: How will public access to the facility be controlled?
D12: What type of perimeter fence will the facility have? | M12: When will the facility be supervised?
D16: How will public access to the facility be secured? | M16: Operators will be on the premises ...
D20: Will any of the following additional security
D21: arrangements be in place?

Sheet Operational 3 (m)
A6: Proposed Operations and Management
D8: Will stormwater be diverted around… | M8: How will liquid / hazardous wastes be stored?
M10: No liquid or hazardous wastes stored
M12: Will all the liquid / hazardous waste areas be covered?
M14: Not Applicable
M16: What dust control measures will be used at the
D17: How will stormwater runoff be managed from undisturbed | M17: facility?
D18: areas?
D22: How will stormwater runoff be managed from disturbed
D23: areas?
D27: How will stormwater runoff be managed from waste
D28: storage / disposal areas? | M28: What litter controls will be in place at the facility?
D32: How much of the trafficable area at the facility will
D33: be sealed?

Sheet Operational 4 (m)
A6: Proposed Operations and Management
D8: On what days will operational activities be conducted at | M8: Will the following waste collection services be available
D9: the facility? | M9: to residents in the vicinity of the facility?
M10: (Tick all that apply)
D13: During what hours on these days will operational
D14: activities be conducted at the facility?
M17: Will a Community Recycling Centre (CRC) be available
D18: What plant and equipment will be used at the facility? | M18: to residents in the vicinity of the facility?
D19: (Tick all that apply)
M23: What pest management programs will be in place at
M24: the facility?
M25: (Tick all that apply)

Sheet Operational 5 (m)
A6: Proposed Operations and Management
D8: What will be the frequency that planned and controlled | M8: Will any of the following procedures be documented
D9: burning will be undertaken at the facility? | M9: and implemented?
D13: What best describes the fire fighting capacity that will
D14: be available at the facility?
D18: What fire management controls will be used at the
D19: facility?
D20: (Tick all that apply)

Sheet Landfill Specific (m)
A6: Proposed Operations and Management
D8: In addition to the previous, do you plan to change the types and/or quantities of wastes received at the facility? (Tick all that apply)
O10: Estimated quantity per annum (t)
D11: Asbestos
D12: Clinical / pharmaceutical waste
D13: Animal carcasses / parts
D14: Biosolids
D15: Contaminated soil
D17: How will wastes be landfilled at the facility? | M17: Will there be a landfilling plan prepared for the facility?
D21: How many active landfill areas will there be at the
D22: facility? | M22: How will the bases of landfill areas be prepared?
D26: How will the waste be compacted? | M26: How will the completed landfill areas be closed?
D30: How often will wastes be covered? | M30: Will landfill leachate be captured for treatment / discharge
M31: at the facility?
D34: How will the waste be covered?
M36: How will leachate be managed?
M37: =IF('Mitigation Data'!AL59=2,"Not applicable",LOOKUP('Mitigation Data'!AL61,'Mitigation Data'!AJ62:AJ66,'Mitigation Data'!AK62:AK66)) -> Not applicable
D38: What is the estimated size of the active landfill areas (m2)
M39: What best describes the method used to manage
M40: landfill gas?

Sheet Transfer Station Specific (m)
A6: Proposed Operations and Management
D8: Will the transfer station be permanently established? | M8: Will the bins / bunkers used have lids?
D13: What waste transfer station method will be used? | M13: Will wastes be processed / sorted at the facility?
D17: How will the transfer station be constructed?
M18: Where will wastes received at the transfer station be
M19: taken for disposal?
D21: Will the transfer station area be under cover?

Sheet Closed landfill (m)
A6: Proposed Closed Landfill
D9: How will the be landfill capped? | M9: Will an organic layer be placed over the final surface?
D13: What will the slope of the final surface be?
M14: How will the final surface be revegetated?
D17: What will be the post landfill land use of the facility?
M18: Will any post closure monitoring of the integrity
M19: of the landfill cap / surface occur?
D21: Will any structures be built over the landfilled areas?
M24: What will the frequency of landfill cap monitoring be?
M25: =IF('Mitigation Data'!AS65=2,"Not applicable",LOOKUP('Mitigation Data'!AU66,'Mitigation Data'!AS67:AS71,'Mitigation Data'!AT67:AT71)) -> Not applicable
D26: How will runoff from the facility be treated?
M27: Will there be procedures in place to repair any instability
M28: and/or failures identified in the landfill cap?
M29: =IF('Mitigation Data'!AS65=2,"Not applicable",IF('Mitigation Data'!AU72=1,"Yes","No")) -> Not applicable
D30: How will leachate be managed?
M31: What best describes the method used to manage
M32: landfill gas?

Sheet DR (hidden)
A1: =Data!A12 -> 1 | B1: =IF((A1<>2),5,1) -> 5 | C1: Landfill scales | D1: Closed Landfill | E1: Transfer Station Scales
A2: =ADDRESS(2,A1+2)&":"&ADDRESS(100,A1+2) -> $C$2:$C$100 | C2: 0 - 100 | D2: 0 | E2: 0 - 600
C3: 100 - 500 | E3: 600 - 3,000
C4: 500 - 1,000 | E4: 3,000 - 6,000
C5: 1,000 - 2,500 | E5: 6,000 - 15,000
C6: 2,500 - 5,000 | E6: 15,000 - 30,000
C8: =OFFSET(B2,0,$A$1,1) -> 0 - 100 | D8: =IF((C8="'"),C8,"") -> 
C9: =OFFSET(B3,0,$A$1,1) -> 100 - 500 | D9: =IF((C9="'"),C9,"") -> 
C10: =OFFSET(B4,0,$A$1,1) -> 500 - 1,000 | D10: =IF((C10="'"),C10,"") -> 
C11: =OFFSET(B5,0,$A$1,1) -> 1,000 - 2,500 | D11: =IF((C11="'"),C11,"") -> 
C12: =OFFSET(B6,0,$A$1,1) -> 2,500 - 5,000 | D12: =IF((C12="'"),C12,"") -> 
C14: Wastes
C15: Storage | D15: No Storage | F15: Storage | G15: No storage
B16: 1 | C16: 0 - 600 | D16: Not Applicable | E16: 1 | F16: Less than 1 day | G16: Not Applicable
B17: 2 | C17: 600 - 3,000 | E17: 2 | F17: 1 day to 1 week
B18: 3 | C18: 3,000 - 6,000 | E18: 3 | F18: 1 week to 1 month
B19: 4 | C19: 6,000 - 15,000 | E19: 4 | F19: 1 month to 3 months
B20: 5 | C20: 15,000 - 30,000 | E20: 5 | F20: More than 3 months
C23: Municipal waste | D23: Recyclables | E23: C&I | F23: C&D | G23: Green | H23: VENM | I23: Scrap metal
B24: T/F | C24: =IF((Data!$AF4=TRUE),"1","2") -> 2 | D24: =IF((Data!$AF5=TRUE),"1","2") -> 2 | E24: =IF((Data!$AF6=TRUE),"1","2") -> 2 | F24: =IF((Data!$AF7=TRUE),"1","2") -> 2 | G24: =IF((Data!$AF8=TRUE),"1","2") -> 2 | H24: =IF((Data!$AF9=TRUE),"1","2") -> 2 | I24: =IF((Data!$AF10=TRUE),"1","2") -> 2
B25: Range a | C25: =ADDRESS(28,C24+1)&":"&ADDRESS(32,C24+1) -> $C$28:$C$32 | D25: =ADDRESS(28,D24+2)&":"&ADDRESS(32,D24+2) -> $D$28:$D$32 | E25: =ADDRESS(28,E24+3)&":"&ADDRESS(32,E24+3) -> $E$28:$E$32 | F25: =ADDRESS(28,F24+4)&":"&ADDRESS(32,F24+4) -> $F$28:$F$32 | G25: =ADDRESS(28,G24+5)&":"&ADDRESS(32,G24+5) -> $G$28:$G$32 | H25: =ADDRESS(28,H24+6)&":"&ADDRESS(32,H24+6) -> $H$28:$H$32 | I25: =ADDRESS(28,I24+7)&":"&ADDRESS(32,I24+7) -> $I$28:$I$32
B26: Range b | C26: =ADDRESS(33,C24+1)&":"&ADDRESS(37,C24+1) -> $C$33:$C$37 | D26: =ADDRESS(33,D24+2)&":"&ADDRESS(37,D24+2) -> $D$33:$D$37 | E26: =ADDRESS(33,E24+3)&":"&ADDRESS(37,E24+3) -> $E$33:$E$37 | F26: =ADDRESS(33,F24+4)&":"&ADDRESS(37,F24+4) -> $F$33:$F$37 | G26: =ADDRESS(33,G24+5)&":"&ADDRESS(37,G24+5) -> $G$33:$G$37 | H26: =ADDRESS(33,H24+6)&":"&ADDRESS(37,H24+6) -> $H$33:$H$37 | I26: =ADDRESS(33,I24+7)&":"&ADDRESS(37,I24+7) -> $I$33:$I$37
B27: No. | C27: =IF((C24="2"),1,5) -> 1 | D27: =IF((D24="2"),1,5) -> 1 | E27: 1 | F27: 1 | G27: 1 | H27: 1 | I27: 1
B28: Scale | C28: =OFFSET($B16,0,C$24,1) -> Not Applicable | D28: =OFFSET($B16,0,D$24,1) -> Not Applicable | E28: Not Applicable | F28: Not Applicable | G28: Not Applicable | H28: Not Applicable | I28: Not Applicable
C29: =OFFSET($B17,0,C$24,1) -> 0 | D29: =OFFSET($B17,0,D$24,1) -> 0 | E29: 0 | F29: 0 | G29: 0 | H29: 0 | I29: 0
C30: =OFFSET($B18,0,C$24,1) -> 0 | D30: 0 | E30: 0 | F30: 0 | G30: 0 | H30: 0 | I30: 0
C31: =OFFSET($B19,0,C$24,1) -> 0 | D31: 0 | E31: 0 | F31: 0 | G31: 0 | H31: 0 | I31: 0
C32: =OFFSET($B20,0,C$24,1) -> 0 | D32: 0 | E32: 0 | F32: 0 | G32: 0 | H32: 0 | I32: 0
B33: Time | C33: =OFFSET($E16,0,C$24,1) -> Not Applicable | D33: =OFFSET($E16,0,D$24,1) -> Not Applicable | E33: Not Applicable | F33: Not Applicable | G33: Not Applicable | H33: Not Applicable | I33: Not Applicable
C34: =OFFSET($E17,0,C$24,1) -> 0 | D34: 0 | E34: 0 | F34: 0 | G34: 0 | H34: 0 | I34: 0
C35: 0 | D35: 0 | E35: 0 | F35: 0 | G35: 0 | H35: 0 | I35: 0
C36: 0 | D36: 0 | E36: 0 | F36: 0 | G36: 0 | H36: 0 | I36: 0
C37: 0 | D37: 0 | E37: 0 | F37: 0 | G37: 0 | H37: 0 | I37: 0
C39: Storage | D39: No Storage | F39: Storage | G39: No storage
B40: 1 | C40: < 0.5 | D40: Not Applicable | E40: 1 | F40: Less than 1 day | G40: Not Applicable
B41: 2 | C41: 0.5 - 2 | E41: 2 | F41: 1 day to 1 week
B42: 3 | C42: 2 - 10 | E42: 3 | F42: 1 week to 1 month
B43: 4 | C43: 10 - 50 | E43: 4 | F43: 1 month to 3 months
B44: 5 | C44: > 50 | E44: 5 | F44: More than 3 months
C46: Tyres | D46: Chemical containers | E46: Batteries | F46: Hazardous | G46: Others
B47: T/F | C47: =IF((Data!$AF13=TRUE),"1","2") -> 2 | D47: =IF((Data!$AF15=TRUE),"1","2") -> 2 | E47: =IF((Data!$AF16=TRUE),"1","2") -> 2 | F47: =IF((Data!$AF17=TRUE),"1","2") -> 2 | G47: =IF((Data!$AF11=TRUE),"1","2") -> 2
B48: Range a | C48: =ADDRESS(49,C47+1)&":"&ADDRESS(53,C47+1) -> $C$49:$C$53 | D48: =ADDRESS(49,D47+1)&":"&ADDRESS(53,D47+1) -> $C$49:$C$53 | E48: =ADDRESS(49,E47+1)&":"&ADDRESS(53,E47+1) -> $C$49:$C$53 | F48: =ADDRESS(49,F47+1)&":"&ADDRESS(53,F47+1) -> $C$49:$C$53 | G48: =ADDRESS(49,G47+1)&":"&ADDRESS(53,G47+1) -> $C$49:$C$53
B49: Range b | C49: =ADDRESS(56,C47+1)&":"&ADDRESS(60,C47+1) -> $C$56:$C$60 | D49: =ADDRESS(56,D47+2)&":"&ADDRESS(60,D47+2) -> $D$56:$D$60 | E49: =ADDRESS(56,E47+2)&":"&ADDRESS(60,E47+2) -> $D$56:$D$60 | F49: =ADDRESS(56,F47+2)&":"&ADDRESS(60,F47+2) -> $D$56:$D$60 | G49: =ADDRESS(56,G47+2)&":"&ADDRESS(60,G47+2) -> $D$56:$D$60
B50: No | C50: =IF((C47="2"),1,5) -> 1 | D50: =IF((D47="2"),1,5) -> 1 | E50: =IF((E47="2"),1,5) -> 1 | F50: =IF((F47="2"),1,5) -> 1 | G50: =IF((G47="2"),1,5) -> 1
B51: Scale | C51: =OFFSET($B40,0,C$47,1) -> Not Applicable | D51: =OFFSET($B40,0,D$47,1) -> Not Applicable | E51: =OFFSET($B40,0,E$47,1) -> Not Applicable | F51: =OFFSET($B40,0,F$47,1) -> Not Applicable | G51: =OFFSET($B40,0,G$47,1) -> Not Applicable
C52: =OFFSET($B41,0,C$47,1) -> 0 | D52: 0 | E52: 0 | F52: 0 | G52: 0
C53: 0 | D53: 0 | E53: 0 | F53: 0 | G53: 0
C54: 0 | D54: 0 | E54: 0 | F54: 0 | G54: 0
C55: 0 | D55: 0 | E55: 0 | F55: 0 | G55: 0
B56: Time | C56: =OFFSET($E40,0,C$47,1) -> Not Applicable | D56: =OFFSET($E40,0,D$47,1) -> Not Applicable | E56: =OFFSET($E40,0,E$47,1) -> Not Applicable | F56: =OFFSET($E40,0,F$47,1) -> Not Applicable | G56: =OFFSET($E40,0,G$47,1) -> Not Applicable
C57: =OFFSET($E41,0,C$47,1) -> 0 | D57: 0 | E57: 0 | F57: 0 | G57: 0
C58: 0 | D58: 0 | E58: 0 | F58: 0 | G58: 0
C59: 0 | D59: 0 | E59: 0 | F59: 0 | G59: 0
C60: 0 | D60: 0 | E60: 0 | F60: 0 | G60: 0
C63: Storage | D63: No Storage | F63: Storage | G63: No storage
B64: 1 | C64: < 500 | D64: Not Applicable | E64: 1 | F64: Less than 1 day | G64: Not Applicable
B65: 2 | C65: 500 - 2,000 | E65: 2 | F65: 1 day to 1 week
B66: 3 | C66: 2,000 - 10,000 | E66: 3 | F66: 1 week to 1 month
B67: 4 | C67: 10,000 - 50,000 | E67: 4 | F67: 1 month to 3 months
B68: 5 | C68: > 50,000 | E68: 5 | F68: More than 3 months
C71: Waste mineral oil | D71: Waste cooking oil | E71: Paint | F71: GTW | G71: Oily water waste | H71: Septic waste | I71: Others
B72: T/F | C72: =IF((Data!$AF20=TRUE),"1","2") -> 2 | D72: =IF((Data!$AF21=TRUE),"1","2") -> 2 | E72: =IF((Data!$AF22=TRUE),"1","2") -> 2 | F72: =IF((Data!$AF23=TRUE),"1","2") -> 2 | G72: =IF((Data!$AF24=TRUE),"1","2") -> 2 | H72: =IF((Data!$AF25=TRUE),"1","2") -> 2 | I72: =IF((Data!$AF26=TRUE),"1","2") -> 2
B73: Range a | C73: =ADDRESS(76,C72+1)&":"&ADDRESS(80,C72+1) -> $C$76:$C$80 | D73: =ADDRESS(76,D72+2)&":"&ADDRESS(80,D72+2) -> $D$76:$D$80 | E73: =ADDRESS(76,E72+3)&":"&ADDRESS(80,E72+3) -> $E$76:$E$80 | F73: =ADDRESS(76,F72+4)&":"&ADDRESS(80,F72+4) -> $F$76:$F$80 | G73: =ADDRESS(76,G72+5)&":"&ADDRESS(80,G72+5) -> $G$76:$G$80 | H73: =ADDRESS(76,H72+6)&":"&ADDRESS(80,H72+6) -> $H$76:$H$80 | I73: =ADDRESS(76,I72+7)&":"&ADDRESS(80,I72+7) -> $I$76:$I$80
B74: Range b | C74: =ADDRESS(81,C72+1)&":"&ADDRESS(85,C72+1) -> $C$81:$C$85 | D74: =ADDRESS(81,D72+2)&":"&ADDRESS(85,D72+2) -> $D$81:$D$85 | E74: =ADDRESS(81,E72+3)&":"&ADDRESS(85,E72+3) -> $E$81:$E$85 | F74: =ADDRESS(81,F72+4)&":"&ADDRESS(85,F72+4) -> $F$81:$F$85 | G74: =ADDRESS(81,G72+5)&":"&ADDRESS(85,G72+5) -> $G$81:$G$85 | H74: =ADDRESS(81,H72+6)&":"&ADDRESS(85,H72+6) -> $H$81:$H$85 | I74: =ADDRESS(81,I72+7)&":"&ADDRESS(85,I72+7) -> $I$81:$I$85
B75: No | C75: =IF((C72="2"),1,5) -> 1 | D75: =IF((D72="2"),1,5) -> 1 | E75: 1 | F75: 1 | G75: 1 | H75: =IF((H72="2"),1,5) -> 1 | I75: 1
B76: Scale | C76: =OFFSET($B64,0,C$72,1) -> Not Applicable | D76: =OFFSET($B64,0,D$72,1) -> Not Applicable | E76: Not Applicable | F76: Not Applicable | G76: Not Applicable | H76: Not Applicable | I76: Not Applicable
C77: =OFFSET($B65,0,C$72,1) -> 0 | D77: 0 | E77: 0 | F77: 0 | G77: 0 | H77: 0 | I77: 0
C78: 0 | D78: 0 | E78: 0 | F78: 0 | G78: 0 | H78: 0 | I78: 0
C79: 0 | D79: 0 | E79: 0 | F79: 0 | G79: 0 | H79: 0 | I79: 0
C80: 0 | D80: 0 | E80: 0 | F80: 0 | G80: 0 | H80: 0 | I80: 0
B81: Time | C81: =OFFSET($E64,0,C$72,1) -> Not Applicable | D81: =OFFSET($E64,0,D$72,1) -> Not Applicable | E81: Not Applicable | F81: Not Applicable | G81: Not Applicable | H81: Not Applicable | I81: Not Applicable
C82: =OFFSET($E65,0,C$72,1) -> 0 | D82: 0 | E82: 0 | F82: 0 | G82: 0 | H82: 0 | I82: 0
C83: 0 | D83: 0 | E83: 0 | F83: 0 | G83: 0 | H83: 0 | I83: 0
C84: 0 | D84: 0 | E84: 0 | F84: 0 | G84: 0 | H84: 0 | I84: 0
C85: 0 | D85: 0 | E85: 0 | F85: 0 | G85: 0 | H85: 0 | I85: 0
C87: Landfill Specific
B88: 1 | C88: < 0.5 | D88: Not Applicable
B89: 2 | C89: 0.5 - 2
B90: 3 | C90: 2 - 10
B91: 4 | C91: 10 - 50
B92: 5 | C92: > 50
C94: Asbestos | D94: Clinical | E94: Animal | F94: Biosolids | G94: Contam soil
B95: T/F | C95: =IF((Data!$AL4=TRUE),"1","2") -> 2 | D95: =IF((Data!$AL5=TRUE),"1","2") -> 2 | E95: =IF((Data!$AL6=TRUE),"1","2") -> 2 | F95: =IF((Data!$AL7=TRUE),"1","2") -> 2 | G95: =IF((Data!$AL8=TRUE),"1","2") -> 2
B96: No. | C96: =IF((C95="2"),1,5) -> 1 | D96: =IF((D95<>"2"),5,1) -> 1 | E96: =IF((E95<>"2"),5,1) -> 1 | F96: =IF((F95<>"2"),5,1) -> 1 | G96: =IF((G95<>"2"),5,1) -> 1
C97: =OFFSET($B88,0,C$95,1) -> Not Applicable | D97: =OFFSET($B88,0,D$95,1) -> Not Applicable | E97: =OFFSET($B88,0,E$95,1) -> Not Applicable | F97: =OFFSET($B88,0,F$95,1) -> Not Applicable | G97: =OFFSET($B88,0,G$95,1) -> Not Applicable
C98: =OFFSET($B89,0,C$95,1) -> 0 | D98: 0 | E98: 0 | F98: 0 | G98: 0
C99: 0 | D99: 0 | E99: 0 | F99: 0 | G99: 0
C100: 0 | D100: 0 | E100: 0 | F100: 0 | G100: 0
C101: 0 | D101: 0 | E101: 0 | F101: 0 | G101: 0

Sheet DRm (hidden)
A1: =Data!A12 -> 1 | B1: =IF((A1<>2),5,1) -> 5 | C1: Landfill scales | D1: Closed Landfill | E1: Transfer Station Scales
A2: =ADDRESS(2,A1+2)&":"&ADDRESS(100,A1+2) -> $C$2:$C$100 | C2: 0 - 100 | D2: 0 | E2: 0 - 600
C3: 100 - 500 | E3: 600 - 3,000
C4: 500 - 1,000 | E4: 3,000 - 6,000
C5: 1,000 - 2,500 | E5: 6,000 - 15,000
C6: 2,500 - 5,000 | E6: 15,000 - 30,000
C8: =OFFSET(B2,0,$A$1,1) -> 0 - 100 | D8: =IF((C8="'"),C8,"") -> 
C9: =OFFSET(B3,0,$A$1,1) -> 100 - 500 | D9: =IF((C9="'"),C9,"") -> 
C10: =OFFSET(B4,0,$A$1,1) -> 500 - 1,000 | D10: =IF((C10="'"),C10,"") -> 
C11: =OFFSET(B5,0,$A$1,1) -> 1,000 - 2,500 | D11: =IF((C11="'"),C11,"") -> 
C12: =OFFSET(B6,0,$A$1,1) -> 2,500 - 5,000 | D12: =IF((C12="'"),C12,"") -> 
C14: Wastes
C15: Storage | D15: No Storage | F15: Storage | G15: No storage
B16: 1 | C16: 0 - 600 | D16: Not Applicable | E16: 1 | F16: Less than 1 day | G16: Not Applicable
B17: 2 | C17: 600 - 3,000 | E17: 2 | F17: 1 day to 1 week
B18: 3 | C18: 3,000 - 6,000 | E18: 3 | F18: 1 week to 1 month
B19: 4 | C19: 6,000 - 15,000 | E19: 4 | F19: 1 month to 3 months
B20: 5 | C20: 15,000 - 30,000 | E20: 5 | F20: More than 3 months
C23: Municipal waste | D23: Recyclables | E23: C&I | F23: C&D | G23: Green | H23: VENM | I23: Scrap metal
B24: T/F | C24: =IF(('Mitigation Data'!$AF4=TRUE),"1","2") -> 2 | D24: =IF(('Mitigation Data'!$AF5=TRUE),"1","2") -> 2 | E24: =IF(('Mitigation Data'!$AF6=TRUE),"1","2") -> 2 | F24: =IF(('Mitigation Data'!$AF7=TRUE),"1","2") -> 2 | G24: =IF(('Mitigation Data'!$AF8=TRUE),"1","2") -> 2 | H24: =IF(('Mitigation Data'!$AF9=TRUE),"1","2") -> 2 | I24: =IF(('Mitigation Data'!$AF10=TRUE),"1","2") -> 2
B25: Range a | C25: =ADDRESS(28,C24+1)&":"&ADDRESS(32,C24+1) -> $C$28:$C$32 | D25: =ADDRESS(28,D24+2)&":"&ADDRESS(32,D24+2) -> $D$28:$D$32 | E25: =ADDRESS(28,E24+3)&":"&ADDRESS(32,E24+3) -> $E$28:$E$32 | F25: =ADDRESS(28,F24+4)&":"&ADDRESS(32,F24+4) -> $F$28:$F$32 | G25: =ADDRESS(28,G24+5)&":"&ADDRESS(32,G24+5) -> $G$28:$G$32 | H25: =ADDRESS(28,H24+6)&":"&ADDRESS(32,H24+6) -> $H$28:$H$32 | I25: =ADDRESS(28,I24+7)&":"&ADDRESS(32,I24+7) -> $I$28:$I$32
B26: Range b | C26: =ADDRESS(33,C24+1)&":"&ADDRESS(37,C24+1) -> $C$33:$C$37 | D26: =ADDRESS(33,D24+2)&":"&ADDRESS(37,D24+2) -> $D$33:$D$37 | E26: =ADDRESS(33,E24+3)&":"&ADDRESS(37,E24+3) -> $E$33:$E$37 | F26: =ADDRESS(33,F24+4)&":"&ADDRESS(37,F24+4) -> $F$33:$F$37 | G26: =ADDRESS(33,G24+5)&":"&ADDRESS(37,G24+5) -> $G$33:$G$37 | H26: =ADDRESS(33,H24+6)&":"&ADDRESS(37,H24+6) -> $H$33:$H$37 | I26: =ADDRESS(33,I24+7)&":"&ADDRESS(37,I24+7) -> $I$33:$I$37
B27: No. | C27: =IF((C24="2"),1,5) -> 1 | D27: 1 | E27: 1 | F27: 1 | G27: 1 | H27: 1 | I27: 1
B28: Scale | C28: =OFFSET($B16,0,C$24,1) -> Not Applicable | D28: Not Applicable | E28: Not Applicable | F28: Not Applicable | G28: Not Applicable | H28: Not Applicable | I28: Not Applicable
C29: 0 | D29: 0 | E29: 0 | F29: 0 | G29: 0 | H29: 0 | I29: 0
C30: 0 | D30: 0 | E30: 0 | F30: 0 | G30: 0 | H30: 0 | I30: 0
C31: 0 | D31: 0 | E31: 0 | F31: 0 | G31: 0 | H31: 0 | I31: 0
C32: 0 | D32: 0 | E32: 0 | F32: 0 | G32: 0 | H32: 0 | I32: 0
B33: Time | C33: =OFFSET($E16,0,C$24,1) -> Not Applicable | D33: Not Applicable | E33: Not Applicable | F33: Not Applicable | G33: Not Applicable | H33: Not Applicable | I33: Not Applicable
C34: 0 | D34: 0 | E34: 0 | F34: 0 | G34: 0 | H34: 0 | I34: 0
C35: 0 | D35: 0 | E35: 0 | F35: 0 | G35: 0 | H35: 0 | I35: 0
C36: 0 | D36: 0 | E36: 0 | F36: 0 | G36: 0 | H36: 0 | I36: 0
C37: 0 | D37: 0 | E37: 0 | F37: 0 | G37: 0 | H37: 0 | I37: 0
C39: Storage | D39: No Storage | F39: Storage | G39: No storage
B40: 1 | C40: < 0.5 | D40: Not Applicable | E40: 1 | F40: Less than 1 day | G40: Not Applicable
B41: 2 | C41: 0.5 - 2 | E41: 2 | F41: 1 day to 1 week
B42: 3 | C42: 2 - 10 | E42: 3 | F42: 1 week to 1 month
B43: 4 | C43: 10 - 50 | E43: 4 | F43: 1 month to 3 months
B44: 5 | C44: > 50 | E44: 5 | F44: More than 3 months
C46: Tyres | D46: Chemical containers | E46: Batteries | F46: Hazardous | G46: Others
B47: T/F | C47: =IF(('Mitigation Data'!$AF13=TRUE),"1","2") -> 2 | D47: =IF(('Mitigation Data'!AF15=TRUE),"1","2") -> 2 | E47: =IF(('Mitigation Data'!AF16=TRUE),"1","2") -> 2 | F47: =IF(('Mitigation Data'!AF17=TRUE),"1","2") -> 2 | G47: =IF(('Mitigation Data'!AF11=TRUE),"1","2") -> 2
B48: Range a | C48: =ADDRESS(49,C47+1)&":"&ADDRESS(53,C47+1) -> $C$49:$C$53 | D48: =ADDRESS(49,D47+1)&":"&ADDRESS(53,D47+1) -> $C$49:$C$53 | E48: =ADDRESS(49,E47+1)&":"&ADDRESS(53,E47+1) -> $C$49:$C$53 | F48: =ADDRESS(49,F47+1)&":"&ADDRESS(53,F47+1) -> $C$49:$C$53 | G48: =ADDRESS(49,G47+1)&":"&ADDRESS(53,G47+1) -> $C$49:$C$53
B49: Range b | C49: =ADDRESS(56,C47+1)&":"&ADDRESS(60,C47+1) -> $C$56:$C$60 | D49: =ADDRESS(56,D47+2)&":"&ADDRESS(60,D47+2) -> $D$56:$D$60 | E49: =ADDRESS(56,E47+2)&":"&ADDRESS(60,E47+2) -> $D$56:$D$60 | F49: =ADDRESS(56,F47+2)&":"&ADDRESS(60,F47+2) -> $D$56:$D$60 | G49: =ADDRESS(56,G47+2)&":"&ADDRESS(60,G47+2) -> $D$56:$D$60
B50: No | C50: =IF((C47="2"),1,5) -> 1 | D50: =IF((D47="2"),1,5) -> 1 | E50: =IF((E47="2"),1,5) -> 1 | F50: =IF((F47="2"),1,5) -> 1 | G50: =IF((G47="2"),1,5) -> 1
B51: Scale | C51: =OFFSET($B40,0,C$47,1) -> Not Applicable | D51: Not Applicable | E51: Not Applicable | F51: Not Applicable | G51: Not Applicable
C52: 0 | D52: 0 | E52: 0 | F52: 0 | G52: 0
C53: 0 | D53: 0 | E53: 0 | F53: 0 | G53: 0
C54: 0 | D54: 0 | E54: 0 | F54: 0 | G54: 0
C55: 0 | D55: 0 | E55: 0 | F55: 0 | G55: 0
B56: Time | C56: =OFFSET($E40,0,C$47,1) -> Not Applicable | D56: Not Applicable | E56: Not Applicable | F56: Not Applicable | G56: Not Applicable
C57: 0 | D57: 0 | E57: 0 | F57: 0 | G57: 0
C58: 0 | D58: 0 | E58: 0 | F58: 0 | G58: 0
C59: 0 | D59: 0 | E59: 0 | F59: 0 | G59: 0
C60: 0 | D60: 0 | E60: 0 | F60: 0 | G60: 0
C63: Storage | D63: No Storage | F63: Storage | G63: No storage
B64: 1 | C64: < 500 | D64: Not Applicable | E64: 1 | F64: Less than 1 day | G64: Not Applicable
B65: 2 | C65: 500 - 2,000 | E65: 2 | F65: 1 day to 1 week
B66: 3 | C66: 2,000 - 10,000 | E66: 3 | F66: 1 week to 1 month
B67: 4 | C67: 10,000 - 50,000 | E67: 4 | F67: 1 month to 3 months
B68: 5 | C68: > 50,000 | E68: 5 | F68: More than 3 months
C71: Waste mineral oil | D71: Waste cooking oil | E71: Paint | F71: GTW | G71: Oily water waste | H71: Septic waste | I71: Others
B72: T/F | C72: =IF(('Mitigation Data'!$AF20=TRUE),"1","2") -> 2 | D72: =IF(('Mitigation Data'!$AF21=TRUE),"1","2") -> 2 | E72: =IF(('Mitigation Data'!$AF22=TRUE),"1","2") -> 2 | F72: =IF(('Mitigation Data'!$AF23=TRUE),"1","2") -> 2 | G72: =IF(('Mitigation Data'!$AF24=TRUE),"1","2") -> 2 | H72: =IF(('Mitigation Data'!$AF25=TRUE),"1","2") -> 2 | I72: =IF(('Mitigation Data'!$AF26=TRUE),"1","2") -> 2
B73: Range a | C73: =ADDRESS(76,C72+1)&":"&ADDRESS(80,C72+1) -> $C$76:$C$80 | D73: =ADDRESS(76,D72+2)&":"&ADDRESS(80,D72+2) -> $D$76:$D$80 | E73: =ADDRESS(76,E72+3)&":"&ADDRESS(80,E72+3) -> $E$76:$E$80 | F73: =ADDRESS(76,F72+4)&":"&ADDRESS(80,F72+4) -> $F$76:$F$80 | G73: =ADDRESS(76,G72+5)&":"&ADDRESS(80,G72+5) -> $G$76:$G$80 | H73: =ADDRESS(76,H72+6)&":"&ADDRESS(80,H72+6) -> $H$76:$H$80 | I73: =ADDRESS(76,I72+7)&":"&ADDRESS(80,I72+7) -> $I$76:$I$80
B74: Range b | C74: =ADDRESS(81,C72+1)&":"&ADDRESS(85,C72+1) -> $C$81:$C$85 | D74: =ADDRESS(81,D72+2)&":"&ADDRESS(85,D72+2) -> $D$81:$D$85 | E74: =ADDRESS(81,E72+3)&":"&ADDRESS(85,E72+3) -> $E$81:$E$85 | F74: =ADDRESS(81,F72+4)&":"&ADDRESS(85,F72+4) -> $F$81:$F$85 | G74: =ADDRESS(81,G72+5)&":"&ADDRESS(85,G72+5) -> $G$81:$G$85 | H74: =ADDRESS(81,H72+6)&":"&ADDRESS(85,H72+6) -> $H$81:$H$85 | I74: =ADDRESS(81,I72+7)&":"&ADDRESS(85,I72+7) -> $I$81:$I$85
B75: No | C75: =IF((C72="2"),1,5) -> 1 | D75: 1 | E75: 1 | F75: 1 | G75: 1 | H75: 1 | I75: 1
B76: Scale | C76: =OFFSET($B64,0,C$72,1) -> Not Applicable | D76: Not Applicable | E76: Not Applicable | F76: Not Applicable | G76: Not Applicable | H76: Not Applicable | I76: Not Applicable
C77: 0 | D77: 0 | E77: 0 | F77: 0 | G77: 0 | H77: 0 | I77: 0
C78: 0 | D78: 0 | E78: 0 | F78: 0 | G78: 0 | H78: 0 | I78: 0
C79: 0 | D79: 0 | E79: 0 | F79: 0 | G79: 0 | H79: 0 | I79: 0
C80: 0 | D80: 0 | E80: 0 | F80: 0 | G80: 0 | H80: 0 | I80: 0
B81: Time | C81: =OFFSET($E64,0,C$72,1) -> Not Applicable | D81: Not Applicable | E81: Not Applicable | F81: Not Applicable | G81: Not Applicable | H81: Not Applicable | I81: Not Applicable
C82: 0 | D82: 0 | E82: 0 | F82: 0 | G82: 0 | H82: 0 | I82: 0
C83: 0 | D83: 0 | E83: 0 | F83: 0 | G83: 0 | H83: 0 | I83: 0
C84: 0 | D84: 0 | E84: 0 | F84: 0 | G84: 0 | H84: 0 | I84: 0
C85: 0 | D85: 0 | E85: 0 | F85: 0 | G85: 0 | H85: 0 | I85: 0
C87: Landfill Specific
B88: 1 | C88: < 0.5 | D88: Not Applicable
B89: 2 | C89: 0.5 - 2
B90: 3 | C90: 2 - 10
B91: 4 | C91: 10 - 50
B92: 5 | C92: > 50
C94: Asbestos | D94: Clinical | E94: Animal | F94: Biosolids | G94: Contam soil
B95: T/F | C95: =IF(('Mitigation Data'!$AL4=TRUE),"1","2") -> 2 | D95: =IF(('Mitigation Data'!$AL5=TRUE),"1","2") -> 2 | E95: =IF(('Mitigation Data'!$AL6=TRUE),"1","2") -> 2 | F95: =IF(('Mitigation Data'!$AL7=TRUE),"1","2") -> 2 | G95: =IF(('Mitigation Data'!$AL8=TRUE),"1","2") -> 2
B96: No. | C96: =IF((C95="2"),1,5) -> 1 | D96: =IF((D95<>"2"),5,1) -> 1 | E96: =IF((E95<>"2"),5,1) -> 1 | F96: =IF((F95<>"2"),5,1) -> 1 | G96: =IF((G95<>"2"),5,1) -> 1
C97: =OFFSET($B88,0,C$95,1) -> Not Applicable | D97: Not Applicable | E97: Not Applicable | F97: Not Applicable | G97: Not Applicable
C98: 0 | D98: 0 | E98: 0 | F98: 0 | G98: 0
C99: 0 | D99: 0 | E99: 0 | F99: 0 | G99: 0
C100: 0 | D100: 0 | E100: 0 | F100: 0 | G100: 0
C101: 0 | D101: 0 | E101: 0 | F101: 0 | G101: 0

Sheet Groundwater A (hidden)
B2: GROUNDWATER | D2: Existing | E2: Mitigation sheet | F2: Mitigation
C4: Max. | D4: =Data!B13 -> Active landfill | F4: ='Mitigation Data'!B13 -> Mitigation of existing landfill
B5: Common Environmental & Operational
B6: Area | C6: 5 | D6: =Data!C22 -> 5 | E6: =D6 -> 5 | F6: =IF(E6>D6,D6,E6) -> 5
B7: Rainfall | C7: 5 | D7: =Data!G3 -> 1 | E7: =D7 -> 1 | F7: =IF(E7>D7,D7,E7) -> 1
B8: No. rain days > 10mm | C8: 5 | D8: =Data!G10 -> 1 | E8: =D8 -> 1 | F8: 1
B9: Evaporation | C9: 5 | D9: =Data!G17 -> 1 | E9: =D9 -> 1 | F9: 1
B10: Landform | C10: 5 | D10: =Data!O3 -> 5 | E10: =D10 -> 5 | F10: 5
B11: Soils - sub-surface | C11: 5 | D11: =Data!W4 -> 1 | E11: =D11 -> 1 | F11: 1
B12: Slope | C12: 5 | D12: =Data!W30 -> 1 | E12: 1 | F12: 1
B13: Distance to watercourse | C13: 5 | D13: =Data!W58 -> 2 | E13: 2 | F13: 2
B14: Groundwater vulnerability | C14: 6 | D14: =Data!W65 -> 2 | E14: 2 | F14: 2
B15: Depth to rock | C15: 6 | D15: =Data!W73 -> 3 | E15: 3 | F15: 3
B16: Depth to GW | C16: 6 | D16: =Data!W81 -> 3 | E16: 3 | F16: 3
B17: Local GW use | C17: 5 | D17: =Data!W89 -> 1 | E17: 1 | F17: 1
B18: Drinking water catchment | C18: 3 | D18: =Data!W18 -> 1 | E18: =D18 -> 1 | F18: 1
B20: Site Selection | C20: 3 | D20: =Data!S3 -> 2 | E20: =D20 -> 2 | F20: 2
B21: EIS / SEE / REF | C21: 3 | D21: =Data!S4 -> 2 | E21: =D21 -> 2 | F21: 2
B22: Environmental Audit | C22: 3 | D22: =Data!S5 -> 2 | E22: ='Mitigation Data'!S5 -> 2 | F22: 2
B23: Environmental Investigation | C23: 3 | D23: =Data!S6 -> 2 | E23: ='Mitigation Data'!S6 -> 2 | F23: 2
B24: EMP | C24: 3 | D24: =Data!S7 -> 2 | E24: ='Mitigation Data'!S7 -> 2 | F24: 2
B25: Groundwater monitoring | C25: 5 | D25: =Data!Q12 -> 5 | E25: ='Mitigation Data'!Q12 -> 5 | F25: 5
B29: Product | C29: =PRODUCT(C6:C28:C28) -> 1537734375000 | D29: =PRODUCT(D6:D28:D28) -> 144000 | F29: =PRODUCT(F6:F28:F28) -> 144000
B30: Ln | C30: =LN(C29) -> 28.06133126 | D30: =LN(D29) -> 11.87756858 | F30: =LN(F29) -> 11.87756858
B31: Normalised | C31: =C30/C30*100 -> 100 | D31: =D30/C30*100 -> 42.32717424 | F31: =F30/C30*100 -> 42.32717424
B33: Active landfill
B34: Amount received | C34: 5 | D34: =Data!C15 -> 1 | E34: =D34 -> 1 | F34: =IF(E34>D34,D34,E34) -> 1
B35: Age | C35: 5 | D35: =Data!C29 -> 5 | E35: =D35 -> 5 | F35: =IF(E35>D35,D35,E35) -> 5
B36: Site signage | C36: 5 | D36: =Data!AA5 -> 5 | E36: ='Mitigation Data'!AA5 -> 5 | F36: 5
B37: Communication | C37: 5 | D37: =Data!AA17 -> 5 | E37: ='Mitigation Data'!AA17 -> 5 | F37: 5
B38: Themes | C38: 5 | D38: =Data!AA24 -> 5 | E38: ='Mitigation Data'!AA24 -> 5 | F38: 5
B39: Open to public | C39: 6 | D39: =Data!AE28 -> 6 | E39: ='Mitigation Data'!AE28 -> 6 | F39: 6
B40: Perimeter | C40: 5 | D40: =Data!AE36 -> 5 | E40: ='Mitigation Data'!AE36 -> 5 | F40: 5
B41: Access security | C41: 5 | D41: =Data!AE43 -> 5 | E41: ='Mitigation Data'!AE43 -> 5 | F41: 5
B42: Additional security | C42: 5 | D42: =Data!AE50 -> 5 | E42: ='Mitigation Data'!AE50 -> 5 | F42: 5
B43: Access control | C43: 5 | D43: =Data!AE56 -> 5 | E43: ='Mitigation Data'!AE56 -> 5 | F43: 5
B44: Site supervision | C44: 5 | D44: =Data!AE63 -> 5 | E44: ='Mitigation Data'!AE63 -> 5 | F44: 5
B45: Operators at premises | C45: 5 | D45: =Data!AE70 -> 5 | E45: ='Mitigation Data'!AE70 -> 5 | F45: =IF(E45>D45,D45,E45) -> 5
B46: Unlawful waste disposal (on premises) | C46: 5 | D46: =Data!AE76 -> 1 | E46: =D46 -> 1 | F46: 1
B47: Stormwater diversion | C47: 5 | D47: =Data!AE80 -> 5 | E47: ='Mitigation Data'!AE85 -> 5 | F47: 5
B48: Stormwater - waste | C48: 5 | D48: =Data!AE89 -> 5 | E48: ='Mitigation Data'!AE104 -> 5 | F48: 5
B49: Trafficable surface | C49: 5 | D49: =Data!AE98 -> 5 | E49: ='Mitigation Data'!AE118 -> 5 | F49: 5
B50: Liquid / hazardous storage | C50: 5 | D50: =Data!AE105 -> 1 | E50: ='Mitigation Data'!AE125 -> 1 | F50: 1
B51: Under cover | C51: 2 | D51: =Data!AE112 -> 1 | E51: ='Mitigation Data'!AE132 -> 1 | F51: 1
B52: Household Hazardous | C52: 2 | D52: =Data!AE154 -> 2 | E52: ='Mitigation Data'!AE174 -> 2 | F52: 2
B53: Procedures | C53: 5 | D53: =Data!AE180 -> 5 | E53: ='Mitigation Data'!AE205 -> 5 | F53: 5
B54: Operator training | C54: 5 | D54: =Data!AX3 -> 5 | E54: ='Mitigation Data'!AX3 -> 5 | F54: 5
B55: Authorised officers | C55: 3 | D55: =Data!AX15 -> 3 | E55: ='Mitigation Data'!AX15 -> 3 | F55: 3
B56: Regulatory enforcement activities | C56: 5 | D56: =Data!AX19 -> 5 | E56: ='Mitigation Data'!AX19 -> 5 | F56: 5
B57: Waste disposal - solid | C57: 5 | D57: =Data!AE12 -> 5 | E57: ='Mitigation Data'!AE12 -> 5 | F57: 5
B58: Waste disposal - liquid | C58: 5 | D58: =Data!AE27 -> 1 | E58: ='Mitigation Data'!AE27 -> 1 | F58: 1
B59: Waste disposal - tyres | C59: 5 | D59: =Data!AE14 -> 1 | E59: ='Mitigation Data'!AE14 -> 1 | F59: 1
B62: Waste storage - hazardous | C62: 5 | D62: =Data!AI14 -> 1 | E62: ='Mitigation Data'!AI14 -> 1 | F62: =IF(E62>D62,D62,E62) -> 1
B63: Waste storage - liquid | C63: 5 | D63: =Data!AI19 -> 1 | E63: ='Mitigation Data'!AI19 -> 1 | F63: 1
B64: Landfilled wastes | C64: 5 | D64: =Data!AM9 -> 1 | E64: ='Mitigation Data'!AM9 -> 1 | F64: 1
B65: Landfilling method | C65: 5 | D65: =Data!AL10 -> 5 | E65: ='Mitigation Data'!AL10 -> 5 | F65: 5
B66: Active fill areas | C66: 5 | D66: =Data!AL17 -> 5 | E66: ='Mitigation Data'!AL17 -> 5 | F66: 5
B67: Compaction | C67: 3 | D67: =Data!AL24 -> 3 | E67: ='Mitigation Data'!AL24 -> 3 | F67: 3
B68: Covering method | C68: 5 | D68: =Data!AL29 -> 5 | E68: ='Mitigation Data'!AL29 -> 5 | F68: 5
B69: Frequency of covering | C69: 5 | D69: =Data!AL36 -> 5 | E69: ='Mitigation Data'!AL36 -> 5 | F69: 5
B70: Filling Plan | C70: 2 | D70: =Data!AL43 -> 2 | E70: ='Mitigation Data'!AL43 -> 2 | F70: 2
B71: Preparation | C71: 5 | D71: =Data!AL45 -> 5 | E71: ='Mitigation Data'!AL45 -> 5 | F71: 5
B72: Closure method | C72: 5 | D72: =Data!AL52 -> 5 | E72: ='Mitigation Data'!AL52 -> 5 | F72: 5
B73: Leachate management (active) | C73: 5 | D73: =Data!AJ61 -> 5 | E73: ='Mitigation Data'!AJ61 -> 5 | F73: 5
B74: Leachate monitoring | C74: 5 | D74: =Data!Q45 -> 5 | E74: ='Mitigation Data'!Q71 -> 5 | F74: 5
B75: Product | C75: =PRODUCT(C34:C74) -> 5.029141903e+25 | D75: =PRODUCT(D34:D74) -> 6.437301636e+19 | F75: =PRODUCT(F34:F74) -> 6.437301636e+19
B76: Ln | C76: =LN(C75) -> 59.1798767 | D76: =LN(D75) -> 45.61122622 | F76: =LN(F75) -> 45.61122622
B77: Normalised | C77: =C76/C76*100 -> 100 | D77: =D76/C76*100 -> 77.07218866 | F77: =F76/C76*100 -> 77.07218866
B79: Transfer station
B80: Amount received | C80: 5 | D80: =D34 -> 1 | E80: =D80 -> 1 | F80: =IF(E80>D80,D80,E80) -> 1
B81: Site signage | C81: 5 | D81: =D36 -> 5 | E81: =E36 -> 5 | F81: =IF(E81>D81,D81,E81) -> 5
B82: Communication | C82: 5 | D82: 5 | E82: 5 | F82: 5
B83: Themes | C83: 5 | D83: 5 | E83: 5 | F83: 5
B84: Open to public | C84: 6 | D84: 6 | E84: 6 | F84: 6
B85: Perimeter | C85: 5 | D85: 5 | E85: 5 | F85: 5
B86: Access security | C86: 5 | D86: 5 | E86: 5 | F86: 5
B87: Additional security | C87: 5 | D87: 5 | E87: 5 | F87: 5
B88: Access control | C88: 5 | D88: 5 | E88: 5 | F88: 5
B89: Site supervision | C89: 5 | D89: 5 | E89: 5 | F89: =IF(E89>D89,D89,E89) -> 5
B90: Operators at premises | C90: 5 | D90: 5 | E90: 5 | F90: =IF(E90>D90,D90,E90) -> 5
B91: Unlawful waste disposal (on premises) | C91: 5 | D91: 1 | E91: =E46 -> 1 | F91: =IF(E91>D91,D91,E91) -> 1
B92: Stormwater diversion | C92: 5 | D92: 5 | E92: 5 | F92: 5
B93: Stormwater - waste | C93: 5 | D93: 5 | E93: 5 | F93: 5
B94: Trafficable surface | C94: 5 | D94: 5 | E94: 5 | F94: 5
B95: Liquid / hazardous storage | C95: 5 | D95: 1 | E95: 1 | F95: 1
B96: Under cover | C96: 2 | D96: 1 | E96: 1 | F96: 1
B97: Household Hazardous | C97: 2 | D97: 2 | E97: =E52 -> 2 | F97: 2
B98: Procedures | C98: 5 | D98: 5 | E98: =E53 -> 5 | F98: 5
B99: Operator training | C99: 5 | D99: 5 | E99: =E54 -> 5 | F99: 5
B100: Authorised officers | C100: 3 | D100: 3 | E100: =E55 -> 3 | F100: 3
B101: Regulatory enforcement activities | C101: 5 | D101: 5 | E101: =E56 -> 5 | F101: 5
B104: Waste storage - hazardous | C104: 5 | D104: =D62 -> 1 | E104: =E62 -> 1 | F104: 1
B105: Waste storage - liquid | C105: 5 | D105: =D63 -> 1 | E105: =E63 -> 1 | F105: 1
B106: Permanent | C106: 2 | D106: =Data!AQ3 -> 2 | E106: ='Mitigation Data'!AQ3 -> 2 | F106: 2
B107: Method | C107: 4 | D107: =Data!AQ5 -> 4 | E107: ='Mitigation Data'!AQ5 -> 4 | F107: 4
B108: Construction | C108: 3 | D108: =Data!AQ10 -> 3 | E108: ='Mitigation Data'!AQ10 -> 3 | F108: 3
B109: Covered | C109: 2 | D109: =Data!AQ15 -> 2 | E109: ='Mitigation Data'!AQ15 -> 2 | F109: 2
B110: Lids | C110: 2 | D110: =Data!AQ17 -> 2 | E110: ='Mitigation Data'!AQ17 -> 2 | F110: 2
B111: Processing / sorting | C111: 2 | D111: =Data!AQ19 -> 2 | E111: ='Mitigation Data'!AQ19 -> 2 | F111: 2
B112: Disposal | C112: 2 | D112: =Data!AQ21 -> 2 | E112: ='Mitigation Data'!AQ21 -> 2 | F112: 2
C113: =PRODUCT(C80:C112) -> 2.63671875e+18 | D113: =PRODUCT(D80:D112) -> 421875000000000 | F113: =PRODUCT(F80:F112) -> 421875000000000
B114: Ln | C114: =LN(C113) -> 42.41606692 | D114: =LN(D113) -> 33.67573018 | F114: =LN(F113) -> 33.67573018
B115: Normalised | C115: =C114/C114*100 -> 100 | D115: =D114/C114*100 -> 79.39380669 | F115: =F114/C114*100 -> 79.39380669
B117: Closed landfill | F117: =IF(E117>D117,D117,E117) -> 0
B118: Years in Operation | C118: 5 | D118: =Data!AU3 -> 5 | E118: =D118 -> 5 | F118: 5
B119: When Closed | C119: 5 | D119: =LOOKUP(Data!AU10,A150:A154,B150:B154) -> 1 | E119: =D119 -> 1 | F119: 1
B120: Amount received | C120: 5 | D120: =Data!AU17 -> 5 | E120: =D120 -> 5 | F120: 5
B121: Disposal method | C121: 5 | D121: =Data!AU24 -> 5 | E121: =D121 -> 5 | F121: 5
B122: How Capped | C122: 5 | D122: =Data!AU31 -> 5 | E122: ='Mitigation Data'!AU31 -> 5 | F122: 5
B123: Slope | C123: 5 | D123: =Data!AU38 -> 5 | E123: ='Mitigation Data'!AU38 -> 5 | F123: 5
B124: Landuse | C124: 7 | D124: =Data!AU45 -> 7 | E124: ='Mitigation Data'!AU45 -> 7 | F124: 7
B125: Structures | C125: 2 | D125: =Data!AU54 -> 2 | E125: ='Mitigation Data'!AU54 -> 2 | F125: 2
B126: Organic Layer | C126: 2 | D126: =Data!AU56 -> 2 | E126: ='Mitigation Data'!AU56 -> 2 | F126: 2
B127: Revegetation | C127: 5 | D127: =Data!AU58 -> 5 | E127: ='Mitigation Data'!AU58 -> 5 | F127: 5
B128: Monitoring | C128: 5 | D128: =Data!AU65 -> 5 | E128: ='Mitigation Data'!AU65 -> 5 | F128: 5
B129: Runoff | C129: 5 | D129: =Data!AU74 -> 5 | E129: ='Mitigation Data'!AU74 -> 5 | F129: 5
B130: Leachate management (closed) | C130: 5 | D130: =Data!AU81 -> 5 | E130: ='Mitigation Data'!AU81 -> 5 | F130: 5
B131: Leachate monitoring | C131: 5 | D131: =D74 -> 5 | E131: =E74 -> 5 | F131: =IF(E131>D131,D131,E131) -> 5
B132: Closure plan | C132: 3 | D132: =Data!$AU$95 -> 2 | E132: ='Mitigation Data'!$AU$145 -> 2 | F132: =IF(E132>D132,D132,E132) -> 2
C133: =PRODUCT(C118:C132) -> 4101562500 | D133: =PRODUCT(D118:D131) -> 273437500 | F133: =PRODUCT(F118:F131) -> 273437500
B134: Ln | C134: =LN(C133) -> 22.13463384 | D134: =LN(D133) -> 19.42658363 | F134: =LN(F133) -> 19.42658363
B135: Normalised | C135: =C134/C134*100 -> 100 | D135: =D134/C134*100 -> 87.7655523 | F135: =F134/C134*100 -> 87.7655523
A137: Normaliser | D137: Pre | F137: Post | L137: Ln
A138: =(C77+C31)*L142/2 -> 160.9437912 | C138: Active | D138: =E138/$A$138*100 -> 40.75137237 | E138: =(D31+D77)*$C$146/2*L144 -> 65.58680367 | F138: =G138/$A$138*100 -> 40.75137237 | G138: =(F31+F77)*$C$146/2*L144 -> 65.58680367 | I138: Indicator | J138: 1 | K138: 1.5 | L138: =LN(K138) -> 0.4054651081
C139: TS | D139: 16.61749912 | E139: =(D31+D115)*$C$147/2*L144 -> 26.74483309 | F139: 16.61749912 | G139: =(F31+F115)*$C$147/2*L144 -> 26.74483309 | I139: =IF(MAX(D14,D16)>5,5,MAX(D14,D16)) -> 3 | J139: 2 | K139: 2 | L139: 0.6931471806
C140: TS on closed | D140: 38.1324814 | E140: =(D31+D115+D135)*$C$148/3*L144 -> 61.37186126 | F140: 15.97581591 | G140: =(F32+F116+F135)*$C$148/3*L144 -> 25.71208381 | J140: 3 | K140: 3 | L140: 1.098612289
C141: Closed | D141: 35.5208404 | E141: =(D31+D135)*$C$148/2*L144 -> 57.16858722 | F141: 35.5208404 | G141: =(F31+F135)*$C$148/2*L144 -> 57.16858722 | J141: 4 | K141: 4 | L141: 1.386294361
C142: Active to TS | D142: 40.75137237 | E142: =E138 -> 65.58680367 | F142: 15.97581591 | G142: =G140 -> 25.71208381 | J142: 5 | K142: 5 | L142: 1.609437912
C143: Active to closed | D143: 40.75137237 | E143: =E138 -> 65.58680367 | F143: 35.5208404 | G143: =G141 -> 57.16858722
L144: =LOOKUP(I139,J138:J143,L138:L144) -> 1.098612289
B145: GW Factors
B146: Active landfill | C146: 1
B147: Transfer Station | C147: 0.4
B148: Closed landfill | C148: 0.8
A150: 1 | B150: 5
A151: 2 | B151: 4
A152: 3 | B152: 3
A153: 4 | B153: 2
A154: 5 | B154: 1

Sheet Surface Water A (hidden)
B2: SURFACE WATER | D2: Existing | E2: Mitigation sheet | F2: Mitigation
C4: Max. | D4: =Data!B13 -> Active landfill | F4: ='Mitigation Data'!B13 -> Mitigation of existing landfill
B5: Common Environmental & Operational
B6: Area | C6: 5 | D6: =Data!C22 -> 5 | E6: =D6 -> 5 | F6: =IF(E6>D6,D6,E6) -> 5
B7: Rainfall | C7: 5 | D7: =Data!G3 -> 1 | E7: 1 | F7: =IF(E7>D7,D7,E7) -> 1
B8: No. rain days > 10mm | C8: 5 | D8: =Data!G10 -> 1 | E8: 1 | F8: 1
B9: Evaporation | C9: 5 | D9: =Data!G17 -> 1 | E9: 1 | F9: 1
B10: Landform | C10: 5 | D10: =Data!O3 -> 5 | E10: 5 | F10: 5
B11: Soils - surface | C11: 5 | D11: =Data!W3 -> 2 | E11: 2 | F11: 2
B12: Erosion hazard | C12: 5 | D12: =Data!W11 -> 1 | E12: =D12 -> 1 | F12: 1
B15: Slope | C15: 5 | D15: =Data!W30 -> 1 | E15: 1 | F15: 1
B16: Erosion | C16: 5 | D16: =Data!W37 -> 1 | E16: 1 | F16: 1
B17: Salinity Hazard | C17: 4 | D17: =Data!W45 -> 1 | E17: 1 | F17: 1
B18: Acid Sulfate Soils | C18: 5 | D18: =Data!W51 -> 1 | E18: 1 | F18: 1
B19: Distance to watercourse | C19: 5 | D19: =Data!W58 -> 2 | E19: 2 | F19: 2
B20: Drinking water catchment | C20: 3 | D20: =Data!W18 -> 1 | E20: =D20 -> 1 | F20: 1
B21: Site Selection | C21: 3 | D21: =Data!S3 -> 2 | E21: =D21 -> 2 | F21: 2
B22: EIS / SEE / REF | C22: 3 | D22: =Data!S4 -> 2 | E22: =D22 -> 2 | F22: 2
B23: Environmental Audit | C23: 3 | D23: =Data!S5 -> 2 | E23: ='Mitigation Data'!S5 -> 2 | F23: 2
B24: Environmental Investigation | C24: 3 | D24: =Data!S6 -> 2 | E24: ='Mitigation Data'!S6 -> 2 | F24: 2
B25: EMP | C25: 3 | D25: =Data!S7 -> 2 | E25: ='Mitigation Data'!S7 -> 2 | F25: 2
B26: Surface water monitoring | C26: 5 | D26: =Data!Q29 -> 5 | E26: ='Mitigation Data'!Q42 -> 5 | F26: 5
B27: Product | C27: =PRODUCT(C6:C26) -> 711914062500 | D27: =PRODUCT(D6:D26) -> 16000 | F27: =PRODUCT(F6:F26) -> 16000
B28: Ln | C28: =LN(C27) -> 27.29122304 | D28: =LN(D27) -> 9.680344001 | F28: =LN(F27) -> 9.680344001
B29: Normalised | C29: =C28/C28*100 -> 100 | D29: =D28/C28*100 -> 35.47053932 | F29: =F28/C28*100 -> 35.47053932
B31: Active landfill
B32: Amount received | C32: 5 | D32: =Data!C15 -> 1 | E32: =D32 -> 1 | F32: =IF(E32>D32,D32,E32) -> 1
B33: Site signage | C33: 5 | D33: =Data!AA5 -> 5 | E33: ='Mitigation Data'!AA5 -> 5 | F33: 5
B34: Communication | C34: 5 | D34: =Data!AA17 -> 5 | E34: ='Mitigation Data'!AA17 -> 5 | F34: 5
B35: Themes | C35: 5 | D35: =Data!AA24 -> 5 | E35: ='Mitigation Data'!AA24 -> 5 | F35: 5
B36: Open to public | C36: 6 | D36: =Data!AE28 -> 6 | E36: ='Mitigation Data'!AE28 -> 6 | F36: 6
B37: Perimeter | C37: 5 | D37: =Data!AE36 -> 5 | E37: ='Mitigation Data'!AE36 -> 5 | F37: 5
B38: Access security | C38: 5 | D38: =Data!AE43 -> 5 | E38: ='Mitigation Data'!AE43 -> 5 | F38: 5
B39: Additional security | C39: 5 | D39: =Data!AE50 -> 5 | E39: ='Mitigation Data'!AE50 -> 5 | F39: 5
B40: Access control | C40: 5 | D40: =Data!AE56 -> 5 | E40: ='Mitigation Data'!AE56 -> 5 | F40: 5
B41: Site supervision | C41: 5 | D41: =Data!AE63 -> 5 | E41: ='Mitigation Data'!AE63 -> 5 | F41: 5
B42: Operators at premises | C42: 5 | D42: =Data!AE70 -> 5 | E42: ='Mitigation Data'!AE70 -> 5 | F42: =IF(E42>D42,D42,E42) -> 5
B43: Unlawful waste disposal (on premises) | C43: 5 | D43: =Data!AE76 -> 1 | E43: =D43 -> 1 | F43: 1
B44: Stormwater diversion | C44: 5 | D44: =Data!AE80 -> 5 | E44: ='Mitigation Data'!AE85 -> 5 | F44: 5
B45: Stormwater - undisturbed | C45: 5 | D45: =Data!AE85 -> 5 | E45: ='Mitigation Data'!AE90 -> 5 | F45: 5
B46: Stormwater - disturbed | C46: 5 | D46: =Data!AE87 -> 5 | E46: ='Mitigation Data'!AE97 -> 5 | F46: 5
B47: Stormwater - waste | C47: 5 | D47: =Data!AE89 -> 5 | E47: ='Mitigation Data'!AE104 -> 5 | F47: 5
B48: Trafficable surface | C48: 5 | D48: =Data!AE98 -> 5 | E48: ='Mitigation Data'!AE118 -> 5 | F48: 5
B49: Liquid / hazardous storage | C49: 5 | D49: =Data!AE105 -> 1 | E49: ='Mitigation Data'!AE125 -> 1 | F49: 1
B50: Under cover | C50: 2 | D50: =Data!AE112 -> 1 | E50: ='Mitigation Data'!AE132 -> 1 | F50: 1
B51: Litter control | C51: 5 | D51: =Data!AE120 -> 5 | E51: ='Mitigation Data'!AE140 -> 5 | F51: 5
B52: Household Hazardous | C52: 2 | D52: =Data!AE154 -> 2 | E52: ='Mitigation Data'!AE174 -> 2 | F52: 2
B53: Procedures | C53: 5 | D53: =Data!AE180 -> 5 | E53: ='Mitigation Data'!AE205 -> 5 | F53: 5
B54: Operator training | C54: 5 | D54: =Data!AX3 -> 5 | E54: ='Mitigation Data'!AX3 -> 5 | F54: 5
B55: Authorised officers | C55: 3 | D55: =Data!AX15 -> 3 | E55: ='Mitigation Data'!AX15 -> 3 | F55: 3
B56: Regulatory enforcement activities | C56: 5 | D56: =Data!AX19 -> 5 | E56: ='Mitigation Data'!AX19 -> 5 | F56: 5
B57: Waste disposal - solid | C57: 5 | D57: =Data!AE12 -> 5 | E57: ='Mitigation Data'!AE12 -> 5 | F57: 5
B58: Waste disposal - liquid | C58: 5 | D58: =Data!AE27 -> 1 | E58: ='Mitigation Data'!AE27 -> 1 | F58: 1
B60: Wastes storage - solid | C60: 5 | D60: =Data!AI3 -> 1 | E60: ='Mitigation Data'!AI3 -> 1 | F60: =IF(E60>D60,D60,E60) -> 1
B61: Wastes storage - tyres | C61: 5 | D61: =Data!AI13 -> 1 | E61: ='Mitigation Data'!AI13 -> 1 | F61: 1
B62: Waste storage - hazardous | C62: 5 | D62: =Data!AI14 -> 1 | E62: ='Mitigation Data'!AI14 -> 1 | F62: 1
B63: Waste storage - liquid | C63: 5 | D63: =Data!AI19 -> 1 | E63: ='Mitigation Data'!AI19 -> 1 | F63: 1
B64: Landfilled wastes | C64: 5 | D64: =Data!AM9 -> 1 | E64: ='Mitigation Data'!AM9 -> 1 | F64: 1
B65: Landfilling method | C65: 5 | D65: =Data!AL10 -> 5 | E65: ='Mitigation Data'!AL10 -> 5 | F65: 5
B66: Active fill areas | C66: 5 | D66: =Data!AL17 -> 5 | E66: ='Mitigation Data'!AL17 -> 5 | F66: 5
B67: Compaction | C67: 3 | D67: =Data!AL24 -> 3 | E67: ='Mitigation Data'!AL24 -> 3 | F67: 3
B68: Covering method | C68: 5 | D68: =Data!AL29 -> 5 | E68: ='Mitigation Data'!AL29 -> 5 | F68: 5
B69: Frequency of covering | C69: 5 | D69: =Data!AL36 -> 5 | E69: ='Mitigation Data'!AL36 -> 5 | F69: 5
B70: Filling Plan | C70: 2 | D70: =Data!AL43 -> 2 | E70: ='Mitigation Data'!AL43 -> 2 | F70: 2
B71: Closure method | C71: 5 | D71: =Data!AL52 -> 5 | E71: ='Mitigation Data'!AL52 -> 5 | F71: 5
B72: Leachate management (active) | C72: 5 | D72: =Data!AJ61 -> 5 | E72: ='Mitigation Data'!AJ61 -> 5 | F72: 5
B73: Leachate monitoring | C73: 5 | D73: =Data!Q45 -> 5 | E73: ='Mitigation Data'!Q71 -> 5 | F73: 5
B74: Product | C74: =PRODUCT(C32:C73) -> 1.257285476e+27 | D74: =PRODUCT(D32:D73) -> 3.218650818e+20 | F74: =PRODUCT(F32:F73) -> 3.218650818e+20
B75: Ln | C75: =LN(C74) -> 62.39875252 | D75: =LN(D74) -> 47.22066413 | F75: =LN(F74) -> 47.22066413
B76: Normalised | C76: =C75/C75*100 -> 100 | D76: =D75/C75*100 -> 75.67565411 | F76: =F75/C75*100 -> 75.67565411
B78: Transfer station
B79: Amount received | C79: 5 | D79: =D32 -> 1 | E79: =D79 -> 1 | F79: =IF(E79>D79,D79,E79) -> 1
B80: Site signage | C80: 5 | D80: 5 | E80: =E33 -> 5 | F80: =IF(E80>D80,D80,E80) -> 5
B81: Communication | C81: 5 | D81: 5 | E81: 5 | F81: 5
B82: Themes | C82: 5 | D82: 5 | E82: 5 | F82: 5
B83: Open to public | C83: 6 | D83: 6 | E83: 6 | F83: 6
B84: Perimeter | C84: 5 | D84: 5 | E84: 5 | F84: 5
B85: Access security | C85: 5 | D85: 5 | E85: 5 | F85: 5
B86: Additional security | C86: 5 | D86: 5 | E86: 5 | F86: 5
B87: Access control | C87: 5 | D87: 5 | E87: 5 | F87: 5
B88: Site supervision | C88: 5 | D88: 5 | E88: 5 | F88: =IF(E88>D88,D88,E88) -> 5
B89: Operators at premises | C89: 5 | D89: 5 | E89: 5 | F89: =IF(E89>D89,D89,E89) -> 5
B90: Unlawful waste disposal (on premises) | C90: 5 | D90: 1 | E90: 1 | F90: =IF(E90>D90,D90,E90) -> 1
B91: Stormwater diversion | C91: 5 | D91: 5 | E91: 5 | F91: 5
B92: Stormwater - undisturbed | C92: 5 | D92: 5 | E92: 5 | F92: 5
B93: Stormwater - disturbed | C93: 5 | D93: 5 | E93: 5 | F93: 5
B94: Stormwater - waste | C94: 5 | D94: 5 | E94: 5 | F94: 5
B95: Trafficable surface | C95: 5 | D95: 5 | E95: 5 | F95: 5
B96: Liquid / hazardous storage | C96: 5 | D96: 1 | E96: 1 | F96: 1
B97: Under cover | C97: 2 | D97: 1 | E97: 1 | F97: 1
B98: Litter control | C98: 5 | D98: 5 | E98: =E51 -> 5 | F98: 5
B99: Household Hazardous | C99: 2 | D99: 2 | E99: 2 | F99: 2
B100: Procedures | C100: 5 | D100: 5 | E100: 5 | F100: 5
B101: Operator training | C101: 5 | D101: 5 | E101: 5 | F101: 5
B102: Authorised officers | C102: 3 | D102: 3 | E102: 3 | F102: 3
B103: Regulatory enforcement activities | C103: 5 | D103: 5 | E103: 5 | F103: 5
B104: Wastes storage - solid | C104: 5 | D104: =D60 -> 1 | E104: 1 | F104: 1
B105: Wastes storage - tyres | C105: 5 | D105: 1 | E105: 1 | F105: 1
B106: Waste storage - hazardous | C106: 5 | D106: 1 | E106: 1 | F106: 1
B107: Waste storage - liquid | C107: 5 | D107: 1 | E107: 1 | F107: 1
B108: Permanent | C108: 2 | D108: =Data!AQ3 -> 2 | E108: ='Mitigation Data'!AQ3 -> 2 | F108: 2
B109: Method | C109: 4 | D109: =Data!AQ5 -> 4 | E109: ='Mitigation Data'!AQ5 -> 4 | F109: 4
B110: Construction | C110: 3 | D110: =Data!AQ10 -> 3 | E110: ='Mitigation Data'!AQ10 -> 3 | F110: 3
B111: Covered | C111: 2 | D111: =Data!AQ15 -> 2 | E111: ='Mitigation Data'!AQ15 -> 2 | F111: 2
B112: Lids | C112: 2 | D112: =Data!AQ17 -> 2 | E112: ='Mitigation Data'!AQ17 -> 2 | F112: 2
B113: Processing / sorting | C113: 2 | D113: =Data!AQ19 -> 2 | E113: ='Mitigation Data'!AQ19 -> 2 | F113: 2
B114: Disposal | C114: 2 | D114: =Data!AQ21 -> 2 | E114: ='Mitigation Data'!AQ21 -> 2 | F114: 2
C115: =PRODUCT(C79:C114) -> 8.239746094e+21 | D115: =PRODUCT(D79:D114) -> 5.2734375e+16 | F115: =PRODUCT(F79:F114) -> 5.2734375e+16
B116: Ln | C116: =LN(C115) -> 50.46325648 | D116: =LN(D115) -> 38.50404391 | F116: =LN(F115) -> 38.50404391
B117: Normalised | C117: =C116/C116*100 -> 100 | D117: =D116/C116*100 -> 76.3011478 | F117: =F116/C116*100 -> 76.3011478
B119: Closed landfill
B120: When Closed | C120: 5 | D120: =LOOKUP(Data!AU10,A148:A152,B148:B152) -> 1 | E120: =D120 -> 1 | F120: =IF(E120>D120,D120,E120) -> 1
B121: How Capped | C121: 5 | D121: =Data!AU31 -> 5 | E121: ='Mitigation Data'!AU31 -> 5 | F121: 5
B122: Slope | C122: 5 | D122: =Data!AU38 -> 5 | E122: ='Mitigation Data'!AU38 -> 5 | F122: 5
B123: Landuse | C123: 7 | D123: =Data!AU45 -> 7 | E123: ='Mitigation Data'!AU45 -> 7 | F123: 7
B124: Organic Layer | C124: 2 | D124: =Data!AU56 -> 2 | E124: ='Mitigation Data'!AU56 -> 2 | F124: 2
B125: Revegetation | C125: 5 | D125: =Data!AU58 -> 5 | E125: ='Mitigation Data'!AU58 -> 5 | F125: 5
B126: Monitoring | C126: 5 | D126: =Data!AU65 -> 5 | E126: ='Mitigation Data'!AU65 -> 5 | F126: 5
B127: Runoff | C127: 5 | D127: =Data!AU74 -> 5 | E127: ='Mitigation Data'!AU74 -> 5 | F127: 5
B128: Leachate management (closed) | C128: 5 | D128: =Data!AU81 -> 5 | E128: ='Mitigation Data'!AU81 -> 5 | F128: 5
B129: Leachate monitoring | C129: 5 | D129: =D73 -> 5 | E129: =E73 -> 5 | F129: =IF(E129>D129,D129,E129) -> 5
B130: Closure plan | C130: 3 | D130: =Data!$AU$95 -> 2 | E130: ='Mitigation Data'!$AU$145 -> 2 | F130: =IF(E130>D130,D130,E130) -> 2
C131: =PRODUCT(C120:C129) -> 5468750 | D131: =PRODUCT(D120:D129) -> 1093750 | F131: =PRODUCT(F120:F129) -> 1093750
B132: Ln | C132: =LN(C131) -> 15.51456063 | D132: =LN(D131) -> 13.90512272 | F132: =LN(F131) -> 13.90512272
B133: Normalised | C133: =C132/C132*100 -> 100 | D133: =D132/C132*100 -> 89.62627463 | F133: =F132/C132*100 -> 89.62627463
A135: Normaliser | D135: Pre | F135: Post
A136: ='Groundwater A'!A138 -> 160.9437912 | C136: Active | D136: =E136/$A$136*100 -> 23.93403002 | E136: =(D29+D76)*$C$144/2*L141 -> 38.52033531 | F136: =G136/$A$136*100 -> 23.93403002 | G136: =(F29+F76)*$C$144/2*L141 -> 38.52033531 | I136: Indicator | J136: 1 | K136: 1.5 | L136: =LN(K136) -> 0.4054651081
C137: TS | D137: 16.84810593 | E137: =(D29+D117)*$C$145/2*L141 -> 27.11598043 | F137: 16.84810593 | G137: =(F29+F117)*$C$145/2*L141 -> 27.11598043 | I137: =IF(MAX(D19:D20)>5,5,MAX(D19:D20)) -> 2 | J137: 2 | K137: 2 | L137: =LN(K137) -> 0.6931471806
C138: TS on closed | D138: 23.12996826 | E138: =(D29+D117+D133)*$C$146/3*L141 -> 37.22624783 | F138: 23.12996826 | G138: =(F29+F117+F133)*$C$146/3*L141 -> 37.22624783 | J138: 3 | K138: 3 | L138: =LN(K138) -> 1.098612289
C139: Closed | D139: 21.5505061 | E139: =(D29+D133)*$C$146/2*L141 -> 34.68420155 | F139: 21.5505061 | G139: =(F29+F133)*$C$146/2*L141 -> 34.68420155 | J139: 4 | K139: 4 | L139: =LN(K139) -> 1.386294361
C140: Active to TS | D140: 23.93403002 | E140: =E136 -> 38.52033531 | F140: 23.12996826 | G140: =G138 -> 37.22624783 | J140: 5 | K140: 5 | L140: =LN(K140) -> 1.609437912
C141: Active to closed | D141: 23.93403002 | E141: =E136 -> 38.52033531 | F141: 21.5505061 | G141: =G139 -> 34.68420155 | L141: =LOOKUP(I137,J136:J140,L136:L140) -> 0.6931471806
B143: SW Factors
B144: Active landfill | C144: 1
B145: Transfer Station | C145: 0.7
B146: Closed landfill | C146: 0.8
A148: 1 | B148: 5
A149: 2 | B149: 4
A150: 3 | B150: 3
A151: 4 | B151: 2
A152: 5 | B152: 1

Sheet Air A (hidden)
B2: AIR | D2: Existing | E2: Mitigation sheet | F2: Mitigation
C4: Max. | D4: =Data!B13 -> Active landfill | F4: ='Mitigation Data'!B13 -> Mitigation of existing landfill
B5: Common Environmental & Operational
B6: Area | C6: 5 | D6: =Data!C22 -> 5 | E6: =D6 -> 5 | F6: =IF(E6>D6,D6,E6) -> 5
B7: Rainfall | C7: 5 | D7: =LOOKUP(Data!G3,$A$137:$A$141,$B$137:$B$141) -> 5 | E7: =D7 -> 5 | F7: =IF(E7>D7,D7,E7) -> 5
B8: No. rain days > 10mm | C8: 5 | D8: =LOOKUP(Data!G10,$A$137:$A$141,$B$137:$B$141) -> 5 | E8: 5 | F8: 5
B9: Evaporation | C9: 5 | D9: =LOOKUP(Data!G17,$A$137:$A$141,$B$137:$B$141) -> 5 | E9: 5 | F9: 5
B10: Wind speed & direction | C10: 5 | D10: =Data!G56 -> 1 | E10: 1 | F10: 1
B11: Landuse (with wind direction) | C11: 5 | D11: =Data!K39 -> 1 | E11: 1 | F11: 1
B12: Fire risk (wind & veg) | C12: 8 | D12: =Data!L138 -> 1 | E12: 1 | F12: 1
B13: Landform | C13: 5 | D13: =Data!O3 -> 5 | E13: 5 | F13: 5
B14: Soils - surface | C14: 5 | D14: =LOOKUP(Data!W3,$A$137:$A$141,$B$137:$B$141) -> 4 | E14: =D14 -> 4 | F14: 4
B15: Erosion hazard | C15: 5 | D15: =Data!W11 -> 1 | E15: 1 | F15: 1
B18: Erosion | C18: 5 | D18: =Data!W37 -> 1 | E18: 1 | F18: 1
B19: Bush Fire Prone | C19: 5 | D19: =Data!W127 -> 1 | E19: 1 | F19: 1
B20: Visibility | C20: 5 | D20: =Data!W119 -> 1 | E20: 1 | F20: 1
B21: Site Selection | C21: 3 | D21: =Data!S3 -> 2 | E21: 2 | F21: 2
B22: EIS / SEE / REF | C22: 3 | D22: =Data!S4 -> 2 | E22: 2 | F22: 2
B23: Environmental Audit | C23: 3 | D23: =Data!S5 -> 2 | E23: ='Mitigation Data'!S5 -> 2 | F23: 2
B24: Environmental Investigation | C24: 3 | D24: =Data!S6 -> 2 | E24: ='Mitigation Data'!S6 -> 2 | F24: 2
B25: EMP | C25: 3 | D25: =Data!S7 -> 2 | E25: ='Mitigation Data'!S7 -> 2 | F25: 2
B26: Dust monitoring | C26: 5 | D26: =Data!Q59 -> 5 | E26: ='Mitigation Data'!Q90 -> 5 | F26: 5
B27: Product | C27: =PRODUCT(C6:C26) -> 2373046875000 | D27: =PRODUCT(D6:D26) -> 2000000 | F27: =PRODUCT(F6:F26) -> 2000000
B28: Ln | C28: =LN(C27) -> 28.49519585 | D28: =LN(D27) -> 14.50865774 | F28: =LN(F27) -> 14.50865774
B29: Normalised | C29: =C28/C28*100 -> 100 | D29: =D28/C28*100 -> 50.91615378 | F29: =F28/C28*100 -> 50.91615378
B31: Active landfill
B32: Amount received | C32: 5 | D32: =Data!C15 -> 1 | E32: =D32 -> 1 | F32: =IF(E32>D32,D32,E32) -> 1
B33: Site signage | C33: 5 | D33: =Data!AA5 -> 5 | E33: ='Mitigation Data'!AA5 -> 5 | F33: 5
B34: Communication | C34: 5 | D34: =Data!AA17 -> 5 | E34: ='Mitigation Data'!AA17 -> 5 | F34: 5
B35: Themes | C35: 5 | D35: =Data!AA24 -> 5 | E35: ='Mitigation Data'!AA24 -> 5 | F35: 5
B36: Open to public | C36: 6 | D36: =Data!AE28 -> 6 | E36: ='Mitigation Data'!AE28 -> 6 | F36: 6
B37: Perimeter | C37: 5 | D37: =Data!AE36 -> 5 | E37: ='Mitigation Data'!AE36 -> 5 | F37: 5
B38: Access security | C38: 5 | D38: =Data!AE43 -> 5 | E38: ='Mitigation Data'!AE43 -> 5 | F38: 5
B39: Additional security | C39: 5 | D39: =Data!AE50 -> 5 | E39: ='Mitigation Data'!AE50 -> 5 | F39: 5
B40: Access control | C40: 5 | D40: =Data!AE56 -> 5 | E40: ='Mitigation Data'!AE56 -> 5 | F40: 5
B41: Site supervision | C41: 5 | D41: =Data!AE63 -> 5 | E41: ='Mitigation Data'!AE63 -> 5 | F41: 5
B42: Operators at premises | C42: 5 | D42: =Data!AE70 -> 5 | E42: ='Mitigation Data'!AE70 -> 5 | F42: =IF(E42>D42,D42,E42) -> 5
B43: Complaints | C43: 5 | D43: =Data!AE72 -> 1 | E43: =D43 -> 1 | F43: 1
B44: Uncontrolled fires | C44: 5 | D44: =Data!AE74 -> 1 | E44: =D44 -> 1 | F44: 1
B45: Trafficable surface | C45: 5 | D45: =Data!AE98 -> 5 | E45: ='Mitigation Data'!AE118 -> 5 | F45: 5
B46: Dust control | C46: 5 | D46: =Data!AE114 -> 5 | E46: ='Mitigation Data'!AE134 -> 5 | F46: 5
B47: Operational days | C47: 3 | D47: =Data!AE126 -> 3 | E47: ='Mitigation Data'!AE146 -> 3 | F47: 3
B48: Operating hours | C48: 3 | D48: =Data!AE131 -> 3 | E48: ='Mitigation Data'!AE151 -> 3 | F48: 3
B49: Plant and Equipment | C49: 5 | D49: =Data!AE136 -> 1 | E49: ='Mitigation Data'!AE156 -> 5 | F49: 1
B50: Controlled burning | C50: 5 | D50: =Data!AE164 -> 5 | E50: ='Mitigation Data'!AE184 -> 5 | F50: 5
B51: Procedures | C51: 5 | D51: =Data!AE180 -> 5 | E51: ='Mitigation Data'!AE205 -> 5 | F51: 5
B52: Operator training | C52: 5 | D52: =Data!AX3 -> 5 | E52: ='Mitigation Data'!AX3 -> 5 | F52: 5
B53: Authorised officers | C53: 3 | D53: =Data!AX15 -> 3 | E53: ='Mitigation Data'!AX15 -> 3 | F53: 3
B54: Regulatory enforcement activities | C54: 5 | D54: =Data!AX19 -> 5 | E54: ='Mitigation Data'!AX19 -> 5 | F54: 5
B55: Waste disposal - solid | C55: 5 | D55: =Data!AE12 -> 5 | E55: ='Mitigation Data'!AE12 -> 5 | F55: 5
B56: Waste disposal - liquid | C56: 5 | D56: =Data!AE27 -> 1 | E56: ='Mitigation Data'!AE27 -> 1 | F56: 1
B57: Waste disposal - tyres | C57: 5 | D57: =Data!AE14 -> 1 | E57: ='Mitigation Data'!AE14 -> 1 | F57: 1
B58: Wastes storage - solid | C58: 5 | D58: =Data!AI3 -> 1 | E58: ='Mitigation Data'!AI3 -> 1 | F58: =IF(E58>D58,D58,E58) -> 1
B59: Wastes storage - tyres | C59: 5 | D59: =Data!AI13 -> 1 | E59: ='Mitigation Data'!AI13 -> 1 | F59: 1
B60: Waste storage - hazardous | C60: 5 | D60: =Data!AI14 -> 1 | E60: ='Mitigation Data'!AI14 -> 1 | F60: 1
B61: Waste storage - liquid | C61: 5 | D61: =Data!AI19 -> 1 | E61: ='Mitigation Data'!AI19 -> 1 | F61: 1
B62: Landfilled wastes | C62: 5 | D62: =Data!AM9 -> 1 | E62: ='Mitigation Data'!AM9 -> 1 | F62: 1
B63: Landfilling method | C63: 5 | D63: =LOOKUP(Data!AL10,$A$137:$A$141,$B$137:$B$141) -> 1 | E63: =LOOKUP('Mitigation Data'!AL10,A137:A141,B137:B141) -> 1 | F63: 1
B64: Active fill areas | C64: 5 | D64: =Data!AL17 -> 5 | E64: ='Mitigation Data'!AL17 -> 5 | F64: 5
B65: Compaction | C65: 3 | D65: =Data!AL24 -> 3 | E65: ='Mitigation Data'!AL24 -> 3 | F65: 3
B66: Covering method | C66: 5 | D66: =Data!AL29 -> 5 | E66: ='Mitigation Data'!AL29 -> 5 | F66: 5
B67: Frequency of covering | C67: 5 | D67: =Data!AL36 -> 5 | E67: ='Mitigation Data'!AL36 -> 5 | F67: 5
B68: Filling Plan | C68: 2 | D68: =Data!AL43 -> 2 | E68: ='Mitigation Data'!AL43 -> 2 | F68: 2
B69: Landfill Gas monitoring | C69: 5 | D69: =Data!Q89 -> 5 | E69: ='Mitigation Data'!Q143 -> 5 | F69: 5
B70: Product | C70: =PRODUCT(C32:C69) -> 2.263113856e+25 | D70: =PRODUCT(D32:D69) -> 9.269714355e+16 | F70: =PRODUCT(F32:F69) -> 9.269714355e+16
B71: Ln | C71: =LN(C70) -> 58.381369 | D71: =LN(D70) -> 39.06811405 | F71: =LN(F70) -> 39.06811405
B72: Normalised | C72: =C71/C71*100 -> 100 | D72: =D71/C71*100 -> 66.91880427 | F72: =F71/C71*100 -> 66.91880427
B74: Transfer station
B75: Amount received | C75: 5 | D75: =D32 -> 1 | E75: =D75 -> 1 | F75: =IF(E75>D75,D75,E75) -> 1
B76: Site signage | C76: 5 | D76: 5 | E76: =E33 -> 5 | F76: =IF(E76>D76,D76,E76) -> 5
B77: Communication | C77: 5 | D77: 5 | E77: 5 | F77: 5
B78: Themes | C78: 5 | D78: 5 | E78: 5 | F78: 5
B79: Open to public | C79: 6 | D79: 6 | E79: 6 | F79: 6
B80: Perimeter | C80: 5 | D80: 5 | E80: 5 | F80: 5
B81: Access security | C81: 5 | D81: 5 | E81: 5 | F81: 5
B82: Additional security | C82: 5 | D82: 5 | E82: 5 | F82: 5
B83: Access control | C83: 5 | D83: 5 | E83: 5 | F83: 5
B84: Site supervision | C84: 5 | D84: 5 | E84: 5 | F84: =IF(E84>D84,D84,E84) -> 5
B85: Operators at premises | C85: 5 | D85: 5 | E85: 5 | F85: =IF(E85>D85,D85,E85) -> 5
B86: Complaints | C86: 5 | D86: 1 | E86: 1 | F86: =IF(E86>D86,D86,E86) -> 1
B87: Uncontrolled fires | C87: 5 | D87: 1 | E87: 1 | F87: =IF(E87>D87,D87,E87) -> 1
B88: Trafficable surface | C88: 5 | D88: 5 | E88: 5 | F88: 5
B89: Dust control | C89: 5 | D89: 5 | E89: 5 | F89: 5
B90: Operational days | C90: 3 | D90: 3 | E90: 3 | F90: 3
B91: Operating hours | C91: 3 | D91: 3 | E91: 3 | F91: 3
B92: Plant and Equipment | C92: 5 | D92: 1 | E92: 5 | F92: 1
B93: Controlled burning | C93: 5 | D93: 5 | E93: 5 | F93: 5
B94: Procedures | C94: 5 | D94: 5 | E94: 5 | F94: 5
B95: Operator training | C95: 5 | D95: 5 | E95: 5 | F95: 5
B96: Authorised officers | C96: 3 | D96: 3 | E96: 3 | F96: 3
B97: Regulatory enforcement activities | C97: 5 | D97: 5 | E97: 5 | F97: 5
B98: Wastes storage - solid | C98: 5 | D98: =D58 -> 1 | E98: 1 | F98: 1
B99: Wastes storage - tyres | C99: 5 | D99: 1 | E99: 1 | F99: 1
B100: Waste storage - hazardous | C100: 5 | D100: 1 | E100: 1 | F100: 1
B101: Waste storage - liquid | C101: 5 | D101: 1 | E101: 1 | F101: 1
B102: Permanent | C102: 2 | D102: =Data!AQ3 -> 2 | E102: ='Mitigation Data'!AQ3 -> 2 | F102: 2
B103: Method | C103: 4 | D103: =Data!AQ5 -> 4 | E103: ='Mitigation Data'!AQ5 -> 4 | F103: 4
B104: Construction | C104: 3 | D104: =Data!AQ10 -> 3 | E104: ='Mitigation Data'!AQ10 -> 3 | F104: 3
C105: =PRODUCT(C75:C104) -> 4.634857178e+19 | D105: =PRODUCT(D75:D104) -> 118652343750000 | F105: =PRODUCT(F75:F104) -> 118652343750000
B106: Ln | C106: =LN(C105) -> 45.28272215 | D106: =LN(D105) -> 32.40721885 | F106: =LN(F105) -> 32.40721885
B107: Normalised | C107: =C106/C106*100 -> 100 | D107: =D106/C106*100 -> 71.56641057 | F107: =F106/C106*100 -> 71.56641057
B109: Closed landfill
B110: Amount received | C110: 5 | D110: =Data!AU17 -> 5 | E110: =D110 -> 5 | F110: =IF(E110>D110,D110,E110) -> 5
B111: When Closed | C111: 5 | D111: =LOOKUP(Data!AU10,$A$137:$A$141,$B$137:$B$141) -> 1 | E111: =D111 -> 1 | F111: 1
B112: Disposal method | C112: 5 | D112: =LOOKUP(Data!AU24,$A$137:$A$141,$B$137:$B$141) -> 1 | E112: =D112 -> 1 | F112: 1
B113: How Capped | C113: 5 | D113: =Data!AU31 -> 5 | E113: ='Mitigation Data'!AU31 -> 5 | F113: 5
B114: Landuse | C114: 7 | D114: =Data!AU45 -> 7 | E114: ='Mitigation Data'!AU45 -> 7 | F114: 7
B115: Organic Layer | C115: 2 | D115: =Data!AU56 -> 2 | E115: ='Mitigation Data'!AU56 -> 2 | F115: 2
B116: Revegetation | C116: 5 | D116: =Data!AU58 -> 5 | E116: ='Mitigation Data'!AU58 -> 5 | F116: 5
B117: Monitoring | C117: 5 | D117: =Data!AU65 -> 5 | E117: ='Mitigation Data'!AU65 -> 5 | F117: 5
B118: Landfill Gas monitoring | C118: 5 | D118: =D69 -> 5 | E118: =E69 -> 5 | F118: =IF(E118>D118,D118,E118) -> 5
B119: Closure plan | C119: 3 | D119: =Data!$AU$95 -> 2 | E119: ='Mitigation Data'!$AU$145 -> 2 | F119: =IF(E119>D119,D119,E119) -> 2
C120: =PRODUCT(C111:C118) -> 218750 | D120: =PRODUCT(D111:D118) -> 8750 | F120: =PRODUCT(F111:F118) -> 8750
B121: Ln | C121: =LN(C120) -> 12.2956848 | D121: =LN(D120) -> 9.076808979 | F121: =LN(F120) -> 9.076808979
B122: Normalised | C122: =C121/C121*100 -> 100 | D122: =D121/C121*100 -> 73.82109353 | F122: =F121/C121*100 -> 73.82109353
A124: Normaliser | D124: Pre | F124: Post
A125: ='Surface Water A'!A136 -> 160.9437912 | C125: Active | D125: =E125/$A$125*100 -> 14.84305907 | E125: =(D29+D72)*$C$133/2*L130 -> 23.888982 | F125: =G125/$A$125*100 -> 14.84305907 | G125: =(F29+F72)*$C$133/2*L130 -> 23.888982 | I125: Indicator | J125: 1 | K125: 1.5 | L125: =LN(K125) -> 0.4054651081
C126: TS | D126: 9.257096371 | E126: =(D29+D107)*$C$134/2*L130 -> 14.89872186 | F126: 9.257096371 | G126: =(F29+F107)*$C$134/2*L130 -> 14.89872186 | I126: =IF(MAX(Data!L39,D43,D86)>5,5,MAX(Data!L39,D43,D86)) -> 1 | J126: 2 | K126: 2 | L126: =LN(K126) -> 0.6931471806
C127: TS on closed | D127: 11.53943214 | E127: =(D29+D107+D122)*$C$135/3*L130 -> 18.57199957 | F127: 11.53943214 | G127: =(F29+F107+F122)*$C$135/3*L130 -> 18.57199957 | J127: 3 | K127: 3 | L127: =LN(K127) -> 1.098612289
C128: Closed | D128: 10.99875328 | E128: =(D29+D122)*$C$135/2*L130 -> 17.70181051 | F128: 10.99875328 | G128: =(F29+F122)*$C$135/2*L130 -> 17.70181051 | J128: 4 | K128: 4 | L128: =LN(K128) -> 1.386294361
C129: Active to TS | D129: 14.84305907 | E129: =E125 -> 23.888982 | F129: 11.53943214 | G129: =G127 -> 18.57199957 | J129: 5 | K129: 5 | L129: =LN(K129) -> 1.609437912
C130: Active to closed | D130: 14.84305907 | E130: =E125 -> 23.888982 | F130: 10.99875328 | G130: =G128 -> 17.70181051 | L130: =LOOKUP(I126,J125:J129,L125:L129) -> 0.4054651081
B132: Air Factors
B133: Active landfill | C133: 1
B134: Transfer Station | C134: 0.6
B135: Closed landfill | C135: 0.7
A137: 1 | B137: 5
A138: =(C77+C31)*L142/2 -> 0 | B138: 4
A139: 3 | B139: 3
A140: 4 | B140: 2
A141: 5 | B141: 1

Sheet Noise A (hidden)
B2: NOISE | D2: Existing | E2: Mitigation sheet | F2: Mitigation
C4: Max. | D4: =Data!B13 -> Active landfill | F4: ='Mitigation Data'!B13 -> Mitigation of existing landfill
B5: Common Environmental & Operational
B6: Wind speed & direction | C6: 5 | D6: =Data!G56 -> 1 | E6: =D6 -> 1 | F6: =IF(E6>D6,D6,E6) -> 1
B7: Landuse (with wind direction) | C7: 5 | D7: =Data!K39 -> 1 | E7: =D7 -> 1 | F7: 1
B8: Landform | C8: 5 | D8: =Data!O3 -> 5 | E8: =D8 -> 5 | F8: 5
B9: Site Selection | C9: 3 | D9: =Data!S3 -> 2 | E9: =D9 -> 2 | F9: 2
B10: EIS / SEE / REF | C10: 3 | D10: =Data!S4 -> 2 | E10: =D10 -> 2 | F10: 2
B11: Environmental Audit | C11: 3 | D11: =Data!S5 -> 2 | E11: ='Mitigation Data'!S5 -> 2 | F11: 2
B12: Environmental Investigation | C12: 3 | D12: =Data!S6 -> 2 | E12: ='Mitigation Data'!S6 -> 2 | F12: 2
B13: EMP | C13: 3 | D13: =Data!S7 -> 2 | E13: ='Mitigation Data'!S7 -> 2 | F13: 2
B14: Noise monitoring | C14: 5 | D14: =Data!Q70 -> 5 | E14: ='Mitigation Data'!Q114 -> 5 | F14: 5
B15: Product | C15: =PRODUCT(C6:C14) -> 151875 | D15: =PRODUCT(D6:D14) -> 800 | F15: =PRODUCT(F6:F14) -> 800
B16: Ln | C16: =LN(C15) -> 11.93081309 | D16: =LN(D15) -> 6.684611728 | F16: =LN(F15) -> 6.684611728
B17: Normalised | C17: =C16/C16*100 -> 100 | D17: =D16/C16*100 -> 56.02813216 | F17: =F16/C16*100 -> 56.02813216
B19: Active landfill
B20: Amount received | C20: 5 | D20: =Data!C15 -> 1 | E20: =D20 -> 1 | F20: =IF(E20>D20,D20,E20) -> 1
B21: Open to public | C21: 6 | D21: =Data!AE28 -> 6 | E21: ='Mitigation Data'!AE28 -> 6 | F21: 6
B22: Perimeter | C22: 5 | D22: =Data!AE36 -> 5 | E22: ='Mitigation Data'!AE36 -> 5 | F22: 5
B23: Access security | C23: 5 | D23: =Data!AE43 -> 5 | E23: ='Mitigation Data'!AE43 -> 5 | F23: 5
B24: Additional security | C24: 5 | D24: =Data!AE50 -> 5 | E24: ='Mitigation Data'!AE50 -> 5 | F24: 5
B25: Access control | C25: 5 | D25: =Data!AE56 -> 5 | E25: ='Mitigation Data'!AE56 -> 5 | F25: 5
B26: Site supervision | C26: 5 | D26: =Data!AE63 -> 5 | E26: ='Mitigation Data'!AE63 -> 5 | F26: 5
B27: Operators at premises | C27: 5 | D27: =Data!AE70 -> 5 | E27: ='Mitigation Data'!AE70 -> 5 | F27: =IF(E27>D27,D27,E27) -> 5
B28: Trafficable surface | C28: 5 | D28: =Data!AE98 -> 5 | E28: ='Mitigation Data'!AE118 -> 5 | F28: 5
B29: Operational days | C29: 3 | D29: =Data!AE126 -> 3 | E29: ='Mitigation Data'!AE146 -> 3 | F29: 3
B30: Operating hours | C30: 3 | D30: =Data!AE131 -> 3 | E30: ='Mitigation Data'!AE151 -> 3 | F30: 3
B31: Plant and Equipment | C31: 5 | D31: =Data!AE136 -> 1 | E31: ='Mitigation Data'!AE156 -> 5 | F31: 1
B32: Collection services | C32: 5 | D32: =LOOKUP(Data!AE148,$A$122:$A$126,$B$122:$B$126) -> 1 | E32: =LOOKUP('Mitigation Data'!AE168,A122:A126,B122:B126) -> 1 | F32: 1
B33: Procedures | C33: 5 | D33: =Data!AE180 -> 5 | E33: ='Mitigation Data'!AE205 -> 5 | F33: 5
B34: Operator training | C34: 5 | D34: =Data!AX3 -> 5 | E34: ='Mitigation Data'!AX3 -> 5 | F34: 5
B35: Authorised officers | C35: 3 | D35: =Data!AX15 -> 3 | E35: ='Mitigation Data'!AX15 -> 3 | F35: 3
B36: Regulatory enforcement activities | C36: 5 | D36: =Data!AX19 -> 5 | E36: ='Mitigation Data'!AX19 -> 5 | F36: 5
B37: Waste disposal - solid | C37: 5 | D37: =Data!AE12 -> 5 | E37: ='Mitigation Data'!AE12 -> 5 | F37: 5
B38: Waste disposal - liquid | C38: 5 | D38: =Data!AE27 -> 1 | E38: ='Mitigation Data'!AE27 -> 1 | F38: 1
B39: Waste disposal - tyres | C39: 5 | D39: =Data!AE14 -> 1 | E39: ='Mitigation Data'!AE14 -> 1 | F39: 1
B40: Wastes storage - solid | C40: 5 | D40: =IF(Data!AF12=FALSE,1,LOOKUP(Data!AI3,A122:A126,B122:B126)) -> 1 | E40: =IF('Mitigation Data'!AF12=FALSE,1,LOOKUP('Mitigation Data'!AI3,A122:A126,B122:B126)) -> 1 | F40: =IF(E40>D40,D40,E40) -> 1
B41: Wastes storage - tyres | C41: 5 | D41: =IF('Mitigation Data'!AF13=FALSE,1,LOOKUP(Data!AI13,A122:A126,B122:B126)) -> 1 | E41: =IF('Mitigation Data'!AF13=FALSE,1,LOOKUP('Mitigation Data'!AI13,A122:A126,B122:B126)) -> 1 | F41: 1
B42: Waste storage - hazardous | C42: 5 | D42: =IF(Data!AF18=FALSE,1,LOOKUP(Data!AI14,A122:A126,B122:B126)) -> 1 | E42: =IF('Mitigation Data'!AF18=FALSE,1,LOOKUP('Mitigation Data'!AI14,A122:A126,B122:B126)) -> 1 | F42: 1
B43: Waste storage - liquid | C43: 5 | D43: =IF(Data!AF27>0,LOOKUP(Data!AI19,A122:A126,B122:B126),1) -> 1 | E43: =IF('Mitigation Data'!AF27>0,LOOKUP('Mitigation Data'!AI19,A122:A126,B122:B126),1) -> 1 | F43: 1
B44: Frequency of covering | C44: 5 | D44: =Data!AL36 -> 5 | E44: ='Mitigation Data'!AL36 -> 5 | F44: 5
B45: Filling Plan | C45: 2 | D45: =Data!AL43 -> 2 | E45: ='Mitigation Data'!AL43 -> 2 | F45: 2
B46: Product | C46: =PRODUCT(C20:C45) -> 1.544952393e+17 | D46: =PRODUCT(D20:D45) -> 79101562500 | F46: =PRODUCT(F20:F45) -> 79101562500
B47: Ln | C47: =LN(C46) -> 39.57893968 | D47: =LN(D46) -> 25.09399847 | F47: =LN(F46) -> 25.09399847
B48: Normalised | C48: =C47/C47*100 -> 100 | D48: =D47/C47*100 -> 63.40240206 | F48: =F47/C47*100 -> 63.40240206
B50: Transfer station
B51: Amount received | C51: 5 | D51: =D20 -> 1 | E51: =D51 -> 1 | F51: =IF(E51>D51,D51,E51) -> 1
B52: Open to public | C52: 6 | D52: 6 | E52: =E21 -> 6 | F52: 6
B53: Perimeter | C53: 5 | D53: 5 | E53: 5 | F53: 5
B54: Access security | C54: 5 | D54: 5 | E54: 5 | F54: 5
B55: Additional security | C55: 5 | D55: 5 | E55: 5 | F55: 5
B56: Access control | C56: 5 | D56: 5 | E56: 5 | F56: 5
B57: Site supervision | C57: 5 | D57: 5 | E57: 5 | F57: 5
B58: Operators at premises | C58: 5 | D58: 5 | E58: 5 | F58: 5
B59: Trafficable surface | C59: 5 | D59: 5 | E59: 5 | F59: =IF(E59>D59,D59,E59) -> 5
B60: Operational days | C60: 3 | D60: 3 | E60: 3 | F60: 3
B61: Operating hours | C61: 3 | D61: 3 | E61: 3 | F61: 3
B62: Plant and Equipment | C62: 5 | D62: 1 | E62: 5 | F62: 1
B63: Collection services | C63: 5 | D63: 1 | E63: =E32 -> 1 | F63: 1
B64: Procedures | C64: 5 | D64: 5 | E64: 5 | F64: 5
B65: Operator training | C65: 5 | D65: 5 | E65: 5 | F65: 5
B66: Authorised officers | C66: 3 | D66: 3 | E66: 3 | F66: 3
B67: Regulatory enforcement activities | C67: 5 | D67: 5 | E67: 5 | F67: 5
B68: Wastes storage - solid | C68: 5 | D68: =D40 -> 1 | E68: 1 | F68: 1
B69: Wastes storage - tyres | C69: 5 | D69: 1 | E69: 1 | F69: 1
B70: Waste storage - hazardous | C70: 5 | D70: 1 | E70: 1 | F70: 1
B71: Waste storage - liquid | C71: 5 | D71: 1 | E71: 1 | F71: 1
B72: Permanent | C72: 2 | D72: =Data!AQ3 -> 2 | E72: ='Mitigation Data'!AQ3 -> 2 | F72: 2
B73: Method | C73: 4 | D73: =Data!AQ5 -> 4 | E73: ='Mitigation Data'!AQ5 -> 4 | F73: 4
B74: Construction | C74: 3 | D74: =Data!AQ10 -> 3 | E74: ='Mitigation Data'!AQ10 -> 3 | F74: 3
B75: Processing / sorting | C75: 2 | D75: =LOOKUP(Data!AQ19,A128:A129,B128:B129) -> 1 | E75: =LOOKUP('Mitigation Data'!AQ19,A128:A129,B128:B129) -> 1 | F75: 1
C76: =PRODUCT(C51:C75) -> 5932617187500000 | D76: =PRODUCT(D51:D75) -> 37968750000 | F76: =PRODUCT(F51:F75) -> 37968750000
B77: Ln | C77: =LN(C76) -> 36.31924186 | D77: =LN(D76) -> 24.36002929 | F77: =LN(F76) -> 24.36002929
B78: Normalised | C78: =C77/C77*100 -> 100 | D78: =D77/C77*100 -> 67.07196528 | F78: =F77/C77*100 -> 67.07196528
B80: Closed landfill | F80: =IF(E80>D80,D80,E80) -> 0
B81: Nil
B83: Normalised | C83: 0 | D83: 0 | F83: 0
A85: Normaliser | D85: Pre | F85: Post
A86: ='Groundwater A'!A138 -> 160.9437912 | C86: Active | D86: =E86/$A$86*100 -> 7.522022766 | E86: =((D17+D48)*$C$94/2)*I86 -> 12.10622862 | F86: =G86/$A$86*100 -> 7.522022766 | G86: =((F17+F48)*$C$94/2)*I86 -> 12.10622862 | H86: Distance | I86: =LOOKUP(Data!L39,'Noise A'!H98:H102,'Noise A'!L98:L102) -> 0.4054651081
C87: TS | D87: 6.769820489 | E87: =((D17+D48)*$C$95/2)*I86 -> 10.89560576 | F87: 6.769820489 | G87: =((F17+F48)*$C$95/2)*I86 -> 10.89560576
C88: TS on closed | D88: 4.651884419 | E88: =(D17+D78+D83)*$C$95/3*I86 -> 7.486919148 | F88: 4.651884419 | G88: =(F17+F78+F83)*$C$95/3*I86 -> 7.486919148
C89: Closed | D89: 0.7057573482 | E89: =((D17+D83)*$C$96/2)*I86 -> 1.135872633 | F89: 0.7057573482 | G89: =((F17+F83)*$C$96/2)*I86 -> 1.135872633
C90: Active to TS | D90: 4.651884419 | E90: =E88 -> 7.486919148 | F90: 4.651884419 | G90: =G88 -> 7.486919148
C91: Active to closed | D91: 0.7057573482 | E91: =E89 -> 1.135872633 | F91: 0.7057573482 | G91: =G89 -> 1.135872633
B93: Noise Factors
B94: Active landfill | C94: =D94*1 -> 0.5 | D94: =LOOKUP($C$118,$H$106:$H$121,$K$106:$K$121) -> 0.5
B95: Transfer Station | C95: =D95*0.9 -> 0.45 | D95: =LOOKUP($C$118,$H$106:$H$121,$K$106:$K$121) -> 0.5
B96: Closed landfill | C96: =D96*0.2 -> 0.1 | D96: =LOOKUP($C$118,$H$106:$H$121,$K$106:$K$121) -> 0.5
H97: Inverse square calcs
B98: =Data!J19 -> NE | F98: 1 | G98: Industrial | H98: 1 | I98: > 5 | J98: 0.5 | K98: 1.5 | L98: =LN(K98) -> 0.4054651081
B99: =Data!J20 -> Landuse | C99: =Data!K20 -> 1 | F99: 2 | G99: Special purpose | H99: 2 | I99: 1 - 5 | J99: 0.6 | K99: 2 | L99: =LN(K99) -> 0.6931471806
B100: =Data!J21 -> Residence | C100: =Data!K21 -> 1 | F100: 3 | G100: Business | H100: 3 | I100: 0.5 - 1 | J100: 0.8 | K100: 3 | L100: =LN(K100) -> 1.098612289
B101: =Data!J22 -> Residential Area | C101: =Data!K22 -> 1 | F101: 4 | G101: Rural | H101: 4 | I101: 0.25 - 0.5 | J101: 0.9 | K101: 4 | L101: =LN(K101) -> 1.386294361
C102: =AVERAGE(C100:C101) -> 1 | F102: 5 | G102: Recreation | H102: 5 | I102: < 0.25 | J102: 1 | K102: 5 | L102: =LN(K102) -> 1.609437912
B103: =Data!J24 -> SE | F103: 6 | G103: Residential
B104: =Data!J25 -> Landuse | C104: =Data!K25 -> 1 | F104: 7 | G104: Environment protection
B105: =Data!J26 -> Residence | C105: =Data!K26 -> 1
B106: =Data!J27 -> Residential Area | C106: =Data!K27 -> 1 | G106: N | H106: 1 | I106: =(C112+C107)/2 -> 1 | J106: =I106/5 -> 0.2 | K106: =LOOKUP(I106,$C$120:$C$125,$D$120:$D$125) -> 0.5
C107: =AVERAGE(C105:C106) -> 1 | G107: NNE | H107: 2 | I107: =(I106+I108)/2 -> 1 | J107: =I107/5 -> 0.2 | K107: =LOOKUP(I107,$C$120:$C$125,$D$120:$D$125) -> 0.5
B108: =Data!J29 -> SW | G108: NE | H108: 3 | I108: =C112 -> 1 | J108: 0.2 | K108: 0.5
B109: =Data!J30 -> Landuse | C109: =Data!K30 -> 1 | G109: ENE | H109: 4 | I109: =(I108+I110)/2 -> 1 | J109: 0.2 | K109: 0.5
B110: =Data!J31 -> Residence | C110: =Data!K31 -> 1 | G110: E | H110: 5 | I110: =(C112+C117)/2 -> 1 | J110: 0.2 | K110: 0.5
B111: =Data!J32 -> Residential Area | C111: =Data!K32 -> 1 | G111: ESE | H111: 6 | I111: =(I110+I112)/2 -> 1 | J111: 0.2 | K111: 0.5
C112: =AVERAGE(C110:C111) -> 1 | G112: SE | H112: 7 | I112: =C117 -> 1 | J112: 0.2 | K112: 0.5
B113: =Data!J34 -> NW | G113: SSE | H113: 8 | I113: =(I112+I114)/2 -> 1 | J113: 0.2 | K113: 0.5
B114: =Data!J35 -> Landuse | C114: =Data!K35 -> 1 | G114: S | H114: 9 | I114: =(C117+C102)/2 -> 1 | J114: 0.2 | K114: 0.5
B115: =Data!J36 -> Residence | C115: =Data!K36 -> 1 | G115: SSW | H115: 10 | I115: =(I114+I116)/2 -> 1 | J115: 0.2 | K115: 0.5
B116: =Data!J37 -> Residential Area | C116: =Data!K37 -> 1 | G116: SW | H116: 11 | I116: =C102 -> 1 | J116: 0.2 | K116: 0.5
C117: =AVERAGE(C115:C116) -> 1 | G117: WSW | H117: 12 | I117: =(I116+I118)/2 -> 1 | J117: 0.2 | K117: 0.5
B118: =Data!F24 -> Prevailing Wind Direction | C118: =Data!G24 -> 1 | G118: W | H118: 13 | I118: =(C102+C107)/2 -> 1 | J118: 0.2 | K118: 0.5
G119: WNW | H119: 14 | I119: =(I118+I120)/2 -> 1 | J119: 0.2 | K119: 0.5
B120: Factor | C120: 0 | D120: 0.2 | G120: NW | H120: 15 | I120: =C107 -> 1 | J120: 0.2 | K120: 0.5
C121: 1 | D121: 0.5 | G121: NNW | H121: 16 | I121: =(I120+I106)/2 -> 1 | J121: 0.2 | K121: 0.5
A122: 1 | B122: 5 | C122: 2 | D122: 0.6
A123: 2 | B123: 4 | C123: 3 | D123: 0.8
A124: 3 | B124: 3 | C124: 4 | D124: 0.9
A125: 4 | B125: 2 | C125: 5 | D125: 1
A126: 5 | B126: 1
A128: 1 | B128: 2
A129: 2 | B129: 1
A137: =(C77+C31)*L141/2 -> 0

Sheet Amenity A (hidden)
B2: AMENITY | D2: Existing | E2: Mitigation sheet | F2: Mitigation
C4: Max. | D4: =Data!B13 -> Active landfill | F4: ='Mitigation Data'!B13 -> Mitigation of existing landfill
B5: Common Environmental & Operational
B6: Area | C6: 5 | D6: =Data!C22 -> 5 | E6: =D6 -> 5 | F6: =IF(E6>D6,D6,E6) -> 5
B7: MLA | C7: 5 | D7: =Data!C47 -> 1 | E7: =D7 -> 1 | F7: =IF(E7>D7,D7,E7) -> 1
B9: >5,000 | C9: 5 | D9: =Data!C49 -> 4 | E9: 4 | F9: 4
B10: RRA | C10: 5 | D10: =Data!C50 -> 1 | E10: 1 | F10: 1
B11: Access to premises | C11: 5 | D11: =Data!C51 -> 1 | E11: 1 | F11: 1
B12: Wind speed & direction | C12: 5 | D12: =Data!G56 -> 1 | E12: 1 | F12: 1
B13: Landuse (with wind direction) | C13: 5 | D13: =Data!K39 -> 1 | E13: 1 | F13: 1
B14: Soils - surface | C14: 5 | D14: =Data!W3 -> 2 | E14: =D14 -> 2 | F14: 2
B15: Erosion hazard | C15: 5 | D15: =Data!W11 -> 1 | E15: 1 | F15: 1
B18: Erosion | C18: 5 | D18: =Data!W37 -> 1 | E18: 1 | F18: 1
B19: Visibility | C19: 5 | D19: =Data!W119 -> 1 | E19: 1 | F19: 1
B20: Site Selection | C20: 3 | D20: =Data!S3 -> 2 | E20: 2 | F20: 2
B21: EIS / SEE / REF | C21: 3 | D21: =Data!S4 -> 2 | E21: 2 | F21: 2
B22: Environmental Audit | C22: 3 | D22: =Data!S5 -> 2 | E22: ='Mitigation Data'!S5 -> 2 | F22: 2
B23: Environmental Investigation | C23: 3 | D23: =Data!S6 -> 2 | E23: ='Mitigation Data'!S6 -> 2 | F23: 2
B24: EMP | C24: 3 | D24: =Data!S7 -> 2 | E24: ='Mitigation Data'!S7 -> 2 | F24: 2
B25: Dust monitoring | C25: 5 | D25: =Data!Q59 -> 5 | E25: ='Mitigation Data'!Q90 -> 5 | F25: 5
B26: Product | C26: =PRODUCT(C6:C25) -> 59326171875 | D26: =PRODUCT(D6:D25) -> 6400 | F26: =PRODUCT(F6:F25) -> 6400
B27: Ln | C27: =LN(C26) -> 24.80631639 | D27: =LN(D26) -> 8.764053269 | F27: =LN(F26) -> 8.764053269
B28: Normalised | C28: =C27/C27*100 -> 100 | D28: =D27/C27*100 -> 35.32992618 | F28: =F27/C27*100 -> 35.32992618
B30: Active landfill
B31: Amount received | C31: 5 | D31: =Data!C15 -> 1 | E31: =D31 -> 1 | F31: =IF(E31>D31,D31,E31) -> 1
B32: Age | C32: 5 | D32: =Data!C29 -> 5 | E32: =D32 -> 5 | F32: =IF(E32>D32,D32,E32) -> 5
B33: Direction to facility | C33: 2 | D33: =Data!AA3 -> 1 | E33: =D33 -> 1 | F33: 1
B34: Site signage | C34: 5 | D34: =Data!AA5 -> 5 | E34: ='Mitigation Data'!AA5 -> 5 | F34: 5
B35: Communication | C35: 5 | D35: =Data!AA17 -> 5 | E35: ='Mitigation Data'!AA17 -> 5 | F35: 5
B36: Themes | C36: 5 | D36: =Data!AA24 -> 5 | E36: ='Mitigation Data'!AA24 -> 5 | F36: 5
B37: Open to public | C37: 6 | D37: =Data!AE28 -> 6 | E37: ='Mitigation Data'!AE28 -> 6 | F37: 6
B38: Perimeter | C38: 5 | D38: =Data!AE36 -> 5 | E38: ='Mitigation Data'!AE36 -> 5 | F38: 5
B39: Access security | C39: 5 | D39: =Data!AE43 -> 5 | E39: ='Mitigation Data'!AE43 -> 5 | F39: 5
B40: Additional security | C40: 5 | D40: =Data!AE50 -> 5 | E40: ='Mitigation Data'!AE50 -> 5 | F40: 5
B41: Access control | C41: 5 | D41: =Data!AE56 -> 5 | E41: ='Mitigation Data'!AE56 -> 5 | F41: 5
B42: Site supervision | C42: 5 | D42: =Data!AE63 -> 5 | E42: ='Mitigation Data'!AE63 -> 5 | F42: 5
B43: Operators at premises | C43: 5 | D43: =Data!AE70 -> 5 | E43: ='Mitigation Data'!AE70 -> 5 | F43: =IF(E43>D43,D43,E43) -> 5
B44: Complaints | C44: 5 | D44: =Data!AE72 -> 1 | E44: =D44 -> 1 | F44: 1
B45: Uncontrolled fires | C45: 5 | D45: =Data!AE74 -> 1 | E45: =D45 -> 1 | F45: 1
B46: Unlawful waste disposal (on premises) | C46: 5 | D46: =Data!AE76 -> 1 | E46: =D46 -> 1 | F46: 1
B47: Unlawful waste disposal (off premises) | C47: 5 | D47: =Data!AE78 -> 1 | E47: =D47 -> 1 | F47: 1
B48: Trafficable surface | C48: 5 | D48: =Data!AE98 -> 5 | E48: ='Mitigation Data'!AE118 -> 5 | F48: 5
B49: Dust control | C49: 5 | D49: =Data!AE114 -> 5 | E49: ='Mitigation Data'!AE134 -> 5 | F49: 5
B50: Litter control | C50: 5 | D50: =Data!AE120 -> 5 | E50: ='Mitigation Data'!AE140 -> 5 | F50: 5
B51: Plant and Equipment | C51: 5 | D51: =Data!AE136 -> 1 | E51: ='Mitigation Data'!AE156 -> 5 | F51: 1
B52: Collection services | C52: 5 | D52: =Data!AE148 -> 5 | E52: ='Mitigation Data'!AE168 -> 5 | F52: 5
B53: Pest Management | C53: 5 | D53: =Data!AE156 -> 5 | E53: ='Mitigation Data'!AE176 -> 5 | F53: 5
B54: Controlled burning | C54: 5 | D54: =Data!AE164 -> 5 | E54: ='Mitigation Data'!AE184 -> 5 | F54: 5
B55: Procedures | C55: 5 | D55: =Data!AE180 -> 5 | E55: ='Mitigation Data'!AE205 -> 5 | F55: 5
B56: Emergency services attendance | C56: 2 | D56: =Data!AE190 -> 1 | E56: =D56 -> 1 | F56: 1
B57: Operator training | C57: 5 | D57: =Data!AX3 -> 5 | E57: ='Mitigation Data'!AX3 -> 5 | F57: 5
B58: Authorised officers | C58: 3 | D58: =Data!AX15 -> 3 | E58: ='Mitigation Data'!AX15 -> 3 | F58: 3
B59: Regulatory enforcement activities | C59: 5 | D59: =Data!AX19 -> 5 | E59: ='Mitigation Data'!AX19 -> 5 | F59: 5
B60: Waste disposal - solid | C60: 5 | D60: =Data!AE12 -> 5 | E60: ='Mitigation Data'!AE12 -> 5 | F60: 5
B61: Waste disposal - liquid | C61: 5 | D61: =Data!AE27 -> 1 | E61: ='Mitigation Data'!AE27 -> 1 | F61: 1
B62: Waste disposal - tyres | C62: 5 | D62: =Data!AE14 -> 1 | E62: ='Mitigation Data'!AE14 -> 1 | F62: 1
B63: Wastes storage - solid | C63: 5 | D63: =Data!AI3 -> 1 | E63: ='Mitigation Data'!AI3 -> 1 | F63: =IF(E63>D63,D63,E63) -> 1
B64: Wastes storage - tyres | C64: 5 | D64: =Data!AI13 -> 1 | E64: ='Mitigation Data'!AI13 -> 1 | F64: 1
B65: Waste storage - hazardous | C65: 5 | D65: =Data!AI14 -> 1 | E65: ='Mitigation Data'!AI14 -> 1 | F65: 1
B66: Waste storage - liquid | C66: 5 | D66: =Data!AI19 -> 1 | E66: ='Mitigation Data'!AI19 -> 1 | F66: 1
B67: Landfilled wastes | C67: 5 | D67: =Data!AM9 -> 1 | E67: ='Mitigation Data'!AM9 -> 1 | F67: 1
B68: Landfilling method | C68: 5 | D68: =Data!AL10 -> 5 | E68: ='Mitigation Data'!AL10 -> 5 | F68: 5
B69: Active fill areas | C69: 5 | D69: =Data!AL17 -> 5 | E69: ='Mitigation Data'!AL17 -> 5 | F69: 5
B70: Compaction | C70: 3 | D70: =Data!AL24 -> 3 | E70: ='Mitigation Data'!AL24 -> 3 | F70: 3
B71: Covering method | C71: 5 | D71: =Data!AL29 -> 5 | E71: ='Mitigation Data'!AL29 -> 5 | F71: 5
B72: Frequency of covering | C72: 5 | D72: =Data!AL36 -> 5 | E72: ='Mitigation Data'!AL36 -> 5 | F72: 5
B73: Filling Plan | C73: 2 | D73: =Data!AL43 -> 2 | E73: ='Mitigation Data'!AL43 -> 2 | F73: 2
B74: Closure method | C74: 5 | D74: =Data!AL52 -> 5 | E74: ='Mitigation Data'!AL52 -> 5 | F74: 5
B75: Landfill Gas monitoring | C75: 5 | D75: =Data!Q89 -> 5 | E75: ='Mitigation Data'!Q143 -> 5 | F75: 5
B76: Product | C76: =PRODUCT(C31:C75) -> 7.858034223e+29 | D76: =PRODUCT(D31:D75) -> 1.609325409e+20 | F76: =PRODUCT(F31:F75) -> 1.609325409e+20
B77: Ln | C77: =LN(C76) -> 68.83650417 | D77: =LN(D76) -> 46.52751695 | F77: =LN(F76) -> 46.52751695
B78: Normalised | C78: =C77/C77*100 -> 100 | D78: =D77/C77*100 -> 67.59134199 | F78: =F77/C77*100 -> 67.59134199
B80: Transfer station
B81: Amount received | C81: 5 | D81: =D31 -> 1 | E81: =D81 -> 1 | F81: =IF(E81>D81,D81,E81) -> 1
B82: Direction to facility | C82: 2 | D82: =D33 -> 1 | E82: =D82 -> 1 | F82: =IF(E82>D82,D82,E82) -> 1
B83: Site signage | C83: 5 | D83: 5 | E83: =E34 -> 5 | F83: 5
B84: Communication | C84: 5 | D84: 5 | E84: 5 | F84: 5
B85: Themes | C85: 5 | D85: 5 | E85: 5 | F85: 5
B86: Open to public | C86: 6 | D86: 6 | E86: 6 | F86: 6
B87: Perimeter | C87: 5 | D87: 5 | E87: 5 | F87: 5
B88: Access security | C88: 5 | D88: 5 | E88: 5 | F88: 5
B89: Additional security | C89: 5 | D89: 5 | E89: 5 | F89: 5
B90: Access control | C90: 5 | D90: 5 | E90: 5 | F90: 5
B91: Site supervision | C91: 5 | D91: 5 | E91: 5 | F91: =IF(E91>D91,D91,E91) -> 5
B92: Operators at premises | C92: 5 | D92: 5 | E92: 5 | F92: =IF(E92>D92,D92,E92) -> 5
B93: Complaints | C93: 5 | D93: 1 | E93: 1 | F93: =IF(E93>D93,D93,E93) -> 1
B94: Uncontrolled fires | C94: 5 | D94: 1 | E94: 1 | F94: =IF(E94>D94,D94,E94) -> 1
B95: Unlawful waste disposal (on premises) | C95: 5 | D95: 1 | E95: 1 | F95: 1
B96: Unlawful waste disposal (off premises) | C96: 5 | D96: 1 | E96: 1 | F96: 1
B97: Trafficable surface | C97: 5 | D97: 5 | E97: 5 | F97: 5
B98: Dust control | C98: 5 | D98: 5 | E98: 5 | F98: 5
B99: Litter control | C99: 5 | D99: 5 | E99: 5 | F99: 5
B100: Plant and Equipment | C100: 5 | D100: 1 | E100: 5 | F100: 1
B101: Pest Management | C101: 5 | D101: =D53 -> 5 | E101: =E53 -> 5 | F101: 5
B102: Controlled burning | C102: 5 | D102: 5 | E102: 5 | F102: 5
B103: Procedures | C103: 5 | D103: 5 | E103: 5 | F103: 5
B104: Emergency services attendance | C104: 2 | D104: 1 | E104: 1 | F104: 1
B105: Operator training | C105: 5 | D105: 5 | E105: 5 | F105: 5
B106: Authorised officers | C106: 3 | D106: 3 | E106: 3 | F106: 3
B107: Regulatory enforcement activities | C107: 5 | D107: 5 | E107: 5 | F107: 5
B108: Wastes storage - solid | C108: 5 | D108: =D63 -> 1 | E108: 1 | F108: 1
B109: Wastes storage - tyres | C109: 5 | D109: 1 | E109: 1 | F109: 1
B110: Waste storage - hazardous | C110: 5 | D110: 1 | E110: 1 | F110: 1
B111: Waste storage - liquid | C111: 5 | D111: 1 | E111: 1 | F111: 1
B112: Permanent | C112: 2 | D112: =Data!AQ3 -> 2 | E112: ='Mitigation Data'!AQ3 -> 2 | F112: 2
B113: Method | C113: 4 | D113: =Data!AQ5 -> 4 | E113: ='Mitigation Data'!AQ5 -> 4 | F113: 4
B114: Construction | C114: 3 | D114: =Data!AQ10 -> 3 | E114: ='Mitigation Data'!AQ10 -> 3 | F114: 3
B115: Lids | C115: 2 | D115: =Data!AQ17 -> 2 | E115: ='Mitigation Data'!AQ17 -> 2 | F115: 2
B116: Processing / sorting | C116: 2 | D116: =Data!AQ19 -> 2 | E116: ='Mitigation Data'!AQ19 -> 2 | F116: 2
B117: Disposal | C117: 2 | D117: =Data!AQ21 -> 2 | E117: ='Mitigation Data'!AQ21 -> 2 | F117: 2
C118: =PRODUCT(C81:C117) -> 1.029968262e+23 | D118: =PRODUCT(D81:D117) -> 2636718750000000 | F118: =PRODUCT(F81:F117) -> 2636718750000000
B119: Ln | C119: =LN(C118) -> 52.98898513 | D119: =LN(D118) -> 35.50831164 | F119: =LN(F118) -> 35.50831164
B120: Normalised | C120: =C119/C119*100 -> 100 | D120: =D119/C119*100 -> 67.01074111 | F120: =F119/C119*100 -> 67.01074111
B122: Closed landfill | F122: =IF(E122>D122,D122,E122) -> 0
B123: When Closed | C123: 5 | D123: =LOOKUP(Data!AU10,B150:B154,C150:C154) -> 1 | E123: =D123 -> 1 | F123: 1
B124: Amount received | C124: 5 | D124: =Data!AU17 -> 5 | E124: =D124 -> 5 | F124: 5
B125: Disposal method | C125: 5 | D125: =Data!AU24 -> 5 | E125: =D125 -> 5 | F125: 5
B126: How Capped | C126: 5 | D126: =Data!AU31 -> 5 | E126: ='Mitigation Data'!AU31 -> 5 | F126: 5
B127: Landuse | C127: 7 | D127: =LOOKUP(Data!AU45,B156:B162,C156:C162) -> 1 | E127: =LOOKUP('Mitigation Data'!AU45,B156:B162,C156:C162) -> 1 | F127: 1
B128: Organic Layer | C128: 2 | D128: =Data!AU56 -> 2 | E128: ='Mitigation Data'!AU56 -> 2 | F128: 2
B129: Revegetation | C129: 5 | D129: =Data!AU58 -> 5 | E129: ='Mitigation Data'!AU58 -> 5 | F129: 5
B130: Monitoring | C130: 5 | D130: =Data!AU65 -> 5 | E130: ='Mitigation Data'!AU65 -> 5 | F130: 5
B131: Landfill Gas monitoring | C131: 5 | D131: =D75 -> 5 | E131: =E75 -> 5 | F131: =IF(E131>D131,D131,E131) -> 5
B132: Closure plan | C132: 3 | D132: =Data!$AU$95 -> 2 | E132: ='Mitigation Data'!$AU$145 -> 2 | F132: =IF(E132>D132,D132,E132) -> 2
C133: =PRODUCT(C123:C131) -> 1093750 | D133: =PRODUCT(D123:D131) -> 31250 | F133: =PRODUCT(F123:F131) -> 31250
B134: Ln | C134: =LN(C133) -> 13.90512272 | D134: =LN(D133) -> 10.34977466 | F134: =LN(F133) -> 10.34977466
B135: Normalised | C135: =C134/C134*100 -> 100 | D135: =D134/C134*100 -> 74.43137947 | F135: =F134/C134*100 -> 74.43137947
A137: Normaliser | D137: Pre | F137: Post
A138: ='Groundwater A'!A138 -> 160.9437912 | C138: Active | D138: =E138/$A$138*100 -> 12.96445883 | E138: =(D28+D78)*C146/2*L143 -> 20.86549156 | F138: =G138/$A$138*100 -> 12.96445883 | G138: =(F28+F78)*$C$146/2*L143 -> 20.86549156 | I138: Indicator | J138: 1 | K138: 1.5 | L138: =LN(K138) -> 0.4054651081
C139: TS | D139: 9.023926485 | E139: =(D28+D120)*$C$147/2*L143 -> 14.5234494 | F139: 9.023926485 | G139: =(F28+F120)*$C$147/2*L143 -> 14.5234494 | I139: =IF(MAX(Data!L39,D19,D44,D93)>5,5,MAX(Data!L39,D19,D44,D93)) -> 1 | J139: 2 | K139: 2 | L139: =LN(K139) -> 0.6931471806
C140: TS on closed | D140: 10.39129408 | E140: =(D28+D120+D135)*C147/3*L143 -> 16.72414265 | F140: 10.39129408 | G140: =(F28+F120+F135)*C147/3*L143 -> 16.72414265 | J140: 3 | K140: 3 | L140: =LN(K140) -> 1.098612289
C141: Closed | D141: 5.530425165 | E141: =(D28+D135)*$C$148/2*L143 -> 8.900875932 | F141: 5.530425165 | G141: =(F28+F135)*$C$148/2*L143 -> 8.900875932 | J141: 4 | K141: 4 | L141: =LN(K141) -> 1.386294361
C142: Active to TS | D142: 12.96445883 | E142: =E138 -> 20.86549156 | F142: 10.39129408 | G142: =G140 -> 16.72414265 | J142: 5 | K142: 5 | L142: =LN(K142) -> 1.609437912
C143: Active to closed | D143: 12.96445883 | E143: =E138 -> 20.86549156 | F143: 5.530425165 | G143: =G141 -> 8.900875932 | L143: =LOOKUP(I139,J138:J142,L138:L142) -> 0.4054651081
B145: Amenity Factors
B146: Active landfill | C146: 1
B147: Transfer Station | C147: 0.7
B148: Closed landfill | C148: 0.4
B150: 1 | C150: 5
B151: 2 | C151: 4
B152: 3 | C152: 3
B153: 4 | C153: 2
B154: 5 | C154: 1
B156: 1 | C156: 7
B157: 2 | C157: 6
B158: 3 | C158: 5
B159: 4 | C159: 3
B160: 5 | C160: 2
B161: 6 | C161: 4
B162: 7 | C162: 1

Sheet Fire A (hidden)
B2: FIRE | D2: Existing | E2: Mitigation sheet | F2: Mitigation
C4: Max. | D4: =Data!B13 -> Active landfill | F4: ='Mitigation Data'!B13 -> Mitigation of existing landfill
B5: Common Environmental & Operational
B6: Rainfall | C6: 5 | D6: =LOOKUP(Data!G3,A124:A128,B124:B128) -> 5 | E6: =D6 -> 5 | F6: =IF(E6>D6,D6,E6) -> 5
B7: No. rain days > 10mm | C7: 5 | D7: =LOOKUP(Data!G10,A124:A128,B124:B128) -> 5 | E7: 5 | F7: 5
B8: Evaporation | C8: 5 | D8: =LOOKUP(Data!G17,A124:A128,B124:B128) -> 5 | E8: 5 | F8: 5
B9: Wind speed & direction | C9: 5 | D9: =Data!G56 -> 1 | E9: 1 | F9: 1
B10: Landuse (with wind direction) | C10: 5 | D10: =Data!K39 -> 1 | E10: 1 | F10: 1
B11: Fire risk (wind & veg) | C11: 8 | D11: =Data!L138 -> 1 | E11: 1 | F11: 1 | G11: =IF(D11>5,5,D11) -> 1
B12: Bush Fire Prone | C12: 5 | D12: =Data!W127 -> 1 | E12: =D12 -> 1 | F12: 1
B13: Site Selection | C13: 3 | D13: =Data!S3 -> 2 | E13: =D13 -> 2 | F13: 2
B14: EIS / SEE / REF | C14: 3 | D14: =Data!S4 -> 2 | E14: =D14 -> 2 | F14: 2
B15: Environmental Audit | C15: 3 | D15: =Data!S5 -> 2 | E15: ='Mitigation Data'!S5 -> 2 | F15: 2
B16: Environmental Investigation | C16: 3 | D16: =Data!S6 -> 2 | E16: ='Mitigation Data'!S6 -> 2 | F16: 2
B17: EMP | C17: 3 | D17: =Data!S7 -> 2 | E17: ='Mitigation Data'!S7 -> 2 | F17: 2
B19: Product | C19: =PRODUCT(C6:C18) -> 30375000 | D19: =PRODUCT(D6:D18) -> 4000 | F19: =PRODUCT(F6:F18) -> 4000
B20: Ln | C20: =LN(C19) -> 17.22913046 | D20: =LN(D19) -> 8.29404964 | F20: =LN(F19) -> 8.29404964
B21: Normalised | C21: =C20/C20*100 -> 100 | D21: =D20/C20*100 -> 48.13968795 | F21: =F20/C20*100 -> 48.13968795
B23: Active landfill
B24: Amount received | C24: 5 | D24: =Data!C15 -> 1 | E24: =D24 -> 1 | F24: =IF(E24>D24,D24,E24) -> 1
B25: Site signage | C25: 5 | D25: =Data!AA5 -> 5 | E25: ='Mitigation Data'!AA5 -> 5 | F25: 5
B26: Communication | C26: 5 | D26: =Data!AA17 -> 5 | E26: ='Mitigation Data'!AA17 -> 5 | F26: 5
B27: Themes | C27: 5 | D27: =Data!AA24 -> 5 | E27: ='Mitigation Data'!AA24 -> 5 | F27: 5
B28: Open to public | C28: 6 | D28: =Data!AE28 -> 6 | E28: ='Mitigation Data'!AE28 -> 6 | F28: 6
B29: Perimeter | C29: 5 | D29: =Data!AE36 -> 5 | E29: ='Mitigation Data'!AE36 -> 5 | F29: 5
B30: Access security | C30: 5 | D30: =Data!AE43 -> 5 | E30: ='Mitigation Data'!AE43 -> 5 | F30: 5
B31: Additional security | C31: 5 | D31: =Data!AE50 -> 5 | E31: ='Mitigation Data'!AE50 -> 5 | F31: 5
B32: Access control | C32: 5 | D32: =Data!AE56 -> 5 | E32: ='Mitigation Data'!AE56 -> 5 | F32: 5
B33: Site supervision | C33: 5 | D33: =Data!AE63 -> 5 | E33: ='Mitigation Data'!AE63 -> 5 | F33: 5
B34: Operators at premises | C34: 5 | D34: =Data!AE70 -> 5 | E34: ='Mitigation Data'!AE70 -> 5 | F34: =IF(E34>D34,D34,E34) -> 5
B35: Complaints | C35: 5 | D35: =Data!AE72 -> 1 | E35: =D35 -> 1 | F35: 1
B36: Uncontrolled fires | C36: 5 | D36: =Data!AE74 -> 1 | E36: =D36 -> 1 | F36: 1
B37: Controlled burning | C37: 5 | D37: =Data!AE164 -> 5 | E37: ='Mitigation Data'!AE184 -> 5 | F37: 5
B38: Main Fire Capacity | C38: 5 | D38: =Data!AE166 -> 5 | E38: ='Mitigation Data'!AE191 -> 5 | F38: 5
B39: Other fire management | C39: 5 | D39: =Data!AE173 -> 5 | E39: ='Mitigation Data'!AE198 -> 5 | F39: 5
B40: Procedures | C40: 5 | D40: =Data!AE180 -> 5 | E40: ='Mitigation Data'!AE205 -> 5 | F40: 5
B41: Emergency services attendance | C41: 2 | D41: =Data!AE190 -> 1 | E41: =D41 -> 1 | F41: 1
B42: Operator training | C42: 5 | D42: =Data!AX3 -> 5 | E42: ='Mitigation Data'!AX3 -> 5 | F42: 5
B43: Authorised officers | C43: 3 | D43: =Data!AX15 -> 3 | E43: ='Mitigation Data'!AX15 -> 3 | F43: 3
B44: Regulatory enforcement activities | C44: 5 | D44: =Data!AX19 -> 5 | E44: ='Mitigation Data'!AX19 -> 5 | F44: 5
B45: Waste disposal - solid | C45: 5 | D45: =Data!AE12 -> 5 | E45: ='Mitigation Data'!AE12 -> 5 | F45: 5
B47: Waste disposal - tyres | C47: 5 | D47: =Data!AE14 -> 1 | E47: ='Mitigation Data'!AE14 -> 1 | F47: 1
B48: Wastes storage - solid | C48: 5 | D48: =Data!AI3 -> 1 | E48: ='Mitigation Data'!AI3 -> 1 | F48: =IF(E48>D48,D48,E48) -> 1
B49: Wastes storage - tyres | C49: 5 | D49: =Data!AI13 -> 1 | E49: ='Mitigation Data'!AI13 -> 1 | F49: 1
B50: Waste storage - hazardous | C50: 5 | D50: =Data!AI14 -> 1 | E50: ='Mitigation Data'!AI14 -> 1 | F50: 1
B51: Waste storage - liquid | C51: 5 | D51: =Data!AI19 -> 1 | E51: ='Mitigation Data'!AI19 -> 1 | F51: 1
B52: Landfilled wastes | C52: 5 | D52: =Data!AM9 -> 1 | E52: ='Mitigation Data'!AM9 -> 1 | F52: 1
B53: Landfilling method | C53: 5 | D53: =Data!AL10 -> 5 | E53: ='Mitigation Data'!AL10 -> 5 | F53: 5
B54: Active fill areas | C54: 5 | D54: =Data!AL17 -> 5 | E54: ='Mitigation Data'!AL17 -> 5 | F54: 5
B55: Compaction | C55: 3 | D55: =Data!AL24 -> 3 | E55: ='Mitigation Data'!AL24 -> 3 | F55: 3
B56: Covering method | C56: 5 | D56: =Data!AL29 -> 5 | E56: ='Mitigation Data'!AL29 -> 5 | F56: 5
B57: Frequency of covering | C57: 5 | D57: =Data!AL36 -> 5 | E57: ='Mitigation Data'!AL36 -> 5 | F57: 5
B58: Landfill Gas monitoring | C58: 5 | D58: =Data!Q89 -> 5 | E58: ='Mitigation Data'!Q143 -> 5 | F58: 5
B59: Product | C59: =PRODUCT(C24:C58) -> 1.005828381e+23 | D59: =PRODUCT(D24:D58) -> 2.574920654e+16 | F59: =PRODUCT(F24:F58) -> 2.574920654e+16
B60: Ln | C60: =LN(C59) -> 52.9652686 | D60: =LN(D59) -> 37.78718021 | F60: =LN(F59) -> 37.78718021
B61: Normalised | C61: =C60/C60*100 -> 100 | D61: =D60/C60*100 -> 71.34331838 | F61: =F60/C60*100 -> 71.34331838
B63: Transfer station
B64: Amount received | C64: 5 | D64: =D24 -> 1 | E64: =D64 -> 1 | F64: =IF(E64>D64,D64,E64) -> 1
B65: Site signage | C65: 5 | D65: 5 | E65: =E25 -> 5 | F65: =IF(E65>D65,D65,E65) -> 5
B66: Communication | C66: 5 | D66: 5 | E66: 5 | F66: 5
B67: Themes | C67: 5 | D67: 5 | E67: 5 | F67: 5
B68: Open to public | C68: 6 | D68: 6 | E68: 6 | F68: 6
B69: Perimeter | C69: 5 | D69: 5 | E69: 5 | F69: 5
B70: Access security | C70: 5 | D70: 5 | E70: 5 | F70: 5
B71: Additional security | C71: 5 | D71: 5 | E71: 5 | F71: 5
B72: Access control | C72: 5 | D72: 5 | E72: 5 | F72: 5
B73: Site supervision | C73: 5 | D73: 5 | E73: 5 | F73: =IF(E73>D73,D73,E73) -> 5
B74: Operators at premises | C74: 5 | D74: 5 | E74: 5 | F74: =IF(E74>D74,D74,E74) -> 5
B75: Complaints | C75: 5 | D75: 1 | E75: =E35 -> 1 | F75: =IF(E75>D75,D75,E75) -> 1
B76: Uncontrolled fires | C76: 5 | D76: 1 | E76: =E36 -> 1 | F76: =IF(E76>D76,D76,E76) -> 1
B77: Controlled burning | C77: 5 | D77: =D37 -> 5 | E77: 5 | F77: 5
B78: Main Fire Capacity | C78: 5 | D78: 5 | E78: 5 | F78: 5
B79: Other fire management | C79: 5 | D79: 5 | E79: 5 | F79: 5
B80: Procedures | C80: 5 | D80: 5 | E80: 5 | F80: 5
B81: Emergency services attendance | C81: 2 | D81: 1 | E81: 1 | F81: 1
B82: Operator training | C82: 5 | D82: 5 | E82: 5 | F82: 5
B83: Authorised officers | C83: 3 | D83: 3 | E83: 3 | F83: 3
B84: Regulatory enforcement activities | C84: 5 | D84: 5 | E84: 5 | F84: 5
B85: Wastes storage - solid | C85: 5 | D85: =D48 -> 1 | E85: 1 | F85: 1
B86: Wastes storage - tyres | C86: 5 | D86: 1 | E86: 1 | F86: 1
B87: Waste storage - hazardous | C87: 5 | D87: 1 | E87: 1 | F87: 1
B88: Waste storage - liquid | C88: 5 | D88: 1 | E88: 1 | F88: 1
B89: Method | C89: 4 | D89: =Data!AQ5 -> 4 | E89: ='Mitigation Data'!AQ5 -> 4 | F89: 4
C90: =PRODUCT(C64:C89) -> 3.433227539e+17 | D90: =PRODUCT(D64:D89) -> 2197265625000 | F90: =PRODUCT(F64:F89) -> 2197265625000
B91: Ln | C91: =LN(C90) -> 40.37744737 | D91: =LN(D90) -> 28.41823481 | F91: =LN(F90) -> 28.41823481
B92: Normalised | C92: =C91/C91*100 -> 100 | D92: =D91/C91*100 -> 70.38145463 | F92: =F91/C91*100 -> 70.38145463
B94: Closed landfill | F94: =IF(E94>D94,D94,E94) -> 0
B95: Years in Operation | C95: 5 | D95: =Data!AU3 -> 5 | E95: =D95 -> 5 | F95: 5
B96: When Closed | C96: 5 | D96: =LOOKUP(Data!AU10,A124:A128,B124:B128) -> 1 | E96: =D96 -> 1 | F96: 1
B97: Amount received | C97: 5 | D97: =Data!AU17 -> 5 | E97: =D97 -> 5 | F97: 5
B98: Disposal method | C98: 5 | D98: =Data!AU24 -> 5 | E98: =D98 -> 5 | F98: 5
B99: How Capped | C99: 5 | D99: =Data!AU31 -> 5 | E99: ='Mitigation Data'!AU31 -> 5 | F99: 5
B100: Landuse | C100: 7 | D100: =Data!AU45 -> 7 | E100: ='Mitigation Data'!AU45 -> 7 | F100: 7
B101: Structures | C101: 2 | D101: =Data!AU54 -> 2 | E101: ='Mitigation Data'!AU54 -> 2 | F101: 2
B102: Organic Layer | C102: 2 | D102: =Data!AU56 -> 2 | E102: ='Mitigation Data'!AU56 -> 2 | F102: 2
B103: Revegetation | C103: 5 | D103: =Data!AU58 -> 5 | E103: ='Mitigation Data'!AU58 -> 5 | F103: 5
B104: Monitoring | C104: 5 | D104: =Data!AU65 -> 5 | E104: ='Mitigation Data'!AU65 -> 5 | F104: 5
B105: Landfill Gas monitoring | C105: 5 | D105: =D58 -> 5 | E105: =E58 -> 5 | F105: =IF(E105>D105,D105,E105) -> 5
B106: Closure plan | C106: 3 | D106: =Data!$AU$95 -> 2 | E106: ='Mitigation Data'!$AU$145 -> 2 | F106: =IF(E106>D106,D106,E106) -> 2
C107: =PRODUCT(C95:C105) -> 10937500 | D107: =PRODUCT(D95:D105) -> 2187500 | F107: =PRODUCT(F95:F105) -> 2187500
B108: Ln | C108: =LN(C107) -> 16.20770781 | D108: =LN(D107) -> 14.5982699 | F108: =LN(F107) -> 14.5982699
B109: Normalised | C109: =C108/C108*100 -> 100 | D109: =D108/C108*100 -> 90.06992271 | F109: =F108/C108*100 -> 90.06992271
A111: Normaliser | D111: Pre | F111: Post
A112: ='Groundwater A'!A138 -> 160.9437912 | C112: Active | D112: =E112/$A$112*100 -> 15.05065517 | E112: =(D21+D61)*$C$120/2*L117 -> 24.22309504 | F112: =G112/$A$112*100 -> 15.05065517 | G112: =(F21+F61)*$C$120/2*L117 -> 24.22309504 | I112: Indicator | J112: 1 | K112: 1.5 | L112: =LN(K112) -> 0.4054651081
C113: TS | D113: 8.957696508 | E113: =(D21+D92)*$C$121/2*L117 -> 14.41685637 | F113: 8.957696508 | G113: =(F21+F92)*$C$121/2*L117 -> 14.41685637 | I113: =IF(MAX(Data!L39,D12,D35,D75,G11)>5,5,MAX(Data!L39,D12,D35,D75,G11)) -> 1 | J113: 2 | K113: 2 | L113: =LN(K113) -> 0.6931471806
C114: TS on closed | D114: 10.51005425 | E114: =(D21+D92+D109)*$C$121/3*L117 -> 16.91527977 | F114: 10.51005425 | G114: =(F21+F92+F109)*$C$121/3*L117 -> 16.91527977 | J114: 3 | K114: 3 | L114: =LN(K114) -> 1.098612289
C115: Closed | D115: 5.222864544 | E115: =(D21+D109)*$C$122/2*L117 -> 8.405876209 | F115: 5.222864544 | G115: =(F21+F109)*$C$122/2*L117 -> 8.405876209 | J115: 4 | K115: 4 | L115: =LN(K115) -> 1.386294361
C116: Active to TS | D116: 15.05065517 | E116: =E112 -> 24.22309504 | F116: 10.51005425 | G116: =G114 -> 16.91527977 | J116: 5 | K116: 5 | L116: =LN(K116) -> 1.609437912
C117: Active to closed | D117: 15.05065517 | E117: =E112 -> 24.22309504 | F117: 5.222864544 | G117: =G115 -> 8.405876209 | L117: =LOOKUP(I113,J112:J116,L112:L116) -> 0.4054651081
B119: Fire Factors
B120: Active landfill | C120: 1
B121: Transfer Station | C121: 0.6
B122: Closed landfill | C122: 0.3
A124: 1 | B124: 5
A125: 2 | B125: 4
A126: 3 | B126: 3
A127: 4 | B127: 2
A128: 5 | B128: 1
A138: =(C77+C31)*L142/2 -> 0

Sheet CandH A (hidden)
B2: CONSERVATION AND HERITAGE | D2: Existing | E2: Mitigation sheet | F2: Mitigation
C4: Max. | D4: =Data!B13 -> Active landfill | F4: ='Mitigation Data'!B13 -> Mitigation of existing landfill
B5: Common Environmental & Operational
B6: Area | C6: 5 | D6: =Data!C22 -> 5 | E6: =D6 -> 5 | F6: =IF(E6>D6,D6,E6) -> 5
B7: MLA | C7: 5 | D7: =Data!C47 -> 1 | E7: =D7 -> 1 | F7: =IF(E7>D7,D7,E7) -> 1
B9: >5,000 | C9: 5 | D9: =Data!C49 -> 4 | E9: 4 | F9: 4
B10: RRA | C10: 5 | D10: =Data!C50 -> 1 | E10: =D10 -> 1 | F10: =IF(E10>D10,D10,E10) -> 1
B11: Access to premises | C11: 5 | D11: =Data!C51 -> 1 | E11: 1 | F11: 1
B12: Wind speed & direction | C12: 5 | D12: =Data!G56 -> 1 | E12: 1 | F12: 1 | G12: Max | H12: =MAX(D17:D20) -> 2
B13: Landuse (with wind direction) | C13: 5 | D13: =Data!K39 -> 1 | E13: 1 | F13: 1
B14: Fire risk (wind & veg) | C14: 8 | D14: =Data!L138 -> 1 | E14: 1 | F14: 1 | G14: 1 | H14: 1
B15: Distance to watercourse | C15: 5 | D15: =Data!W58 -> 2 | E15: =D15 -> 2 | F15: 2 | G15: 2 | H15: 3
B16: Groundwater vulnerability | C16: 6 | D16: =Data!W65 -> 2 | E16: =D16 -> 2 | F16: 2 | G16: 3 | H16: 4
B17: ACH | C17: 3 | D17: =Data!W97 -> 2 | E17: =IF('Mitigation Data'!X97="",'CandH A'!D17,'Mitigation Data'!Y97) -> 2 | F17: 2 | H17: =LOOKUP(H12,G14:G16,H14:H16) -> 3
B18: Threatened species - Fauna | C18: 3 | D18: =Data!W98 -> 2 | E18: =IF('Mitigation Data'!X101="",'CandH A'!D18,'Mitigation Data'!Y101) -> 2 | F18: 2
B21: National Park / Reserve | C21: 5 | D21: =Data!W105 -> 1 | E21: =D21 -> 1 | F21: 1
B22: Conservation / protection zoned | C22: 5 | D22: =Data!W106 -> 1 | E22: 1 | F22: 1
B25: Bush Fire Prone | C25: 5 | D25: =Data!W127 -> 1 | E25: 1 | F25: 1
B29: Site Selection | C29: 3 | D29: =Data!S3 -> 2 | E29: 2 | F29: 2
B30: EIS / SEE / REF | C30: 3 | D30: =Data!S4 -> 2 | E30: 2 | F30: 2
B31: Environmental Audit | C31: 3 | D31: =Data!S5 -> 2 | E31: ='Mitigation Data'!S5 -> 2 | F31: 2
B32: Environmental Investigation | C32: 3 | D32: =Data!S6 -> 2 | E32: ='Mitigation Data'!S6 -> 2 | F32: 2
B33: EMP | C33: 3 | D33: =Data!S7 -> 2 | E33: ='Mitigation Data'!S7 -> 2 | F33: 2
B35: Product | C35: =PRODUCT(C6:C34) -> 5125781250000 | D35: =PRODUCT(D6:D34) -> 10240 | F35: =PRODUCT(F6:F34) -> 10240
B36: Ln | C36: =LN(C35) -> 29.26530407 | D36: =LN(D35) -> 9.234056899 | F36: =LN(F35) -> 9.234056899
B37: Normalised | C37: =C36/C36*100 -> 100 | D37: =D36/C36*100 -> 31.5529163 | F37: =F36/C36*100 -> 31.5529163
B39: Active landfill
B40: Amount received | C40: 5 | D40: =Data!C15 -> 1 | E40: =D40 -> 1 | F40: =IF(E40>D40,D40,E40) -> 1 | G40: =D40-E40 -> 0
B41: Direction to facility | C41: 2 | D41: =Data!AA3 -> 1 | E41: =D41 -> 1 | F41: 1 | G41: =D41-E41 -> 0
B42: Site signage | C42: 5 | D42: =Data!AA5 -> 5 | E42: ='Mitigation Data'!AA5 -> 5 | F42: 5 | G42: 0
B43: Communication | C43: 5 | D43: =Data!AA17 -> 5 | E43: ='Mitigation Data'!AA17 -> 5 | F43: 5 | G43: 0
B44: Themes | C44: 5 | D44: =Data!AA24 -> 5 | E44: ='Mitigation Data'!AA24 -> 5 | F44: 5 | G44: 0
B45: Open to public | C45: 6 | D45: =Data!AE28 -> 6 | E45: ='Mitigation Data'!AE28 -> 6 | F45: 6 | G45: 0
B46: Perimeter | C46: 5 | D46: =Data!AE36 -> 5 | E46: ='Mitigation Data'!AE36 -> 5 | F46: 5 | G46: 0
B47: Access security | C47: 5 | D47: =Data!AE43 -> 5 | E47: ='Mitigation Data'!AE43 -> 5 | F47: 5 | G47: 0
B48: Additional security | C48: 5 | D48: =Data!AE50 -> 5 | E48: ='Mitigation Data'!AE50 -> 5 | F48: 5 | G48: 0
B49: Access control | C49: 5 | D49: =Data!AE56 -> 5 | E49: ='Mitigation Data'!AE56 -> 5 | F49: 5 | G49: 0
B50: Site supervision | C50: 5 | D50: =Data!AE63 -> 5 | E50: ='Mitigation Data'!AE63 -> 5 | F50: 5 | G50: 0
B51: Operators at premises | C51: 5 | D51: =Data!AE70 -> 5 | E51: ='Mitigation Data'!AE70 -> 5 | F51: =IF(E51>D51,D51,E51) -> 5 | G51: 0
B52: Uncontrolled fires | C52: 5 | D52: =Data!AE74 -> 1 | E52: =D52 -> 1 | F52: 1 | G52: 0
B53: Unlawful waste disposal (on premises) | C53: 5 | D53: =Data!AE76 -> 1 | E53: =D53 -> 1 | F53: 1 | G53: 0
B54: Unlawful waste disposal (off premises) | C54: 5 | D54: =Data!AE78 -> 1 | E54: =D54 -> 1 | F54: 1 | G54: 0
B55: Stormwater diversion | C55: 5 | D55: =Data!AE80 -> 5 | E55: ='Mitigation Data'!AE85 -> 5 | F55: 5 | G55: 0
B56: Stormwater - undisturbed | C56: 5 | D56: =Data!AE85 -> 5 | E56: ='Mitigation Data'!AE90 -> 5 | F56: 5 | G56: 0
B57: Stormwater - disturbed | C57: 5 | D57: =Data!AE87 -> 5 | E57: ='Mitigation Data'!AE97 -> 5 | F57: 5 | G57: 0
B58: Stormwater - waste | C58: 5 | D58: =Data!AE89 -> 5 | E58: ='Mitigation Data'!AE104 -> 5 | F58: 5 | G58: 0
B59: Pest Management | C59: 5 | D59: =Data!AE156 -> 5 | E59: ='Mitigation Data'!AE176 -> 5 | F59: 5 | G59: 0
B60: Controlled burning | C60: 5 | D60: =Data!AE164 -> 5 | E60: ='Mitigation Data'!AE184 -> 5 | F60: 5 | G60: 0
B61: Procedures | C61: 5 | D61: =Data!AE180 -> 5 | E61: ='Mitigation Data'!AE205 -> 5 | F61: 5 | G61: 0
B62: Operator training | C62: 5 | D62: =Data!AX3 -> 5 | E62: ='Mitigation Data'!AX3 -> 5 | F62: 5 | G62: 0
B63: Authorised officers | C63: 3 | D63: =Data!AX15 -> 3 | E63: ='Mitigation Data'!AX15 -> 3 | F63: 3 | G63: 0
B64: Regulatory enforcement activities | C64: 5 | D64: =Data!AX19 -> 5 | E64: ='Mitigation Data'!AX19 -> 5 | F64: 5 | G64: 0
B65: Waste disposal - solid | C65: 5 | D65: =Data!AE12 -> 5 | E65: ='Mitigation Data'!AE12 -> 5 | F65: 5 | G65: 0
B66: Waste disposal - liquid | C66: 5 | D66: =Data!AE27 -> 1 | E66: ='Mitigation Data'!AE27 -> 1 | F66: 1 | G66: 0
B67: Waste disposal - tyres | C67: 5 | D67: =Data!AE14 -> 1 | E67: ='Mitigation Data'!AE14 -> 1 | F67: 1 | G67: 0
B68: Wastes storage - solid | C68: 5 | D68: =Data!AI3 -> 1 | E68: ='Mitigation Data'!AI3 -> 1 | F68: =IF(E68>D68,D68,E68) -> 1 | G68: 0
B69: Wastes storage - tyres | C69: 5 | D69: =Data!AI13 -> 1 | E69: ='Mitigation Data'!AI13 -> 1 | F69: 1 | G69: 0
B70: Waste storage - hazardous | C70: 5 | D70: =Data!AI14 -> 1 | E70: ='Mitigation Data'!AI14 -> 1 | F70: 1 | G70: 0
B71: Waste storage - liquid | C71: 5 | D71: =Data!AI19 -> 1 | E71: ='Mitigation Data'!AI19 -> 1 | F71: 1 | G71: 0
B72: Landfilled wastes | C72: 5 | D72: =Data!AM9 -> 1 | E72: ='Mitigation Data'!AM9 -> 1 | F72: 1 | G72: 0
B73: Active fill areas | C73: 5 | D73: =Data!AL17 -> 5 | E73: ='Mitigation Data'!AL17 -> 5 | F73: 5 | G73: 0
B74: Compaction | C74: 3 | D74: =Data!AL24 -> 3 | E74: ='Mitigation Data'!AL24 -> 3 | F74: 3 | G74: 0
B75: Covering method | C75: 5 | D75: =Data!AL29 -> 5 | E75: ='Mitigation Data'!AL29 -> 5 | F75: 5 | G75: 0
B76: Frequency of covering | C76: 5 | D76: =Data!AL36 -> 5 | E76: ='Mitigation Data'!AL36 -> 5 | F76: 5 | G76: 0
B77: Closure method | C77: 5 | D77: =Data!AL52 -> 5 | E77: ='Mitigation Data'!AL52 -> 5 | F77: 5 | G77: 0
B78: Leachate management (active) | C78: 5 | D78: =Data!AJ61 -> 5 | E78: ='Mitigation Data'!AJ61 -> 5 | F78: 5 | G78: 0
B79: Product | C79: =PRODUCT(C40:C78) -> 3.143213689e+26 | D79: =PRODUCT(D40:D78) -> 3.218650818e+18 | F79: =PRODUCT(F40:F78) -> 3.218650818e+18
B80: Ln | C80: =LN(C79) -> 61.01245816 | D80: =LN(D79) -> 42.61549394 | F80: =LN(F79) -> 42.61549394
B81: Normalised | C81: =C80/C80*100 -> 100 | D81: =D80/C80*100 -> 69.84720044 | F81: =F80/C80*100 -> 69.84720044
B83: Transfer station
B84: Amount received | C84: 5 | D84: =D40 -> 1 | E84: =D84 -> 1 | F84: =IF(E84>D84,D84,E84) -> 1
B85: Direction to facility | C85: 2 | D85: 1 | E85: =D85 -> 1 | F85: =IF(E85>D85,D85,E85) -> 1
B86: Site signage | C86: 5 | D86: 5 | E86: =E42 -> 5 | F86: 5
B87: Communication | C87: 5 | D87: 5 | E87: 5 | F87: 5
B88: Themes | C88: 5 | D88: 5 | E88: 5 | F88: 5
B89: Open to public | C89: 6 | D89: 6 | E89: 6 | F89: 6
B90: Perimeter | C90: 5 | D90: 5 | E90: 5 | F90: 5
B91: Access security | C91: 5 | D91: 5 | E91: 5 | F91: 5
B92: Additional security | C92: 5 | D92: 5 | E92: 5 | F92: 5
B93: Access control | C93: 5 | D93: 5 | E93: 5 | F93: 5
B94: Site supervision | C94: 5 | D94: 5 | E94: 5 | F94: =IF(E94>D94,D94,E94) -> 5
B95: Operators at premises | C95: 5 | D95: 5 | E95: 5 | F95: =IF(E95>D95,D95,E95) -> 5
B96: Uncontrolled fires | C96: 5 | D96: 1 | E96: 1 | F96: =IF(E96>D96,D96,E96) -> 1
B97: Unlawful waste disposal (on premises) | C97: 5 | D97: 1 | E97: 1 | F97: 1
B98: Unlawful waste disposal (off premises) | C98: 5 | D98: 1 | E98: 1 | F98: 1
B99: Stormwater diversion | C99: 5 | D99: 5 | E99: 5 | F99: 5
B100: Stormwater - undisturbed | C100: 5 | D100: 5 | E100: 5 | F100: 5
B101: Stormwater - disturbed | C101: 5 | D101: 5 | E101: 5 | F101: 5
B102: Stormwater - waste | C102: 5 | D102: 5 | E102: 5 | F102: 5
B103: Pest Management | C103: 5 | D103: 5 | E103: 5 | F103: 5
B104: Controlled burning | C104: 5 | D104: 5 | E104: 5 | F104: 5
B105: Procedures | C105: 5 | D105: 5 | E105: 5 | F105: 5
B106: Operator training | C106: 5 | D106: 5 | E106: 5 | F106: 5
B107: Authorised officers | C107: 3 | D107: 3 | E107: 3 | F107: 3
B108: Regulatory enforcement activities | C108: 5 | D108: 5 | E108: 5 | F108: 5
B109: Wastes storage - solid | C109: 5 | D109: =D68 -> 1 | E109: 1 | F109: 1
B110: Wastes storage - tyres | C110: 5 | D110: 1 | E110: 1 | F110: 1
B111: Waste storage - hazardous | C111: 5 | D111: 1 | E111: 1 | F111: 1
B112: Waste storage - liquid | C112: 5 | D112: 1 | E112: 1 | F112: 1
B113: Permanent | C113: 2 | D113: =Data!AQ3 -> 2 | E113: ='Mitigation Data'!AQ3 -> 2 | F113: 2
B114: Method | C114: 4 | D114: =Data!AQ5 -> 4 | E114: ='Mitigation Data'!AQ5 -> 4 | F114: 4
B115: Lids | C115: 2 | D115: =Data!AQ17 -> 2 | E115: ='Mitigation Data'!AQ17 -> 2 | F115: 2
C116: =PRODUCT(C84:C115) -> 8.583068848e+20 | D116: =PRODUCT(D84:D115) -> 1098632812500000 | F116: =PRODUCT(F84:F115) -> 1098632812500000
B117: Ln | C117: =LN(C116) -> 48.20149338 | D117: =LN(D116) -> 34.6328429 | F117: =LN(F116) -> 34.6328429
B118: Normalised | C118: =C117/C117*100 -> 100 | D118: =D117/C117*100 -> 71.85014503 | F118: =F117/C117*100 -> 71.85014503
B120: Closed landfill | F120: =IF(E120>D120,D120,E120) -> 0
B121: Years in Operation | C121: 5 | D121: =Data!AU3 -> 5 | E121: =D121 -> 5 | F121: 5
B122: When Closed | C122: 5 | D122: =LOOKUP(Data!AU10,A148:A152,B148:B152) -> 1 | E122: =D122 -> 1 | F122: 1
B123: Amount received | C123: 5 | D123: =Data!AU17 -> 5 | E123: =D123 -> 5 | F123: 5
B124: How Capped | C124: 5 | D124: =Data!AU31 -> 5 | E124: ='Mitigation Data'!AU31 -> 5 | F124: 5
B125: Landuse | C125: 7 | D125: =LOOKUP(Data!AU45,A154:A160,B154:B160) -> 1 | E125: =LOOKUP('Mitigation Data'!AU45,A154:A160,B154:B160) -> 1 | F125: 1
B126: Revegetation | C126: 5 | D126: =Data!AU58 -> 5 | E126: ='Mitigation Data'!AU58 -> 5 | F126: 5
B127: Monitoring | C127: 5 | D127: =Data!AU65 -> 5 | E127: ='Mitigation Data'!AU65 -> 5 | F127: 5
B128: Runoff | C128: 5 | D128: =Data!AU74 -> 5 | E128: ='Mitigation Data'!AU74 -> 5 | F128: 5
B129: Leachate management (closed) | C129: 5 | D129: =Data!AU81 -> 5 | E129: ='Mitigation Data'!AU81 -> 5 | F129: 5
B130: Closure plan | C130: 3 | D130: =Data!$AU$95 -> 2 | E130: ='Mitigation Data'!$AU$145 -> 2 | F130: =IF(E130>D130,D130,E130) -> 2
C131: =PRODUCT(C121:C129) -> 2734375 | D131: =PRODUCT(D121:D129) -> 78125 | F131: =PRODUCT(F121:F129) -> 78125
B132: Ln | C132: =LN(C131) -> 14.82141345 | D132: =LN(D131) -> 11.26606539 | F132: =LN(F131) -> 11.26606539
B133: Normalised | C133: =C132/C132*100 -> 100 | D133: =D132/C132*100 -> 76.01208499 | F133: =F132/C132*100 -> 76.01208499
A135: Normaliser | D135: Pre | F135: Post
A136: ='Groundwater A'!A138 -> 160.9437912 | C136: Active | D136: =E136/$A$136*100 -> 34.6081739 | E136: =(D37+D81)*$C$144/2*L141 -> 55.69970716 | F136: =G136/$A$136*100 -> 34.6081739 | G136: =(F37+F81)*$C$144/2*L141 -> 55.69970716 | I136: Indicator | J136: 1 | K136: 1.5 | L136: =LN(K136) -> 0.4054651081
C137: TS | D137: 24.70424957 | E137: =(D37+D118)*$C$145/2*L141 -> 39.75995585 | F137: 24.70424957 | G137: =(F37+F118)*$C$145/2*L141 -> 39.75995585 | I137: =IF(MAX(D21:D22,D24,D26:D28,H17)>5,5,MAX(D21:D22,D24,D26:D28,H17)) -> 3 | J137: 2 | K137: 2 | L137: =LN(K137) -> 0.6931471806
C138: TS on closed | D138: 28.57630773 | E138: =(D37+D118+D133)*$C$145/3*L141 -> 45.99179306 | F138: 28.57630773 | G138: =(F37+F118+F133)*$C$145/3*L141 -> 45.99179306 | J138: 3 | K138: 3 | L138: =LN(K138) -> 1.098612289
C139: Closed | D139: 18.35613405 | E139: =(D37+D133)*$C$146/2*L141 -> 29.54305806 | F139: 18.35613405 | G139: =(F37+F133)*$C$146/2*L141 -> 29.54305806 | J139: 4 | K139: 4 | L139: =LN(K139) -> 1.386294361
C140: Active to TS | D140: 34.6081739 | E140: =E136 -> 55.69970716 | F140: 28.57630773 | G140: =G138 -> 45.99179306 | J140: 5 | K140: 5 | L140: =LN(K140) -> 1.609437912
C141: Active to closed | D141: 34.6081739 | E141: =E136 -> 55.69970716 | F141: 18.35613405 | G141: =G139 -> 29.54305806 | L141: =LOOKUP(I137,J136:J140,L136:L140) -> 1.098612289
B143: Conservation and Heritage Factors
B144: Active landfill | C144: 1
B145: Transfer Station | C145: 0.7
B146: Closed landfill | C146: 0.5
A148: 1 | B148: 5
A149: 2 | B149: 4
A150: 3 | B150: 3
A151: 4 | B151: 2
A152: 5 | B152: 1
A154: 1 | B154: 7
A155: 2 | B155: 6
A156: 3 | B156: 5
A157: 4 | B157: 3
A158: 5 | B158: 2
A159: 6 | B159: 4
A160: 7 | B160: 1

Sheet Greenhouse A (hidden)
B2: GREENHOUSE GAS | D2: Existing | E2: Mitigation sheet | F2: Mitigation
C4: Max. | D4: =Data!B13 -> Active landfill | F4: ='Mitigation Data'!B13 -> Mitigation of existing landfill
B5: Common Environmental & Operational
B6: Rainfall | C6: 5 | D6: =Data!G3 -> 1 | E6: =D6 -> 1 | F6: =IF(E6>D6,D6,E6) -> 1
B7: No. rain days | C7: 5 | D7: =Data!G10 -> 1 | E7: 1 | F7: =IF(E7>D7,D7,E7) -> 1
B8: Evaporation | C8: 5 | D8: =Data!G17 -> 1 | E8: 1 | F8: =IF(E8>D8,D8,E8) -> 1
B9: Landfill gas monitoring extent | C9: 3 | D9: =Data!S90 -> 3 | E9: 3 | F9: =IF(E9>D9,D9,E9) -> 3
B10: Landfill gas monitoring frequency | C10: 5 | D10: =Data!S94 -> 1 | E10: 1 | F10: 1
B11: Landfill gas measued concentrations | C11: 3 | D11: =Data!S95 -> 1 | E11: 1 | F11: 1
B12: Soil type subsurface | C12: 5 | D12: =Data!W4 -> 1 | E12: 1 | F12: 1
B13: Product | C13: =PRODUCT(C6:C12) -> 28125 | D13: =PRODUCT(D6:D12) -> 3 | F13: =PRODUCT(F6:F12) -> 3
B14: Ln | C14: =LN(C13) -> 10.24441414 | D14: =LN(D13) -> 1.098612289 | F14: =LN(F13) -> 1.098612289
B15: Normalised | C15: =C14/C14*100 -> 100 | D15: =D14/C14*100 -> 10.72401285 | F15: =F14/C14*100 -> 10.72401285
B17: Active landfill
B18: Age of facility | C18: 5 | D18: =Data!C29 -> 5 | E18: =D18 -> 5 | F18: =IF(E18>D18,D18,E18) -> 5
B19: Amount received | C19: 5 | D19: =Data!C15 -> 1 | E19: =D19 -> 1 | F19: =IF(E19>D19,D19,E19) -> 1
B20: Site signage | C20: 5 | D20: =Data!AA5 -> 5 | E20: ='Mitigation Data'!AA5 -> 5 | F20: 5
B21: Themes | C21: 5 | D21: =Data!AA17 -> 5 | E21: ='Mitigation Data'!AA17 -> 5 | F21: 5
B22: Waste disposal | C22: 5 | D22: =Data!AB12 -> 1 | E22: ='Mitigation Data'!AA24 -> 5 | F22: 1
B23: Waste storage | C23: 2 | D23: =Data!AC12 -> 1 | E23: ='Mitigation Data'!AE28 -> 6 | F23: 1
B24: Stormwater diversion | C24: 5 | D24: =Data!AE80 -> 5 | E24: =D24 -> 5 | F24: 5
B25: FOGO service | C25: 5 | D25: =Data!AF150 -> 5 | E25: ='Mitigation Data'!AF170 -> 5 | F25: 5
B26: Animal Carcasses | C26: 5 | D26: =Data!AN6 -> 1 | E26: ='Mitigation Data'!AN6 -> 1 | F26: 1
B27: Biosolids | C27: 5 | D27: =Data!AN7 -> 1 | E27: ='Mitigation Data'!AN7 -> 1 | F27: 1
B28: Number of active areas | C28: 5 | D28: =Data!AL17 -> 5 | E28: ='Mitigation Data'!AL17 -> 5 | F28: 5
B29: Size of active area | C29: 6 | D29: =Data!AL68 -> 2 | E29: ='Mitigation Data'!AL68 -> 2 | F29: 2
B30: Type of cover | C30: 5 | D30: =Data!AL29 -> 5 | E30: ='Mitigation Data'!AL29 -> 5 | F30: 5
B31: Frequency of covering | C31: 5 | D31: =Data!AL36 -> 5 | E31: ='Mitigation Data'!AL36 -> 5 | F31: 5
B32: Leachate capture | C32: 2 | D32: =Data!AL59 -> 2 | E32: ='Mitigation Data'!AL59 -> 2 | F32: 2
B33: Landfill gas management | C33: 5 | D33: =Data!AL76 -> 2 | E33: ='Mitigation Data'!AL76 -> 2 | F33: 2
B34: Product | C34: =PRODUCT(C19:C33) -> 5859375000 | D34: =PRODUCT(D19:D33) -> 625000 | F34: =PRODUCT(F19:F33) -> 625000
B35: Ln | C35: =LN(C34) -> 22.49130878 | D35: =LN(D34) -> 13.34550693 | F35: =LN(F34) -> 13.34550693
B36: Normalised | C36: =C35/C35*100 -> 100 | D36: =D35/C35*100 -> 59.33628434 | F36: =F35/C35*100 -> 59.33628434
B38: Transfer station
B39: Amount received | C39: 5 | D39: =Data!C15 -> 1 | E39: =D39 -> 1 | F39: =IF(E39>D39,D39,E39) -> 1
B40: Site signage | C40: 5 | D40: =Data!AA5 -> 5 | E40: ='Mitigation Data'!AA5 -> 5 | F40: =IF(E40>D40,D40,E40) -> 5
B41: Themes | C41: 5 | D41: =Data!AA24 -> 5 | E41: ='Mitigation Data'!AA17 -> 5 | F41: 5
B42: Waste storage | C42: 2 | D42: =Data!AC12 -> 1 | E42: ='Mitigation Data'!AC12 -> 1 | F42: 1
B43: Stormwater diversion | C43: 5 | D43: =Data!AE80 -> 5 | E43: ='Mitigation Data'!AE85 -> 5 | F43: 5
B44: FOGO service | C44: 5 | D44: =Data!AF150 -> 5 | E44: ='Mitigation Data'!AF170 -> 5 | F44: 5
B45: Under cover | C45: 2 | D45: =Data!AQ15 -> 2 | E45: ='Mitigation Data'!AQ15 -> 2 | F45: =IF(E45>D45,D45,E45) -> 2
C46: =PRODUCT(C39:C45) -> 12500 | D46: =PRODUCT(D39:D45) -> 1250 | F46: =PRODUCT(F39:F45) -> 1250
B47: Ln | C47: =LN(C46) -> 9.433483923 | D47: =LN(D46) -> 7.13089883 | F47: =LN(F46) -> 7.13089883
B48: Normalised | C48: =C47/C47*100 -> 100 | D48: =D47/C47*100 -> 75.5913604 | F48: =F47/C47*100 -> 75.5913604
B50: Closed landfill | F50: =IF(E50>D50,D50,E50) -> 0
B51: Years in Operation | C51: 5 | D51: =Data!AU3 -> 5 | E51: ='Mitigation Data'!AU3 -> 5 | F51: 5
B52: When Closed | C52: 5 | D52: =LOOKUP(Data!AU10,A78:A82,B78:B82) -> 1 | E52: =LOOKUP(Data!AU10,A78:A82,B78:B82) -> 1 | F52: 1
B53: Amount received in last year | C53: 5 | D53: =Data!AU17 -> 5 | E53: ='Mitigation Data'!AU17 -> 5 | F53: 5
B54: How capped | C54: 5 | D54: =Data!AU31 -> 5 | E54: ='Mitigation Data'!AU31 -> 5 | F54: 5
B55: Monitoring repair of cap | C55: 5 | D55: =Data!AU73 -> 5 | E55: ='Mitigation Data'!AU73 -> 5 | F55: 5
B56: Leachate management | C56: 5 | D56: =Data!AU81 -> 5 | E56: ='Mitigation Data'!AU81 -> 5 | F56: 5
B57: Organic layer | C57: 2 | D57: =Data!AU56 -> 2 | E57: ='Mitigation Data'!AU56 -> 2 | F57: 2
B58: Revegetation | C58: 5 | D58: =Data!AU58 -> 5 | E58: ='Mitigation Data'!AU58 -> 5 | F58: 5
B59: Management of landfill gas | C59: 5 | D59: =Data!AU88 -> 5 | E59: ='Mitigation Data'!AU138 -> 5 | F59: 5
B60: Closure plan | C60: 3 | D60: =Data!$AU$95 -> 2 | E60: ='Mitigation Data'!$AU$145 -> 2 | F60: =IF(E60>D60,D60,E60) -> 2
C61: =PRODUCT(C51:C59) -> 781250 | D61: =PRODUCT(D51:D59) -> 156250 | F61: =PRODUCT(F51:F59) -> 156250
B62: Ln | C62: =LN(C61) -> 13.56865048 | D62: =LN(D61) -> 11.95921257 | F62: =LN(F61) -> 11.95921257
B63: Normalised | C63: =C62/C62*100 -> 100 | D63: =D62/C62*100 -> 88.13855575 | F63: =F62/C62*100 -> 88.13855575
A65: Normaliser | D65: Pre | F65: Post
A66: ='Groundwater A'!A138 -> 160.9437912 | C66: Active | D66: =E66/$A$66*100 -> 8.825132599 | E66: =(D15+D36)*$C$74/2*L71 -> 14.20350299 | F66: =G66/$A$66*100 -> 8.825132599 | G66: =(F15+F36)*$C$74/2*L71 -> 14.20350299 | I66: Indicator | J66: 1 | K66: 1.5 | L66: =LN(K66) -> 0.4054651081
C67: TS | D67: 1.08727003 | E67: =(D15+D48)*$C$75/2*L71 -> 1.749893607 | F67: 1.08727003 | G67: =(F15+F48)*$C$75/2*L71 -> 1.749893607 | I67: =1 -> 1 | J67: 2 | K67: 2 | L67: =LN(K67) -> 0.6931471806
C68: TS on closed | D68: 8.717243837 | E68: =MAX(E67,E69) -> 14.02986272 | F68: 8.717243837 | G68: =MAX(G67,G69) -> 14.02986272 | J68: 3 | K68: 3 | L68: =LN(K68) -> 1.098612289
C69: Closed | D69: 8.717243837 | E69: =(D15+D63)*$C$76/2*L71 -> 14.02986272 | F69: 8.717243837 | G69: =(F15+F63)*$C$76/2*L71 -> 14.02986272 | J69: 4 | K69: 4 | L69: =LN(K69) -> 1.386294361
C70: Active to TS | D70: 8.825132599 | E70: =E66 -> 14.20350299 | F70: 8.717243837 | G70: =G68 -> 14.02986272 | J70: 5 | K70: 5 | L70: =LN(K70) -> 1.609437912
C71: Active to closed | D71: 8.825132599 | E71: =E66 -> 14.20350299 | F71: 8.717243837 | G71: =G69 -> 14.02986272 | L71: =LOOKUP(I67,J66:J70,L66:L70) -> 0.4054651081
B73: Greenhouse gas factors
B74: Active landfill | C74: 1
B75: Transfer Station | C75: 0.1
B76: Closed landfill | C76: 0.7
A78: 1 | B78: 5
A79: 2 | B79: 4
A80: 3 | B80: 3
A81: 4 | B81: 2
A82: 5 | B82: 1
A84: 1 | B84: 7
A85: 2 | B85: 6
A86: 3 | B86: 5
A87: 4 | B87: 3
A88: 5 | B88: 2
A89: 6 | B89: 4
A90: 7 | B90: 1
A139: =(C79+C32)*L143/2 -> 0

Sheet Data (hidden)
A1: Premises Details | E1: Meteorology | I1: Surrounding Landuse | M1: Topography | Q1: Environmental I & M | U1: Surrounding Environment | Z1: Community I, E & A | AC1: Common Operational | AJ1: Landfill Specific | AO1: Transfer Station Specific | AS1: Closed Landfill | AV1: Staff Training & Regulation
B3: Operator | F3: Rainfall | G3: 1 | J3: Landuse | N3: Landform | O3: 5 | R3: Site Selection | S3: 2 | V3: Soils - surface | W3: 2 | Z3: Direction to facility | AA3: 1 | AD3: Wastes - solid | AE3: D | AF3: S | AG3: Qty | AH3: Time | AI3: =ROUND(MAX(AI4:AI11),0) -> 1 | AK3: Landfilled wastes | AL3: D | AM3: Qty | AP3: Permanent | AQ3: 2 | AT3: Years in Operation | AU3: 5 | AW3: Operator training | AX3: =IF(AX14=0,5,6-AX14) -> 5
B4: =Premises!E8 -> 0 | E4: 1 | F4: < 400 | I4: 1 | J4: Industrial | M4: 1 | N4: Mid Slope | R4: EIS / SEE / REF | S4: 2 | V4: Soils - sub-surface | W4: 1 | AB4: =IF(AE4=TRUE,1,0) -> 0 | AC4: =IF(AF4=TRUE,1,0) -> 0 | AD4: Municipal waste | AE4: FALSE | AF4: FALSE | AG4: 1 | AH4: 1 | AI4: =IF(AF4=FALSE,1,IF(AG4*AH4/5<1,1,AG4*AH4/5)) -> 1 | AK4: Asbestos | AL4: FALSE | AM4: 1 | AS4: 1 | AT4: < 5 | AW4: On-the-job | AX4: FALSE
E5: 2 | F5: 400 - 600 | I5: 2 | J5: Special purpose | M5: 2 | N5: Lower Slope | R5: Environmental Audit | S5: 2 | U5: 1 | V5: Clay (CL, OL, CH, OH) | Z5: Site signage | AA5: =IF(AA16=0,5,6-AA16) -> 5 | AD5: Recyclables | AE5: FALSE | AF5: FALSE | AG5: 1 | AH5: 1 | AI5: =IF(AF5=FALSE,1,IF(AG5*AH5/5<1,1,AG5*AH5/5)) -> 1 | AK5: Clinical / pharmaceutical waste | AL5: FALSE | AM5: 1 | AP5: Method | AQ5: 4 | AS5: 2 | AT5: 5 - 10 | AW5: Site-specific operating procedures | AX5: FALSE
B6: Premises | E6: 3 | F6: 600 - 800 | I6: 3 | J6: Business | M6: 3 | N6: Upper Slope | R6: Environmental Investigation | S6: 2 | U6: 2 | V6: Silt (ML, OL, MH, OH) | Z6: Operating hours | AA6: FALSE | AB6: =IF(AE6=TRUE,1,0) -> 0 | AC6: =IF(AF6=TRUE,1,0) -> 0 | AD6: Commercial & industrial waste | AE6: FALSE | AF6: FALSE | AG6: 1 | AH6: 1 | AI6: 1 | AK6: Animal carcasses / parts | AL6: FALSE | AM6: 1 | AN6: =IF(AL6=TRUE,AM6,1) -> 1 | AO6: 1 | AP6: Mobile Garbage Bin Bank | AS6: 3 | AT6: 10 - 20 | AW6: Earthmoving | AX6: FALSE
B7: =Premises!E10 -> 0 | E7: 4 | F7: 800 - 1,000 | I7: 4 | J7: Rural | M7: 4 | N7: Crest | R7: EMP | S7: 2 | U7: 3 | V7: Sand (SP, SW, SM, SC) | Z7: Permitted wastes | AA7: FALSE | AD7: Construction & demolition waste | AE7: FALSE | AF7: FALSE | AG7: 1 | AH7: 1 | AI7: 1 | AK7: Biosolids | AL7: FALSE | AM7: 3 | AN7: =IF(AL7=TRUE,AM7,1) -> 1 | AO7: 2 | AP7: Small bulk bins (< 5 cubic metres) | AS7: 4 | AT7: 20 - 40 | AW7: Waste facility operations | AX7: FALSE
E8: 5 | F8: > 1,000 | I8: 5 | J8: Recreation | M8: 5 | N8: Flat / Floodplain | Q8: 1 | R8: Yes | U8: 4 | V8: Gravel (GP, GW, GM ,GC) | Z8: Fees/charges | AA8: FALSE | AB8: =IF(AE8=TRUE,1,0) -> 0 | AC8: =IF(AF8=TRUE,1,0) -> 0 | AD8: Garden & vegetation waste | AE8: FALSE | AF8: FALSE | AG8: 1 | AH8: 1 | AI8: 1 | AK8: Contaminated soil | AL8: FALSE | AM8: 1 | AO8: 3 | AP8: Large bulk bins (> 5 cubic metres) | AS8: 5 | AT8: > 40 | AW8: Pesticides | AX8: FALSE
B9: Location | I9: 6 | J9: Residential | Q9: 2 | R9: Unknown | U9: 5 | V9: Unknown | Z9: Fires prohibited | AA9: FALSE | AD9: Virgin excavated natural material | AE9: FALSE | AF9: FALSE | AG9: 1 | AH9: 1 | AI9: 1 | AL9: =COUNTIF(AL4:AL8,"=true") -> 0 | AM9: =IF(AL9<>0,AN9,1) -> 1 | AN9: =ROUND(SUM(AM4:AM8)/5,0) -> 1 | AO9: 4 | AP9: Bunker / other method | AW9: Fire fighting | AX9: FALSE
B10: =Premises!E12 -> 0 | F10: No. rain days > 10mm | G10: 1 | I10: 7 | J10: Environment protection | Q10: 3 | R10: No | Z10: Trespassing prohibited | AA10: FALSE | AD10: Scrap metal | AE10: FALSE | AF10: FALSE | AG10: 1 | AH10: 1 | AI10: 1 | AK10: Landfilling | AL10: 5 | AP10: Construction | AQ10: 3 | AT10: When Closed | AU10: 5 | AW10: Haz substances | AX10: FALSE
E11: 1 | F11: < 10 | V11: Erosion | W11: 1 | Z11: Contact | AA11: FALSE | AD11: Others | AE11: FALSE | AF11: FALSE | AG11: 1 | AH11: 1 | AI11: 1 | AJ11: 1 | AK11: Engineered cell | AO11: 1 | AP11: Raised drop-off area | AS11: 1 | AT11: <5 | AW11: Environmental monitoring | AX11: FALSE
A12: 1 | B12: Type | E12: 2 | F12: 10 - 20 | J12: Buffer distances | Q12: =IF(S12=2,5,IF(ROUND(S12+Q28,0)>5,5,ROUND(S12+Q28,0))) -> 5 | R12: Groundwater monitoring | S12: 2 | U12: 1 | V12: Negligible to Slight (<50) | Z12: Drop-off Locations | AA12: FALSE | AB12: =IF(SUM(AB4+AB6+AB8+AB26>0),5,1) -> 1 | AC12: =IF(SUM(AC4+AC6+AC8+AC26>0),2,1) -> 1 | AE12: =IF(AB12>0,5,1) -> 5 | AF12: =IF(COUNTIF(AF4:AF11,TRUE)>0,TRUE,FALSE) -> FALSE | AJ12: 2 | AK12: Deep trench (>2m deep) | AO12: 2 | AP12: Concrete hardstand | AS12: 2 | AT12: 5 - 10 | AW12: Environmental management | AX12: FALSE
A13: . | B13: =IF(A12>2,"Transfer station",IF(A12=2,"Closed landfill","Active landfill")) -> Active landfill | E13: 3 | F13: 20 - 30 | I13: 1 | J13: > 5 | Q13: =S13/5 -> 0 | R13: No. Locations | U13: 2 | V13: Moderate (50 - 200) | Z13: Offences and penalties | AA13: FALSE | AD13: Tyres | AE13: FALSE | AF13: FALSE | AG13: 1 | AH13: 1 | AI13: =IF(AF13=FALSE,1,IF(AG13*AH13/5<1,1,ROUND(AG13*AH13/5,0))) -> 1 | AJ13: 3 | AK13: Shallow trench (<2m deep) | AO13: 3 | AP13: No specific construction | AS13: 3 | AT13: 10 - 25 | AW13: Other | AX13: FALSE
E14: 4 | F14: 30 - 40 | I14: 2 | J14: 1 - 5 | Q14: =S14/3 -> 0 | R14: Distribution | U14: 3 | V14: High (200 - 1,000) | Z14: Conditions of receipt | AA14: FALSE | AE14: =IF(AE13=TRUE,5,1) -> 1 | AI14: =ROUND(MAX(AI15:AI17),0) -> 1 | AJ14: 4 | AK14: Excavated pit / valley | AS14: 4 | AT14: 25 - 50 | AX14: =ROUND(COUNTIF(AX4:AX13, "=true")/2,0) -> 0
B15: Amount received | C15: 1 | E15: 5 | F15: >40 | I15: 3 | J15: 0.5 - 1 | Q15: =S15/5 -> 0 | R15: Frequency | U15: 4 | V15: Very High to Extreme (1,000 - >3,000) | Z15: General | AA15: FALSE | AD15: Chemical containers | AF15: FALSE | AG15: 1 | AH15: 1 | AI15: 1 | AJ15: 5 | AK15: Above ground fill / disposal | AP15: Covered | AQ15: 2 | AS15: 5 | AT15: > 50 | AW15: Authorised officers | AX15: =IF(AX18=0,3,IF(AX18=1,2,1)) -> 3
A16: 1 | B16: =DR!C8 -> 0 - 100 | I16: 4 | J16: 0.25 - 0.5 | Q16: =S16/10 -> 1 | R16: Parameters | S16: =COUNTIF(S17:S26,"=false") -> 10 | U16: 5 | V16: Unknown | AA16: =ROUND(COUNTIF(AA6:AA15, "=true")/2,0) -> 0 | AD16: Batteries | AF16: FALSE | AG16: 1 | AH16: 1 | AI16: 1 | AW16: On-site | AX16: 2
A17: 2 | B17: =DR!C9 -> 100 - 500 | F17: Evaporation | G17: 1 | I17: 5 | J17: < 0.25 | R17: Level | S17: FALSE | Z17: Communication | AA17: =IF(AA23=0,5,6-AA23) -> 5 | AD17: Hazardous waste | AF17: FALSE | AG17: 1 | AH17: 1 | AI17: 1 | AK17: Active fill areas | AL17: 5 | AP17: Lids | AQ17: 2 | AT17: Amount received | AU17: 5 | AW17: For operator | AX17: 2
A18: 3 | B18: =DR!C10 -> 500 - 1,000 | E18: 1 | F18: >2,000 | R18: pH | S18: FALSE | V18: Drinking water catchment | W18: 1 | Z18: Direct | AA18: FALSE | AF18: =IF(COUNTIF(AF15:AF17,TRUE)>0,TRUE,FALSE) -> FALSE | AJ18: 1 | AK18: 1 | AS18: 1 | AT18: 0 - 100 | AX18: =COUNTIF(AX16:AX17,"=1") -> 0
A19: 4 | B19: =DR!C11 -> 1,000 - 2,500 | E19: 2 | F19: 1,800 - 2,000 | J19: NE | K19: =IF(K23>5,5,ROUND(K23,0)) -> 1 | R19: EC | S19: FALSE | U19: 1 | V19: No | Z19: Operator print info | AA19: FALSE | AD19: Wastes - liquid | AI19: =ROUND(MAX(AI20:AI26),0) -> 1 | AJ19: 2 | AK19: 2 | AP19: Processing / sorting | AQ19: 2 | AS19: 2 | AT19: 100 - 500 | AW19: Regulator enforcement activities | AX19: =IF(AX25=0,5,6-AX25) -> 5
A20: 5 | B20: =DR!C12 -> 2,500 - 5,000 | E20: 3 | F20: 1,600 - 1,800 | J20: Landuse | K20: 1 | R20: Ammonia | S20: FALSE | U20: 2 | V20: Unknown | Z20: Internet | AA20: FALSE | AD20: Waste mineral oil | AE20: FALSE | AF20: FALSE | AG20: 1 | AH20: 1 | AI20: 1 | AJ20: 3 | AK20: 3 | AS20: 3 | AT20: 500 - 1,000 | AW20: Verbal warning | AX20: FALSE
E21: 4 | F21: 1,400 - 1,600 | J21: Residence | K21: 1 | L21: =K21 -> 1 | R21: Nitrate | S21: FALSE | U21: 3 | V21: Yes | Z21: Media | AA21: FALSE | AD21: Waste cooking oil | AE21: FALSE | AF21: FALSE | AG21: 1 | AH21: 1 | AI21: 1 | AJ21: 4 | AK21: 4 | AP21: Disposal | AQ21: 2 | AS21: 4 | AT21: 1,000 - 2,500 | AW21: Warning letters | AX21: FALSE
B22: Area | C22: 5 | E22: 5 | F22: < 1,400 | J22: Residential Area | K22: 1 | L22: =K22 -> 1 | R22: TOC | S22: FALSE | Z22: Other | AA22: FALSE | AD22: Paint | AE22: FALSE | AF22: FALSE | AG22: 1 | AH22: 1 | AI22: 1 | AJ22: 5 | AK22: More than 4 | AO22: 1 | AP22: Licensed waste facility | AS22: 5 | AT22: 2,500 - 5,000 | AW22: Notices / orders | AX22: FALSE
A23: 1 | B23: <1,000 | K23: =(SUM(K20:K22)/17*5)*K41 -> 0.8823529412 | R23: Alkalinity | S23: FALSE | AA23: =ROUND(COUNTIF(AA18:AA22, "=true"),0) -> 0 | AD23: Grease trap waste | AE23: FALSE | AF23: FALSE | AG23: 1 | AH23: 1 | AI23: 1 | AO23: 2 | AP23: Unlicensed waste facility | AW23: Penalty infringement notice | AX23: FALSE
A24: 2 | B24: 1,000 - 2,500 | F24: Prevailing Wind Direction | G24: 1 | H24: =LOOKUP(G24,G25:G40,H25:H40) -> 0.5 | J24: SE | K24: =IF(K28>5,5,ROUND(K28,0)) -> 1 | R24: Iron | S24: FALSE | Z24: Themes | AA24: =IF(AA31=0,5,6-AA31) -> 5 | AD24: Oily water waste | AE24: FALSE | AF24: FALSE | AG24: 1 | AH24: 1 | AI24: 1 | AK24: Compaction | AL24: 3 | AT24: Disposal method | AU24: 5 | AW24: Prosecution | AX24: FALSE
A25: 3 | B25: 2,500 - 5,000 | F25: N | G25: 1 | H25: 0.5 | J25: Landuse | K25: 1 | R25: Pesticides | S25: FALSE | Z25: General | AA25: FALSE | AD25: Septic waste | AE25: FALSE | AF25: FALSE | AG25: 1 | AH25: 1 | AI25: 1 | AJ25: 1 | AK25: Landfill compactor | AP25: Closed landfill | AQ25: 2 | AS25: 1 | AT25: Engineered cell | AX25: =ROUND(COUNTIF(AX20:AX24, "=true"),0) -> 0
A26: 4 | B26: 5,000 - 10,000 | F26: NNE | G26: 2 | H26: 1 | J26: Residence | K26: 1 | L26: =K26 -> 1 | R26: Others | S26: FALSE | Z26: Reduce, reuse, recycle | AA26: FALSE | AB26: =IF(COUNTIF(AE20:AE26,"=true">0),1,0) -> 0 | AC26: =IF(COUNTIF(AF20:AF26,"=true">0),1,0) -> 0 | AD26: Others | AE26: FALSE | AF26: FALSE | AG26: 1 | AH26: 1 | AI26: 1 | AJ26: 2 | AK26: Tracked plant (e.g. bulldozer) | AS26: 2 | AT26: Deep trench (>2m deep)
A27: 5 | B27: > 10,000 | F27: NE | G27: 3 | H27: 1 | J27: Residential Area | K27: 1 | L27: =K27 -> 1 | Q27: =S27/3 -> 0 | R27: Concerns | Z27: Asbestos | AA27: FALSE | AE27: =IF(COUNTIF(AE23:AE26,"=true")>0,5,1) -> 1 | AF27: =COUNTIF(AF20:AF26,"=true") -> 0 | AG27: =COUNTIF(AF15:AF26,"=true") -> 0 | AJ27: 3 | AK27: None | AS27: 3 | AT27: Shallow trench (<2m deep)
F28: ENE | G28: 4 | H28: 1 | K28: =(SUM(K25:K27)/17*5)*K51 -> 1.102941176 | Q28: =SUM(Q13:Q27)-1 -> 0 | Z28: Hazardous / chem wastes | AA28: FALSE | AD28: Open to public | AE28: 6 | AS28: 4 | AT28: Excavated pit
B29: Age | C29: 5 | F29: E | G29: 5 | H29: 1.5 | J29: SW | K29: =IF(K33>5,5,ROUND(K33,0)) -> 1 | Q29: =IF(S29=2,5,IF(ROUND(S29+Q44,0)>5,5,ROUND(S29+Q44,0))) -> 5 | R29: Surface water monitoring | S29: 2 | Z29: Illegal dumping | AA29: FALSE | AC29: 1 | AD29: Not open to the public | AK29: Covering method | AL29: 5 | AS29: 5 | AT29: Above ground fill / disposal
A30: 1 | B30: < 5 | F30: ESE | G30: 6 | H30: 2 | J30: Landuse | K30: 1 | Q30: =S30/5 -> 0 | R30: No. Locations | V30: Slope | W30: 1 | Z30: Other | AA30: FALSE | AC30: 2 | AD30: Restricted hours, restricted days | AJ30: 1 | AK30: Geosynthetic material
A31: 2 | B31: 5 - 10 | F31: SE | G31: 7 | H31: 2 | J31: Residence | K31: 1 | L31: =K31 -> 1 | Q31: =S31/3 -> 0 | R31: Distribution | U31: 1 | V31: 0 - 2 | AA31: =ROUND(COUNTIF(AA25:AA30, "=true")/6*5,0) -> 0 | AC31: 3 | AD31: Restricted hours, 7 days per week | AJ31: 2 | AK31: Alternative material | AT31: How Capped | AU31: 5
A32: 3 | B32: 10 - 20 | F32: SSE | G32: 8 | H32: 2 | J32: Residential Area | K32: 1 | L32: =K32 -> 1 | Q32: =S32/5 -> 0 | R32: Frequency | U32: 2 | V32: 2 - 5 | AC32: 4 | AD32: Daylight hours only, restricted days | AJ32: 3 | AK32: Imported clay material | AS32: 1 | AT32: Membrane / geosynthetic material
A33: 4 | B33: 20 - 40 | F33: S | G33: 9 | H33: 2.5 | K33: =(SUM(K30:K32)/17*5)*K61 -> 1.102941176 | Q33: =S33/9 -> 1 | R33: Parameters | S33: =COUNTIF(S34:S42,"=false") -> 9 | U33: 3 | V33: 5 - 10 | AC33: 5 | AD33: Daylight hours only, 7 days per week | AJ33: 4 | AK33: Imported material | AS33: 2 | AT33: Imported clay material
A34: 5 | B34: > 40 | F34: SSW | G34: 10 | H34: 3 | J34: NW | K34: =IF(K38>5,5,ROUND(K38,0)) -> 1 | R34: pH | S34: FALSE | U34: 4 | V34: 10 - 25 | AC34: 6 | AD34: 24 hours, 7 days per week | AJ34: 5 | AK34: On-site material | AS34: 3 | AT34: Imported material
F35: SW | G35: 11 | H35: 3 | J35: Landuse | K35: 1 | R35: EC | S35: FALSE | U35: 5 | V35: > 25 | AS35: 4 | AT35: On-site material
F36: WSW | G36: 12 | H36: 3 | J36: Residence | K36: 1 | L36: =K36 -> 1 | R36: Ammonia | S36: FALSE | AD36: Perimeter | AE36: 5 | AK36: Frequency of covering | AL36: 5 | AS36: 5 | AT36: No capping
F37: W | G37: 13 | H37: 3.5 | J37: Residential Area | K37: 1 | L37: =K37 -> 1 | R37: Nitrate | S37: FALSE | V37: Erosion | W37: =IF(W44=0,1,(ROUND(W44*5,0))) -> 1 | AC37: 1 | AD37: 8ft security fence | AJ37: 1 | AK37: Very frequently (eg. daily)
F38: WNW | G38: 14 | H38: 4 | K38: =(SUM(K35:K37)/17*5)*K71 -> 0.8823529412 | R38: TOC | S38: FALSE | V38: Wind | W38: FALSE | AC38: 2 | AD38: 6ft chainlink / colourbond fence | AJ38: 2 | AK38: Frequently (eg. weekly) | AT38: Slope | AU38: 5
F39: NW | G39: 15 | H39: 4 | J39: Max of above | K39: =MAX(K19,K24,K29,K34) -> 1 | L39: =MAX(L19:L38) -> 1 | R39: Alkalinity | S39: FALSE | V39: Sheet | W39: FALSE | AC39: 3 | AD39: Stock fence | AJ39: 3 | AK39: Often (eg. monthly) | AS39: 1 | AT39: 0% - 2%
B40: Proximity | F40: NNW | G40: 16 | H40: 4 | R40: Iron | S40: FALSE | V40: Rill | W40: FALSE | AC40: 4 | AD40: Partial perimeter fence | AJ40: 4 | AK40: Infrequently (eg. quarterly) | AS40: 2 | AT40: 2% - 5%
A41: 1 | B41: >100 | J41: NE | K41: =LOOKUP($H$24,J42:J49,K42:K49) -> 1 | R41: Pesticides | S41: FALSE | V41: Gully | W41: FALSE | AC41: 5 | AD41: No perimeter fence | AJ41: 5 | AK41: Very infrequently to never (eg. annually or more) | AS41: 3 | AT41: 5% - 10%
A42: 2 | B42: 50 - 100 | F42: Calm | G42: 1 | J42: 0.5 | K42: 1 | L42: 1 | R42: Others | S42: FALSE | V42: Tunnel | W42: FALSE | AS42: 4 | AT42: 10% - 25%
A43: 3 | B43: 25 - 50 | E43: 1 | F43: > 20 | J43: 1 | K43: 1 | L43: 1 | Q43: =S43/3 -> 0 | R43: Concerns | V43: Mass movement | W43: FALSE | AD43: Access security | AE43: 5 | AK43: Filling Plan | AL43: 2 | AS43: 5 | AT43: > 25%
A44: 4 | B44: <25 | E44: 2 | F44: 15 - 20 | J44: 1.5 | K44: 1 | L44: 1 | Q44: =SUM(Q30:Q43)-1 -> 0 | W44: =COUNTIF(W38:W43,"=true")/6 -> 0 | AC44: 1 | AD44: 8ft security gate
A45: 5 | B45: Within area | E45: 3 | F45: 10 - 15 | J45: 2 | K45: 1.15 | L45: 1.25 | Q45: =IF(S45=2,5,IF(ROUND(S45+Q58,0)>5,5,ROUND(S45+Q58,0))) -> 5 | R45: Leachate | S45: 2 | V45: Soil electrical conductivity | W45: 1 | AC45: 2 | AD45: 6ft chainlink / colourbond gate | AK45: Preparation | AL45: 5 | AT45: Landuse | AU45: 7
E46: 4 | F46: 5 - 10 | J46: 2.5 | K46: 1.25 | L46: 1.5 | Q46: =S46/5 -> 0 | R46: Frequency | U46: 1 | V46: <4 | AC46: 3 | AD46: Stock gate | AJ46: 1 | AK46: Geosynthetically lined | AS46: 1 | AT46: Industrial
B47: MLA | C47: 1 | E47: 5 | F47: < 5 | J47: 3 | K47: 1.5 | L47: 2 | Q47: =S47/9 -> 1 | R47: Parameters | S47: =COUNTIF(S48:S56,"=false") -> 9 | U47: 2 | V47: 4 - 8 | AC47: 4 | AD47: Retractable bollards | AJ47: 2 | AK47: Clay lined | AS47: 2 | AT47: Special purpose
J48: 3.5 | K48: 1.25 | L48: 1.5 | R48: pH | S48: FALSE | U48: 3 | V48: 8 - 16 | AC48: 5 | AD48: Access not secured | AJ48: 3 | AK48: Ripped and compacted | AS48: 3 | AT48: Business
B49: >5,000 | C49: 4 | F49: Mean wind speed | G49: 1 | J49: 4 | K49: 1.15 | L49: 1.25 | R49: EC | S49: FALSE | U49: 4 | V49: >16 | AJ49: 4 | AK49: Compacted | AS49: 4 | AT49: Rural
B50: RLA | C50: 1 | E50: 1 | F50: < 6 | R50: Ammonia | S50: FALSE | AD50: Additional security | AE50: =IF(AE55=0,5,6-AE55) -> 5 | AJ50: 5 | AK50: No preparation | AS50: 5 | AT50: Recreation
B51: Access to premises | C51: 1 | E51: 2 | F51: 6 - 12 | J51: SE | K51: =LOOKUP($H$24,J52:J59,K52:K59) -> 1.25 | R51: Nitrate | S51: FALSE | V51: Acid Sulfate Soils | W51: 1 | AD51: Security patrols | AE51: FALSE | AS51: 6 | AT51: Residential
A52: 1 | B52: Other minor road | E52: 3 | F52: 12 - 20 | J52: 0.5 | K52: 1.25 | L52: 1.5 | R52: TOC | S52: FALSE | U52: 1 | V52: No known occurence | AD52: Video Surveillance | AE52: FALSE | AK52: Closed | AL52: 5 | AS52: 7 | AT52: Environment protection
A53: 2 | B53: Local road | E53: 4 | F53: 20 - 29 | J53: 1 | K53: 1.15 | L53: 1.25 | R53: Alkalinity | S53: FALSE | U53: 2 | V53: Low probability > 1m from surface | AD53: Covert Surveillance | AE53: FALSE | AJ53: 1 | AK53: Geosynthetic material
A54: 3 | B54: Regional road | E54: 5 | F54: > 29 | J54: 1.5 | K54: 1 | L54: 1 | R54: Iron | S54: FALSE | U54: 3 | V54: Low probability < 1m from surface | AD54: "Dummy" Surveillance | AE54: FALSE | AJ54: 2 | AK54: Alternative material | AT54: Structures | AU54: 2
A55: 4 | B55: State road | J55: 2 | K55: 1 | L55: 1 | R55: Pesticides | S55: FALSE | U55: 4 | V55: High probability > 1m from surface | AE55: =ROUND(COUNTIF(AE51:AE54, "=true")/4*5,0) -> 0 | AJ55: 3 | AK55: Imported clay material
A56: 5 | B56: Freeway / motorway | F56: Wind | G56: =ROUND((G49+G42)/2,0) -> 1 | J56: 2.5 | K56: 1 | L56: 1 | R56: Others | S56: FALSE | U56: 5 | V56: High probability < 1m from surface | AD56: Access control | AE56: 5 | AJ56: 4 | AK56: Imported material | AT56: Organic Layer | AU56: 2
J57: 3 | K57: 1.15 | L57: 1.25 | Q57: =S57/3 -> 0 | R57: Concerns | AC57: 1 | AD57: Access only permitted under operator supervision | AJ57: 5 | AK57: On-site material
F58: October | G58: =IF(G64*G65/2<1,1,G64*G65/2) -> 1 | J58: 3.5 | K58: 1.25 | L58: 1.5 | Q58: =(SUM(Q46:Q57)/3*5)-1 -> 0.6666666667 | V58: Distance to watercourse | W58: 2 | AC58: 2 | AD58: Swipe / data card access | AT58: Revegetation | AU58: 5
B59: Previous full use of E-RAMP | F59: Direction | G59: 1 | H59: =LOOKUP(G59,$G$25:$G$40,$H$25:$H$40) -> 0.5 | J59: 4 | K59: 1.5 | L59: 2 | Q59: =IF(S59=2,5,IF(ROUND(S59+Q69,0)>5,5,ROUND(S59+Q69,0))) -> 5 | R59: Dust | S59: 2 | U59: 1 | V59: > 1,000 | AC59: 3 | AD59: Community accessed key system (sign-in / sign-out) | AK59: Leachate capture | AL59: 2 | AS59: 1 | AT59: Sown pasture grasses, shrubs and trees
B60: FALSE | F60: NE | G60: =LOOKUP(H59,$J$42:$J$49,$L$42:$L$49) -> 1 | Q60: =S60/5 -> 0 | R60: No. Locations | U60: 2 | V60: 500 - 1,000 | AC60: 4 | AD60: Resident issued key system | AS60: 2 | AT60: Sown pasture grasses and shrubs
F61: SE | G61: =LOOKUP(H59,$J$52:$J$59,$L$52:$L$59) -> 1.5 | J61: SW | K61: =LOOKUP($H$24,J62:J69,K62:K69) -> 1.25 | Q61: =S61/3 -> 0 | R61: Distribution | U61: 3 | V61: 250 - 500 | AC61: 5 | AD61: No control on access in place | AJ61: =IF(AL59=2,5,AL61) -> 5 | AK61: Leachate Management | AL61: 3 | AS61: 3 | AT61: Sown pasture grasses
B62: In progress - existing | F62: SW | G62: =LOOKUP(H59,$J$62:$J$69,$L$62:$L$69) -> 1.5 | J62: 0.5 | K62: 1.25 | L62: 1.5 | Q62: =S62/5 -> 0 | R62: Frequency | U62: 4 | V62: 100 - 250 | AJ62: 1 | AK62: Discharge to sewer | AS62: 4 | AT62: Natural revegetation
B63: TRUE | F63: NW | G63: =LOOKUP(H59,$J$72:$J$79,$L$72:$L$79) -> 1 | J63: 1 | K63: 1.5 | L63: 2 | Q63: =S63/4 -> 0 | R63: Method | U63: 5 | V63: < 100 | AD63: Site supervision | AE63: 5 | AJ63: 2 | AK63: Full containment and reuse/evaporation | AS63: 5 | AT63: No revegetation
F64: Speed | G64: 1 | J64: 1.5 | K64: 1.25 | L64: 1.5 | Q64: 1 | R64: High volume air sampling | AC64: 1 | AD64: During all hours open to the public, with fees charged | AJ64: 3 | AK64: First flush containment
B65: In progress - mitigation | F65: Calm | G65: 1 | J65: 2 | K65: 1.15 | L65: 1.25 | Q65: 2 | R65: Low volume air sampling | V65: Groundwater vulnerability | W65: 2 | AC65: 2 | AD65: During all hours open to the public | AJ65: 4 | AK65: Discharge after sedimentation | AS65: 2 | AT65: Monitoring | AU65: =IF(AS65=2,5,AU73) -> 5
B66: TRUE | J66: 2.5 | K66: 1 | L66: 1 | Q66: 3 | R66: Gravimetric | U66: 1 | V66: No | AC66: 3 | AD66: During specific times, not all hours open to the public | AJ66: 5 | AK66: Nil / direct discharge | AT66: Frequency | AU66: 5
F67: November | G67: =IF(G73*G74/2<1,1,G73*G74/2) -> 1 | J67: 3 | K67: 1 | L67: 1 | Q67: 4 | R67: Visual observations | U67: 2 | V67: Unknown | AC67: 4 | AD67: Infrequently and/or irregularly | AS67: 1 | AT67: Very frequently (eg. daily)
B68: New | F68: Direction | G68: 1 | H68: =LOOKUP(G68,$G$25:$G$40,$H$25:$H$40) -> 0.5 | J68: 3.5 | K68: 1 | L68: 1 | Q68: =S68/3 -> 0 | R68: Concerns | U68: 3 | V68: Yes | AC68: 5 | AD68: No supervision undertaken | AK68: Size of active areas | AL68: 2 | AS68: 2 | AT68: Frequently (eg. weekly)
B69: TRUE | F69: NE | G69: =LOOKUP(H68,$J$42:$J$49,$L$42:$L$49) -> 1 | J69: 4 | K69: 1.15 | L69: 1.25 | Q69: =SUM(Q60:Q63,Q68)-1 -> -1 | AJ69: 1 | AK69: <100 | AS69: 3 | AT69: Often (eg. monthly)
F70: SE | G70: =LOOKUP(H68,$J$52:$J$59,$L$52:$L$59) -> 1.5 | Q70: =IF(S70=2,5,IF(ROUND(S70+Q88,0)>5,5,ROUND(S70+Q88,0))) -> 5 | R70: Noise | S70: 2 | AD70: Operators at premises | AE70: 5 | AJ70: 2 | AK70: 100 - 250 | AS70: 4 | AT70: Infrequently (eg. quarterly)
B71: Saved | F71: SW | G71: =LOOKUP(H68,$J$62:$J$69,$L$62:$L$69) -> 1.5 | J71: NW | K71: =LOOKUP($H$24,J72:J79,K72:K79) -> 1 | Q71: =S71/5 -> 0 | R71: No. Locations | AJ71: 3 | AK71: 250 - 500 | AS71: 5 | AT71: Very infrequently to never (eg. annually or more)
B72: FALSE | F72: NW | G72: =LOOKUP(H68,$J$72:$J$79,$L$72:$L$79) -> 1 | J72: 0.5 | K72: 1 | L72: 1 | Q72: =S72/3 -> 0 | R72: Location type | AD72: Complaints | AE72: 1 | AJ72: 4 | AK72: 500 - 1,000 | AT72: Procedures | AU72: 2
F73: Speed | G73: 1 | J73: 1 | K73: 1.15 | L73: 1.25 | Q73: 1 | R73: Nearest / most affected residence | V73: Depth to rock | W73: 3 | AJ73: 5 | AK73: 1,000 - 2,500 | AU73: =ROUND(SUM(AU66:AU72)/7*5,0) -> 5
F74: Calm | G74: 1 | J74: 1.5 | K74: 1.25 | L74: 1.5 | Q74: 2 | R74: Boundary of premises | U74: 1 | V74: > 50 | AD74: Uncontrolled fires | AE74: 1 | AJ74: 6 | AK74: >2,500 | AT74: Treat runoff | AU74: 5
J75: 2 | K75: 1.5 | L75: 2 | Q75: 3 | R75: Arbitrary location | U75: 2 | V75: 25 - 50 | AS75: 1 | AT75: Discharge to sewer
F76: December | G76: =IF(G82*G83/2<1,1,G82*G83/2) -> 1 | J76: 2.5 | K76: 1.25 | L76: 1.5 | Q76: =S76/5 -> 0 | R76: Frequency | U76: 3 | V76: Unknown | AD76: Unlawful waste disposal (on premises) | AE76: 1 | AK76: Landfill gas management | AL76: 2 | AS76: 2 | AT76: Full containment and reuse/evaporation
F77: Direction | G77: 1 | H77: =LOOKUP(G77,$G$25:$G$40,$H$25:$H$40) -> 0.5 | J77: 3 | K77: 1.15 | L77: 1.25 | Q77: =S77/4 -> 0 | R77: Type of monitoring | U77: 4 | V77: 10 - 25 | AJ77: 1 | AK77: No management | AS77: 3 | AT77: First flush containment
F78: NE | G78: =LOOKUP(H77,$J$42:$J$49,$L$42:$L$49) -> 1 | J78: 3.5 | K78: 1 | L78: 1 | Q78: 1 | R78: Sound level meter - Attended and unattended | U78: 5 | V78: 5 - 10 | AD78: Unlawful waste disposal (off premises) | AE78: 1 | AJ78: 2 | AK78: Passive venting | AS78: 4 | AT78: Discharge after sedimentation
F79: SE | G79: =LOOKUP(H77,$J$52:$J$59,$L$52:$L$59) -> 1.5 | J79: 4 | K79: 1 | L79: 1 | Q79: 2 | R79: Sound level meter - Attended only | U79: 6 | V79: < 5 | AJ79: 3 | AK79: Extraction and venting | AS79: 5 | AT79: Nil / direct discharge
F80: SW | G80: =LOOKUP(H77,$J$62:$J$69,$L$62:$L$69) -> 1.5 | Q80: 3 | R80: Sound level meter - Unattended only | AD80: Stormwater diversion | AE80: =IF(AE84=0,5,6-AE84) -> 5 | AJ80: 4 | AK80: Bio oxidation
F81: NW | G81: =LOOKUP(H77,$J$72:$J$79,$L$72:$L$79) -> 1 | J81: Vegetation | Q81: 4 | R81: Complaints information | V81: Depth to GW | W81: 3 | AD81: Perimeter | AE81: FALSE | AJ81: 5 | AK81: Extraction and combustion | AT81: Leachate Management | AU81: 5
F82: Speed | G82: 1 | I82: 1 | J82: Saline wetland | Q82: =S82/5 -> 0 | R82: Level | U82: 1 | V82: > 50 | AD82: Disturbed | AE82: FALSE | AS82: 1 | AT82: Collection and discharge to sewer
F83: Calm | G83: 1 | I83: 2 | J83: Freshwater wetland | Q83: 1 | R83: Less than background level | U83: 2 | V83: 25 - 50 | AD83: Waste | AE83: FALSE | AS83: 2 | AT83: Collection and reuse/evaporation
I84: 3 | J84: Forested wetland | Q84: 2 | R84: At / equivalent to background level | U84: 3 | V84: Unknown | AE84: =ROUND(COUNTIF(AE81:AE83, "=true")/3*5,0) -> 0 | AS84: 3 | AT84: Collection and storage
F85: January | G85: =IF(G91*G92/2<1,1,G91*G92/2) -> 1 | I85: 4 | J85: Rainforest | Q85: 3 | R85: 1 - 5 dB(A) above background level | U85: 4 | V85: 10 - 25 | AD85: Stormwater - undisturbed | AE85: 5 | AS85: 4 | AT85: Collection and discharge after retention
F86: Direction | G86: 1 | H86: =LOOKUP(G86,$G$25:$G$40,$H$25:$H$40) -> 0.5 | I86: 5 | J86: Wet sclerophyll forest | Q86: 4 | R86: >5 dB(A) above background level | U86: 5 | V86: 5 - 10 | AS86: 5 | AT86: No collection of leachate
F87: NE | G87: =LOOKUP(H86,$J$42:$J$49,$L$42:$L$49) -> 1 | I87: 6 | J87: Alpine complex | Q87: 5 | R87: Unknown | U87: 6 | V87: < 5 | AD87: Stormwater - disturbed | AE87: 5
F88: SE | G88: =LOOKUP(H86,$J$52:$J$59,$L$52:$L$59) -> 1.5 | I88: 7 | J88: Modified (ie. developed, cropping, grazing) | Q88: =SUM(Q71:Q72,Q76:Q77,Q82)-1 -> -1 | AT88: Landfill gas management | AU88: 5
F89: SW | G89: =LOOKUP(H86,$J$62:$J$69,$L$62:$L$69) -> 1.5 | I89: 8 | J89: Heathland | Q89: =IF(S89=2,5,IF(ROUND(S89+Q99,0)>5,5,ROUND(S89+Q99,0))) -> 5 | R89: Landfill Gas | S89: 2 | V89: Local GW use | W89: =IF(W96=0,1,(ROUND(W96*5,0))) -> 1 | AD89: Stormwater - waste | AE89: 5 | AS89: 1 | AT89: Extraction and combustion
F90: NW | G90: =LOOKUP(H86,$J$72:$J$79,$L$72:$L$79) -> 1 | I90: 9 | J90: Grassy woodland | Q90: =S90/3 -> 1 | R90: Type of monitoring | S90: =COUNTIF(S91:S93,"=false") -> 3 | V90: Domestic | W90: FALSE | AS90: 2 | AT90: Bio oxidation
F91: Speed | G91: 1 | I91: 10 | J91: Grassland | R91: Surface | S91: FALSE | V91: Stock / irrigation | W91: FALSE | AD91: Methods | AS91: 3 | AT91: Extraction and venting
F92: Calm | G92: 1 | I92: 11 | J92: Arid shrubland | R92: Subsurface | S92: FALSE | V92: Industrial | W92: FALSE | AC92: 1 | AD92: Discharge to sewer | AS92: 4 | AT92: Passive venting
I93: 12 | J93: Semi-arid woodland | R93: Buildings | S93: FALSE | V93: Monitoring | W93: FALSE | AC93: 2 | AD93: Full containment and reuse/evaporation | AS93: 5 | AT93: No management
F94: February | G94: =IF(G100*G101/2<1,1,G100*G101/2) -> 1 | I94: 13 | J94: Dry sclerophyll forest | Q94: =S94/5 -> 0.2 | R94: Frequency | S94: 1 | V94: Other | W94: FALSE | AC94: 3 | AD94: First flush containment
F95: Direction | G95: 1 | H95: =LOOKUP(G95,$G$25:$G$40,$H$25:$H$40) -> 0.5 | Q95: =S95/3 -> 0.3333333333 | R95: Levels | S95: 1 | V95: Not specified | W95: FALSE | AC95: 4 | AD95: Discharge after sedimentation | AT95: LCMP | AU95: 2
F96: NE | G96: =LOOKUP(H95,$J$42:$J$49,$L$42:$L$49) -> 1 | J96: Vegetation | Q96: 1 | R96: 0% | W96: =COUNTIF(W90:W95,"=true")/6 -> 0 | AC96: 5 | AD96: Nil / direct discharge | AS96: 1 | AT96: Yes
F97: SE | G97: =LOOKUP(H95,$J$52:$J$59,$L$52:$L$59) -> 1.5 | J97: NE | K97: 1 | Q97: 2 | R97: 0% - 1.25% | V97: ACH | W97: 2 | AS97: 2 | AT97: Unknown
F98: SW | G98: =LOOKUP(H95,$J$62:$J$69,$L$62:$L$69) -> 1.5 | J98: SE | K98: 1 | Q98: 3 | R98: > 1.25% | V98: Vulnerable or endangered species | W98: 2 | AD98: Trafficable surface | AE98: 5 | AS98: 3 | AT98: No
F99: NW | G99: =LOOKUP(H95,$J$72:$J$79,$L$72:$L$79) -> 1 | J99: SW | K99: 1 | Q99: =(SUM(Q90,Q94,Q95)/3*5)-1 -> 1.555555556 | AC99: 1 | AD99: All surfaces (100%)
F100: Speed | G100: 1 | J100: NW | K100: 1 | R100: No. Locations | AC100: 2 | AD100: Most surfaces (up to 75%)
F101: Calm | G101: 1 | Q101: 1 | R101: More than 4 | U101: 1 | V101: No | AC101: 3 | AD101: Some surfaces (up to 50%)
J102: October | K102: =ROUND((G64+G65)/2,0) -> 1 | Q102: 2 | R102: 4 | U102: 2 | V102: Unknown | AC102: 4 | AD102: Few surfaces (up to 25%)
F103: March | G103: =IF(G109*G110/2<1,1,G109*G110/2) -> 1 | J103: NE | K103: =$K$97*LOOKUP($H$59,$J$42:$J$49,$L$42:$L$49)+K102 -> 2 | L103: =ROUND(K103/31*8,0) -> 1 | Q103: 3 | R103: 3 | U103: 3 | V103: Yes | AC103: 5 | AD103: No surfaces (0%)
F104: Direction | G104: 1 | H104: =LOOKUP(G104,$G$25:$G$40,$H$25:$H$40) -> 0.5 | J104: SE | K104: =$K$98*LOOKUP($H$59,$J$52:$J$59,$L$52:$L$59)+K102 -> 2.5 | L104: =ROUND(K104/31*8,0) -> 1 | Q104: 4 | R104: 2
F105: NE | G105: =LOOKUP(H104,$J$42:$J$49,$L$42:$L$49) -> 1 | J105: SW | K105: =$K$99*LOOKUP($H$59,$J$62:$J$69,$L$62:$L$69)+K102 -> 2.5 | L105: =ROUND(K105/31*8,0) -> 1 | Q105: 5 | R105: 1 | V105: National Park / Reserve | W105: 1 | AD105: Liquid / hazardous storage | AE105: 1
F106: SE | G106: =LOOKUP(H104,$J$52:$J$59,$L$52:$L$59) -> 1.5 | J106: NW | K106: =$K$100*LOOKUP($H$59,$J$72:$J$79,$L$72:$L$79)+K102 -> 2 | L106: =ROUND(K106/31*8,0) -> 1 | V106: Protection / conservation zoned | W106: 1 | AC106: 1 | AD106: In concrete bunded area(s)
F107: SW | G107: =LOOKUP(H104,$J$62:$J$69,$L$62:$L$69) -> 1.5 | R107: Frequency | AC107: 2 | AD107: On spill proof pallet(s)
F108: NW | G108: =LOOKUP(H104,$J$72:$J$79,$L$72:$L$79) -> 1 | J108: November | K108: =ROUND((G73+G74)/2,0) -> 1 | Q108: 1 | R108: Monthly | AC108: 3 | AD108: In earth bund(s)
F109: Speed | G109: 1 | J109: NE | K109: =$K$97*LOOKUP(H68,$J$42:$J$49,$L$42:$L$49)+K108 -> 2 | L109: =ROUND(K109/31*8,0) -> 1 | Q109: 2 | R109: Quarterly | AC109: 4 | AD109: On hardstand(s)
F110: Calm | G110: 1 | J110: SE | K110: =$K$98*LOOKUP(H68,$J$52:$J$59,$L$52:$L$59)+K108 -> 2.5 | L110: =ROUND(K110/31*8,0) -> 1 | Q110: 3 | R110: Six-monthly | AC110: 5 | AD110: On the ground
J111: SW | K111: =$K$99*LOOKUP(H68,$J$62:$J$69,$L$62:$L$69)+K108 -> 2.5 | L111: =ROUND(K111/31*8,0) -> 1 | Q111: 4 | R111: Annually
J112: NW | K112: =$K$100*LOOKUP(H68,$J$72:$J$79,$L$72:$L$79)+K108 -> 2 | L112: =ROUND(K112/31*8,0) -> 1 | Q112: 5 | R112: Greater than annually / infrequently | U112: 1 | V112: > 5 | AD112: Under cover | AE112: 1
U113: 2 | V113: 1 - 5
J114: December | K114: =ROUND((G82+G83)/2,0) -> 1 | R114: Location of water monitoring | U114: 3 | V114: 0.5 - 1 | AD114: Dust control | AE114: =IF(AE119=0,5,6-AE119) -> 5
J115: NE | K115: =$K$97*LOOKUP(H77,$J$42:$J$49,$L$42:$L$49)+K114 -> 2 | L115: =ROUND(K115/31*8,0) -> 1 | Q115: 1 | R115: Up gradient and down gradient of premises | U115: 4 | V115: 0.25 - 0.5 | AD115: Minimise disturbance | AE115: FALSE
J116: SE | K116: =$K$98*LOOKUP(H77,$J$52:$J$59,$L$52:$L$59)+K114 -> 2.5 | L116: =ROUND(K116/31*8,0) -> 1 | Q116: 2 | R116: Down gradient of premises only | U116: 5 | V116: < 0.25 | AD116: Windbreaks | AE116: FALSE
J117: SW | K117: =$K$99*LOOKUP(H77,$J$62:$J$69,$L$62:$L$69)+K114 -> 2.5 | L117: =ROUND(K117/31*8,0) -> 1 | Q117: 3 | R117: Up gradient of premises only | U117: 6 | V117: Unknown | AD117: Suppression sprays | AE117: FALSE
J118: NW | K118: =$K$100*LOOKUP(H77,$J$72:$J$79,$L$72:$L$79)+K114 -> 2 | L118: =ROUND(K118/31*8,0) -> 1 | AD118: Other | AE118: FALSE
R119: Location of dust monitoring | V119: Visibility | W119: =IF(W125=0,1,W125) -> 1 | AE119: =ROUND(COUNTIF(AE115:AE118, "=true")/4*5,0) -> 0
J120: January | K120: =ROUND((G91+G92)/2,0) -> 1 | Q120: 1 | R120: Up wind and down wind of premises | V120: Residences | W120: FALSE | AD120: Litter control | AE120: =IF(AE125=0,5,6-AE125) -> 5
J121: NE | K121: =$K$97*LOOKUP(H86,$J$42:$J$49,$L$42:$L$49)+K120 -> 2 | L121: =ROUND(K121/31*8,0) -> 1 | Q121: 2 | R121: Down wind of premises only | V121: Urban area | W121: FALSE | AD121: Purpose built litter fences | AE121: FALSE
J122: SE | K122: =$K$98*LOOKUP(H86,$J$52:$J$59,$L$52:$L$59)+K120 -> 2.5 | L122: =ROUND(K122/31*8,0) -> 1 | Q122: 3 | R122: Up wind of premises only | V122: Highway | W122: FALSE | AD122: Litter cages | AE122: FALSE
J123: SW | K123: =$K$99*LOOKUP(H86,$J$62:$J$69,$L$62:$L$69)+K120 -> 2.5 | L123: =ROUND(K123/31*8,0) -> 1 | V123: Main road | W123: FALSE | AD123: Regular clean-up | AE123: FALSE
J124: NW | K124: =$K$100*LOOKUP(H86,$J$72:$J$79,$L$72:$L$79)+K120 -> 2 | L124: =ROUND(K124/31*8,0) -> 1 | R124: Concerns | V124: Lookout | W124: FALSE | AD124: Other | AE124: FALSE
Q125: 1 | R125: No | W125: =COUNTIF(W120:W124,"=true") -> 0 | AE125: =ROUND(COUNTIF(AE121:AE124, "=true")/4*5,0) -> 0
J126: February | K126: =ROUND((G100+G101)/2,0) -> 1 | Q126: 2 | R126: Unknown | AD126: Operational days | AE126: 3
J127: NE | K127: =$K$97*LOOKUP(H95,$J$42:$J$49,$L$42:$L$49)+K126 -> 2 | L127: =ROUND(K127/31*8,0) -> 1 | Q127: 3 | R127: Yes | V127: Bush fire prone area | W127: 1 | AC127: 1 | AD127: Weekdays only
J128: SE | K128: =$K$98*LOOKUP(H95,$J$52:$J$59,$L$52:$L$59)+K126 -> 2.5 | L128: =ROUND(K128/31*8,0) -> 1 | U128: 1 | V128: Not bush fire prone land | AC128: 2 | AD128: Weekdays and weekends
J129: SW | K129: =$K$99*LOOKUP(H95,$J$62:$J$69,$L$62:$L$69)+K126 -> 2.5 | L129: =ROUND(K129/31*8,0) -> 1 | U129: 2 | V129: Bush fire prone vegetation buffer | AC129: 3 | AD129: Weekends only
J130: NW | K130: =$K$100*LOOKUP(H95,$J$72:$J$79,$L$72:$L$79)+K126 -> 2 | L130: =ROUND(K130/31*8,0) -> 1 | U130: 3 | V130: Bush fire prone vegetation Category 2 or 3
U131: 4 | V131: Bush fire prone vegetation Category 1 | AD131: Operating hours | AE131: 3
J132: March | K132: =ROUND((G109+G110)/2,0) -> 1 | U132: 5 | V132: Unknown | AC132: 1 | AD132: Day only (7am to 6pm)
J133: NE | K133: =$K$97*LOOKUP(H104,$J$42:$J$49,$L$42:$L$49)+K132 -> 2 | L133: =ROUND(K133/31*8,0) -> 1 | AC133: 2 | AD133: Day and evening (7am to 10pm)
J134: SE | K134: =$K$98*LOOKUP(H104,$J$52:$J$59,$L$52:$L$59)+K132 -> 2.5 | L134: =ROUND(K134/31*8,0) -> 1 | AC134: 3 | AD134: 24 hours
J135: SW | K135: =$K$99*LOOKUP(H104,$J$62:$J$69,$L$62:$L$69)+K132 -> 2.5 | L135: =ROUND(K135/31*8,0) -> 1
J136: NW | K136: =$K$100*LOOKUP(H104,$J$72:$J$79,$L$72:$L$79)+K132 -> 2 | L136: =ROUND(K136/31*8,0) -> 1 | AD136: Plant and Equipment | AE136: =IF(AE147=0,1,6-AE147) -> 1
AD137: Bulldozer | AE137: FALSE
K138: Max | L138: =MAX(L103:L136) -> 1 | AD138: Excavator | AE138: FALSE
AD139: Front end loader | AE139: FALSE
AD140: Landfill compactor | AE140: FALSE
AD141: Small plant | AE141: FALSE
AD142: Tipper truck | AE142: FALSE
AD143: Backhoe | AE143: FALSE
AD144: Garbage truck | AE144: FALSE
AD145: MRF | AE145: FALSE
AD146: Vehicle wash | AE146: FALSE
AE147: =ROUND(COUNTIF(AE137:AE146, "=true")/10*5,0) -> 0
AD148: Collection services | AE148: =IF(AE153=0,5,6-AE153) -> 5
AD149: Mixed waste | AE149: FALSE
AD150: FOGO | AE150: FALSE | AF150: =IF(AE150=FALSE,5,1) -> 5
AD151: Recyclables | AE151: FALSE
AD152: Bulky | AE152: FALSE
AE153: =ROUND(COUNTIF(AE149:AE152, "=true")/4*5,0) -> 0
AD154: CRC | AE154: 2
AD156: Pest Management | AE156: =IF(AE163=0,5,6-AE163) -> 5
AD157: Mice/rats | AE157: FALSE
AD158: Cats/dogs | AE158: FALSE
AD159: Noxious weeds | AE159: FALSE
AD160: Pigs/goats | AE160: FALSE
AD161: Birds | AE161: FALSE
AD162: Flies/insects | AE162: FALSE
AE163: =ROUND(COUNTIF(AE157:AE162, "=true")/6*5,0) -> 0
AD164: Controlled burning | AE164: 5
AD166: Main Fire Capacity | AE166: 5
AC167: 1 | AD167: Fire main / dedicated fire water storage
AC168: 2 | AD168: On-site dam(s)
AC169: 3 | AD169: Earthmoving equipment
AC170: 4 | AD170: Fire extinguishers
AC171: 5 | AD171: None
AD173: Other fire management | AE173: =IF(AE179=0,5,6-AE179) -> 5
AD174: RFS / NSWFB response plan | AE174: FALSE
AD175: Fire breaks | AE175: FALSE
AD176: Soil stockpiles | AE176: FALSE
AD177: Maintenance schedule | AE177: FALSE
AD178: Other | AE178: FALSE
AE179: =ROUND(COUNTIF(AE174:AE178, "=true"),0) -> 0
AD180: Procedures | AE180: =IF(AE189=0,5,6-AE189) -> 5
AD181: General operation & management | AE181: FALSE
AD182: Waste screening | AE182: FALSE
AD183: Management of unlawfully disposed waste | AE183: FALSE
AD184: Fire response | AE184: FALSE
AD185: Environmental monitoring | AE185: FALSE
AD186: Pollution incident response | AE186: FALSE
AD187: Complaint response | AE187: FALSE
AD188: Other | AE188: FALSE
AE189: =ROUND(COUNTIF(AE181:AE188, "=true")/8*5,0) -> 0
AD190: Emergency services attendance | AE190: 1
AD192: Frequency
AC193: 1 | AD193: Very infrequently to never (eg. annually or more)
AC194: 2 | AD194: Infrequently (eg. quarterly)
AC195: 3 | AD195: Often (eg. monthly)
AC196: 4 | AD196: Frequently (eg. weekly)
AC197: 5 | AD197: Very frequently (eg. daily)
AD199: Operator at premises
AC200: 1 | AD200: Very frequently (eg. daily)
AC201: 2 | AD201: Frequently (eg. weekly)
AC202: 3 | AD202: Often (eg. monthly)
AC203: 4 | AD203: Infrequently (eg. quarterly)
AC204: 5 | AD204: Very infrequently to never (eg. annually or more)

Sheet Mitigation Data (hidden)
A1: Premises Details | E1: Meteorology | I1: Surrounding Landuse | M1: Topography | Q1: Environmental I & M | U1: Surrounding Environment | Z1: Community I, E & A | AC1: Common Operational | AJ1: Landfill Specific | AO1: Transfer Station Specific | AS1: Closed Landfill | AV1: Staff Training & Regulation
A3: 9 | B3: Counter | F3: =Data!F3 -> Rainfall | G3: =Data!G3 -> 1 | J3: =Data!J3 -> Landuse | N3: =Data!N3 -> Landform | O3: =Data!O3 -> 5 | R3: =Data!R3 -> Site Selection | S3: =Data!S3 -> 2 | V3: =Data!V3 -> Soils - surface | W3: =Data!W3 -> 2 | Z3: =Data!Z3 -> Direction to facility | AA3: =Data!AA3 -> 1 | AD3: =Data!AD3 -> Wastes - solid | AE3: =Data!AE3 -> D | AF3: =Data!AF3 -> S | AG3: =Data!AG3 -> Qty | AH3: =Data!AH3 -> Time | AI3: =ROUND(MAX(AI4:AI11),0) -> 1 | AK3: =Data!AK3 -> Landfilled wastes | AL3: =Data!AL3 -> D | AM3: =Data!AM3 -> Qty | AP3: =Data!AP3 -> Permanent | AQ3: 2 | AT3: =Data!AT3 -> Years in Operation | AU3: 5 | AW3: =Data!AW3 -> Operator training | AX3: =IF(AX14=0,5,6-AX14) -> 5
C4: =OR(C5=TRUE,C7=TRUE) -> FALSE | E4: =Data!E4 -> 1 | F4: =Data!F4 -> < 400 | I4: =Data!I4 -> 1 | J4: =Data!J4 -> Industrial | M4: =Data!M4 -> 1 | N4: =Data!N4 -> Mid Slope | R4: =Data!R4 -> EIS / SEE / REF | S4: =Data!S4 -> 2 | V4: =Data!V4 -> Soils - sub-surface | W4: =Data!W4 -> 1 | AB4: =IF(AE4=TRUE,1,0) -> 0 | AC4: =IF(AF4=TRUE,1,0) -> 0 | AD4: =Data!AD4 -> Municipal waste | AE4: FALSE | AF4: FALSE | AG4: 1 | AH4: 1 | AI4: =IF(AF4=FALSE,1,IF(AG4*AH4/5<1,1,AG4*AH4/5)) -> 1 | AK4: =Data!AK4 -> Asbestos | AL4: FALSE | AM4: 1 | AS4: =Data!AS4 -> 1 | AT4: =Data!AT4 -> < 5 | AW4: =Data!AW4 -> On-the-job | AX4: FALSE
B5: Active to closed | C5: =AND($A$10=1,$A$12=2) -> FALSE | E5: =Data!E5 -> 2 | F5: =Data!F5 -> 400 - 600 | I5: =Data!I5 -> 2 | J5: =Data!J5 -> Special purpose | M5: =Data!M5 -> 2 | N5: =Data!N5 -> Lower Slope | R5: =Data!R5 -> Environmental Audit | S5: 2 | U5: =Data!U5 -> 1 | V5: =Data!V5 -> Clay (CL, OL, CH, OH) | Z5: =Data!Z5 -> Site signage | AA5: =IF(AA16=0,5,6-AA16) -> 5 | AD5: =Data!AD5 -> Recyclables | AE5: FALSE | AF5: FALSE | AG5: 1 | AH5: 1 | AI5: =IF(AF5=FALSE,1,IF(AG5*AH5/5<1,1,AG5*AH5/5)) -> 1 | AK5: =Data!AK5 -> Clinical / pharmaceutical waste | AL5: FALSE | AM5: 1 | AP5: =Data!AP5 -> Method | AQ5: 4 | AS5: =Data!AS5 -> 2 | AT5: =Data!AT5 -> 5 - 10 | AW5: =Data!AW5 -> Site-specific operating procedures | AX5: FALSE
B6: Active to TS | C6: =AND($A$10=1,$A$12=3) -> FALSE | E6: =Data!E6 -> 3 | F6: =Data!F6 -> 600 - 800 | I6: =Data!I6 -> 3 | J6: =Data!J6 -> Business | M6: =Data!M6 -> 3 | N6: =Data!N6 -> Upper Slope | R6: =Data!R6 -> Environmental Investigation | S6: 2 | U6: =Data!U6 -> 2 | V6: =Data!V6 -> Silt (ML, OL, MH, OH) | Z6: =Data!Z6 -> Operating hours | AA6: FALSE | AB6: =IF(AE6=TRUE,1,0) -> 0 | AC6: =IF(AF6=TRUE,1,0) -> 0 | AD6: =Data!AD6 -> Commercial & industrial waste | AE6: FALSE | AF6: FALSE | AG6: 1 | AH6: 1 | AI6: 1 | AK6: =Data!AK6 -> Animal carcasses / parts | AL6: FALSE | AM6: 1 | AN6: =IF(AL6=TRUE,AM6,1) -> 1 | AO6: =Data!AO6 -> 1 | AP6: =IF($AQ$6<=AO6,"No change proposed",Data!AP6) -> Mobile Garbage Bin Bank | AQ6: =Data!AQ5 -> 4 | AS6: =Data!AS6 -> 3 | AT6: =Data!AT6 -> 10 - 20 | AW6: =Data!AW6 -> Earthmoving | AX6: FALSE
B7: Closed | C7: =AND($A$10=2) -> FALSE | E7: =Data!E7 -> 4 | F7: =Data!F7 -> 800 - 1,000 | I7: =Data!I7 -> 4 | J7: =Data!J7 -> Rural | M7: =Data!M7 -> 4 | N7: =Data!N7 -> Crest | R7: =Data!R7 -> EMP | S7: 2 | U7: =Data!U7 -> 3 | V7: =Data!V7 -> Sand (SP, SW, SM, SC) | Z7: =Data!Z7 -> Permitted wastes | AA7: FALSE | AD7: =Data!AD7 -> Construction & demolition waste | AE7: FALSE | AF7: FALSE | AG7: 1 | AH7: 1 | AI7: 1 | AK7: =Data!AK7 -> Biosolids | AL7: FALSE | AM7: 3 | AN7: =IF(AL7=TRUE,AM7,1) -> 1 | AO7: =Data!AO7 -> 2 | AP7: =IF($AQ$6<=AO7,"No change proposed",Data!AP7) -> Small bulk bins (< 5 cubic metres) | AS7: =Data!AS7 -> 4 | AT7: =Data!AT7 -> 20 - 40 | AW7: =Data!AW7 -> Waste facility operations | AX7: FALSE
B8: TS on closed | C8: =AND($A$10=3,$AQ$25=1) -> FALSE | E8: =Data!E8 -> 5 | F8: =Data!F8 -> > 1,000 | I8: =Data!I8 -> 5 | J8: =Data!J8 -> Recreation | M8: =Data!M8 -> 5 | N8: =Data!N8 -> Flat / Floodplain | Q8: 1 | R8: =Data!R8 -> Yes | U8: =Data!U8 -> 4 | V8: =Data!V8 -> Gravel (GP, GW, GM ,GC) | Z8: =Data!Z8 -> Fees/charges | AA8: FALSE | AB8: =IF(AE8=TRUE,1,0) -> 0 | AC8: =IF(AF8=TRUE,1,0) -> 0 | AD8: =Data!AD8 -> Garden & vegetation waste | AE8: FALSE | AF8: FALSE | AG8: 1 | AH8: 1 | AI8: 1 | AK8: =Data!AK8 -> Contaminated soil | AL8: FALSE | AM8: 1 | AO8: =Data!AO8 -> 3 | AP8: =IF($AQ$6<=AO8,"No change proposed",Data!AP8) -> Large bulk bins (> 5 cubic metres) | AS8: =Data!AS8 -> 5 | AT8: =Data!AT8 -> > 40 | AW8: =Data!AW8 -> Pesticides | AX8: FALSE
C9: =OR(C5=TRUE,C6=TRUE, C7=TRUE, C8=TRUE) -> FALSE | I9: =Data!I9 -> 6 | J9: =Data!J9 -> Residential | Q9: 2 | R9: No | U9: =Data!U9 -> 5 | V9: =Data!V9 -> Unknown | Z9: =Data!Z9 -> Fires prohibited | AA9: FALSE | AD9: =Data!AD9 -> Virgin excavated natural material | AE9: FALSE | AF9: FALSE | AG9: 1 | AH9: 1 | AI9: 1 | AL9: =COUNTIF(AL4:AL8,"=true") -> 0 | AM9: =IF(AL9<>0,AN9,1) -> 1 | AN9: =ROUND(SUM(AM4:AM8)/5,0) -> 1 | AO9: 4 | AP9: =IF($AQ$6<=AO9,"No change proposed",Data!AP9) -> No change proposed | AW9: =Data!AW9 -> Fire fighting | AX9: FALSE
A10: =Data!A12 -> 1 | B10: Facility type | F10: =Data!F10 -> No. rain days > 10mm | G10: =Data!G10 -> 1 | I10: =Data!I10 -> 7 | J10: =Data!J10 -> Environment protection | Z10: =Data!Z10 -> Trespassing prohibited | AA10: FALSE | AD10: =Data!AD10 -> Scrap metal | AE10: FALSE | AF10: FALSE | AG10: 1 | AH10: 1 | AI10: 1 | AK10: =Data!AK10 -> Landfilling | AL10: 5 | AP10: =Data!AP10 -> Construction | AQ10: 3 | AT10: =Data!AT10 -> When Closed | AU10: 5 | AW10: =Data!AW10 -> Haz substances | AX10: FALSE
A11: . | B11: =IF(A10>2,"Transfer Station",IF(A10=2,"Closed Landfill","Active Landfill")) -> Active Landfill | E11: =Data!E11 -> 1 | F11: =Data!F11 -> < 10 | V11: =Data!V11 -> Erosion | W11: =Data!W11 -> 1 | Z11: =Data!Z11 -> Contact | AA11: FALSE | AD11: =Data!AD11 -> Others | AE11: FALSE | AF11: FALSE | AG11: 1 | AH11: 1 | AI11: 1 | AJ11: =Data!AJ11 -> 1 | AK11: =IF($AL$11<=AJ11,"No change proposed",Data!AK11) -> Engineered cell | AL11: =Data!AL10 -> 5 | AO11: =Data!AO11 -> 1 | AP11: =IF($AQ$11<=AO11,"No change proposed",Data!AP11) -> Raised drop-off area | AQ11: =IF(Data!$A$12=1,4,Data!AQ10) -> 4 | AS11: =Data!AS11 -> 1 | AT11: =Data!AT11 -> <5 | AW11: =Data!AW11 -> Environmental monitoring | AX11: FALSE
A12: 1 | B12: Mitigation type | E12: =Data!E12 -> 2 | F12: =Data!F12 -> 10 - 20 | J12: =Data!J12 -> Buffer distances | Q12: =IF(S12=2,5,IF(ROUND(S12+Q41,0)>5,5,ROUND(S12+Q41,0))) -> 5 | R12: =Data!R12 -> Groundwater monitoring | S12: 2 | U12: =Data!U12 -> 1 | V12: =Data!V12 -> Negligible to Slight (<50) | Z12: =Data!Z12 -> Drop-off Locations | AA12: FALSE | AB12: =IF(SUM(AB4+AB6+AB8+AB26>0),5,1) -> 1 | AC12: =IF(SUM(AC4+AC6+AC8+AC26>0),2,1) -> 1 | AE12: =IF(AC12>0,5,1) -> 5 | AF12: =IF(COUNTIF(AF4:AF11,TRUE)>0,TRUE,FALSE) -> FALSE | AJ12: =Data!AJ12 -> 2 | AK12: =IF($AL$11<=AJ12,"No change proposed",Data!AK12) -> Deep trench (>2m deep) | AO12: =Data!AO12 -> 2 | AP12: =IF($AQ$11<=AO12,"No change proposed",Data!AP12) -> Concrete hardstand | AS12: =Data!AS12 -> 2 | AT12: =Data!AT12 -> 5 - 10 | AW12: =Data!AW12 -> Environmental management | AX12: FALSE
B13: =IF(A10>1,IF(A10=2,"Mitigation of existing landfill","Mitigation of existing transfer station"),IF(A12>2,"Close landfill & establish transfer station",IF(A12=2,"Close landfill","Mitigation of existing landfill"))) -> Mitigation of existing landfill | E13: =Data!E13 -> 3 | F13: =Data!F13 -> 20 - 30 | I13: =Data!I13 -> 1 | J13: =Data!J13 -> > 5 | Q13: =S13/5 -> 0 | R13: =Data!R13 -> No. Locations | U13: =Data!U13 -> 2 | V13: =Data!V13 -> Moderate (50 - 200) | Z13: =Data!Z13 -> Offences and penalties | AA13: FALSE | AD13: =Data!AD13 -> Tyres | AE13: FALSE | AF13: FALSE | AG13: 1 | AH13: 1 | AI13: =IF(AF13=FALSE,1,IF(AG13*AH13/5<1,1,ROUND(AG13*AH13/5,0))) -> 1 | AJ13: =Data!AJ13 -> 3 | AK13: =IF($AL$11<=AJ13,"No change proposed",Data!AK13) -> Shallow trench (<2m deep) | AO13: =Data!AO13 -> 3 | AP13: =IF($AQ$11<=AO13,"No change proposed",Data!AP13) -> No specific construction | AS13: =Data!AS13 -> 3 | AT13: =Data!AT13 -> 10 - 25 | AW13: =Data!AW13 -> Other | AX13: FALSE
E14: =Data!E14 -> 4 | F14: =Data!F14 -> 30 - 40 | I14: =Data!I14 -> 2 | J14: =Data!J14 -> 1 - 5 | Q14: 1 | R14: =IF($S$14<=Q14,"No change proposed",R161) -> More than 4 | S14: =IF(Data!$S$12=1,Data!S13, 6) -> 6 | U14: =Data!U14 -> 3 | V14: =Data!V14 -> High (200 - 1,000) | Z14: =Data!Z14 -> Conditions of receipt | AA14: FALSE | AE14: =IF(AE13=TRUE,5,1) -> 1 | AI14: =ROUND(MAX(AI15:AI17),0) -> 1 | AJ14: =Data!AJ14 -> 4 | AK14: =IF($AL$11<=AJ14,"No change proposed",Data!AK14) -> Excavated pit / valley | AS14: =Data!AS14 -> 4 | AT14: =Data!AT14 -> 25 - 50 | AX14: =ROUND(COUNTIF(AX4:AX13, "=true")/2,0) -> 0
B15: =Data!B15 -> Amount received | C15: =IF(A10=1,IF(A12=2,1,Data!C15),Data!C15) -> 1 | E15: =Data!E15 -> 5 | F15: =Data!F15 -> >40 | I15: =Data!I15 -> 3 | J15: =Data!J15 -> 0.5 - 1 | Q15: 2 | R15: =IF($S$14<=Q15,"No change proposed",R162) -> 4 | U15: =Data!U15 -> 4 | V15: =Data!V15 -> Very High to Extreme (1,000 - >3,000) | Z15: =Data!Z15 -> General | AA15: FALSE | AD15: =Data!AD15 -> Chemical containers | AF15: FALSE | AG15: 1 | AH15: 1 | AI15: 1 | AJ15: =Data!AJ15 -> 5 | AK15: =IF($AL$11<=AJ15,"No change proposed",Data!AK15) -> No change proposed | AP15: =Data!AP15 -> Covered | AQ15: 2 | AS15: =Data!AS15 -> 5 | AT15: =Data!AT15 -> > 50 | AW15: =Data!AW15 -> Authorised officers | AX15: =IF(AX18=0,3,IF(AX18=1,2,1)) -> 3
A16: =Data!A16 -> 1 | B16: =DR!C8 -> 0 - 100 | I16: =Data!I16 -> 4 | J16: =Data!J16 -> 0.25 - 0.5 | Q16: 3 | R16: =IF($S$14<=Q16,"No change proposed",R163) -> 3 | U16: =Data!U16 -> 5 | V16: =Data!V16 -> Unknown | AA16: =ROUND(COUNTIF(AA6:AA15, "=true")/2,0) -> 0 | AD16: =Data!AD16 -> Batteries | AF16: FALSE | AG16: 1 | AH16: 1 | AI16: 1 | AW16: =Data!AW16 -> On-site | AX16: 2
A17: =Data!A17 -> 2 | B17: =DR!C9 -> 100 - 500 | F17: =Data!F17 -> Evaporation | G17: =Data!G17 -> 1 | I17: =Data!I17 -> 5 | J17: =Data!J17 -> < 0.25 | Q17: 4 | R17: =IF($S$14<=Q17,"No change proposed",R164) -> 2 | Z17: =Data!Z17 -> Communication | AA17: =IF(AA23=0,5,6-AA23) -> 5 | AD17: =Data!AD17 -> Hazardous waste | AF17: FALSE | AG17: 1 | AH17: 1 | AI17: 1 | AK17: =Data!AK17 -> Active fill areas | AL17: 5 | AP17: =Data!AP17 -> Lids | AQ17: 2 | AT17: =Data!AT17 -> Amount received | AU17: 5 | AW17: =Data!AW17 -> For operator | AX17: 2
A18: =Data!A18 -> 3 | B18: =DR!C10 -> 500 - 1,000 | E18: =Data!E18 -> 1 | F18: =Data!F18 -> >2,000 | Q18: 5 | R18: =IF($S$14<=Q18,"No change proposed",R165) -> 1 | V18: =Data!V18 -> Drinking water catchment | W18: =Data!W18 -> 1 | Z18: =Data!Z18 -> Direct | AA18: FALSE | AF18: =IF(COUNTIF(AF15:AF17,TRUE)>0,TRUE,FALSE) -> FALSE | AJ18: =Data!AJ18 -> 1 | AK18: =IF($AL$18<=AJ18,"No change proposed",Data!AK18) -> 1 | AL18: =Data!AL17 -> 5 | AS18: =Data!AS18 -> 1 | AT18: =Data!AT18 -> 0 - 100 | AX18: =COUNTIF(AX16:AX17,"=1") -> 0
A19: =Data!A19 -> 4 | B19: =DR!C11 -> 1,000 - 2,500 | E19: =Data!E19 -> 2 | F19: =Data!F19 -> 1,800 - 2,000 | J19: =Data!J19 -> NE | Q19: =S19/3 -> 0 | R19: =Data!R14 -> Distribution | U19: =Data!U19 -> 1 | V19: =Data!V19 -> No | Z19: =Data!Z19 -> Operator print info | AA19: FALSE | AD19: =Data!AD19 -> Wastes - liquid | AI19: =ROUND(MAX(AI20:AI26),0) -> 1 | AJ19: =Data!AJ19 -> 2 | AK19: =IF($AL$18<=AJ19,"No change proposed",Data!AK19) -> 2 | AP19: =Data!AP19 -> Processing / sorting | AQ19: 2 | AS19: =Data!AS19 -> 2 | AT19: =Data!AT19 -> 100 - 500 | AW19: =Data!AW19 -> Regulator enforcement activities | AX19: =IF(AX25=0,5,6-AX25) -> 5
A20: =Data!A20 -> 5 | B20: =DR!C12 -> 2,500 - 5,000 | E20: =Data!E20 -> 3 | F20: =Data!F20 -> 1,600 - 1,800 | J20: =Data!J20 -> Landuse | K20: =Data!K20 -> 1 | Q20: 1 | R20: =IF($S$20<=Q20,"No change proposed",R175) -> Up gradient and down gradient of premises | S20: =IF(Data!$S$12=1,Data!S14, 4) -> 4 | U20: =Data!U20 -> 2 | V20: =Data!V20 -> Unknown | Z20: =Data!Z20 -> Internet | AA20: FALSE | AD20: =Data!AD20 -> Waste mineral oil | AF20: FALSE | AG20: 1 | AH20: 1 | AI20: 1 | AJ20: =Data!AJ20 -> 3 | AK20: =IF($AL$18<=AJ20,"No change proposed",Data!AK20) -> 3 | AS20: =Data!AS20 -> 3 | AT20: =Data!AT20 -> 500 - 1,000 | AW20: =Data!AW20 -> Verbal warning | AX20: FALSE
E21: =Data!E21 -> 4 | F21: =Data!F21 -> 1,400 - 1,600 | J21: =Data!J21 -> Residence | K21: =Data!K21 -> 1 | Q21: 2 | R21: =IF($S$20<=Q21,"No change proposed",R176) -> Down gradient of premises only | U21: =Data!U21 -> 3 | V21: =Data!V21 -> Yes | Z21: =Data!Z21 -> Media | AA21: FALSE | AD21: =Data!AD21 -> Waste cooking oil | AF21: FALSE | AG21: 1 | AH21: 1 | AI21: 1 | AJ21: =Data!AJ21 -> 4 | AK21: =IF($AL$18<=AJ21,"No change proposed",Data!AK21) -> 4 | AP21: =Data!AP21 -> Disposal | AQ21: 2 | AS21: =Data!AS21 -> 4 | AT21: =Data!AT21 -> 1,000 - 2,500 | AW21: =Data!AW21 -> Warning letters | AX21: FALSE
B22: =Data!B22 -> Area | C22: =Data!C22 -> 5 | E22: =Data!E22 -> 5 | F22: =Data!F22 -> < 1,400 | J22: =Data!J22 -> Residential Area | K22: =Data!K22 -> 1 | Q22: 3 | R22: =IF($S$20<=Q22,"No change proposed",R177) -> Up gradient of premises only | Z22: =Data!Z22 -> Other | AA22: FALSE | AD22: =Data!AD22 -> Paint | AF22: FALSE | AG22: 1 | AH22: 1 | AI22: 1 | AJ22: =Data!AJ22 -> 5 | AK22: =IF($AL$18<=AJ22,"No change proposed",Data!AK22) -> No change proposed | AO22: =Data!AO22 -> 1 | AP22: =IF($AQ$22<=AO22,"No change proposed",Data!AP22) -> Licensed waste facility | AQ22: =IF(Data!$A$12=1,3,Data!AQ21) -> 3 | AS22: =Data!AS22 -> 5 | AT22: =Data!AT22 -> 2,500 - 5,000 | AW22: =Data!AW22 -> Notices / orders | AX22: FALSE
A23: =Data!A23 -> 1 | B23: =Data!B23 -> <1,000 | K23: =Data!K23 -> 0.8823529412 | Q23: =S23/5 -> 0 | R23: =Data!R15 -> Frequency | V23: =Data!V23 -> 0 | W23: =Data!W23 -> 0 | AA23: =ROUND(COUNTIF(AA18:AA22, "=true"),0) -> 0 | AD23: =Data!AD23 -> Grease trap waste | AE23: FALSE | AF23: FALSE | AG23: 1 | AH23: 1 | AI23: 1 | AO23: =Data!AO23 -> 2 | AP23: =IF($AQ$22<=AO23,"No change proposed",Data!AP23) -> Unlicensed waste facility | AW23: =Data!AW23 -> Penalty infringement notice | AX23: FALSE
A24: =Data!A24 -> 2 | B24: =Data!B24 -> 1,000 - 2,500 | F24: =Data!F24 -> Prevailing Wind Direction | G24: =Data!G24 -> 1 | J24: =Data!J24 -> SE | Q24: 1 | R24: =IF($S$24<=Q24,"No change proposed",R168) -> Monthly | S24: =IF(Data!$S$12=1,Data!S15, 6) -> 6 | U24: =Data!U24 -> 0 | V24: =Data!V24 -> 0 | Z24: =Data!Z24 -> Themes | AA24: =IF(AA31=0,5,6-AA31) -> 5 | AD24: =Data!AD24 -> Oily water waste | AE24: FALSE | AF24: FALSE | AG24: 1 | AH24: 1 | AI24: 1 | AK24: =Data!AK24 -> Compaction | AL24: 3 | AT24: =Data!AT24 -> Disposal method | AU24: 5 | AW24: =Data!AW24 -> Prosecution | AX24: FALSE
A25: =Data!A25 -> 3 | B25: =Data!B25 -> 2,500 - 5,000 | F25: =Data!F25 -> N | J25: =Data!J25 -> Landuse | K25: =Data!K25 -> 1 | Q25: 2 | R25: =IF($S$24<=Q25,"No change proposed",R169) -> Quarterly | U25: =Data!U25 -> 0 | V25: =Data!V25 -> 0 | Z25: =Data!Z25 -> General | AA25: FALSE | AD25: =Data!AD25 -> Septic waste | AE25: FALSE | AF25: FALSE | AG25: 1 | AH25: 1 | AI25: 1 | AJ25: =Data!AJ25 -> 1 | AK25: =IF($AL$25<=AJ25,"No change proposed",Data!AK25) -> Landfill compactor | AL25: =Data!AL24 -> 3 | AP25: =Data!AP25 -> Closed landfill | AQ25: =Data!AQ25 -> 2 | AS25: =Data!AS25 -> 1 | AT25: =Data!AT25 -> Engineered cell | AX25: =ROUND(COUNTIF(AX20:AX24, "=true"),0) -> 0
A26: =Data!A26 -> 4 | B26: =Data!B26 -> 5,000 - 10,000 | F26: =Data!F26 -> NNE | J26: =Data!J26 -> Residence | K26: =Data!K26 -> 1 | Q26: 3 | R26: =IF($S$24<=Q26,"No change proposed",R170) -> Six-monthly | U26: =Data!U26 -> 0 | V26: =Data!V26 -> 0 | Z26: =Data!Z26 -> Reduce, reuse, recycle | AA26: FALSE | AD26: =Data!AD26 -> Others | AE26: FALSE | AF26: FALSE | AG26: 1 | AH26: 1 | AI26: 1 | AJ26: =Data!AJ26 -> 2 | AK26: =IF($AL$25<=AJ26,"No change proposed",Data!AK26) -> Tracked plant (e.g. bulldozer) | AS26: =Data!AS26 -> 2 | AT26: =Data!AT26 -> Deep trench (>2m deep)
A27: =Data!A27 -> 5 | B27: =Data!B27 -> > 10,000 | F27: =Data!F27 -> NE | J27: =Data!J27 -> Residential Area | K27: =Data!K27 -> 1 | Q27: 4 | R27: =IF($S$24<=Q27,"No change proposed",R171) -> Annually | U27: =Data!U27 -> 0 | V27: =Data!V27 -> 0 | Z27: =Data!Z27 -> Asbestos | AA27: FALSE | AE27: =IF(COUNTIF(AE23:AE26,"=true")>0,5,1) -> 1 | AF27: =COUNTIF(AF20:AF26,"=true") -> 0 | AG27: =COUNTIF(AF15:AF26,"=true") -> 0 | AJ27: =Data!AJ27 -> 3 | AK27: =IF($AL$25<=AJ27,"No change proposed",Data!AK27) -> No change proposed | AP27: Method | AS27: =Data!AS27 -> 3 | AT27: =Data!AT27 -> Shallow trench (<2m deep)
F28: =Data!F28 -> ENE | K28: =Data!K28 -> 1.102941176 | Q28: 5 | R28: =IF($S$24<=Q28,"No change proposed",R172) -> Greater than annually / infrequently | U28: =Data!U28 -> 0 | V28: =Data!V28 -> 0 | Z28: =Data!Z28 -> Hazardous / chem wastes | AA28: FALSE | AD28: =Data!AD28 -> Open to public | AE28: 6 | AO28: 1 | AP28: Mobile Garbage Bin Bank | AS28: =Data!AS28 -> 4 | AT28: =Data!AT28 -> Excavated pit
B29: =Data!B29 -> Age | C29: =Data!C29 -> 5 | F29: =Data!F29 -> E | J29: =Data!J29 -> SW | Q29: =S29/10 -> 1 | R29: =Data!R16 -> Parameters | S29: =COUNTIF(S30:S39,"=false") -> 10 | Z29: =Data!Z29 -> Illegal dumping | AA29: FALSE | AC29: =Data!AC29 -> 1 | AD29: =IF($AE$29<=AC29,"No change proposed",Data!AD29) -> Not open to the public | AE29: =Data!AE28 -> 6 | AK29: =Data!AK29 -> Covering method | AL29: 5 | AO29: 2 | AP29: Small bulk bins (< 5 cubic metres) | AS29: =Data!AS29 -> 5 | AT29: =Data!AT29 -> Above ground fill / disposal
A30: =Data!A30 -> 1 | B30: =Data!B30 -> < 5 | F30: =Data!F30 -> ESE | J30: =Data!J30 -> Landuse | K30: =Data!K30 -> 1 | R30: =Data!R17 -> Level | S30: FALSE | V30: =Data!V30 -> Slope | W30: =Data!W30 -> 1 | Z30: =Data!Z30 -> Other | AA30: FALSE | AC30: =Data!AC30 -> 2 | AD30: =IF($AE$29<=AC30,"No change proposed",Data!AD30) -> Restricted hours, restricted days | AJ30: =Data!AJ30 -> 1 | AK30: =IF($AL$30<=AJ30,"No change proposed",Data!AK30) -> Geosynthetic material | AL30: =Data!AL29 -> 5 | AO30: 3 | AP30: Large bulk bins (> 5 cubic metres)
A31: =Data!A31 -> 2 | B31: =Data!B31 -> 5 - 10 | F31: =Data!F31 -> SE | J31: =Data!J31 -> Residence | K31: =Data!K31 -> 1 | R31: =Data!R18 -> pH | S31: FALSE | U31: =Data!U31 -> 1 | V31: =Data!V31 -> 0 - 2 | AA31: =ROUND(COUNTIF(AA25:AA30, "=true")/6*5,0) -> 0 | AC31: =Data!AC31 -> 3 | AD31: =IF($AE$29<=AC31,"No change proposed",Data!AD31) -> Restricted hours, 7 days per week | AJ31: =Data!AJ31 -> 2 | AK31: =IF($AL$30<=AJ31,"No change proposed",Data!AK31) -> Alternative material | AO31: 4 | AP31: Bunker / other method | AT31: =Data!AT31 -> How Capped | AU31: 5
A32: =Data!A32 -> 3 | B32: =Data!B32 -> 10 - 20 | F32: =Data!F32 -> SSE | J32: =Data!J32 -> Residential Area | K32: =Data!K32 -> 1 | R32: =Data!R19 -> EC | S32: FALSE | U32: =Data!U32 -> 2 | V32: =Data!V32 -> 2 - 5 | AC32: =Data!AC32 -> 4 | AD32: =IF($AE$29<=AC32,"No change proposed",Data!AD32) -> Daylight hours only, restricted days | AJ32: =Data!AJ32 -> 3 | AK32: =IF($AL$30<=AJ32,"No change proposed",Data!AK32) -> Imported clay material | AS32: =Data!AS32 -> 1 | AT32: =IF($AU$32<=AS32,"No change proposed",Data!AT32) -> Membrane / geosynthetic material | AU32: =IF(Data!$A$12=1,6,Data!AU31) -> 6
A33: =Data!A33 -> 4 | B33: =Data!B33 -> 20 - 40 | F33: =Data!F33 -> S | K33: =Data!K33 -> 1.102941176 | R33: =Data!R20 -> Ammonia | S33: FALSE | U33: =Data!U33 -> 3 | V33: =Data!V33 -> 5 - 10 | AC33: =Data!AC33 -> 5 | AD33: =IF($AE$29<=AC33,"No change proposed",Data!AD33) -> Daylight hours only, 7 days per week | AJ33: =Data!AJ33 -> 4 | AK33: =IF($AL$30<=AJ33,"No change proposed",Data!AK33) -> Imported material | AP33: Construction | AS33: =Data!AS33 -> 2 | AT33: =IF($AU$32<=AS33,"No change proposed",Data!AT33) -> Imported clay material
A34: =Data!A34 -> 5 | B34: =Data!B34 -> > 40 | F34: =Data!F34 -> SSW | J34: =Data!J34 -> NW | R34: =Data!R21 -> Nitrate | S34: FALSE | U34: =Data!U34 -> 4 | V34: =Data!V34 -> 10 - 25 | AC34: =Data!AC34 -> 6 | AD34: =IF($AE$29<=AC34,"No change proposed",Data!AD34) -> No change proposed | AJ34: =Data!AJ34 -> 5 | AK34: =IF($AL$30<=AJ34,"No change proposed",Data!AK34) -> No change proposed | AO34: 1 | AP34: Raised drop-off area | AS34: =Data!AS34 -> 3 | AT34: =IF($AU$32<=AS34,"No change proposed",Data!AT34) -> Imported material
F35: =Data!F35 -> SW | J35: =Data!J35 -> Landuse | K35: =Data!K35 -> 1 | R35: =Data!R22 -> TOC | S35: FALSE | U35: =Data!U35 -> 5 | V35: =Data!V35 -> > 25 | AO35: 2 | AP35: Concrete hardstand | AS35: =Data!AS35 -> 4 | AT35: =IF($AU$32<=AS35,"No change proposed",Data!AT35) -> On-site material
F36: =Data!F36 -> WSW | J36: =Data!J36 -> Residence | K36: =Data!K36 -> 1 | R36: =Data!R23 -> Alkalinity | S36: FALSE | AD36: =Data!AD36 -> Perimeter | AE36: 5 | AK36: =Data!AK36 -> Frequency of covering | AL36: 5 | AO36: 3 | AP36: No specific construction | AS36: =Data!AS36 -> 5 | AT36: =IF($AU$32<=AS36,"No change proposed",Data!AT36) -> No capping
F37: =Data!F37 -> W | J37: =Data!J37 -> Residential Area | K37: =Data!K37 -> 1 | R37: =Data!R24 -> Iron | S37: FALSE | V37: =Data!V37 -> Erosion | W37: =IF(W44=0,1,(ROUND(W44*5,0))) -> 1 | AC37: =Data!AC37 -> 1 | AD37: =IF($AE$37<=AC37,"No change proposed",Data!AD37) -> 8ft security fence | AE37: =Data!AE36 -> 5 | AJ37: =Data!AJ37 -> 1 | AK37: =IF($AL$37<=AJ37,"No change proposed",Data!AK37) -> Very frequently (eg. daily) | AL37: =Data!AL36 -> 5
F38: =Data!F38 -> WNW | K38: =Data!K38 -> 0.8823529412 | R38: =Data!R25 -> Pesticides | S38: FALSE | V38: =Data!V38 -> Wind | W38: =Data!W38 -> FALSE | AC38: =Data!AC38 -> 2 | AD38: =IF($AE$37<=AC38,"No change proposed",Data!AD38) -> 6ft chainlink / colourbond fence | AJ38: =Data!AJ38 -> 2 | AK38: =IF($AL$37<=AJ38,"No change proposed",Data!AK38) -> Frequently (eg. weekly) | AP38: Disposal | AT38: =Data!AT38 -> Slope | AU38: 5
F39: =Data!F39 -> NW | R39: Others | S39: FALSE | V39: =Data!V39 -> Sheet | W39: =Data!W39 -> FALSE | AC39: =Data!AC39 -> 3 | AD39: =IF($AE$37<=AC39,"No change proposed",Data!AD39) -> Stock fence | AJ39: =Data!AJ39 -> 3 | AK39: =IF($AL$37<=AJ39,"No change proposed",Data!AK39) -> Often (eg. monthly) | AO39: 1 | AP39: Licensed waste facility | AS39: =Data!AS39 -> 1 | AT39: =IF($AU$39<=AS39,"No change proposed",Data!AT39) -> 0% - 2% | AU39: =IF(Data!$A$12=1,6,Data!AU38) -> 6
B40: =Data!B40 -> Proximity | F40: =Data!F40 -> NNW | Q40: =S40/3 -> 0 | R40: =Data!R27 -> Concerns | S40: =Data!S27 -> 0 | V40: =Data!V40 -> Rill | W40: =Data!W40 -> FALSE | AC40: =Data!AC40 -> 4 | AD40: =IF($AE$37<=AC40,"No change proposed",Data!AD40) -> Partial perimeter fence | AJ40: =Data!AJ40 -> 4 | AK40: =IF($AL$37<=AJ40,"No change proposed",Data!AK40) -> Infrequently (eg. quarterly) | AO40: 2 | AP40: Unlicensed waste facility | AS40: =Data!AS40 -> 2 | AT40: =IF($AU$39<=AS40,"No change proposed",Data!AT40) -> 2% - 5%
A41: =Data!A41 -> 1 | B41: =Data!B41 -> >100 | Q41: =SUM(Q40,Q29,Q23,Q19,Q13)-1 -> 0 | V41: =Data!V41 -> Gully | W41: =Data!W41 -> FALSE | AC41: =Data!AC41 -> 5 | AD41: =IF($AE$37<=AC41,"No change proposed",Data!AD41) -> No change proposed | AJ41: =Data!AJ41 -> 5 | AK41: =IF($AL$37<=AJ41,"No change proposed",Data!AK41) -> No change proposed | AS41: =Data!AS41 -> 3 | AT41: =IF($AU$39<=AS41,"No change proposed",Data!AT41) -> 5% - 10%
A42: =Data!A42 -> 2 | B42: =Data!B42 -> 50 - 100 | F42: =Data!F42 -> Calm | G42: =Data!G42 -> 1 | Q42: =IF(S42=2,5,IF(ROUND(S42+Q70,0)>5,5,ROUND(S42+Q70,0))) -> 5 | R42: =Data!R29 -> Surface water monitoring | S42: 2 | V42: =Data!V42 -> Tunnel | W42: =Data!W42 -> FALSE | AS42: =Data!AS42 -> 4 | AT42: =IF($AU$39<=AS42,"No change proposed",Data!AT42) -> 10% - 25%
A43: =Data!A43 -> 3 | B43: =Data!B43 -> 25 - 50 | E43: =Data!E43 -> 1 | F43: =Data!F43 -> > 20 | Q43: =S43/5 -> 0 | R43: =Data!R30 -> No. Locations | V43: =Data!V43 -> Mass movement | W43: =Data!W43 -> FALSE | AD43: =Data!AD43 -> Access security | AE43: 5 | AK43: =Data!AK43 -> Filling Plan | AL43: 2 | AS43: =Data!AS43 -> 5 | AT43: =IF($AU$39<=AS43,"No change proposed",Data!AT43) -> > 25%
A44: =Data!A44 -> 4 | B44: =Data!B44 -> <25 | E44: =Data!E44 -> 2 | F44: =Data!F44 -> 15 - 20 | Q44: 1 | R44: =IF($S$44<=Q44,"No change proposed",R161) -> More than 4 | S44: =IF(Data!$S$29=1,Data!S30,6) -> 6 | W44: =COUNTIF(W38:W43,"=true")/6 -> 0 | AC44: =Data!AC44 -> 1 | AD44: =IF($AE$44<=AC44,"No change proposed",Data!AD44) -> 8ft security gate | AE44: =Data!AE43 -> 5
A45: =Data!A45 -> 5 | B45: =Data!B45 -> Within area | E45: =Data!E45 -> 3 | F45: =Data!F45 -> 10 - 15 | Q45: 2 | R45: =IF($S$44<=Q45,"No change proposed",R162) -> 4 | V45: =Data!V45 -> Soil electrical conductivity | W45: =Data!W45 -> 1 | AC45: =Data!AC45 -> 2 | AD45: =IF($AE$44<=AC45,"No change proposed",Data!AD45) -> 6ft chainlink / colourbond gate | AK45: =Data!AK45 -> Preparation | AL45: 5 | AT45: =Data!AT45 -> Landuse | AU45: 7
E46: =Data!E46 -> 4 | F46: =Data!F46 -> 5 - 10 | Q46: 3 | R46: =IF($S$44<=Q46,"No change proposed",R163) -> 3 | U46: =Data!U46 -> 1 | V46: =Data!V46 -> <4 | AC46: =Data!AC46 -> 3 | AD46: =IF($AE$44<=AC46,"No change proposed",Data!AD46) -> Stock gate | AJ46: =Data!AJ46 -> 1 | AK46: =IF($AL$46<=AJ46,"No change proposed",Data!AK46) -> Geosynthetically lined | AL46: =Data!AL45 -> 5 | AS46: =Data!AS46 -> 1 | AT46: =IF($AU$46<=AS46,"No change proposed",Data!AT46) -> Industrial | AU46: =IF(Data!$A$12=1,8,Data!AU45) -> 8
B47: =Data!B47 -> MLA | C47: =Data!C47 -> 1 | E47: =Data!E47 -> 5 | F47: =Data!F47 -> < 5 | Q47: 4 | R47: =IF($S$44<=Q47,"No change proposed",R164) -> 2 | U47: =Data!U47 -> 2 | V47: =Data!V47 -> 4 - 8 | AC47: =Data!AC47 -> 4 | AD47: =IF($AE$44<=AC47,"No change proposed",Data!AD47) -> Retractable bollards | AJ47: =Data!AJ47 -> 2 | AK47: =IF($AL$46<=AJ47,"No change proposed",Data!AK47) -> Clay lined | AS47: =Data!AS47 -> 2 | AT47: =IF($AU$46<=AS47,"No change proposed",Data!AT47) -> Special purpose
B48: =Data!B48 -> 0 | C48: =Data!C48 -> 0 | Q48: 5 | R48: =IF($S$44<=Q48,"No change proposed",R165) -> 1 | U48: =Data!U48 -> 3 | V48: =Data!V48 -> 8 - 16 | AC48: =Data!AC48 -> 5 | AD48: =IF($AE$44<=AC48,"No change proposed",Data!AD48) -> No change proposed | AJ48: =Data!AJ48 -> 3 | AK48: =IF($AL$46<=AJ48,"No change proposed",Data!AK48) -> Ripped and compacted | AS48: =Data!AS48 -> 3 | AT48: =IF($AU$46<=AS48,"No change proposed",Data!AT48) -> Business
B49: =Data!B49 -> >5,000 | C49: =Data!C49 -> 4 | F49: =Data!F49 -> Mean wind speed | G49: =Data!G49 -> 1 | Q49: =S49/3 -> 0 | R49: =Data!R31 -> Distribution | U49: =Data!U49 -> 4 | V49: =Data!V49 -> >16 | AJ49: =Data!AJ49 -> 4 | AK49: =IF($AL$46<=AJ49,"No change proposed",Data!AK49) -> Compacted | AS49: =Data!AS49 -> 4 | AT49: =IF($AU$46<=AS49,"No change proposed",Data!AT49) -> Rural
E50: =Data!E50 -> 1 | F50: =Data!F50 -> < 6 | Q50: 1 | R50: =IF($S$50<=Q50,"No change proposed",R175) -> Up gradient and down gradient of premises | S50: =IF(Data!$S$29=1,Data!S31,4) -> 4 | AD50: =Data!AD50 -> Additional security | AE50: =IF(AE55=0,5,6-AE55) -> 5 | AJ50: =Data!AJ50 -> 5 | AK50: =IF($AL$46<=AJ50,"No change proposed",Data!AK50) -> No change proposed | AS50: =Data!AS50 -> 5 | AT50: =IF($AU$46<=AS50,"No change proposed",Data!AT50) -> Recreation
B51: =Data!B51 -> Access to premises | C51: =Data!C51 -> 1 | E51: =Data!E51 -> 2 | F51: =Data!F51 -> 6 - 12 | Q51: 2 | R51: =IF($S$50<=Q51,"No change proposed",R176) -> Down gradient of premises only | V51: =Data!V51 -> Acid Sulfate Soils | W51: =Data!W51 -> 1 | AD51: =Data!AD51 -> Security patrols | AE51: FALSE | AS51: =Data!AS51 -> 6 | AT51: =IF($AU$46<=AS51,"No change proposed",Data!AT51) -> Residential
A52: =Data!A52 -> 1 | B52: =Data!B52 -> Other minor road | E52: =Data!E52 -> 3 | F52: =Data!F52 -> 12 - 20 | Q52: 3 | R52: =IF($S$50<=Q52,"No change proposed",R177) -> Up gradient of premises only | U52: =Data!U52 -> 1 | V52: =Data!V52 -> No known occurence | AD52: =Data!AD52 -> Video Surveillance | AE52: FALSE | AK52: =Data!AK52 -> Closed | AL52: 5 | AS52: =Data!AS52 -> 7 | AT52: =IF($AU$46<=AS52,"No change proposed",Data!AT52) -> Environment protection
A53: =Data!A53 -> 2 | B53: =Data!B53 -> Local road | E53: =Data!E53 -> 4 | F53: =Data!F53 -> 20 - 29 | Q53: =S53/5 -> 0 | R53: =Data!R32 -> Frequency | U53: =Data!U53 -> 2 | V53: =Data!V53 -> Low probability > 1m from surface | AD53: =Data!AD53 -> Covert Surveillance | AE53: FALSE | AJ53: =Data!AJ53 -> 1 | AK53: =IF($AL$53<=AJ53,"No change proposed",Data!AK53) -> Geosynthetic material | AL53: =Data!AL52 -> 5
A54: =Data!A54 -> 3 | B54: =Data!B54 -> Regional road | E54: =Data!E54 -> 5 | F54: =Data!F54 -> > 29 | Q54: 1 | R54: =IF($S$54<=Q54,"No change proposed",R168) -> Monthly | S54: =IF(Data!$S$29=1,Data!S32,6) -> 6 | U54: =Data!U54 -> 3 | V54: =Data!V54 -> Low probability < 1m from surface | AD54: =Data!AD54 -> "Dummy" Surveillance | AE54: FALSE | AJ54: =Data!AJ54 -> 2 | AK54: =IF($AL$53<=AJ54,"No change proposed",Data!AK54) -> Alternative material | AT54: =Data!AT54 -> Structures | AU54: 2
A55: =Data!A55 -> 4 | B55: =Data!B55 -> State road | Q55: 2 | R55: =IF($S$54<=Q55,"No change proposed",R169) -> Quarterly | U55: =Data!U55 -> 4 | V55: =Data!V55 -> High probability > 1m from surface | AE55: =ROUND(COUNTIF(AE51:AE54, "=true")/4*5,0) -> 0 | AJ55: =Data!AJ55 -> 3 | AK55: =IF($AL$53<=AJ55,"No change proposed",Data!AK55) -> Imported clay material
A56: =Data!A56 -> 5 | B56: =Data!B56 -> Freeway / motorway | F56: =Data!F56 -> Wind | G56: =Data!G56 -> 1 | Q56: 3 | R56: =IF($S$54<=Q56,"No change proposed",R170) -> Six-monthly | U56: =Data!U56 -> 5 | V56: =Data!V56 -> High probability < 1m from surface | AD56: =Data!AD56 -> Access control | AE56: 5 | AJ56: =Data!AJ56 -> 4 | AK56: =IF($AL$53<=AJ56,"No change proposed",Data!AK56) -> Imported material | AT56: =Data!AT56 -> Organic Layer | AU56: 2
Q57: 4 | R57: =IF($S$54<=Q57,"No change proposed",R171) -> Annually | AC57: =Data!AC57 -> 1 | AD57: =IF($AE$57<=AC57,"No change proposed",Data!AD57) -> Access only permitted under operator supervision | AE57: =Data!AE56 -> 5 | AJ57: =Data!AJ57 -> 5 | AK57: =IF($AL$53<=AJ57,"No change proposed",Data!AK57) -> No change proposed
Q58: 5 | R58: =IF($S$54<=Q58,"No change proposed",R172) -> Greater than annually / infrequently | V58: =Data!V58 -> Distance to watercourse | W58: =Data!W58 -> 2 | AC58: =Data!AC58 -> 2 | AD58: =IF($AE$57<=AC58,"No change proposed",Data!AD58) -> Swipe / data card access | AT58: =Data!AT58 -> Revegetation | AU58: 5
B59: =OR(A10=3,C6=TRUE,C8=TRUE) -> FALSE | Q59: =S59/9 -> 1 | R59: =Data!R33 -> Parameters | S59: =COUNTIF(S60:S68,"=false") -> 9 | U59: =Data!U59 -> 1 | V59: =Data!V59 -> > 1,000 | AC59: =Data!AC59 -> 3 | AD59: =IF($AE$57<=AC59,"No change proposed",Data!AD59) -> Community accessed key system (sign-in / sign-out) | AK59: =Data!AK59 -> Leachate capture | AL59: 2 | AS59: =Data!AS59 -> 1 | AT59: =IF($AU$59<=AS59,"No change proposed",Data!AT59) -> Sown pasture grasses, shrubs and trees | AU59: =IF(Data!$A$12=1,6,Data!AU58) -> 6
R60: =Data!R34 -> pH | S60: FALSE | U60: =Data!U60 -> 2 | V60: =Data!V60 -> 500 - 1,000 | AC60: =Data!AC60 -> 4 | AD60: =IF($AE$57<=AC60,"No change proposed",Data!AD60) -> Resident issued key system | AS60: =Data!AS60 -> 2 | AT60: =IF($AU$59<=AS60,"No change proposed",Data!AT60) -> Sown pasture grasses and shrubs
R61: =Data!R35 -> EC | S61: FALSE | U61: =Data!U61 -> 3 | V61: =Data!V61 -> 250 - 500 | AC61: =Data!AC61 -> 5 | AD61: =IF($AE$57<=AC61,"No change proposed",Data!AD61) -> No change proposed | AJ61: =IF(AL59=2,5,AL61) -> 5 | AK61: =Data!AK61 -> Leachate Management | AL61: 3 | AS61: =Data!AS61 -> 3 | AT61: =IF($AU$59<=AS61,"No change proposed",Data!AT61) -> Sown pasture grasses
R62: =Data!R36 -> Ammonia | S62: FALSE | U62: =Data!U62 -> 4 | V62: =Data!V62 -> 100 - 250 | AJ62: =Data!AJ62 -> 1 | AK62: =IF($AL$62<=AJ62,"No change proposed",Data!AK62) -> Discharge to sewer | AL62: =IF(Data!AL59=2,6,Data!AL61) -> 6 | AS62: =Data!AS62 -> 4 | AT62: =IF($AU$59<=AS62,"No change proposed",Data!AT62) -> Natural revegetation
R63: =Data!R37 -> Nitrate | S63: FALSE | U63: =Data!U63 -> 5 | V63: =Data!V63 -> < 100 | AD63: =Data!AD63 -> Site supervision | AE63: 5 | AJ63: =Data!AJ63 -> 2 | AK63: =IF($AL$62<=AJ63,"No change proposed",Data!AK63) -> Full containment and reuse/evaporation | AS63: =Data!AS63 -> 5 | AT63: =IF($AU$59<=AS63,"No change proposed",Data!AT63) -> No revegetation
R64: =Data!R38 -> TOC | S64: FALSE | AC64: =Data!AC64 -> 1 | AD64: =IF($AE$64<=AC64,"No change proposed",Data!AD64) -> During all hours open to the public, with fees charged | AE64: =Data!AE63 -> 5 | AJ64: =Data!AJ64 -> 3 | AK64: =IF($AL$62<=AJ64,"No change proposed",Data!AK64) -> First flush containment
R65: =Data!R39 -> Alkalinity | S65: FALSE | V65: =Data!V65 -> Groundwater vulnerability | W65: =Data!W65 -> 2 | AC65: =Data!AC65 -> 2 | AD65: =IF($AE$64<=AC65,"No change proposed",Data!AD65) -> During all hours open to the public | AJ65: =Data!AJ65 -> 4 | AK65: =IF($AL$62<=AJ65,"No change proposed",Data!AK65) -> Discharge after sedimentation | AS65: 2 | AT65: =Data!AT65 -> Monitoring | AU65: =IF(AS65=2,5,AU73) -> 5
R66: =Data!R40 -> Iron | S66: FALSE | U66: =Data!U66 -> 1 | V66: Low | AC66: =Data!AC66 -> 3 | AD66: =IF($AE$64<=AC66,"No change proposed",Data!AD66) -> During specific times, not all hours open to the public | AJ66: =Data!AJ66 -> 5 | AK66: =IF($AL$62<=AJ66,"No change proposed",Data!AK66) -> Nil / direct discharge | AT66: =Data!AT66 -> Frequency | AU66: 5
R67: =Data!R41 -> Pesticides | S67: FALSE | U67: =Data!U67 -> 2 | V67: Low moderate | AC67: =Data!AC67 -> 4 | AD67: =IF($AE$64<=AC67,"No change proposed",Data!AD67) -> Infrequently and/or irregularly | AS67: =Data!AS67 -> 1 | AT67: =IF($AU$67<=AS67,"No change proposed",Data!AT67) -> Very frequently (eg. daily) | AU67: =IF(Data!AS65=2,6,Data!AU66) -> 6
R68: Others | S68: FALSE | U68: =Data!U68 -> 3 | V68: Unknown / not stated | AC68: =Data!AC68 -> 5 | AD68: =IF($AE$64<=AC68,"No change proposed",Data!AD68) -> No change proposed | AK68: Size of active areas | AL68: 2 | AS68: =Data!AS68 -> 2 | AT68: =IF($AU$67<=AS68,"No change proposed",Data!AT68) -> Frequently (eg. weekly)
Q69: =S69/3 -> 0 | R69: =Data!R43 -> Concerns | S69: =Data!S43 -> 0 | U69: =Data!U69 -> 0 | V69: Moderate | AJ69: 1 | AK69: =IF($AL$69<=AJ69,"No change proposed",Data!AK69) -> <100 | AL69: =Data!AL68 -> 2 | AS69: =Data!AS69 -> 3 | AT69: =IF($AU$67<=AS69,"No change proposed",Data!AT69) -> Often (eg. monthly)
Q70: =SUM(Q69,Q59,Q53,Q49,Q43)-1 -> 0 | U70: =Data!U70 -> 0 | V70: Moderately high | AD70: =Data!AD70 -> Operators at premises | AE70: 5 | AJ70: 2 | AK70: =IF($AL$69<=AJ70,"No change proposed",Data!AK70) -> No change proposed | AS70: =Data!AS70 -> 4 | AT70: =IF($AU$67<=AS70,"No change proposed",Data!AT70) -> Infrequently (eg. quarterly)
Q71: =IF(S71=2,5,IF(ROUND(S71+Q89,0)>5,5,ROUND(S71+Q89,0))) -> 5 | R71: =Data!R45 -> Leachate | S71: 2 | U71: =Data!U71 -> 0 | V71: High | AC71: 1 | AD71: =IF($AE$71<=AC71,"No change proposed",AD225) -> Very frequently (eg. daily) | AE71: =Data!AE70 -> 5 | AJ71: 3 | AK71: =IF($AL$69<=AJ71,"No change proposed",Data!AK71) -> No change proposed | AS71: =Data!AS71 -> 5 | AT71: =IF($AU$67<=AS71,"No change proposed",Data!AT71) -> Very infrequently to never (eg. annually or more)
Q72: =S72/5 -> 0 | R72: =Data!R46 -> Frequency | AC72: 2 | AD72: =IF($AE$71<=AC72,"No change proposed",AD226) -> Frequently (eg. weekly) | AJ72: 4 | AK72: =IF($AL$69<=AJ72,"No change proposed",Data!AK72) -> No change proposed | AT72: =Data!AT72 -> Procedures | AU72: 2
Q73: 1 | R73: =IF($S$73<=Q73,"No change proposed",R168) -> Monthly | S73: =IF(Data!$S$45=1,Data!S46,6) -> 6 | V73: =Data!V73 -> Depth to rock | W73: =Data!W73 -> 3 | AC73: 3 | AD73: =IF($AE$71<=AC73,"No change proposed",AD227) -> Often (eg. monthly) | AJ73: 5 | AK73: =IF($AL$69<=AJ73,"No change proposed",Data!AK73) -> No change proposed | AU73: =ROUND(SUM(AU72,AU66)/7*5,0) -> 5
Q74: 2 | R74: =IF($S$73<=Q74,"No change proposed",R169) -> Quarterly | U74: =Data!U74 -> 1 | V74: > 50 | AC74: 4 | AD74: =IF($AE$71<=AC74,"No change proposed",AD228) -> Infrequently (eg. quarterly) | AJ74: 6 | AK74: =IF($AL$69<=AJ74,"No change proposed",Data!AK74) -> No change proposed | AT74: =Data!AT74 -> Treat runoff | AU74: 5
B75: =Data!B75 ->  | Q75: 3 | R75: =IF($S$73<=Q75,"No change proposed",R170) -> Six-monthly | U75: =Data!U75 -> 2 | V75: 25 - 50 | AC75: 5 | AD75: =IF($AE$71<=AC75,"No change proposed",AD229) -> No change proposed | AS75: =Data!AS75 -> 1 | AT75: =IF($AU$75<=AS75,"No change proposed",Data!AT75) -> Discharge to sewer | AU75: =IF(Data!$A$12=1,6,Data!AU74) -> 6
B76: =Data!B76 ->  | Q76: 4 | R76: =IF($S$73<=Q76,"No change proposed",R171) -> Annually | U76: =Data!U76 -> 3 | V76: Unknown | AK76: Landfill gas management | AL76: 2 | AS76: =Data!AS76 -> 2 | AT76: =IF($AU$75<=AS76,"No change proposed",Data!AT76) -> Full containment and reuse/evaporation
B77: =Data!B77 ->  | Q77: 5 | R77: =IF($S$73<=Q77,"No change proposed",R172) -> Greater than annually / infrequently | U77: =Data!U77 -> 4 | V77: 10 - 25 | AD77: =Data!AD72 -> Complaints | AE77: =Data!AE72 -> 1 | AJ77: 1 | AK77: =IF($AL$77<=AJ77,"No change proposed",Data!AK77) -> No management | AL77: =Data!AL76 -> 2 | AS77: =Data!AS77 -> 3 | AT77: =IF($AU$75<=AS77,"No change proposed",Data!AT77) -> First flush containment
B78: =Data!B78 ->  | Q78: =S78/9 -> 1 | R78: =Data!R47 -> Parameters | S78: =COUNTIF(S79:S87,"=false") -> 9 | U78: =Data!U78 -> 5 | V78: 5 - 10 | AJ78: 2 | AK78: =IF($AL$77<=AJ78,"No change proposed",Data!AK78) -> No change proposed | AS78: =Data!AS78 -> 4 | AT78: =IF($AU$75<=AS78,"No change proposed",Data!AT78) -> Discharge after sedimentation
B79: =Data!B79 ->  | R79: =Data!R48 -> pH | S79: FALSE | U79: =Data!U79 -> 6 | V79: < 5 | AD79: =Data!AD74 -> Uncontrolled fires | AE79: =Data!AE74 -> 1 | AJ79: 3 | AK79: =IF($AL$77<=AJ79,"No change proposed",Data!AK79) -> No change proposed | AS79: =Data!AS79 -> 5 | AT79: =IF($AU$75<=AS79,"No change proposed",Data!AT79) -> Nil / direct discharge
B80: =Data!B80 ->  | R80: =Data!R49 -> EC | S80: FALSE | AJ80: 4 | AK80: =IF($AL$77<=AJ80,"No change proposed",Data!AK80) -> No change proposed
R81: =Data!R50 -> Ammonia | S81: FALSE | V81: =Data!V81 -> Depth to GW | W81: =Data!W81 -> 3 | AD81: =Data!AD76 -> Unlawful waste disposal (on premises) | AE81: =Data!AE76 -> 1 | AJ81: 5 | AK81: =IF($AL$77<=AJ81,"No change proposed",Data!AK81) -> No change proposed | AT81: Leachate Management | AU81: 5
R82: =Data!R51 -> Nitrate | S82: FALSE | U82: =Data!U82 -> 1 | V82: > 50 | AS82: 1 | AT82: =IF($AU$82<=AS82,"No change proposed",Data!AT82) -> Collection and discharge to sewer | AU82: =IF(Data!$A$12=1,6,Data!AU81) -> 6
R83: =Data!R52 -> TOC | S83: FALSE | U83: =Data!U83 -> 2 | V83: 25 - 50 | AD83: =Data!AD78 -> Unlawful waste disposal (off premises) | AE83: =Data!AE78 -> 1 | AS83: 2 | AT83: =IF($AU$82<=AS83,"No change proposed",Data!AT83) -> Collection and reuse/evaporation
R84: =Data!R53 -> Alkalinity | S84: FALSE | U84: =Data!U84 -> 3 | V84: Unknown | AS84: 3 | AT84: =IF($AU$82<=AS84,"No change proposed",Data!AT84) -> Collection and storage
R85: =Data!R54 -> Iron | S85: FALSE | U85: =Data!U85 -> 4 | V85: 10 - 25 | AD85: =Data!AD80 -> Stormwater diversion | AE85: =IF(AE89=0,5,6-AE89) -> 5 | AS85: 4 | AT85: =IF($AU$82<=AS85,"No change proposed",Data!AT85) -> Collection and discharge after retention
R86: =Data!R55 -> Pesticides | S86: FALSE | U86: =Data!U86 -> 5 | V86: 5 - 10 | AD86: =Data!AD81 -> Perimeter | AE86: FALSE | AS86: 5 | AT86: =IF($AU$82<=AS86,"No change proposed",Data!AT86) -> No collection of leachate
R87: =Data!R56 -> Others | S87: FALSE | U87: =Data!U87 -> 6 | V87: < 5 | AD87: =Data!AD82 -> Disturbed | AE87: FALSE
Q88: =S88/3 -> 0 | R88: =Data!R57 -> Concerns | S88: =Data!S57 -> 0 | AD88: =Data!AD83 -> Waste | AE88: FALSE | AS88: 1 | AT88: Membrane / geosynthetic material
Q89: =(SUM(Q88,Q78,Q72)/3*5)-1 -> 0.6666666667 | V89: =Data!V89 -> Local GW use | W89: =IF(W96=0,1,(ROUND(W96*5,0))) -> 1 | AE89: =ROUND(COUNTIF(AE86:AE88, "=true")/3*5,0) -> 0 | AS89: 2 | AT89: Imported clay material
Q90: =IF(S90=2,5,IF(ROUND(S90+Q113,0)>5,5,ROUND(S90+Q113,0))) -> 5 | R90: =Data!R59 -> Dust | S90: 2 | V90: =Data!V90 -> Domestic | W90: =Data!W90 -> FALSE | AD90: =Data!AD85 -> Stormwater - undisturbed | AE90: 5 | AS90: 3 | AT90: Imported material
Q91: =S91/5 -> 0 | R91: =Data!R60 -> No. Locations | V91: =Data!V91 -> Stock / irrigation | W91: =Data!W91 -> FALSE | AC91: 1 | AD91: =IF($AE$91<=AC91,"No change proposed",AD112) -> Discharge to sewer | AE91: =Data!AE85 -> 5 | AS91: 4 | AT91: On-site material
Q92: 1 | R92: =IF($S$92<=Q92,"No change proposed",R161) -> More than 4 | S92: =IF(Data!$S$59=1,Data!S60,6) -> 6 | V92: =Data!V92 -> Industrial | W92: =Data!W92 -> FALSE | AC92: 2 | AD92: =IF($AE$91<=AC92,"No change proposed",AD113) -> Full containment and reuse/evaporation | AS92: 5 | AT92: No capping
Q93: 2 | R93: =IF($S$92<=Q93,"No change proposed",R162) -> 4 | V93: =Data!V93 -> Monitoring | W93: =Data!W93 -> FALSE | AC93: 3 | AD93: =IF($AE$91<=AC93,"No change proposed",AD114) -> First flush containment
Q94: 3 | R94: =IF($S$92<=Q94,"No change proposed",R163) -> 3 | V94: =Data!V94 -> Other | W94: =Data!W94 -> FALSE | AC94: 4 | AD94: =IF($AE$91<=AC94,"No change proposed",AD115) -> Discharge after sedimentation | AS94: 1 | AT94: 0% - 2%
Q95: 4 | R95: =IF($S$92<=Q95,"No change proposed",R164) -> 2 | V95: =Data!V95 -> Not specified | W95: =Data!W95 -> FALSE | AC95: 5 | AD95: =IF($AE$91<=AC95,"No change proposed",AD116) -> No change proposed | AS95: 2 | AT95: 2% - 5%
Q96: 5 | R96: =IF($S$92<=Q96,"No change proposed",R165) -> 1 | W96: =COUNTIF(W90:W95,"=true")/6 -> 0 | AS96: 3 | AT96: 5% - 10%
Q97: =S97/3 -> 0 | R97: =Data!R61 -> Distribution | V97: ACH | W97: 2 | X97: 2 | Y97: =IF(X97="",W97,ROUND(SUM(W97:X97)/2,0)) -> 2 | AD97: =Data!AD87 -> Stormwater - disturbed | AE97: 5 | AS97: 4 | AT97: 10% - 25%
Q98: 1 | R98: =IF($S$98<=Q98,"No change proposed",R180) -> Up wind and down wind of premises | S98: =IF(Data!$S$59=1,Data!S61,4) -> 4 | V98: Vulnerable or endangered species | W98: 2 | AC98: 1 | AD98: =IF($AE$98<=AC98,"No change proposed",AD112) -> Discharge to sewer | AE98: =Data!AE87 -> 5 | AS98: 5 | AT98: > 25%
Q99: 2 | R99: =IF($S$98<=Q99,"No change proposed",R181) -> Down wind of premises only | AC99: 2 | AD99: =IF($AE$98<=AC99,"No change proposed",AD113) -> Full containment and reuse/evaporation
Q100: 3 | R100: =IF($S$98<=Q100,"No change proposed",R182) -> Up wind of premises only | AC100: 3 | AD100: =IF($AE$98<=AC100,"No change proposed",AD114) -> First flush containment | AS100: 1 | AT100: Industrial
Q101: =S101/5 -> 0 | R101: =Data!R62 -> Frequency | W101: 2 | X101: 2 | Y101: =IF(X101="",W101,ROUND(SUM(W101:X101)/2,0)) -> 2 | AC101: 4 | AD101: =IF($AE$98<=AC101,"No change proposed",AD115) -> Discharge after sedimentation | AS101: 2 | AT101: Special purpose
Q102: 1 | R102: =IF($S$102<=Q102,"No change proposed",R168) -> Monthly | S102: =IF(Data!$S$59=1,Data!S62,6) -> 6 | U102: 1 | V102: Yes | AC102: 5 | AD102: =IF($AE$98<=AC102,"No change proposed",AD116) -> No change proposed | AS102: 3 | AT102: Business
Q103: 2 | R103: =IF($S$102<=Q103,"No change proposed",R169) -> Quarterly | U103: 2 | V103: No | AS103: 4 | AT103: Rural
Q104: 3 | R104: =IF($S$102<=Q104,"No change proposed",R170) -> Six-monthly | AD104: =Data!AD89 -> Stormwater - waste | AE104: 5 | AS104: 5 | AT104: Recreation
Q105: 4 | R105: =IF($S$102<=Q105,"No change proposed",R171) -> Annually | V105: =Data!V105 -> National Park / Reserve | W105: =Data!W105 -> 1 | AC105: 1 | AD105: =IF($AE$105<=AC105,"No change proposed",AD112) -> Discharge to sewer | AE105: =Data!AE89 -> 5 | AS105: 6 | AT105: Residential
Q106: 5 | R106: =IF($S$102<=Q106,"No change proposed",R172) -> Greater than annually / infrequently | V106: =Data!V106 -> Protection / conservation zoned | W106: =Data!W106 -> 1 | AC106: 2 | AD106: =IF($AE$105<=AC106,"No change proposed",AD113) -> Full containment and reuse/evaporation | AS106: 7 | AT106: Environment protection
Q107: =S107/4 -> 0 | R107: =Data!R63 -> Method | V107: =Data!V107 -> 0 | W107: =Data!W107 -> 0 | AC107: 3 | AD107: =IF($AE$105<=AC107,"No change proposed",AD114) -> First flush containment
Q108: 1 | R108: =IF($S$108<=Q108,"No change proposed",Data!R64) -> High volume air sampling | S108: =IF(Data!$S$59=1,Data!S63,5) -> 5 | V108: =Data!V108 -> 0 | W108: =Data!W108 -> 0 | AC108: 4 | AD108: =IF($AE$105<=AC108,"No change proposed",AD115) -> Discharge after sedimentation | AS108: 1 | AT108: Sown pasture grasses, shrubs and trees
Q109: 2 | R109: =IF($S$108<=Q109,"No change proposed",Data!R65) -> Low volume air sampling | V109: =Data!V109 -> 0 | W109: =Data!W109 -> 0 | AC109: 5 | AD109: =IF($AE$105<=AC109,"No change proposed",AD116) -> No change proposed | AS109: 2 | AT109: Sown pasture grasses and shrubs
Q110: 3 | R110: =IF($S$108<=Q110,"No change proposed",Data!R66) -> Gravimetric | V110: =Data!V110 -> 0 | W110: =Data!W110 -> 0 | AS110: 3 | AT110: Sown pasture grasses
Q111: 4 | R111: =IF($S$108<=Q111,"No change proposed",Data!R67) -> Visual observations | V111: =Data!V111 -> 0 | W111: =Data!W111 -> 0 | AD111: =Data!AD91 -> Methods | AS111: 4 | AT111: Natural revegetation
Q112: =S112/3 -> 0 | R112: =Data!R68 -> Concerns | S112: =Data!S68 -> 0 | U112: =Data!U112 -> 1 | V112: =Data!V112 -> > 5 | AC112: =Data!AC92 -> 1 | AD112: =Data!AD92 -> Discharge to sewer | AS112: 5 | AT112: No revegetation
Q113: =SUM(Q112,Q107,Q101,Q97,Q91)-1 -> -1 | U113: =Data!U113 -> 2 | V113: =Data!V113 -> 1 - 5 | AC113: =Data!AC93 -> 2 | AD113: =Data!AD93 -> Full containment and reuse/evaporation
Q114: =IF(S114=2,5,IF(ROUND(S114+Q142,0)>5,5,ROUND(S114+Q142,0))) -> 5 | R114: =Data!R70 -> Noise | S114: 2 | U114: =Data!U114 -> 3 | V114: =Data!V114 -> 0.5 - 1 | AC114: =Data!AC94 -> 3 | AD114: =Data!AD94 -> First flush containment | AS114: 1 | AT114: Discharge to sewer
Q115: =S115/5 -> 0 | R115: =Data!R71 -> No. Locations | U115: =Data!U115 -> 4 | V115: =Data!V115 -> 0.25 - 0.5 | AC115: =Data!AC95 -> 4 | AD115: =Data!AD95 -> Discharge after sedimentation | AS115: 2 | AT115: Full containment and reuse/evaporation
Q116: 1 | R116: =IF($S$116<=Q116,"No change proposed",R161) -> More than 4 | S116: =IF(Data!$S$70=1,Data!S71,6) -> 6 | U116: =Data!U116 -> 5 | V116: =Data!V116 -> < 0.25 | AC116: =Data!AC96 -> 5 | AD116: =Data!AD96 -> Nil / direct discharge | AS116: 3 | AT116: First flush containment
Q117: 2 | R117: =IF($S$116<=Q117,"No change proposed",R162) -> 4 | U117: =Data!U117 -> 6 | V117: =Data!V117 -> Unknown | AS117: 4 | AT117: Discharge after sedimentation
Q118: 3 | R118: =IF($S$116<=Q118,"No change proposed",R163) -> 3 | AD118: =Data!AD98 -> Trafficable surface | AE118: 5 | AS118: 5 | AT118: Nil / direct discharge
Q119: 4 | R119: =IF($S$116<=Q119,"No change proposed",R164) -> 2 | V119: =Data!V119 -> Visibility | W119: =IF(W125=0,1,W125) -> 1 | AC119: =Data!AC99 -> 1 | AD119: =IF($AE$119<=AC119,"No change proposed",Data!AD99) -> All surfaces (100%) | AE119: =Data!AE98 -> 5
Q120: 5 | R120: =IF($S$116<=Q120,"No change proposed",R165) -> 1 | V120: =Data!V120 -> Residences | W120: =Data!W120 -> FALSE | AC120: =Data!AC100 -> 2 | AD120: =IF($AE$119<=AC120,"No change proposed",Data!AD100) -> Most surfaces (up to 75%) | AS120: 1 | AT120: Very frequently (eg. daily)
Q121: =S121/3 -> 0 | R121: =Data!R72 -> Location type | V121: =Data!V121 -> Urban area | W121: =Data!W121 -> FALSE | AC121: =Data!AC101 -> 3 | AD121: =IF($AE$119<=AC121,"No change proposed",Data!AD101) -> Some surfaces (up to 50%) | AS121: 2 | AT121: Frequently (eg. weekly)
Q122: 1 | R122: =IF($S$122<=Q122,"No change proposed",Data!R73) -> Nearest / most affected residence | S122: =IF(Data!$S$70=1,Data!S72,4) -> 4 | V122: =Data!V122 -> Highway | W122: =Data!W122 -> FALSE | AC122: =Data!AC102 -> 4 | AD122: =IF($AE$119<=AC122,"No change proposed",Data!AD102) -> Few surfaces (up to 25%) | AS122: 3 | AT122: Often (eg. monthly)
Q123: 2 | R123: =IF($S$122<=Q123,"No change proposed",Data!R74) -> Boundary of premises | V123: =Data!V123 -> Main road | W123: =Data!W123 -> FALSE | AC123: =Data!AC103 -> 5 | AD123: =IF($AE$119<=AC123,"No change proposed",Data!AD103) -> No change proposed | AS123: 4 | AT123: Infrequently (eg. quarterly)
Q124: 3 | R124: =IF($S$122<=Q124,"No change proposed",Data!R75) -> Arbitrary location | V124: =Data!V124 -> Lookout | W124: =Data!W124 -> FALSE | AS124: 5 | AT124: Very infrequently to never (eg. annually or more)
Q125: =S125/5 -> 0 | R125: =Data!R76 -> Frequency | W125: =COUNTIF(W120:W124,"=true") -> 0 | AD125: =Data!AD105 -> Liquid / hazardous storage | AE125: 1
Q126: 1 | R126: =IF($S$126<=Q126,"No change proposed",R168) -> Monthly | S126: =IF(Data!$S$70=1,Data!S76,6) -> 6 | AC126: =Data!AC106 -> 1 | AD126: =IF($AE$126<=AC126,"No change proposed",Data!AD106) -> No change proposed | AE126: =Data!AE105 -> 1 | AS126: 1 | AT126: Collection and discharge to sewer
Q127: 2 | R127: =IF($S$126<=Q127,"No change proposed",R169) -> Quarterly | V127: Bush fire prone area | W127: =Data!W127 -> 1 | AC127: =Data!AC107 -> 2 | AD127: =IF($AE$126<=AC127,"No change proposed",Data!AD107) -> No change proposed | AS127: 2 | AT127: Collection and reuse/evaporation
Q128: 3 | R128: =IF($S$126<=Q128,"No change proposed",R170) -> Six-monthly | U128: 1 | V128: Not bush fire prone land | AC128: =Data!AC108 -> 3 | AD128: =IF($AE$126<=AC128,"No change proposed",Data!AD108) -> No change proposed | AS128: 3 | AT128: Collection and storage
Q129: 4 | R129: =IF($S$126<=Q129,"No change proposed",R171) -> Annually | U129: 2 | V129: Bush fire prone vegetation buffer | AC129: =Data!AC109 -> 4 | AD129: =IF($AE$126<=AC129,"No change proposed",Data!AD109) -> No change proposed | AS129: 4 | AT129: Collection and discharge after retention
Q130: 5 | R130: =IF($S$126<=Q130,"No change proposed",R172) -> Greater than annually / infrequently | U130: 3 | V130: Bush fire prone vegetation Category 2 | AC130: =Data!AC110 -> 5 | AD130: =IF($AE$126<=AC130,"No change proposed",Data!AD110) -> No change proposed | AS130: 5 | AT130: No leachate collected
Q131: =S131/4 -> 0 | R131: =Data!R77 -> Type of monitoring | U131: 4 | V131: Bush fire prone vegetation Category 1
Q132: 1 | R132: =IF($S$132<=Q132,"No change proposed",Data!R78) -> Sound level meter - Attended and unattended | S132: =IF(Data!$S$70=1,Data!S77,5) -> 5 | U132: 5 | V132: Unknown | AD132: =Data!AD112 -> Under cover | AE132: 1 | AS132: 1 | AT132: Collection and discharge to sewer
Q133: 2 | R133: =IF($S$132<=Q133,"No change proposed",Data!R79) -> Sound level meter - Attended only | AS133: 2 | AT133: Collection and reuse/evaporation
Q134: 3 | R134: =IF($S$132<=Q134,"No change proposed",Data!R80) -> Sound level meter - Unattended only | AD134: =Data!AD114 -> Dust control | AE134: =IF(AE139=0,5,6-AE139) -> 5 | AS134: 3 | AT134: Collection and storage
Q135: 4 | R135: =IF($S$132<=Q135,"No change proposed",Data!R81) -> Complaints information | AD135: =Data!AD115 -> Minimise disturbance | AE135: 1 | AS135: 4 | AT135: Collection and discharge after retention
Q136: =S136/5 -> 0 | R136: =Data!R82 -> Level | S136: =Data!S82 -> 0 | AD136: =Data!AD116 -> Windbreaks | AE136: FALSE | AS136: 5 | AT136: No collection of leachate
Q137: 1 | R137: Less than background level | AD137: =Data!AD117 -> Suppression sprays | AE137: FALSE
Q138: 2 | R138: At / equivalent to background level | AD138: =Data!AD118 -> Other | AE138: FALSE | AT138: Landfill gas management | AU138: 5
Q139: 3 | R139: 1 - 5 dB(A) above background level | AE139: =ROUND(COUNTIF(AE135:AE138, "=true")/4*5,0) -> 0 | AS139: 1 | AT139: =IF($AU$139<=AS139,"No change proposed",Data!AT89) -> Extraction and combustion | AU139: =Data!AU88 -> 5
Q140: 4 | R140: >5 dB(A) above background level | AD140: =Data!AD120 -> Litter control | AE140: =IF(AE145=0,5,6-AE145) -> 5 | AS140: 2 | AT140: =IF($AU$139<=AS140,"No change proposed",Data!AT90) -> Bio oxidation
Q141: 5 | R141: =Data!R87 -> Unknown | AD141: =Data!AD121 -> Purpose built litter fences | AE141: FALSE | AS141: 3 | AT141: =IF($AU$139<=AS141,"No change proposed",Data!AT91) -> Extraction and venting
Q142: =SUM(Q136,Q131,Q125,Q121,Q115)-1 -> -1 | AD142: =Data!AD122 -> Litter cages | AE142: FALSE | AS142: 4 | AT142: =IF($AU$139<=AS142,"No change proposed",Data!AT92) -> Passive venting
Q143: =IF(S143=2,5,IF(ROUND(S143+Q158,0)>5,5,ROUND(S143+Q158,0))) -> 5 | R143: =Data!R89 -> Landfill Gas | S143: 2 | AD143: =Data!AD123 -> Regular clean-up | AE143: FALSE | AS143: 5 | AT143: =IF($AU$139<=AS143,"No change proposed",Data!AT93) -> No change proposed
Q144: =S144/3 -> 1 | R144: =Data!R90 -> Type of monitoring | S144: =COUNTIF(S145:S147,"=false") -> 3 | AD144: =Data!AD124 -> Other | AE144: FALSE
R145: =Data!R91 -> Surface | S145: FALSE | AE145: =ROUND(COUNTIF(AE141:AE144, "=true")/4*5,0) -> 0 | AT145: LCMP | AU145: 2
R146: =Data!R92 -> Subsurface | S146: FALSE | AD146: =Data!AD126 -> Operational days | AE146: 3 | AS146: 1 | AT146: Yes | AU146: =Data!AU95 -> 2
R147: =Data!R93 -> Buildings | S147: FALSE | AC147: =Data!AC127 -> 1 | AD147: =IF($AE$147<=AC147,"No change proposed",Data!AD127) -> Weekdays only | AE147: =Data!AE126 -> 3 | AS147: 2 | AT147: Unknown
Q148: =S148/5 -> 0.2 | R148: =Data!R94 -> Frequency | S148: 1 | AC148: =Data!AC128 -> 2 | AD148: =IF($AE$147<=AC148,"No change proposed",Data!AD128) -> Weekdays and weekends | AS148: 3 | AT148: No
Q149: 1 | R149: =IF($S$149<=Q149,"No change proposed",R168) -> Monthly | S149: =IF(Data!S89=1,Data!S94,6) -> 6 | AC149: =Data!AC129 -> 3 | AD149: =IF($AE$147<=AC149,"No change proposed",Data!AD129) -> No change proposed
Q150: 2 | R150: =IF($S$149<=Q150,"No change proposed",R169) -> Quarterly
Q151: 3 | R151: =IF($S$149<=Q151,"No change proposed",R170) -> Six-monthly | AD151: =Data!AD131 -> Operating hours | AE151: 3
Q152: 4 | R152: =IF($S$149<=Q152,"No change proposed",R171) -> Annually | AC152: 1 | AD152: =IF($AE$152<=AC152,"No change proposed",Data!AD132) -> Day only (7am to 6pm) | AE152: =Data!AE131 -> 3
Q153: 5 | R153: =IF($S$149<=Q153,"No change proposed",R172) -> Greater than annually / infrequently | AC153: 2 | AD153: =IF($AE$152<=AC153,"No change proposed",Data!AD133) -> Day and evening (7am to 10pm)
Q154: =S154/3 -> 0.3333333333 | R154: =Data!R95 -> Levels | S154: =Data!S95 -> 1 | AC154: 3 | AD154: =IF($AE$152<=AC154,"No change proposed",Data!AD134) -> No change proposed
R155: =Data!R96 -> 0%
R156: =Data!R97 -> 0% - 1.25% | AD156: =Data!AD136 -> Plant and Equipment | AE156: =IF(AE167=0,5,6-AE167) -> 5
R157: =Data!R98 -> > 1.25% | AD157: =Data!AD137 -> Bulldozer | AE157: FALSE
Q158: =(SUM(Q154,Q148,Q144)/3*5)-1 -> 1.555555556 | AD158: =Data!AD138 -> Excavator | AE158: FALSE
AD159: =Data!AD139 -> Front end loader | AE159: FALSE
R160: =Data!R100 -> No. Locations | AD160: =Data!AD140 -> Landfill compactor | AE160: FALSE
Q161: 1 | R161: =Data!R101 -> More than 4 | AD161: =Data!AD141 -> Small plant | AE161: FALSE
Q162: 2 | R162: =Data!R102 -> 4 | AD162: =Data!AD142 -> Tipper truck | AE162: FALSE
Q163: 3 | R163: =Data!R103 -> 3 | AD163: =Data!AD143 -> Backhoe | AE163: FALSE
Q164: 4 | R164: =Data!R104 -> 2 | AD164: =Data!AD144 -> Garbage truck | AE164: FALSE
Q165: 5 | R165: =Data!R105 -> 1 | AD165: =Data!AD145 -> MRF | AE165: FALSE
AD166: =Data!AD146 -> Vehicle wash | AE166: FALSE
R167: =Data!R107 -> Frequency | AE167: =ROUND(COUNTIF(AE157:AE166, "=true")/10*5,0) -> 0
Q168: 1 | R168: =Data!R108 -> Monthly | AD168: =Data!AD148 -> Collection services | AE168: =IF(AE173=0,5,6-AE173) -> 5
Q169: 2 | R169: =Data!R109 -> Quarterly | AD169: =Data!AD149 -> Mixed waste | AE169: FALSE
Q170: 3 | R170: =Data!R110 -> Six-monthly | AD170: =Data!AD150 -> FOGO | AE170: FALSE | AF170: =IF(AE170=FALSE,5,1) -> 5
Q171: 4 | R171: =Data!R111 -> Annually | AD171: =Data!AD151 -> Recyclables | AE171: FALSE
Q172: 5 | R172: =Data!R112 -> Greater than annually / infrequently | AD172: =Data!AD152 -> Bulky | AE172: FALSE
AE173: =ROUND(COUNTIF(AE169:AE172, "=true")/4*5,0) -> 0
R174: =Data!R114 -> Location of water monitoring | AD174: =Data!AD154 -> CRC | AE174: 2
Q175: 1 | R175: =Data!R115 -> Up gradient and down gradient of premises
Q176: 2 | R176: =Data!R116 -> Down gradient of premises only | AD176: =Data!AD156 -> Pest Management | AE176: =IF(AE183=0,5,6-AE183) -> 5
Q177: 3 | R177: =Data!R117 -> Up gradient of premises only | AD177: =Data!AD157 -> Mice/rats | AE177: FALSE
AD178: =Data!AD158 -> Cats/dogs | AE178: FALSE
R179: =Data!R119 -> Location of dust monitoring | AD179: =Data!AD159 -> Noxious weeds | AE179: FALSE
Q180: 1 | R180: =Data!R120 -> Up wind and down wind of premises | AD180: =Data!AD160 -> Pigs/goats | AE180: FALSE
Q181: 2 | R181: =Data!R121 -> Down wind of premises only | AD181: =Data!AD161 -> Birds | AE181: FALSE
Q182: 3 | R182: =Data!R122 -> Up wind of premises only | AD182: =Data!AD162 -> Flies/insects | AE182: FALSE
AE183: =ROUND(COUNTIF(AE177:AE182, "=true")/6*5,0) -> 0
R184: =Data!R124 -> Concerns | AD184: =Data!AD164 -> Controlled burning | AE184: 5
Q185: 1 | R185: =Data!R125 -> No | AC185: 1 | AD185: =IF($AE$185<=AC185,"No change proposed",AD218) -> Very infrequently to never (eg. annually or more) | AE185: =Data!AE164 -> 5
Q186: 2 | R186: =Data!R126 -> Unknown | AC186: 2 | AD186: =IF($AE$185<=AC186,"No change proposed",AD219) -> Infrequently (eg. quarterly)
Q187: 3 | R187: =Data!R127 -> Yes | AC187: 3 | AD187: =IF($AE$185<=AC187,"No change proposed",AD220) -> Often (eg. monthly)
AC188: 4 | AD188: =IF($AE$185<=AC188,"No change proposed",AD221) -> Frequently (eg. weekly)
AC189: 5 | AD189: =IF($AE$185<=AC189,"No change proposed",AD222) -> No change proposed
AD191: =Data!AD166 -> Main Fire Capacity | AE191: 5
AC192: =Data!AC167 -> 1 | AD192: =IF($AE$192<=AC192,"No change proposed",Data!AD167) -> Fire main / dedicated fire water storage | AE192: =Data!AE166 -> 5
AC193: =Data!AC168 -> 2 | AD193: =IF($AE$192<=AC193,"No change proposed",Data!AD168) -> On-site dam(s)
AC194: =Data!AC169 -> 3 | AD194: =IF($AE$192<=AC194,"No change proposed",Data!AD169) -> Earthmoving equipment
AC195: =Data!AC170 -> 4 | AD195: =IF($AE$192<=AC195,"No change proposed",Data!AD170) -> Fire extinguishers
AC196: =Data!AC171 -> 5 | AD196: =IF($AE$192<=AC196,"No change proposed",Data!AD171) -> No change proposed
AD198: =Data!AD173 -> Other fire management | AE198: =IF(AE204=0,5,6-AE204) -> 5
AD199: =Data!AD174 -> RFS / NSWFB response plan | AE199: FALSE
AD200: =Data!AD175 -> Fire breaks | AE200: FALSE
AD201: =Data!AD176 -> Soil stockpiles | AE201: FALSE
AD202: =Data!AD177 -> Maintenance schedule | AE202: FALSE
AD203: =Data!AD178 -> Other | AE203: FALSE
... 25 more rows

Sheet Summary (1) (hidden)
B1: current | C1: proposed
A2: Groundwater | B2: =IF(Data!$A$12=3,IF(Data!$AQ$25=1,'Groundwater A'!D140,'Groundwater A'!D139),IF(Data!$A$12=2,'Groundwater A'!D141,'Groundwater A'!D138)) -> 40.75137237 | C2: =IF(Data!$A$12=3,IF(Data!$AQ$25=1,'Groundwater A'!F140,'Groundwater A'!F139),IF(Data!$A$12=2,'Groundwater A'!F141,IF('Mitigation Data'!A12=2,'Groundwater A'!F143,(IF('Mitigation Data'!A12=3,'Groundwater A'!F142,'Groundwater A'!F138))))) -> 40.75137237
A3: Surface water | B3: =IF(Data!$A$12=3,IF(Data!$AQ$25=1,'Surface Water A'!D138,'Surface Water A'!D137),IF(Data!$A$12=2,'Surface Water A'!D139,'Surface Water A'!D136)) -> 23.93403002 | C3: =IF(Data!$A$12=3,IF(Data!$AQ$25=1,'Surface Water A'!F138,'Surface Water A'!F137),IF(Data!$A$12=2,'Surface Water A'!F139,IF('Mitigation Data'!A12=2,'Surface Water A'!F141,(IF('Mitigation Data'!A12=3,'Surface Water A'!F140,'Surface Water A'!F136))))) -> 23.93403002
A4: Air | B4: =IF(Data!$A$12=3,IF(Data!$AQ$25=1,'Air A'!D127,'Air A'!D126),IF(Data!$A$12=2,'Air A'!D128,'Air A'!D125)) -> 14.84305907 | C4: =IF(Data!$A$12=3,IF(Data!$AQ$25=1,'Air A'!F127,'Air A'!F126),IF(Data!$A$12=2,'Air A'!F128,IF('Mitigation Data'!A12=2,'Air A'!F130,(IF('Mitigation Data'!A12=3,'Air A'!F129,'Air A'!F125))))) -> 14.84305907
A5: Noise | B5: =IF(Data!$A$12=3,IF(Data!$AQ$25=1,'Noise A'!D88,'Noise A'!D87),IF(Data!$A$12=2,'Noise A'!D89,'Noise A'!D86)) -> 7.522022766 | C5: =IF(Data!$A$12=3,IF(Data!$AQ$25=1,'Noise A'!F88,'Noise A'!F87),IF(Data!$A$12=2,'Noise A'!F89,IF('Mitigation Data'!A12=2,'Noise A'!F91,(IF('Mitigation Data'!A12=3,'Noise A'!F90,'Noise A'!F86))))) -> 7.522022766
A6: Fire | B6: =IF(Data!$A$12=3,IF(Data!$AQ$25=1,'Fire A'!D114,'Fire A'!D113),IF(Data!$A$12=2,'Fire A'!D115,'Fire A'!D112)) -> 15.05065517 | C6: =IF(Data!$A$12=3,IF(Data!$AQ$25=1,'Fire A'!F114,'Fire A'!F113),IF(Data!$A$12=2,'Fire A'!F115,IF('Mitigation Data'!A12=2,'Fire A'!F117,(IF('Mitigation Data'!A12=3,'Fire A'!F116,'Fire A'!F112))))) -> 15.05065517
A7: Amenity | B7: =IF(Data!$A$12=3,IF(Data!$AQ$25=1,'Amenity A'!D140,'Amenity A'!D139),IF(Data!$A$12=2,'Amenity A'!D141,'Amenity A'!D138)) -> 12.96445883 | C7: =IF(Data!$A$12=3,IF(Data!$AQ$25=1,'Amenity A'!F140,'Amenity A'!F139),IF(Data!$A$12=2,'Amenity A'!F141,IF('Mitigation Data'!A12=2,'Amenity A'!F143,(IF('Mitigation Data'!A12=3,'Amenity A'!F142,'Amenity A'!F138))))) -> 12.96445883
A8: Conservation & Heritage | B8: =IF(Data!$A$12=3,IF(Data!$AQ$25=1,'CandH A'!D138,'CandH A'!D137),IF(Data!$A$12=2,'CandH A'!D139,'CandH A'!D136)) -> 34.6081739 | C8: =IF(Data!$A$12=3,IF(Data!$AQ$25=1,'CandH A'!F138,'CandH A'!F137),IF(Data!$A$12=2,'CandH A'!F139,IF('Mitigation Data'!A12=2,'CandH A'!F141,(IF('Mitigation Data'!A12=3,'CandH A'!F140,'CandH A'!F136))))) -> 34.6081739
A9: Greenhouse gas | B9: =IF(Data!$A$12=3,IF(Data!$AQ$25=1,'Greenhouse A'!D68,'Greenhouse A'!D67),IF(Data!$A$12=2,'Greenhouse A'!D69,'Greenhouse A'!D66)) -> 8.825132599 | C9: =IF(Data!$A$12=3,IF(Data!$AQ$25=1,'Greenhouse A'!F68,'Greenhouse A'!F67),IF(Data!$A$12=2,'Greenhouse A'!F69,IF('Mitigation Data'!A12=2,'Greenhouse A'!F71,(IF('Mitigation Data'!A12=3,'Greenhouse A'!F70,'Greenhouse A'!F66))))) -> 8.825132599
A11: RISK PROFILE
B12: =Data!B13 -> Active landfill | C12: ='Mitigation Data'!B13 -> Mitigation of existing landfill
A13: Risk Grouping | B13: =IF(Data!AQ25=1,"on closed landfill","") -> 
B14: Risk score (current) | C14: Risk score (with proposed mitigation) | D14: Very High | E14: High | F14: Medium | G14: Low | H14: Very Low
D15: 20 | E15: 20 | F15: 20 | G15: 20 | H15: 20
A16: Groundwater | B16: =B2 -> 40.75137237 | C16: =C2 -> 40.75137237 | D16: 20 | E16: 20 | F16: 20 | G16: 20 | H16: 20
A17: Surface water | B17: =B3 -> 23.93403002 | C17: 23.93403002 | D17: 20 | E17: 20 | F17: 20 | G17: 20 | H17: 20
A18: Air | B18: 14.84305907 | C18: 14.84305907 | D18: 20 | E18: 20 | F18: 20 | G18: 20 | H18: 20
A19: Noise | B19: 7.522022766 | C19: 7.522022766 | D19: 20 | E19: 20 | F19: 20 | G19: 20 | H19: 20
A20: Fire | B20: 15.05065517 | C20: 15.05065517 | D20: 20 | E20: 20 | F20: 20 | G20: 20 | H20: 20
A21: Amenity | B21: 12.96445883 | C21: 12.96445883 | D21: 20 | E21: 20 | F21: 20 | G21: 20 | H21: 20
A22: Conservation & Heritage | B22: 34.6081739 | C22: =IF(C8>B8,B8,C8) -> 34.6081739 | D22: 20 | E22: 20 | F22: 20 | G22: 20 | H22: 20
A23: Greenhouse gas | B23: 8.825132599 | C23: =IF(C9>B9,B9,C9) -> 8.825132599 | D23: 20 | E23: 20 | F23: 20 | G23: 20 | H23: 20
D24: 20 | E24: 20 | F24: 20 | G24: 20 | H24: 20

Sheet Risk Profile
B2: E-RAMP Risk Profile
B4: Facility Operator: | E4: =Data!B4 -> 0
B6: Facility Name: | E6: =Data!B7 -> 0
B8: Location: | E8: =Data!B10 -> 0
B10: Facility Type: | E10: =IF('Summary (1)'!$B$13="",'Summary (1)'!$B$12,'Summary (1)'!$B$12&", "&'Summary (1)'!$B$13) -> Active landfill
B12: Mitigation Method: | E12: =IF('Mitigation Data'!A3=0,"Not Applicable",'Mitigation Data'!B13) -> Mitigation of existing landfill

Sheet Risk Profile Report
A2: E-RAMP Risk Profile Report
A4: Facility Operator: | D4: ='Risk Profile'!E4 -> 0
A6: Facility Name: | D6: ='Risk Profile'!E6 -> 0
A8: Location: | D8: ='Risk Profile'!E8 -> 0
A10: Facility Type: | D10: ='Risk Profile'!E10 -> Active landfill
A12: Mitigation Method: | D12: ='Risk Profile'!E12 -> Mitigation of existing landfill
A51: Facility & Surrounding Environment
A53: Amount of waste received | D53: =IF(Data!A12=2,"0",LOOKUP(Data!C15,Data!A16:A20,Data!B16:B20)) -> 0 - 100 | E53: tonnes per annum | I53: Distance from MLA | M53: =LOOKUP(Data!C47,Data!A41:A45,Data!B41:B45) -> >100 | N53: =IF(M53= "Within area","","kilometres") -> kilometres
A54: Age of facility | D54: =LOOKUP(Data!C29,Data!A30:A34,Data!B30:B34) -> > 40 | E54: years | I54: Distance from RLA | M54: =LOOKUP(Data!C50,Data!A41:A45,Data!B41:B45) -> >100 | N54: =IF(M54= "Within area","","kilometres") -> kilometres
A55: Area of facility | D55: =LOOKUP(Data!C22,Data!A23:A27,Data!B23:B27) -> > 10,000 | E55: square metres | I55: Distance > 5,000 people | M55: =LOOKUP(Data!C49,Data!A41:A45,Data!B41:B45) -> <25 | N55: =IF(M55= "Within area","","kilometres") -> kilometres
A56: Facility accessed from | D56: =LOOKUP(Data!C51,Data!A52:A56,Data!B52:B56) -> Other minor road
I57: Modelled EC (dS/m) | M57: =LOOKUP(Data!W45,Data!U46:U49,Data!V46:V49) -> <4
A58: The facility is located on a | D58: =LOOKUP(Data!O3,Data!M4:M8,Data!N4:N8) -> Flat / Floodplain | I58: Acid sulfate soil probability | M58: =LOOKUP(Data!W51,Data!U52:U56,Data!V52:V56) -> No known occurence
A59: Slope | D59: =LOOKUP(Data!W30,Data!U31:U35,Data!V31:V35) -> 0 - 2 | E59: % | I59: Modelled soil erosion (t/Ha/year) | M59: =LOOKUP(Data!W11,Data!U12:U16,Data!V12:V16) -> Negligible to Slight (<50)
A60: Distance to watercourse | D60: =LOOKUP(Data!W58,Data!U59:U63,Data!V59:V63) -> 500 - 1,000 | E60: metres | I60: Located in drinking water catchment | M60: =LOOKUP(Data!W18,Data!U19:U21,Data!V19:V21) -> No
A61: Surface soil type | D61: =LOOKUP(Data!W3,Data!U5:U9,Data!V5:V9) -> Silt (ML, OL, MH, OH)
A62: Sub-surface soil type | D62: =LOOKUP(Data!W4,Data!U5:U9,Data!V5:V9) -> Clay (CL, OL, CH, OH) | I62: Depth to bedrock | M62: =LOOKUP(Data!W73,Data!U74:U79,Data!V74:V79) -> Unknown
I63: Depth to groundwater | M63: =LOOKUP(Data!W81,Data!U82:U87,Data!V82:V87) -> Unknown | Q63: =IF(M62= "Unknown","","metres") -> 
A64: Erosion types identified at facility: | I64: Groundwater vunerability | M64: =LOOKUP(Data!W65,Data!U66:U71,Data!V66:V71) -> Unknown | Q64: =IF(M63= "Unknown","","metres") -> 
A65: Wind | D65: =IF(Data!W38=TRUE,"Yes","No") -> No
A66: Sheet | D66: =IF(Data!W39=TRUE,"Yes","No") -> No | I66: Registered bores within 1 km of facility:
A67: Rill | D67: =IF(Data!W40=TRUE,"Yes","No") -> No | I67: Domestic | M67: =IF(Data!W90=TRUE,"Yes","No") -> No
A68: Gully | D68: =IF(Data!W41=TRUE,"Yes","No") -> No | I68: Stock/Irrigation | M68: =IF(Data!W91=TRUE,"Yes","No") -> No
A69: Tunnel | D69: =IF(Data!W42=TRUE,"Yes","No") -> No | I69: Industrial | M69: =IF(Data!W92=TRUE,"Yes","No") -> No
A70: Mass movement | D70: =IF(Data!W43=TRUE,"Yes","No") -> No | I70: Monitoring | M70: =IF(Data!W93=TRUE,"Yes","No") -> No
I71: Other | M71: =IF(Data!W94=TRUE,"Yes","No") -> No
A72: Facility visable from: | I72: Unspecified | M72: =IF(Data!W95=TRUE,"Yes","No") -> No
A73: Individual residence | D73: =IF(Data!W120=TRUE,"Yes","No") -> No
A74: Urban area | D74: =IF(Data!W121=TRUE,"Yes","No") -> No | I74: Distance to:
A75: Highway | D75: =IF(Data!W122=TRUE,"Yes","No") -> No | I75: Park / Reserve | M75: =LOOKUP(Data!W105,Data!$U$112:$U$117,Data!$V$112:$V$117) -> > 5 | N75: =IF(M75= "Unknown","","kilometres") -> kilometres
A76: Other main raod | D76: =IF(Data!W123=TRUE,"Yes","No") -> No | I76: Protection / conservation zoned | M76: =LOOKUP(Data!W106,Data!$U$112:$U$117,Data!$V$112:$V$117) -> > 5 | N76: =IF(M76= "Unknown","","kilometres") -> kilometres
A77: Lookout | D77: =IF(Data!W124=TRUE,"Yes","No") -> No
I78: Bushfire prone land | M78: =LOOKUP(Data!W127,Data!U128:U132,Data!V128:V132) -> Not bush fire prone land
A80: Aboriginal Cultural Geritage within 1 km | E80: =LOOKUP(Data!W97,Data!$U$101:$U$103,Data!$V$101:$V$103) -> Unknown | I80: Vulnerable / endangered species within 1km | N80: =LOOKUP(Data!W98,Data!$U$101:$U$103,Data!$V$101:$V$103) -> Unknown
A83: Meteorology Information
A85: Average annual rainfall | E85: =LOOKUP(Data!G3,Data!E4:E8,Data!F4:F8) -> < 400 | K85: 3pm main wind direction | N85: =LOOKUP(Data!G24,Data!G25:G40,Data!F25:F40) -> N
A86: No. rain days per year | E86: =LOOKUP(Data!G10,Data!E11:E15,Data!F11:F15) -> < 10 | K86: 3pm average wind speed | N86: =LOOKUP(Data!G49,Data!E50:E54,Data!F50:F54) -> < 6 | O86: km/h
A87: Average annual evaporation | E87: =LOOKUP(Data!G17,Data!E18:E22,Data!F18:F22) -> >2,000 | K87: Calm observations | N87: =LOOKUP(Data!G42,Data!E43:E47,Data!F43:F47) -> > 20 | O87: %
A89: Bushfire Danger Period
A90: October | K90: January
A91: 3pm main wind direction | E91: =LOOKUP(Data!G59,Data!G25:G40,Data!F25:F40) -> N | K91: 3pm main wind direction | N91: =LOOKUP(Data!G86,Data!G25:G40,Data!F25:F40) -> N
A92: 3pm average wind speed | E92: =LOOKUP(Data!G64,Data!E50:E54,Data!F50:F54) -> < 6 | F92: km/h | K92: 3pm average wind speed | N92: =LOOKUP(Data!G91,Data!E50:E54,Data!F50:F54) -> < 6 | O92: km/h
A93: Calm observations | E93: =LOOKUP(Data!G65,Data!E43:E47,Data!F43:F47) -> > 20 | F93: % | K93: Calm observations | N93: =LOOKUP(Data!G92,Data!E43:E47,Data!F43:F47) -> > 20 | O93: %
A95: November | K95: February
A96: 3pm main wind direction | E96: =LOOKUP(Data!G68,Data!G25:G40,Data!F25:F40) -> N | K96: 3pm main wind direction | N96: =LOOKUP(Data!G95,Data!G25:G40,Data!F25:F40) -> N
A97: 3pm average wind speed | E97: =LOOKUP(Data!G73,Data!E50:E54,Data!F50:F54) -> < 6 | F97: km/h | K97: 3pm average wind speed | N97: =LOOKUP(Data!G100,Data!E50:E54,Data!F50:F54) -> < 6 | O97: km/h
A98: Calm observations | E98: =LOOKUP(Data!G74,Data!E43:E47,Data!F43:F47) -> > 20 | F98: % | K98: Calm observations | N98: =LOOKUP(Data!G101,Data!E43:E47,Data!F43:F47) -> > 20 | O98: %
A100: December | K100: March
A101: 3pm main wind direction | E101: =LOOKUP(Data!G77,Data!G25:G40,Data!F25:F40) -> N | K101: 3pm main wind direction | N101: =LOOKUP(Data!G104,Data!G25:G40,Data!F25:F40) -> N
A102: 3pm average wind speed | E102: =LOOKUP(Data!G82,Data!E50:E54,Data!F50:F54) -> < 6 | F102: km/h | K102: 3pm average wind speed | N102: =LOOKUP(Data!G109,Data!E50:E54,Data!F50:F54) -> < 6 | O102: km/h
A103: Calm observations | E103: =LOOKUP(Data!G83,Data!E43:E47,Data!F43:F47) -> > 20 | F103: % | K103: Calm observations | N103: =LOOKUP(Data!G110,Data!E43:E47,Data!F43:F47) -> > 20 | O103: %
A106: Surrounding Landuse & Vegetation
A108: NE Sector: | K108: SE Sector:
A109: Predominant land use | E109: =LOOKUP(Data!K20,Data!$I$4:$I$10,Data!$J$4:$J$10) -> Industrial | K109: Predominant land use | N109: =LOOKUP(Data!K25,Data!$I$4:$I$10,Data!$J$4:$J$10) -> Industrial
A110: Distance to single residence | E110: =LOOKUP(Data!K21,Data!$I$13:$I$17,Data!$J$13:$J$17) -> > 5 | F110: kilometres | K110: Distance to single residence | N110: =LOOKUP(Data!K26,Data!$I$13:$I$17,Data!$J$13:$J$17) -> > 5 | O110: kilometres
A111: Distance to residential area | E111: =LOOKUP(Data!K22,Data!$I$13:$I$17,Data!$J$13:$J$17) -> > 5 | F111: kilometres | K111: Distance to residential area | N111: =LOOKUP(Data!K27,Data!$I$13:$I$17,Data!$J$13:$J$17) -> > 5 | O111: kilometres
A112: Vegetation type adjoining | E112: =LOOKUP(Data!K97,Data!I82:I94,Data!J82:J94) -> Saline wetland | K112: Vegetation Type Adjoining | N112: =LOOKUP(Data!K98,Data!I82:I94,Data!J82:J94) -> Saline wetland
A115: SW Sector: | K115: NW Sector:
A116: Predominant land use | E116: =LOOKUP(Data!K30,Data!$I$4:$I$10,Data!$J$4:$J$10) -> Industrial | K116: Predominant land use | N116: =LOOKUP(Data!K35,Data!$I$4:$I$10,Data!$J$4:$J$10) -> Industrial
A117: Distance to single residence | E117: =LOOKUP(Data!K31,Data!$I$13:$I$17,Data!$J$13:$J$17) -> > 5 | F117: kilometres | K117: Distance to single residence | N117: =LOOKUP(Data!K36,Data!$I$13:$I$17,Data!$J$13:$J$17) -> > 5 | O117: kilometres
A118: Distance to residential area | E118: =LOOKUP(Data!K32,Data!$I$13:$I$17,Data!$J$13:$J$17) -> > 5 | F118: kilometres | K118: Distance to residential area | N118: =LOOKUP(Data!K37,Data!$I$13:$I$17,Data!$J$13:$J$17) -> > 5 | O118: kilometres
A119: Vegetation type adjoining | E119: =LOOKUP(Data!K99,Data!I82:I94,Data!J82:J94) -> Saline wetland | K119: Vegetation type adjoining | N119: =LOOKUP(Data!K100,Data!I82:I94,Data!J82:J94) -> Saline wetland
A122: E-RAMP Risk Profile Report (cont)
A124: Current Operational Issues
A126: Frequency of compliants | G126: =IF(Data!A12=2,"Not applicable",LOOKUP(Data!$AE$72,Data!$AC$193:$AC$197,Data!$AD$193:$AD$197)) -> Very infrequently to never (eg. annually or more)
A127: Frequency of uncontrolled fires | G127: =IF(Data!A12=2,"Not applicable",LOOKUP(Data!$AE$74,Data!$AC$193:$AC$197,Data!$AD$193:$AD$197)) -> Very infrequently to never (eg. annually or more)
A128: Frequency of unlawful waste disposal (at facility) | G128: =IF(Data!A12=2,"Not applicable",LOOKUP(Data!$AE$76,Data!$AC$193:$AC$197,Data!$AD$193:$AD$197)) -> Very infrequently to never (eg. annually or more)
A129: Frequency of unlawful waste disposal (land near facility) | G129: =IF(Data!A12=2,"Not applicable",LOOKUP(Data!$AE$78,Data!$AC$193:$AC$197,Data!$AD$193:$AD$197)) -> Very infrequently to never (eg. annually or more)
A130: Emergency service attendance in the last 12 months | G130: =IF(Data!A12=2,"Not applicable", IF(Data!$AE$190=1,"No","Yes")) -> No
A132: Wastes Received at the Facility
G134: Existing | M134: Proposed
A136: Solid Waste | G136: =IF(Data!$A$12=2,"Not applicable", "Disposal") -> Disposal | H136: =IF(Data!$A$12=2,"","Qty Stored (t)") -> Qty Stored (t) | I136: =IF(Data!$A$12=2,"","Time Stored") -> Time Stored | M136: =IF('Mitigation Data'!B59=TRUE,"",IF('Mitigation Data'!C4=TRUE,"Not applicable","Disposal")) -> Disposal | N136: =IF('Mitigation Data'!C4=TRUE,"","Qty Stored (t)") -> Qty Stored (t) | O136: =IF('Mitigation Data'!C4=TRUE,"","Time Stored") -> Time Stored
A137: Municipal waste | G137: =IF(Data!$A$12=2,"",IF(Data!A12=3,"N/A",IF(Data!$AE$4=TRUE,"Yes","No"))) -> No | H137: =IF(Data!$A$12=2,"",IF(Data!$AF$4=FALSE,"N/A",LOOKUP(Data!$AG$4,DR!$B$16:$B$20,DR!$C$16:$C$20))) -> N/A | I137: =IF(Data!$A$12=2,"",IF(Data!$AF$4=FALSE,"N/A",LOOKUP(Data!$AH$4,DR!$E$16:$E$20,DR!$F$16:$F$20))) -> N/A | M137: =IF('Mitigation Data'!B59=TRUE,"",IF('Mitigation Data'!C4=TRUE,"",IF('Mitigation Data'!$AE$4=TRUE,"Yes","No"))) -> No | N137: =IF('Mitigation Data'!C4=TRUE,"",IF('Mitigation Data'!$AF$4=FALSE,"N/A",LOOKUP('Mitigation Data'!$AG$4,DRm!$B$16:$B$20,DRm!$C$16:$C$20))) -> N/A | O137: =IF('Mitigation Data'!C4=TRUE,"",IF('Mitigation Data'!$AF$4=FALSE,"N/A",LOOKUP('Mitigation Data'!$AH$4,DRm!$E$16:$E$20,DRm!$F$16:$F$20))) -> N/A
A138: Recyclables | G138: =IF(Data!$A$12=2,"",IF(Data!A12=3,"N/A",IF(Data!$AE$5=TRUE,"Yes","No"))) -> No | H138: =IF(Data!$A$12=2,"",IF(Data!$AF$5=FALSE,"N/A",LOOKUP(Data!$AG$5,DR!$B$16:$B$20,DR!$C$16:$C$20))) -> N/A | I138: =IF(Data!$A$12=2,"",IF(Data!$AF$5=FALSE,"N/A",LOOKUP(Data!$AH$5,DR!$E$16:$E$20,DR!$F$16:$F$20))) -> N/A | M138: =IF('Mitigation Data'!B59=TRUE,"",IF('Mitigation Data'!C4=TRUE,"",IF('Mitigation Data'!$AE$5=TRUE,"Yes","No"))) -> No | N138: =IF('Mitigation Data'!C4=TRUE,"",IF('Mitigation Data'!$AF$5=FALSE,"N/A",LOOKUP('Mitigation Data'!$AG$5,DRm!$B$16:$B$20,DRm!$C$16:$C$20))) -> N/A | O138: =IF('Mitigation Data'!C4=TRUE,"",IF('Mitigation Data'!$AF$5=FALSE,"N/A",LOOKUP('Mitigation Data'!$AH$5,DRm!$E$16:$E$20,DRm!$F$16:$F$20))) -> N/A
A139: Commercial & industrial waste | G139: =IF(Data!$A$12=2,"",IF(Data!A12=3,"N/A",IF(Data!$AE$6=TRUE,"Yes","No"))) -> No | H139: =IF(Data!$A$12=2,"",IF(Data!$AF$6=FALSE,"N/A",LOOKUP(Data!$AG$6,DR!$B$16:$B$20,DR!$C$16:$C$20))) -> N/A | I139: =IF(Data!$A$12=2,"",IF(Data!$AF$6=FALSE,"N/A",LOOKUP(Data!$AH$6,DR!$E$16:$E$20,DR!$F$16:$F$20))) -> N/A | M139: =IF('Mitigation Data'!B59=TRUE,"",IF('Mitigation Data'!C4=TRUE,"",IF('Mitigation Data'!$AE$6=TRUE,"Yes","No"))) -> No | N139: =IF('Mitigation Data'!C4=TRUE,"",IF('Mitigation Data'!$AF$6=FALSE,"N/A",LOOKUP('Mitigation Data'!$AG$6,DRm!$B$16:$B$20,DRm!$C$16:$C$20))) -> N/A | O139: =IF('Mitigation Data'!C4=TRUE,"",IF('Mitigation Data'!$AF$6=FALSE,"N/A",LOOKUP('Mitigation Data'!$AH$6,DRm!$E$16:$E$20,DRm!$F$16:$F$20))) -> N/A
A140: Construction & demolition waste | G140: =IF(Data!$A$12=2,"",IF(Data!A12=3,"N/A",IF(Data!$AE$7=TRUE,"Yes","No"))) -> No | H140: =IF(Data!$A$12=2,"",IF(Data!$AF$7=FALSE,"N/A",LOOKUP(Data!$AG$7,DR!$B$16:$B$20,DR!$C$16:$C$20))) -> N/A | I140: =IF(Data!$A$12=2,"",IF(Data!$AF$7=FALSE,"N/A",LOOKUP(Data!$AH$7,DR!$E$16:$E$20,DR!$F$16:$F$20))) -> N/A | M140: =IF('Mitigation Data'!B59=TRUE,"",IF('Mitigation Data'!C4=TRUE,"",IF('Mitigation Data'!$AE$7=TRUE,"Yes","No"))) -> No | N140: =IF('Mitigation Data'!C4=TRUE,"",IF('Mitigation Data'!$AF$7=FALSE,"N/A",LOOKUP('Mitigation Data'!$AG$7,DRm!$B$16:$B$20,DRm!$C$16:$C$20))) -> N/A | O140: =IF('Mitigation Data'!C4=TRUE,"",IF('Mitigation Data'!$AF$7=FALSE,"N/A",LOOKUP('Mitigation Data'!$AH$7,DRm!$E$16:$E$20,DRm!$F$16:$F$20))) -> N/A
A141: Garden & vegetation waste | G141: =IF(Data!$A$12=2,"",IF(Data!A12=3,"N/A",IF(Data!$AE$8=TRUE,"Yes","No"))) -> No | H141: =IF(Data!$A$12=2,"",IF(Data!$AF$8=FALSE,"N/A",LOOKUP(Data!$AG$8,DR!$B$16:$B$20,DR!$C$16:$C$20))) -> N/A | I141: =IF(Data!$A$12=2,"",IF(Data!$AF$8=FALSE,"N/A",LOOKUP(Data!$AH$8,DR!$E$16:$E$20,DR!$F$16:$F$20))) -> N/A | M141: =IF('Mitigation Data'!B59=TRUE,"",IF('Mitigation Data'!C4=TRUE,"",IF('Mitigation Data'!$AE$8=TRUE,"Yes","No"))) -> No | N141: =IF('Mitigation Data'!C4=TRUE,"",IF('Mitigation Data'!$AF$8=FALSE,"N/A",LOOKUP('Mitigation Data'!$AG$8,DRm!$B$16:$B$20,DRm!$C$16:$C$20))) -> N/A | O141: =IF('Mitigation Data'!C4=TRUE,"",IF('Mitigation Data'!$AF$8=FALSE,"N/A",LOOKUP('Mitigation Data'!$AH$8,DRm!$E$16:$E$20,DRm!$F$16:$F$20))) -> N/A
A142: Virgin excavated natural material | G142: =IF(Data!$A$12=2,"",IF(Data!A12=3,"N/A",IF(Data!$AE$9=TRUE,"Yes","No"))) -> No | H142: =IF(Data!$A$12=2,"",IF(Data!$AF$9=FALSE,"N/A",LOOKUP(Data!$AG$9,DR!$B$16:$B$20,DR!$C$16:$C$20))) -> N/A | I142: =IF(Data!$A$12=2,"",IF(Data!$AF$9=FALSE,"N/A",LOOKUP(Data!$AH$9,DR!$E$16:$E$20,DR!$F$16:$F$20))) -> N/A | M142: =IF('Mitigation Data'!B59=TRUE,"",IF('Mitigation Data'!C4=TRUE,"",IF('Mitigation Data'!$AE$9=TRUE,"Yes","No"))) -> No | N142: =IF('Mitigation Data'!C4=TRUE,"",IF('Mitigation Data'!$AF$9=FALSE,"N/A",LOOKUP('Mitigation Data'!$AG$9,DRm!$B$16:$B$20,DRm!$C$16:$C$20))) -> N/A | O142: =IF('Mitigation Data'!C4=TRUE,"",IF('Mitigation Data'!$AF$9=FALSE,"N/A",LOOKUP('Mitigation Data'!$AH$9,DRm!$E$16:$E$20,DRm!$F$16:$F$20))) -> N/A
A143: Scrap metal | G143: =IF(Data!$A$12=2,"",IF(Data!A12=3,"N/A",IF(Data!$AE$10=TRUE,"Yes","No"))) -> No | H143: =IF(Data!$A$12=2,"",IF(Data!$AF$10=FALSE,"N/A",LOOKUP(Data!$AG$10,DR!$B$16:$B$20,DR!$C$16:$C$20))) -> N/A | I143: =IF(Data!$A$12=2,"",IF(Data!$AF$10=FALSE,"N/A",LOOKUP(Data!$AH$10,DR!$E$16:$E$20,DR!$F$16:$F$20))) -> N/A | M143: =IF('Mitigation Data'!B59=TRUE,"",IF('Mitigation Data'!C4=TRUE,"",IF('Mitigation Data'!$AE$10=TRUE,"Yes","No"))) -> No | N143: =IF('Mitigation Data'!C4=TRUE,"",IF('Mitigation Data'!$AF$10=FALSE,"N/A",LOOKUP('Mitigation Data'!$AG$10,DRm!$B$16:$B$20,DRm!$C$16:$C$20))) -> N/A | O143: =IF('Mitigation Data'!C4=TRUE,"",IF('Mitigation Data'!$AF$10=FALSE,"N/A",LOOKUP('Mitigation Data'!$AH$10,DRm!$E$16:$E$20,DRm!$F$16:$F$20))) -> N/A
A144: Tyres | G144: =IF(Data!$A$12=2,"",IF(Data!A12=3,"N/A",IF(Data!$AE$13=TRUE,"Yes","No"))) -> No | H144: =IF(Data!$A$12=2,"",IF(Data!$AF$13=FALSE,"N/A",LOOKUP(Data!$AG$13,DR!$B$40:$B$44,DR!$C$40:$C$44))) -> N/A | I144: =IF(Data!$A$12=2,"",IF(Data!$AF$13=FALSE,"N/A",LOOKUP(Data!$AH$13,DR!$E$40:$E$44,DR!$F$40:$F$44))) -> N/A | M144: =IF('Mitigation Data'!B59=TRUE,"",IF('Mitigation Data'!C4=TRUE,"",IF('Mitigation Data'!$AE$13=TRUE,"Yes","No"))) -> No | N144: =IF('Mitigation Data'!C4=TRUE,"",IF('Mitigation Data'!$AF$13=FALSE,"N/A",LOOKUP('Mitigation Data'!$AG$13,DRm!$B$40:$B$44,DRm!$C$40:$C$44))) -> N/A | O144: =IF('Mitigation Data'!C4=TRUE,"",IF('Mitigation Data'!$AF$13=FALSE,"N/A",LOOKUP('Mitigation Data'!$AH$13,DRm!$E$40:$E$44,DRm!$F$40:$F$44))) -> N/A
A145: Chemical containers | G145: =IF(Data!$A$12=2,"","N/A") -> N/A | H145: =IF(Data!$A$12=2,"",IF(Data!$AF$15=FALSE,"N/A",LOOKUP(Data!$AG$15,DR!$B$40:$B$44,DR!$C$40:$C$44))) -> N/A | I145: =IF(Data!$A$12=2,"",IF(Data!$AF$15=FALSE,"N/A",LOOKUP(Data!$AH$15,DR!$E$40:$E$44,DR!$F$40:$F$44))) -> N/A | M145: =IF('Mitigation Data'!B59=TRUE,"",IF('Mitigation Data'!$C$4=TRUE,"","N/A")) -> N/A | N145: =IF('Mitigation Data'!C4=TRUE,"",IF('Mitigation Data'!$AF$15=FALSE,"N/A",LOOKUP('Mitigation Data'!$AG$15,DRm!$B$40:$B$44,DRm!$C$40:$C$44))) -> N/A | O145: =IF('Mitigation Data'!C4=TRUE,"",IF('Mitigation Data'!$AF$15=FALSE,"N/A",LOOKUP('Mitigation Data'!$AH$15,DRm!$E$40:$E$44,DRm!$F$40:$F$44))) -> N/A
A146: Batteries | G146: =IF(Data!$A$12=2,"","N/A") -> N/A | H146: =IF(Data!$A$12=2,"",IF(Data!$AF$16=FALSE,"N/A",LOOKUP(Data!$AG$16,DR!$B$40:$B$44,DR!$C$40:$C$44))) -> N/A | I146: =IF(Data!$A$12=2,"",IF(Data!$AF$16=FALSE,"N/A",LOOKUP(Data!$AH$16,DR!$E$40:$E$44,DR!$F$40:$F$44))) -> N/A | M146: =IF('Mitigation Data'!B59=TRUE,"",IF('Mitigation Data'!$C$4=TRUE,"","N/A")) -> N/A | N146: =IF('Mitigation Data'!C4=TRUE,"",IF('Mitigation Data'!$AF$16=FALSE,"N/A",LOOKUP('Mitigation Data'!$AG$16,DRm!$B$40:$B$44,DRm!$C$40:$C$44))) -> N/A | O146: =IF('Mitigation Data'!C4=TRUE,"",IF('Mitigation Data'!$AF$16=FALSE,"N/A",LOOKUP('Mitigation Data'!$AH$15,DRm!$B$40:$B$44,DRm!$C$40:$C$44))) -> N/A
A147: Hazardous waste | G147: =IF(Data!$A$12=2,"","N/A") -> N/A | H147: =IF(Data!$A$12=2,"",IF(Data!$AF$17=FALSE,"N/A",LOOKUP(Data!$AG$17,DR!$B$40:$B$44,DR!$C$40:$C$44))) -> N/A | I147: =IF(Data!$A$12=2,"",IF(Data!$AF$17=FALSE,"N/A",LOOKUP(Data!$AH$17,DR!$E$40:$E$44,DR!$F$40:$F$44))) -> N/A | M147: =IF('Mitigation Data'!B59=TRUE,"",IF('Mitigation Data'!$C$4=TRUE,"","N/A")) -> N/A | N147: =IF('Mitigation Data'!C4=TRUE,"",IF('Mitigation Data'!$AF$17=FALSE,"N/A",LOOKUP('Mitigation Data'!$AG$17,DRm!$B$40:$B$44,DRm!$C$40:$C$44))) -> N/A | O147: =IF('Mitigation Data'!C4=TRUE,"",IF('Mitigation Data'!$AF$17=FALSE,"N/A",LOOKUP('Mitigation Data'!$AH$17,DRm!$B$40:$B$44,DRm!$C$40:$C$44))) -> N/A
A148: Others | G148: =IF(Data!$A$12=2,"",IF(Data!A12=3,"N/A",IF(Data!$AE$11=TRUE,"Yes","No"))) -> No | H148: =IF(Data!$A$12=2,"",IF(Data!$AF$11=FALSE,"N/A",LOOKUP(Data!$AG$11,DR!$B$40:$B$44,DR!$C$40:$C$44))) -> N/A | I148: =IF(Data!$A$12=2,"",IF(Data!$AF$11=FALSE,"N/A",LOOKUP(Data!$AH$11,DR!$E$40:$E$44,DR!$F$40:$F$44))) -> N/A | M148: =IF('Mitigation Data'!B59=TRUE,"",IF('Mitigation Data'!C4=TRUE,"",IF('Mitigation Data'!$AE$11=TRUE,"Yes","No"))) -> No | N148: =IF('Mitigation Data'!C4=TRUE,"",IF('Mitigation Data'!$AF$11=FALSE,"N/A",LOOKUP('Mitigation Data'!$AG$11,DRm!$B$40:$B$44,DRm!$C$40:$C$44))) -> N/A | O148: =IF('Mitigation Data'!C4=TRUE,"",IF('Mitigation Data'!$AF$11=FALSE,"N/A",LOOKUP('Mitigation Data'!$AH$11,DRm!$B$40:$B$44,DRm!$C$40:$C$44))) -> N/A
A150: Liquid Wastes | G150: =IF(Data!$A$12=2,"Not applicable", "Disposal") -> Disposal | H150: =IF(Data!$A$12=2,"","Qty Stored (t)") -> Qty Stored (t) | I150: =IF(Data!$A$12=2,"","Time Stored") -> Time Stored | M150: =IF('Mitigation Data'!B59=TRUE,"",IF('Mitigation Data'!C18=TRUE,"Not applicable","Disposal")) -> Disposal | N150: =IF(Data!$A$12=2,"","Qty Stored (t)") -> Qty Stored (t) | O150: =IF(Data!$A$12=2,"","Time Stored") -> Time Stored
A151: Waste mineral oil | G151: =IF(Data!$A$12=2,"",IF(Data!$AE$20=TRUE,"Yes","No")) -> No | H151: =IF(Data!$A$12=2,"",IF(Data!$AF$20=FALSE,"N/A",LOOKUP(Data!$AG$20,DR!$B$64:$B$68,DR!$C$64:$C$68))) -> N/A | I151: =IF(Data!$A$12=2,"",IF(Data!$AF$20=FALSE,"N/A",LOOKUP(Data!$AH$20,DR!$E$64:$E$68,DR!$F$64:$F$68))) -> N/A | M151: =IF('Mitigation Data'!B59=TRUE,"",IF('Mitigation Data'!$C$4=TRUE,"","No")) -> No | N151: =IF('Mitigation Data'!C4=TRUE,"",IF('Mitigation Data'!AF20=FALSE,"N/A",LOOKUP('Mitigation Data'!AG20,DRm!$B$16:$B$20,DRm!$C$16:$C$20))) -> N/A | O151: =IF('Mitigation Data'!C4=TRUE,"",IF('Mitigation Data'!AF20=FALSE,"N/A",LOOKUP('Mitigation Data'!AH20,DRm!$E$16:$E$20,DRm!$F$16:$F$20))) -> N/A
A152: Waste cooking oil | G152: =IF(Data!$A$12=2,"",IF(Data!$AE$21=TRUE,"Yes","No")) -> No | H152: =IF(Data!$A$12=2,"",IF(Data!$AF$21=FALSE,"N/A",LOOKUP(Data!$AG$21,DR!$B$64:$B$68,DR!$C$64:$C$68))) -> N/A | I152: =IF(Data!$A$12=2,"",IF(Data!$AF$21=FALSE,"N/A",LOOKUP(Data!$AH$21,DR!$E$64:$E$68,DR!$F$64:$F$68))) -> N/A | M152: =IF('Mitigation Data'!B59=TRUE,"",IF('Mitigation Data'!$C$4=TRUE,"","No")) -> No | N152: =IF('Mitigation Data'!C4=TRUE,"",IF('Mitigation Data'!AF21=FALSE,"N/A",LOOKUP('Mitigation Data'!AG21,DRm!$B$16:$B$20,DRm!$C$16:$C$20))) -> N/A | O152: =IF('Mitigation Data'!C4=TRUE,"",IF('Mitigation Data'!AF21=FALSE,"N/A",LOOKUP('Mitigation Data'!AH21,DRm!$E$16:$E$20,DRm!$F$16:$F$20))) -> N/A
A153: Paint | G153: =IF(Data!$A$12=2,"",IF(Data!$AE$22=TRUE,"Yes","No")) -> No | H153: =IF(Data!$A$12=2,"",IF(Data!$AF$22=FALSE,"N/A",LOOKUP(Data!$AG$22,DR!$B$64:$B$68,DR!$C$64:$C$68))) -> N/A | I153: =IF(Data!$A$12=2,"",IF(Data!$AF$22=FALSE,"N/A",LOOKUP(Data!$AH$22,DR!$E$64:$E$68,DR!$F$64:$F$68))) -> N/A | M153: =IF('Mitigation Data'!B59=TRUE,"",IF('Mitigation Data'!$C$4=TRUE,"","No")) -> No | N153: =IF('Mitigation Data'!C4=TRUE,"",IF('Mitigation Data'!AF22=FALSE,"N/A",LOOKUP('Mitigation Data'!AG22,DRm!$B$16:$B$20,DRm!$C$16:$C$20))) -> N/A | O153: =IF('Mitigation Data'!C4=TRUE,"",IF('Mitigation Data'!AF22=FALSE,"N/A",LOOKUP('Mitigation Data'!AH22,DRm!$E$16:$E$20,DRm!$F$16:$F$20))) -> N/A
A154: Grease trap waste | G154: =IF(Data!$A$12=2,"",IF(Data!$AE$23=TRUE,"Yes","No")) -> No | H154: =IF(Data!$A$12=2,"",IF(Data!$AF$23=FALSE,"N/A",LOOKUP(Data!$AG$23,DR!$B$64:$B$68,DR!$C$64:$C$68))) -> N/A | I154: =IF(Data!$A$12=2,"",IF(Data!$AF$23=FALSE,"N/A",LOOKUP(Data!$AH$23,DR!$E$64:$E$68,DR!$F$64:$F$68))) -> N/A | M154: =IF('Mitigation Data'!B59=TRUE,"",IF('Mitigation Data'!C4=TRUE,"",IF('Mitigation Data'!AE23=TRUE,"Yes","No"))) -> No | N154: =IF('Mitigation Data'!C4=TRUE,"",IF('Mitigation Data'!AF23=FALSE,"N/A",LOOKUP('Mitigation Data'!AG23,DRm!$B$16:$B$20,DRm!$C$16:$C$20))) -> N/A | O154: =IF('Mitigation Data'!C4=TRUE,"",IF('Mitigation Data'!AF23=FALSE,"N/A",LOOKUP('Mitigation Data'!AH23,DRm!$E$16:$E$20,DRm!$F$16:$F$20))) -> N/A
A155: Oily water waste | G155: =IF(Data!$A$12=2,"",IF(Data!$AE$24=TRUE,"Yes","No")) -> No | H155: =IF(Data!$A$12=2,"",IF(Data!$AF$24=FALSE,"N/A",LOOKUP(Data!$AG$24,DR!$B$64:$B$68,DR!$C$64:$C$68))) -> N/A | I155: =IF(Data!$A$12=2,"",IF(Data!$AF$24=FALSE,"N/A",LOOKUP(Data!$AH$24,DR!$E$64:$E$68,DR!$F$64:$F$68))) -> N/A | M155: =IF('Mitigation Data'!B59=TRUE,"",IF('Mitigation Data'!$C$4=TRUE,"","No")) -> No | N155: =IF('Mitigation Data'!C4=TRUE,"",IF('Mitigation Data'!AF24=FALSE,"N/A",LOOKUP('Mitigation Data'!AG24,DRm!$B$16:$B$20,DRm!$C$16:$C$20))) -> N/A | O155: =IF('Mitigation Data'!C4=TRUE,"",IF('Mitigation Data'!AF24=FALSE,"N/A",LOOKUP('Mitigation Data'!AH24,DRm!$E$16:$E$20,DRm!$F$16:$F$20))) -> N/A
A156: Septic waste | G156: =IF(Data!$A$12=2,"",IF(Data!$AE$25=TRUE,"Yes","No")) -> No | H156: =IF(Data!$A$12=2,"",IF(Data!$AF$25=FALSE,"N/A",LOOKUP(Data!$AG$25,DR!$B$64:$B$68,DR!$C$64:$C$68))) -> N/A | I156: =IF(Data!$A$12=2,"",IF(Data!$AF$25=FALSE,"N/A",LOOKUP(Data!$AH$25,DR!$E$64:$E$68,DR!$F$64:$F$68))) -> N/A | M156: =IF('Mitigation Data'!B59=TRUE,"",IF('Mitigation Data'!$C$4=TRUE,"","No")) -> No | N156: =IF('Mitigation Data'!C4=TRUE,"",IF('Mitigation Data'!AF25=FALSE,"N/A",LOOKUP('Mitigation Data'!AG25,DRm!$B$16:$B$20,DRm!$C$16:$C$20))) -> N/A | O156: =IF('Mitigation Data'!C4=TRUE,"",IF('Mitigation Data'!AF25=FALSE,"N/A",LOOKUP('Mitigation Data'!AH25,DRm!$E$16:$E$20,DRm!$F$16:$F$20))) -> N/A
A157: Others | G157: =IF(Data!$A$12=2,"",IF(Data!$AE$26=TRUE,"Yes","No")) -> No | H157: =IF(Data!$A$12=2,"",IF(Data!$AF$26=FALSE,"N/A",LOOKUP(Data!$AG$26,DR!$B$64:$B$68,DR!$C$64:$C$68))) -> N/A | I157: =IF(Data!$A$12=2,"",IF(Data!$AF$26=FALSE,"N/A",LOOKUP(Data!$AH$26,DR!$E$64:$E$68,DR!$F$64:$F$68))) -> N/A | M157: =IF('Mitigation Data'!B59=TRUE,"",IF('Mitigation Data'!$C$4=TRUE,"","No")) -> No | N157: =IF('Mitigation Data'!C4=TRUE,"",IF('Mitigation Data'!AF26=FALSE,"N/A",LOOKUP('Mitigation Data'!AG26,DRm!$B$16:$B$20,DRm!$C$16:$C$20))) -> N/A | O157: =IF('Mitigation Data'!C4=TRUE,"",IF('Mitigation Data'!AF26=FALSE,"N/A",LOOKUP('Mitigation Data'!AH26,DRm!$E$16:$E$20,DRm!$F$16:$F$20))) -> N/A
A159: Operations and Management
G161: Existing
A163: Facility open to the public | G163: =IF(Data!A12=2,"Not applicable",LOOKUP(Data!$AE$28,Data!$AC$29:$AC$34,Data!$AD$29:$AD$34)) -> 24 hours, 7 days per week | M163: =IF('Mitigation Data'!C4=TRUE,"Not applicable",LOOKUP('Mitigation Data'!$AE$28,'Mitigation Data'!AC29:AC34,'Mitigation Data'!AD29:AD34)) -> No change proposed
A164: Facility perimeter fence | G164: =IF(Data!A12=2,"Not applicable",LOOKUP(Data!$AE$36,Data!$AC$37:$AC$41,Data!$AD$37:$AD$41)) -> No perimeter fence | M164: =IF('Mitigation Data'!C4=TRUE,"Not applicable",LOOKUP('Mitigation Data'!$AE$36,'Mitigation Data'!AC37:AC41,'Mitigation Data'!AD37:AD41)) -> No change proposed
A165: Method of securing access to the facility | G165: =IF(Data!A12=2,"Not applicable",LOOKUP(Data!$AE$43,Data!$AC$44:$AC$48,Data!$AD$44:$AD$48)) -> Access not secured | M165: =IF('Mitigation Data'!C4=TRUE,"Not applicable",LOOKUP('Mitigation Data'!$AE$43,'Mitigation Data'!AC44:AC48,'Mitigation Data'!AD44:AD48)) -> No change proposed
A166: Method of controlling access to the facility | G166: =IF(Data!A12=2,"Not applicable",LOOKUP(Data!$AE$56,Data!$AC$57:$AC$61,Data!$AD$57:$AD$61)) -> No control on access in place | M166: =IF('Mitigation Data'!C4=TRUE,"Not applicable",LOOKUP('Mitigation Data'!$AE$56,'Mitigation Data'!AC57:AC61,'Mitigation Data'!AD57:AD61)) -> No change proposed
A167: Supervision of the facility | G167: =IF(Data!A12=2,"Not applicable",LOOKUP(Data!$AE$63,Data!$AC$64:$AC$68,Data!$AD$64:$AD$68)) -> No supervision undertaken | M167: =IF('Mitigation Data'!C4=TRUE,"Not applicable",LOOKUP('Mitigation Data'!$AE$63,'Mitigation Data'!$AC$64:$AC$68,'Mitigation Data'!$AD$64:$AD$68)) -> No change proposed
A168: Operators in attendance at the facility | G168: =IF(Data!A12=2,"Not applicable",LOOKUP(Data!$AE$70,Data!$AC$200:$AC$204,Data!$AD$200:$AD$204)) -> Very infrequently to never (eg. annually or more) | M168: =IF('Mitigation Data'!C4=TRUE,"Not applicable",LOOKUP('Mitigation Data'!$AE$70,'Mitigation Data'!$AC$71:$AC$75,'Mitigation Data'!$AD$71:$AD$75)) -> No change proposed
A170: Additional security measures: | G170: =IF(Data!$A$12=2,"Not applicable","") ->  | M170: =IF('Mitigation Data'!$C$4=TRUE,"Not applicable","") -> 
A171: Security patrols | G171: =IF(Data!A12=2,"",IF(Data!$AE$51=TRUE,"Yes","No")) -> No | M171: =IF('Mitigation Data'!C4=TRUE,"",IF('Mitigation Data'!$AE$51=TRUE,"Yes","No")) -> No
A172: Video surveillance | G172: =IF(Data!A12=2,"",IF(Data!$AE$52=TRUE,"Yes","No")) -> No | M172: =IF('Mitigation Data'!C4=TRUE,"",IF('Mitigation Data'!$AE$52=TRUE,"Yes","No")) -> No
A173: Covert surveillance | G173: =IF(Data!A12=2,"",IF(Data!$AE$53=TRUE,"Yes","No")) -> No | M173: =IF('Mitigation Data'!$C$4=TRUE,"",IF('Mitigation Data'!AE53=TRUE,"Yes","No")) -> No
A174: "Dummy" surveillance | G174: =IF(Data!A12=2,"",IF(Data!$AE$54=TRUE,"Yes","No")) -> No | M174: =IF('Mitigation Data'!$C$4=TRUE,"",IF('Mitigation Data'!AE54=TRUE,"Yes","No")) -> No
A176: Days operational activities conducted | G176: =IF(Data!A12=2,"Not applicable",LOOKUP(Data!$AE$126,Data!$AC$127:$AC$129,Data!$AD$127:$AD$129)) -> Weekends only | M176: =IF('Mitigation Data'!$C$4=TRUE,"Not applicable",LOOKUP('Mitigation Data'!AE146,'Mitigation Data'!AC147:AC149,'Mitigation Data'!AD147:AD149)) -> No change proposed
A177: Hours operational activities conducted | G177: =IF(Data!A12=2,"Not applicable",LOOKUP(Data!$AE$131,Data!$AC$132:$AC$134,Data!$AD$132:$AD$134)) -> 24 hours | M177: =IF('Mitigation Data'!$C$4=TRUE,"Not applicable",LOOKUP('Mitigation Data'!$AE$151,'Mitigation Data'!AC152:AC154,'Mitigation Data'!AD152:AD154)) -> No change proposed
A179: Plant and equipment used at the facility: | G179: =IF(Data!$A$12=2,"Not applicable","") ->  | M179: =IF('Mitigation Data'!$C$4=TRUE,"Not applicable","") -> 
A180: Bulldozer | G180: =IF(Data!A12=2,"",IF(Data!$AE$137=TRUE,"Yes","No")) -> No | M180: =IF('Mitigation Data'!$C$4=TRUE,"",IF('Mitigation Data'!AE157=TRUE,"Yes","No")) -> No
A181: Excavator | G181: =IF(Data!A12=2,"",IF(Data!$AE$138=TRUE,"Yes","No")) -> No | M181: =IF('Mitigation Data'!$C$4=TRUE,"",IF('Mitigation Data'!AE158=TRUE,"Yes","No")) -> No
A182: Front end loader | G182: =IF(Data!A12=2,"",IF(Data!$AE$139=TRUE,"Yes","No")) -> No | M182: =IF('Mitigation Data'!$C$4=TRUE,"",IF('Mitigation Data'!AE159=TRUE,"Yes","No")) -> No
A183: Landfill compactor | G183: =IF(Data!A12=2,"",IF(Data!$AE$140=TRUE,"Yes","No")) -> No | M183: =IF('Mitigation Data'!$C$4=TRUE,"",IF('Mitigation Data'!AE160=TRUE,"Yes","No")) -> No
A184: Small plant (mowers, etc) | G184: =IF(Data!A12=2,"",IF(Data!$AE$141=TRUE,"Yes","No")) -> No | M184: =IF('Mitigation Data'!$C$4=TRUE,"",IF('Mitigation Data'!AE161=TRUE,"Yes","No")) -> No
A185: Tipper truck | G185: =IF(Data!A12=2,"",IF(Data!$AE$142=TRUE,"Yes","No")) -> No | M185: =IF('Mitigation Data'!$C$4=TRUE,"",IF('Mitigation Data'!AE162=TRUE,"Yes","No")) -> No
A186: Backhoe | G186: =IF(Data!A12=2,"",IF(Data!$AE$143=TRUE,"Yes","No")) -> No | M186: =IF('Mitigation Data'!$C$4=TRUE,"",IF('Mitigation Data'!AE163=TRUE,"Yes","No")) -> No
A187: Garbage truck | G187: =IF(Data!A12=2,"",IF(Data!$AE$144=TRUE,"Yes","No")) -> No | M187: =IF('Mitigation Data'!$C$4=TRUE,"",IF('Mitigation Data'!AE164=TRUE,"Yes","No")) -> No
A188: Materials Recovery Facility (MRF) | G188: =IF(Data!A12=2,"",IF(Data!$AE$145=TRUE,"Yes","No")) -> No | M188: =IF('Mitigation Data'!$C$4=TRUE,"",IF('Mitigation Data'!AE165=TRUE,"Yes","No")) -> No
A189: Vehicle wash | G189: =IF(Data!A12=2,"",IF(Data!$AE$146=TRUE,"Yes","No")) -> No | M189: =IF('Mitigation Data'!$C$4=TRUE,"",IF('Mitigation Data'!AE166=TRUE,"Yes","No")) -> No
A191: Frequency of planned and controlled burning | G191: =IF(Data!A12=2,"Not applicable",LOOKUP(Data!$AE$164,Data!$AC$193:$AC$197,Data!$AD$193:$AD$197)) -> Very frequently (eg. daily) | M191: =IF('Mitigation Data'!$C$4=TRUE,"Not applicable",LOOKUP('Mitigation Data'!AE184,'Mitigation Data'!AC185:AC189,'Mitigation Data'!AD185:AD189)) -> No change proposed
A192: Fire fighting capacity | G192: =IF(Data!A12=2,"Not applicable",LOOKUP(Data!$AE$166,Data!$AC$167:$AC$171,Data!$AD$167:$AD$171)) -> None | M192: =IF('Mitigation Data'!$C$4=TRUE,"Not applicable",LOOKUP('Mitigation Data'!AE191,'Mitigation Data'!AC192:AC196,'Mitigation Data'!AD192:AD196)) -> No change proposed
A194: Fire management controls: | G194: =IF(Data!$A$12=2,"Not applicable","") ->  | M194: =IF('Mitigation Data'!$C$4=TRUE,"Not applicable","") -> 
A195: Formal fire response plan | G195: =IF(Data!A12=2,"",IF(Data!$AE$174=TRUE,"Yes","No")) -> No | M195: =IF('Mitigation Data'!$C$4=TRUE,"",IF('Mitigation Data'!AE199=TRUE,"Yes","No")) -> No
A196: Perimeter fire breaks | G196: =IF(Data!A12=2,"",IF(Data!$AE$175=TRUE,"Yes","No")) -> No | M196: =IF('Mitigation Data'!$C$4=TRUE,"",IF('Mitigation Data'!AE200=TRUE,"Yes","No")) -> No
A197: Soil stockpiles | G197: =IF(Data!A12=2,"",IF(Data!$AE$176=TRUE,"Yes","No")) -> No | M197: =IF('Mitigation Data'!$C$4=TRUE,"",IF('Mitigation Data'!AE201=TRUE,"Yes","No")) -> No
A198: Maintenance schedule | G198: =IF(Data!A12=2,"",IF(Data!$AE$177=TRUE,"Yes","No")) -> No | M198: =IF('Mitigation Data'!$C$4=TRUE,"",IF('Mitigation Data'!AE202=TRUE,"Yes","No")) -> No
A199: Other | G199: =IF(Data!A12=2,"",IF(Data!$AE$178=TRUE,"Yes","No")) -> No | M199: =IF('Mitigation Data'!$C$4=TRUE,"",IF('Mitigation Data'!AE203=TRUE,"Yes","No")) -> No
A201: Documented and implemented procedures: | G201: =IF(Data!$A$12=2,"Not applicable","") ->  | M201: =IF('Mitigation Data'!$C$4=TRUE,"Not applicable","") -> 
A202: General operation and management | G202: =IF(Data!A12=2,"",IF(Data!$AE$181=TRUE,"Yes","No")) -> No | M202: =IF('Mitigation Data'!C4=TRUE,"",IF('Mitigation Data'!$AE$206=TRUE,"Yes","No")) -> No
A203: Waste screening | G203: =IF(Data!A12=2,"",IF(Data!$AE$182=TRUE,"Yes","No")) -> No | M203: =IF('Mitigation Data'!C4=TRUE,"",IF('Mitigation Data'!$AE$207=TRUE,"Yes","No")) -> No
A204: Management of unlawfully disposed waste | G204: =IF(Data!A12=2,"",IF(Data!$AE$183=TRUE,"Yes","No")) -> No | M204: =IF('Mitigation Data'!C4=TRUE,"",IF('Mitigation Data'!$AE$208=TRUE,"Yes","No")) -> No
A205: Fire response | G205: =IF(Data!A12=2,"",IF(Data!$AE$184=TRUE,"Yes","No")) -> No | M205: =IF('Mitigation Data'!C4=TRUE,"",IF('Mitigation Data'!$AE$209=TRUE,"Yes","No")) -> No
A206: Environmental monitoring | G206: =IF(Data!A12=2,"",IF(Data!$AE$185=TRUE,"Yes","No")) -> No | M206: =IF('Mitigation Data'!C4=TRUE,"",IF('Mitigation Data'!$AE$210=TRUE,"Yes","No")) -> No
A207: Pollution incident response | G207: =IF(Data!A12=2,"",IF(Data!$AE$186=TRUE,"Yes","No")) -> No | M207: =IF('Mitigation Data'!C4=TRUE,"",IF('Mitigation Data'!$AE$211=TRUE,"Yes","No")) -> No
A208: Compliant response | G208: =IF(Data!A12=2,"",IF(Data!$AE$187=TRUE,"Yes","No")) -> No | M208: =IF('Mitigation Data'!C4=TRUE,"",IF('Mitigation Data'!$AE$212=TRUE,"Yes","No")) -> No
A209: Other incident / emergency response | G209: =IF(Data!A12=2,"",IF(Data!$AE$188=TRUE,"Yes","No")) -> No | M209: =IF('Mitigation Data'!C4=TRUE,"",IF('Mitigation Data'!$AE$213=TRUE,"Yes","No")) -> No
A211: Dust control measures: | G211: =IF(Data!$A$12=2,"Not applicable","") ->  | M211: =IF('Mitigation Data'!$C$4=TRUE,"Not applicable","") -> 
A212: Minimisation of disturbed areas | G212: =IF(Data!A12=2,"",IF(Data!$AE$115=TRUE,"Yes","No")) -> No | M212: =IF('Mitigation Data'!C4=TRUE,"",IF('Mitigation Data'!$AE$135=TRUE,"Yes","No")) -> No
A213: Use of windbreaks | G213: =IF(Data!A12=2,"",IF(Data!$AE$116=TRUE,"Yes","No")) -> No | M213: =IF('Mitigation Data'!C4=TRUE,"",IF('Mitigation Data'!$AE$136=TRUE,"Yes","No")) -> No
A214: Dust supression sprays | G214: =IF(Data!A12=2,"",IF(Data!$AE$117=TRUE,"Yes","No")) -> No | M214: =IF('Mitigation Data'!C4=TRUE,"",IF('Mitigation Data'!$AE$137=TRUE,"Yes","No")) -> No
A215: Other | G215: =IF(Data!A12=2,"",IF(Data!$AE$118=TRUE,"Yes","No")) -> No | M215: =IF('Mitigation Data'!C4=TRUE,"",IF('Mitigation Data'!$AE$138=TRUE,"Yes","No")) -> No
A217: Litter control measures: | G217: =IF(Data!$A$12=2,"Not applicable","") ->  | M217: =IF('Mitigation Data'!$C$4=TRUE,"Not applicable","") -> 
A218: Purpose built litter fences | G218: =IF(Data!A12=2,"",IF(Data!$AE$121=TRUE,"Yes","No")) -> No | M218: =IF('Mitigation Data'!C4=TRUE,"",IF('Mitigation Data'!$AE$141=TRUE,"Yes","No")) -> No
A219: Litter cages | G219: =IF(Data!A12=2,"",IF(Data!$AE$122=TRUE,"Yes","No")) -> No | M219: =IF('Mitigation Data'!C4=TRUE,"",IF('Mitigation Data'!$AE$142=TRUE,"Yes","No")) -> No
A220: Regularly scheduled clean-up | G220: =IF(Data!A12=2,"",IF(Data!$AE$123=TRUE,"Yes","No")) -> No | M220: =IF('Mitigation Data'!C4=TRUE,"",IF('Mitigation Data'!$AE$143=TRUE,"Yes","No")) -> No
A221: Other | G221: =IF(Data!A12=2,"",IF(Data!$AE$124=TRUE,"Yes","No")) -> No | M221: =IF('Mitigation Data'!C4=TRUE,"",IF('Mitigation Data'!$AE$144=TRUE,"Yes","No")) -> No
A223: Pest management programs: | G223: =IF(Data!$A$12=2,"Not applicable","") ->  | M223: =IF('Mitigation Data'!$C$4=TRUE,"Not applicable","") -> 
A224: Mice / rats | G224: =IF(Data!A12=2,"",IF(Data!$AE$157=TRUE,"Yes","No")) -> No | M224: =IF('Mitigation Data'!C4=TRUE,"",IF('Mitigation Data'!$AE$177=TRUE,"Yes","No")) -> No
A225: Cats / dogs | G225: =IF(Data!A12=2,"",IF(Data!$AE$158=TRUE,"Yes","No")) -> No | M225: =IF('Mitigation Data'!C4=TRUE,"",IF('Mitigation Data'!$AE$178=TRUE,"Yes","No")) -> No
A226: Noxious weeds | G226: =IF(Data!A12=2,"",IF(Data!$AE$159=TRUE,"Yes","No")) -> No | M226: =IF('Mitigation Data'!C4=TRUE,"",IF('Mitigation Data'!$AE$179=TRUE,"Yes","No")) -> No
A227: Pigs / goats | G227: =IF(Data!A12=2,"",IF(Data!$AE$160=TRUE,"Yes","No")) -> No | M227: =IF('Mitigation Data'!C4=TRUE,"",IF('Mitigation Data'!$AE$180=TRUE,"Yes","No")) -> No
A228: Birds | G228: =IF(Data!A12=2,"",IF(Data!$AE$161=TRUE,"Yes","No")) -> No | M228: =IF('Mitigation Data'!C4=TRUE,"",IF('Mitigation Data'!$AE$181=TRUE,"Yes","No")) -> No
A229: Flies / insects | G229: =IF(Data!A12=2,"",IF(Data!$AE$162=TRUE,"Yes","No")) -> No | M229: =IF('Mitigation Data'!C4=TRUE,"",IF('Mitigation Data'!$AE$182=TRUE,"Yes","No")) -> No
A231: Method of liquid / hazardous waste storage | G231: =IF(Data!A12=2,"Not applicable",LOOKUP(Data!$AE$105,Data!$AC$106:$AC$110,Data!$AD$106:$AD$110)) -> In concrete bunded area(s) | M231: =IF('Mitigation Data'!C4=TRUE,"Not applicable",LOOKUP('Mitigation Data'!$AE$125,'Mitigation Data'!$AC$126:$AC$130,'Mitigation Data'!$AD$126:$AD$130)) -> No change proposed
A232: Cover of liquid / hazardous waste storage area | G232: =IF(Data!A12=2,"Not applicable",IF(Data!$AE$112=1,"Yes","No")) -> Yes | M232: =IF('Mitigation Data'!C4=TRUE,"Not applicable",IF('Mitigation Data'!$AE$132=1,"Yes","No")) -> Yes
A234: Stormwater diversion: | G234: =IF(Data!$A$12=2,"Not applicable","") ->  | M234: =IF('Mitigation Data'!$C$4=TRUE,"Not applicable","") -> 
A235: Around perimeter of facility | G235: =IF(Data!A12=2,"",IF(Data!$AE$81=TRUE,"Yes","No")) -> No | M235: =IF('Mitigation Data'!C4=TRUE,"",IF('Mitigation Data'!$AE$86=TRUE,"Yes","No")) -> No
A236: Around disturbed areas | G236: =IF(Data!A12=2,"",IF(Data!$AE$82=TRUE,"Yes","No")) -> No | M236: =IF('Mitigation Data'!C4=TRUE,"",IF('Mitigation Data'!$AE$87=TRUE,"Yes","No")) -> No
A237: Areas where waste is stored / disposed | G237: =IF(Data!A12=2,"",IF(Data!$AE$83=TRUE,"Yes","No")) -> No | M237: =IF('Mitigation Data'!C4=TRUE,"",IF('Mitigation Data'!$AE$88=TRUE,"Yes","No")) -> No
A239: E-RAMP Risk Profile Report (cont)
A241: Operations and Management (cont)
G243: Existing | M243: Proposed
A245: Management of runoff from undisturbed areas | G245: =IF(Data!A12=2,"Not applicable",LOOKUP(Data!$AE$85,Data!$AC$92:$AC$96,Data!$AD$92:$AD$96)) -> Nil / direct discharge | M245: =IF('Mitigation Data'!C4=TRUE,"Not applicable",LOOKUP('Mitigation Data'!$AE$90,'Mitigation Data'!$AC$91:$AC$95,'Mitigation Data'!$AD$91:$AD$95)) -> No change proposed
A246: Management of runoff from disturbed areas | G246: =IF(Data!A12=2,"Not applicable",LOOKUP(Data!$AE$87,Data!$AC$92:$AC$96,Data!$AD$92:$AD$96)) -> Nil / direct discharge | M246: =IF('Mitigation Data'!C4=TRUE,"Not applicable",LOOKUP('Mitigation Data'!$AE$97,'Mitigation Data'!$AC$98:$AC$102,'Mitigation Data'!$AD$98:$AD$102)) -> No change proposed
A247: Management of runoff from waste areas | G247: =IF(Data!A12=2,"Not applicable",LOOKUP(Data!$AE$89,Data!$AC$92:$AC$96,Data!$AD$92:$AD$96)) -> Nil / direct discharge | M247: =IF('Mitigation Data'!C4=TRUE,"Not applicable",LOOKUP('Mitigation Data'!$AE$104,'Mitigation Data'!$AC$105:$AC$109,'Mitigation Data'!$AD$105:$AD$109)) -> No change proposed
A248: % of sealed trafficable areas | G248: =IF(Data!A12=2,"Not applicable",LOOKUP(Data!$AE$98,Data!$AC$99:$AC$103,Data!$AD$99:$AD$103)) -> No surfaces (0%) | M248: =IF('Mitigation Data'!C4=TRUE,"Not applicable",LOOKUP('Mitigation Data'!$AE$118,'Mitigation Data'!$AC$119:$AC$123,'Mitigation Data'!$AD$119:$AD$123)) -> No change proposed
A250: Collection services offered | G250: =IF(Data!$A$12=2,"Not applicable","") ->  | M250: =IF('Mitigation Data'!$C$4=TRUE,"Not applicable","") -> 
A251: Mixed waste | G251: =IF(Data!A12=2,"",IF(Data!$AE$149=TRUE,"Yes","No")) -> No | M251: =IF('Mitigation Data'!C4=TRUE,"",IF('Mitigation Data'!$AE$169=TRUE,"Yes","No")) -> No
A252: Recyclables | G252: =IF(Data!A12=2,"",IF(Data!$AE$150=TRUE,"Yes","No")) -> No | M252: =IF('Mitigation Data'!C4=TRUE,"",IF('Mitigation Data'!$AE$170=TRUE,"Yes","No")) -> No
A253: Garden / Food organics | G253: =IF(Data!A12=2,"",IF(Data!$AE$151=TRUE,"Yes","No")) -> No | M253: =IF('Mitigation Data'!C4=TRUE,"",IF('Mitigation Data'!$AE$171=TRUE,"Yes","No")) -> No
A254: Bulky items | G254: =IF(Data!A12=2,"",IF(Data!$AE$152=TRUE,"Yes","No")) -> No | M254: =IF('Mitigation Data'!C4=TRUE,"",IF('Mitigation Data'!$AE$172=TRUE,"Yes","No")) -> No
A256: Community Recycling Centre within 50km | G256: =IF(Data!A12=2,"Not applicable",IF(Data!$AE$154=2,"No","Yes")) -> No | M256: =IF('Mitigation Data'!C4=TRUE,"Not applicable",IF('Mitigation Data'!$AE$174=2,"No","Yes")) -> No
A258: Environmental Information & Monitoring
G260: Existing | M260: Proposed
A262: Environmental Information
A263: Detailed site selection process undertaken | G263: =LOOKUP(Data!$S$3,Data!$Q$8:$Q$10,Data!$R$8:$R$10) -> Unknown | M263: N/A
A264: Environmental assessment undertaken | G264: =LOOKUP(Data!$S$4,Data!$Q$8:$Q$10,Data!$R$8:$R$10) -> Unknown | M264: N/A
A265: Environmental audit undertaken | G265: =LOOKUP(Data!$S$5,Data!$Q$8:$Q$10,Data!$R$8:$R$10) -> Unknown | M265: =LOOKUP('Mitigation Data'!$S$5,'Mitigation Data'!$Q$8:$Q$9,'Mitigation Data'!$R$8:$R$9) -> No
A266: Environmental investigation undertaken | G266: =LOOKUP(Data!$S$6,Data!$Q$8:$Q$10,Data!$R$8:$R$10) -> Unknown | M266: =LOOKUP('Mitigation Data'!$S$6,'Mitigation Data'!$Q$8:$Q$9,'Mitigation Data'!$R$8:$R$9) -> No
A267: Environment Management Plan prepared | G267: =LOOKUP(Data!$S$7,Data!$Q$8:$Q$10,Data!$R$8:$R$10) -> Unknown | M267: =LOOKUP('Mitigation Data'!$S$7,'Mitigation Data'!$Q$8:$Q$9,'Mitigation Data'!$R$8:$R$9) -> No
A268: Archaeological investigation for ACH | G268: N/A | M268: =LOOKUP('Mitigation Data'!$W$97,'Mitigation Data'!$Q$8:$Q$9,'Mitigation Data'!$R$8:$R$9) -> No
A269: Flora & Fauna investigation for TS & EEC | G269: N/A | M269: =LOOKUP('Mitigation Data'!$W$98,'Mitigation Data'!$Q$8:$Q$9,'Mitigation Data'!$R$8:$R$9) -> No
A271: Groundwater Monitoring
A272: No. locations | G272: ='Monitoring 1'!F6 -> No monitoring undertaken | M272: ='Monitoring 1'!J6 -> No change proposed
A273: Locations | G273: ='Monitoring 1'!F7 ->  | M273: ='Monitoring 1'!J7 -> 
A274: Frequency | G274: ='Monitoring 1'!F8 ->  | M274: ='Monitoring 1'!J8 -> 
A275: Parameters:
A276: Level (mBGL) | G276: ='Monitoring 1'!F11 ->  | M276: ='Monitoring 1'!J11 -> 
A277: pH | G277: ='Monitoring 1'!F12 ->  | M277: ='Monitoring 1'!J12 -> 
A278: Electrical Conductivity | G278: ='Monitoring 1'!F13 ->  | M278: ='Monitoring 1'!J13 -> 
A279: Ammonia | G279: ='Monitoring 1'!F14 ->  | M279: ='Monitoring 1'!J14 -> 
A280: Nitrate | G280: ='Monitoring 1'!F15 ->  | M280: ='Monitoring 1'!J15 -> 
A281: Total Organic Carbon | G281: ='Monitoring 1'!F16 ->  | M281: ='Monitoring 1'!J16 -> 
A282: Alkalinity | G282: ='Monitoring 1'!F17 ->  | M282: ='Monitoring 1'!J17 -> 
A283: Iron | G283: ='Monitoring 1'!F18 ->  | M283: ='Monitoring 1'!J18 -> 
A284: Pesticides | G284: ='Monitoring 1'!F19 ->  | M284: ='Monitoring 1'!J19 -> 
A285: Others | G285: ='Monitoring 1'!F20 ->  | M285: ='Monitoring 1'!J20 -> 
A286: Deviation of results from background levels | G286: ='Monitoring 1'!F22 ->  | M286: N/A
A288: Surface Water Monitoring
A289: No. locations | G289: ='Monitoring 3'!F6 -> No monitoring undertaken | M289: ='Monitoring 3'!J6 -> No change proposed
A290: Locations | G290: ='Monitoring 3'!F7 ->  | M290: ='Monitoring 3'!J7 -> 
... 144 more rows
